Workbook

Sheet B2_錄音程序&共同文字(ILP) (hidden)
A1: item | B1: 開頭語 | C1: 結尾語 | D1: 開頭語_農金版 | E1: 內文一_農金版 | F1: 內文二_農金版 | G1: 開頭語_臺企版 | H1: 開頭語_兆豐版 | I1: 開頭語_花旗版 | J1: 開頭語_一銀版 | K1: 開頭語_台新版 | L1: 確認語1 | M1: 確認語2 | N1: 確認語3 | O1: 組合版(公式過長用) | P1: 開頭語-繳款人 | Q1: 結尾語_繳款人 | R1: 開頭語_農金版 | S1: 內文一_農金版 | T1: 內文二_農金版 | U1: 開頭語_臺企版 | V1: 開頭語_兆豐版 | W1: 開頭語_花旗版 | X1: 開頭語_一銀版 | Y1: 開頭語_台新版 | Z1: 確認語1 | AA1: 確認語2 | AB1: 確認語3 | AD1: 確認語設定 | AE1: 確認語1 | AF1: 確認語2 | AG1: 確認語3 | AH1: 確認語4 | AI1: 確認語5 | AJ1: 確認語6 | AQ1: 瘖啞人士注意事項 | AR1: 瘖啞人士注意事項_繳款人
A2: 錄音程序一 | B2: 準備錄音話術 | AD2: 1 | AE2: =要保人&" 先生/女士、"&被保人&" 先生/女士，" -> 貴保戶 先生/女士、貴保戶 先生/女士， | AF2: =" "&要保人&" 先生/女士，請問您是否同意?【請客戶回答：同意/不同意】"&" "&被保人&" 先生/女士，請問您是否同意?【請客戶回答：同意/不同意】 " -> 貴保戶 先生/女士，請問您是否同意?【請客戶回答：同意/不同意】 貴保戶 先生/女士，請問您是否同意?【請客戶回答：同意/不同意】 | AG2: =" "&要保人&" 先生/女士，請您唸出身分證字號為【提示:請等待客戶念出身分證字號"&要保人身分證字號&"，並進行核對】"&" "&被保人&" 先生/女士，請您唸出身分證字號為【提示:請等待客戶念出身分證字號"&被保險人身分證字號&"，並進行核對】" -> 貴保戶 先生/女士，請您唸出身分證字號為【提示:請等待客戶念出身分證字號，並進行核對】 貴保戶 先生/女士，請您唸出身分證字號為【提示:請等待客戶念出身分證字號，並進行核對】 | AH2: =" "&要保人&" 先生/女士，請問是否正確?【請客戶回答：正確/不正確】"&" "&被保人&" 先生/女士，請問是否正確?【請客戶回答：正確/不正確】 " -> 貴保戶 先生/女士，請問是否正確?【請客戶回答：正確/不正確】 貴保戶 先生/女士，請問是否正確?【請客戶回答：正確/不正確】 | AI2: =" "&要保人&" 先生/女士，請問您清楚嗎? 【請客戶回答：清楚/不清楚】"&" "&被保人&" 先生/女士，請問您清楚嗎? 【請客戶回答：清楚/不清楚】 " -> 貴保戶 先生/女士，請問您清楚嗎? 【請客戶回答：清楚/不清楚】 貴保戶 先生/女士，請問您清楚嗎? 【請客戶回答：清楚/不清楚】 | AJ2: =要保人&"先生/女士，請進行聲明。 【要保人】： 我，"&要保人& "已充分了解本保單且確認符合本人需求，投保時應簽署之所有文件均以本人親自簽名方式投保。 "&"【銷售人員】： "& 被保人&"先生/女士，請進行聲明。 【被保險人】： 我，"&被保人& "已充分了解本保單且確認符合本人需求，投保時應簽署之所有文件均以本人親自簽名方式投保。"&" ※以下僅供聽力或語言表達能力不便客戶簽署聲明、姓名與日期欄位： 客戶聲明：___________________________________________________________ 客戶姓名：________簽署日期：_________錄影年份日期與時分：_________" -> 貴保戶先生/女士，請進行聲明。 【要保人】： 我，貴保戶已充分了解本保單且確認符合本人需求，投保時應簽署之所有文件均以本人親自簽名方式投保。 【銷售人員】： 貴保戶先生/女士，請進行聲明。 【被保險人】： 我，貴保戶已充分了解本保單且確認符合本人需求，投保時應簽署之所有文件均以本人親自簽名方式投保。 ※以下僅供聽力或語言表達能力不便客戶簽署聲明、姓名與日期欄位： 客戶聲明：___________________________________________________________ 客戶姓名：________簽署日期：_________錄影年份日期與時分：_________ | AQ2: ※倘要保人/被保人之聽力或語言表達能力不便，須改採以全程銷售錄影方式並經客戶同意，銷售錄影注意事項可洽詢保誠業務單位窗口，請該名客戶本人於銷售錄音範本之最後問項欄位簽署下列客戶親簽文字。 《客戶親簽文字》 「對於上述銷售人員逐項劃線說明之內容皆清楚並同意。***(客戶姓名)已充分了解本保單且確認符合本人需求，投保時應簽署之所有文件均由本人親自簽名投保。」之聲明文字，並且請客戶親簽姓名與簽署日期，以及註明啟動錄影時間的年份日期與時分。 | AR2: ※倘繳款人之聽力或語言表達能力不便，須改採以全程銷售錄影方式並經客戶同意，銷售錄影注意事項可洽詢保誠業務單位窗口，請該名客戶本人於銷售錄音範本之最後問項欄位簽署下列客戶親簽文字。 《客戶親簽文字》 「對於上述銷售人員逐項劃線說明之內容皆清楚並同意。***(客戶姓名)已充分了解本保單及相關風險，且已確認可負擔保費。」之聲明文字，並且請客戶親簽姓名與簽署日期，以及註明啟動錄影時間的年份日期與時分。
A3: 錄音程序二 | B3: 撥打錄音專線0809-070-898 | AD3: 2 | AE3: =要保人姓名&"先生/女士，" -> 貴保戶先生/女士， | AF3: ="請問您是否同意?【請客戶回答：同意/不同意】 " -> 請問您是否同意?【請客戶回答：同意/不同意】 | AG3: ="請您唸出身分證字號為【提示:請等待客戶念出身分證字號"&要保人身分證字號&"，並進行核對】" -> 請您唸出身分證字號為【提示:請等待客戶念出身分證字號，並進行核對】 | AH3: ="請問是否正確?【請客戶回答：正確/不正確】 " -> 請問是否正確?【請客戶回答：正確/不正確】 | AI3: ="請問您清楚嗎? 【請客戶回答：清楚/不清楚】 " -> 請問您清楚嗎? 【請客戶回答：清楚/不清楚】 | AJ3: ="【要保人】： 我，"&要保人姓名&" 已充分了解本保單且確認符合本人需求，投保時應簽署之所有文件均以本人親自簽名方式投保。"&" ※以下僅供聽力或語言表達能力不便客戶簽署聲明、姓名與日期欄位： 客戶聲明：___________________________________________________________ 客戶姓名：________簽署日期：_________錄影年份日期與時分：_________" -> 【要保人】： 我，貴保戶 已充分了解本保單且確認符合本人需求，投保時應簽署之所有文件均以本人親自簽名方式投保。 ※以下僅供聽力或語言表達能力不便客戶簽署聲明、姓名與日期欄位： 客戶聲明：___________________________________________________________ 客戶姓名：________簽署日期：_________錄影年份日期與時分：_________
A4: 錄音程序三 | B4: 輸入要保人或錄音客戶ID後9碼或居留證後8碼加「#」 | AD4: 3 | AE4: =被保人&" 先生/女士，" -> 貴保戶 先生/女士， | AF4: ="請問您是否同意?【請客戶回答：同意/不同意】 " -> 請問您是否同意?【請客戶回答：同意/不同意】 | AG4: ="請您唸出身分證字號為【提示:請等待客戶念出身分證字號"&被保險人身分證字號&"，並進行核對】" -> 請您唸出身分證字號為【提示:請等待客戶念出身分證字號，並進行核對】 | AH4: ="請問是否正確?【請客戶回答：正確/不正確】 " -> 請問是否正確?【請客戶回答：正確/不正確】 | AI4: ="請問您清楚嗎? 【請客戶回答：清楚/不清楚】 " -> 請問您清楚嗎? 【請客戶回答：清楚/不清楚】 | AJ4: ="【被保險人】： 我，"&被保人&" 已充分了解本保單且確認符合本人需求，投保時應簽署之所有文件均以本人親自簽名方式投保。"&" ※以下僅供聽力或語言表達能力不便客戶簽署聲明、姓名與日期欄位： 客戶聲明：___________________________________________________________ 客戶姓名：________簽署日期：_________錄影年份日期與時分：_________" -> 【被保險人】： 我，貴保戶 已充分了解本保單且確認符合本人需求，投保時應簽署之所有文件均以本人親自簽名方式投保。 ※以下僅供聽力或語言表達能力不便客戶簽署聲明、姓名與日期欄位： 客戶聲明：___________________________________________________________ 客戶姓名：________簽署日期：_________錄影年份日期與時分：_________
A5: 錄音程序四 | B5: 嘟一聲後，開始宣讀錄音內容
A6: 錄音程序五 | B6: 錄音完成，按#字鍵
A7: 錄音程序六 | B7: 重聽留言按1，結束按3。 | C7: 重聽留言按1，聽錄音序號按2，結束按3。
A8: 錄音前作業提醒 | B8: ="重要提醒： ※銷售錄音或錄影紀錄作業時，可口語化說明向當事人進行相關內容解說，不得僅依範本逐字宣讀，如客戶有不清楚的地方，請詳加說明。 "&"※銷售錄音專線：0809-070-898，接著輸入要保人或錄音客戶身分證字號後9碼或居留證號後8碼加「#」，開始錄音。"&" "&D1_高齡錄音資料檢核!D14 ->  | C8: ※銷售錄音專線：0809-070-898，接著輸入要保人或錄音客戶身分證字號後9碼或居留證號後8碼加「#」，開始錄音。 | H8: ="重要提醒： ※銷售錄音或錄影紀錄作業時，可口語化說明向當事人進行相關內容解說，依錄音範本逐字唸完，保單利益請參考「錄音補充話術」，至少選擇二項向客戶說明並口語化解說一項，如客戶有不清楚的地方，請詳加說明。 "&"※銷售錄音專線：0809-070-898，接著輸入要保人或錄音客戶身分證字號後9碼或居留證號後8碼加「#」，開始錄音。"&D1_高齡錄音資料檢核!D14 ->  | P8: ="重要提醒： ※銷售錄音或錄影紀錄作業時，可口語化說明向當事人進行相關內容解說，不得僅依範本逐字宣讀，如客戶有不清楚的地方，請詳加說明。 "&"※銷售錄音專線：0809-070-898，接著輸入要保人或錄音客戶身分證字號後9碼或居留證號後8碼加「#」，開始錄音。"&" "&D1_高齡錄音資料檢核!D15 ->  | V8: 重要提醒： ※銷售錄音或錄影紀錄作業時，可口語化說明向當事人進行相關內容解說，依錄音範本逐字唸完，保單利益請參考「錄音補充話術」選擇二項向客戶說明並口語化解說一項，如客戶有不清楚的地方，請詳加說明。 ※銷售錄音專線：0809-070-898，接著輸入要保人或錄音客戶身分證字號後9碼或居留證號後8碼加「#」，開始錄音。※本保單要保人、被保險人、繳款人保險年齡達65歲(含)以上，故需對要保人、被保險人、繳款人共三人進行錄音。 ※要/被保險人錄音話術稿請至「要保人/被保險人高齡錄音話術範本」。
A9: 錄音後作業提醒 | B9: ※請續進行下表繳款人錄音。 | C9: =IF(_xlfn.IFNA(VLOOKUP(服務公司,錄音序號適用通路,1,FALSE)<>"",FALSE),"※錄音結束請按「#」鍵。回聽錄音按1，聽錄音序號按2，結束錄音按3。","※錄音結束請按「#」鍵。回聽錄音按1，結束錄音按3。")&" ※完成錄音，請將開始錄音之日期及時間註記於業務員報告書。" -> ※錄音結束請按「#」鍵。回聽錄音按1，結束錄音按3。 ※完成錄音，請將開始錄音之日期及時間註記於業務員報告書。 | D9: ※錄音結束請按「#」鍵。回聽錄音按1，聽錄音序號按2，結束錄音按3。 ※完成錄音，請將錄音序號註記於業務員報告書。
A10: 錄音序號1_錄音取得要保人同意錄音及說明係購買保險商品 | B10: ="【銷售人員】： "&錄音序號1_確認語_1&" 您好！我是服務於"&IF(服務單位檢核,服務單位&" ，登錄於欣台保險經紀人 ",服務公司&保經保代&" ")&"的"&服務專員&" ，業務員登錄證字號是" &登錄字號&" 。"& IF(雙招選項="是"," 【第二招攬業務員】：您好！我是服務於"&IF(服務單位檢核,服務單位&" ，登錄於欣台保險經紀人 ",服務公司&保經保代&" ")&"的"&服務專員第二招攬&" ，業務員登錄證字號是"&登錄字號第二&"。","")&" 根據法令規定，我將錄音記錄本次銷售過程。"&錄音序號1_確認語_2&" 因本錄音內容與您投保資料有關，先向您確認本人身分，"&錄音序號1_確認語_3 ->  | C10: ="您所購買的是保誠人壽保險公司發行的投資型保險商品- "&商品名稱&IFERROR(IF(FIND("兆豐",服務公司)," 。此保單是透『"&服務公司&"』代理銷售，且已獲『兆豐銀行保代處』授權招攬。"),"。此保單是透過本公司為行銷通路並代理銷售。")&"以下我將說明本商品內容及重要事項，請您聽完後逐一回答。" -> 您所購買的是保誠人壽保險公司發行的投資型保險商品- 保誠人壽享保障變額萬能壽險。此保單是透過本公司為行銷通路並代理銷售。以下我將說明本商品內容及重要事項，請您聽完後逐一回答。 | D10: ="【銷售人員】： "&錄音序號1_確認語_1&" 您好！我是服務於"&服務公司&IF(OR(服務公司="花蓮一信",服務公司="高雄三信",服務公司="基隆二信",服務公司="淡水一信",服務公司="彰化一信",服務公司="彰化五信",服務公司="臺中二信",服務公司="臺南三信",服務公司="鹿港信用合作社"),"，登錄於欣台保險經紀人的"&業務員_1," 的"&業務員_1)&" ，業務員登錄證字號是" &登錄字號_1&"。"& IF(雙招=1," 【第二招攬業務員】：您好！我是服務於"&服務公司&" "&"的"&業務員_2&" ，業務員登錄字號是"&登錄字號_2&"。","")& " 根據法令規定，我將以錄音方式記錄本次銷售有解約金之保險商品過程，"&錄音序號1_確認語_2 ->  | E10: ="因本錄音內容與您投保資料有關，先向您確認本人身分，"&錄音序號1_確認語_3 ->  | L10: =VLOOKUP(要被保人話術稿判斷,'B2_錄音程序&共同文字(ILP)'!$AD$1:$AI$4,2,FALSE) ->  | M10: =VLOOKUP(要被保人話術稿判斷,'B2_錄音程序&共同文字(ILP)'!$AD$1:$AI$4,3,FALSE) ->  | N10: =VLOOKUP(要被保人話術稿判斷,'B2_錄音程序&共同文字(ILP)'!$AD$1:$AI$4,4,FALSE) ->  | P10: ="【銷售人員】： "&繳款人&" 先生/女士，您好！我是服務於"&IF(服務單位檢核,服務單位&" ，登錄於欣台保險經紀人 ",服務公司&保經保代&" ")&"的"&服務專員&" ，業務員登錄證字號是" &登錄字號&" 。"& IF(雙招選項="是"," 【第二招攬業務員】：您好！我是服務於"&IF(服務單位檢核,服務單位&" ，登錄於欣台保險經紀人 ",服務公司&保經保代&" ")&"的"&服務專員第二招攬&" ，業務員登錄證字號是"&登錄字號第二&"。","")&" 根據法令規定，我將錄音記錄本次銷售過程，請問您是否同意?【請客戶回答：同意/不同意】"& " 因本錄音內容與您代為繳費的投保資料有關，先向您確認本人身分，請您唸出身分證字號為【提示:請等待客戶念出身分證字號"&繳款人身分證字號&"，並進行核對】" -> 【銷售人員】： 貴保戶 先生/女士，您好！我是服務於 的 ，業務員登錄證字號是 。 根據法令規定，我將錄音記錄本次銷售過程，請問您是否同意?【請客戶回答：同意/不同意】 因本錄音內容與您代為繳費的投保資料有關，先向您確認本人身分，請您唸出身分證字號為【提示:請等待客戶念出身分證字號，並進行核對】 | Q10: ="您代為繳交保費的是保誠人壽保險公司發行的投資型保險商品- "&商品名稱&IFERROR(IF(FIND("兆豐銀行",服務公司)," 。此保單是透『"&服務公司&"』代理銷售，且已獲『兆豐銀行保代處』授權招攬。"),"。此保單是透過本公司為行銷通路並代理銷售。")&"以下我將說明本商品內容及重要事項，請您聽完後逐一回答。" -> 您代為繳交保費的是保誠人壽保險公司發行的投資型保險商品- 保誠人壽享保障變額萬能壽險。此保單是透過本公司為行銷通路並代理銷售。以下我將說明本商品內容及重要事項，請您聽完後逐一回答。 | R10: ="【銷售人員】： "&繳款人&" 先生/女士，您好！我是服務於"&服務公司&IF(OR(服務公司="花蓮一信",服務公司="高雄三信",服務公司="基隆二信",服務公司="淡水一信",服務公司="彰化一信",服務公司="彰化五信",服務公司="臺中二信",服務公司="臺南三信",服務公司="鹿港信用合作社"),"，登錄於欣台保險經紀人的"&業務員_1," 的"&業務員_1)&" ，業務員登錄證字號是" &登錄字號_1&"。"& IF(雙招=1," 【第二招攬業務員】：您好！我是服務於"&服務公司&" "&"的"&業務員_2&" ，業務員登錄字號是"&登錄字號_2&"。","")& " 根據法令規定，我將以錄音方式記錄本次銷售有解約金之保險商品過程。請問您是否同意?【請客戶回答：同意/不同意】）" -> 【銷售人員】： 貴保戶 先生/女士，您好！我是服務於 的 ，業務員登錄證字號是。 根據法令規定，我將以錄音方式記錄本次銷售有解約金之保險商品過程。請問您是否同意?【請客戶回答：同意/不同意】） | S10: ="因本錄音內容與您代為繳費的投保資料有關，先向您確認本人身分，請您唸出身分證字號為【提示:請等待客戶念出身分證字號"&繳款人身分證字號&"，並進行核對】" -> 因本錄音內容與您代為繳費的投保資料有關，先向您確認本人身分，請您唸出身分證字號為【提示:請等待客戶念出身分證字號，並進行核對】
A11: 錄音序號2_告知繳費年期與繳費金額 | B11: ="【銷售人員】： 您投保本保單的目的及需求為 "&投保目的及需求&"【提示:請與業務員報告書一致】，您於投保時應簽署之所有文件均會由本人親自簽名投保，並確認本保單商品符合您的需求，"&錄音序號_確認語_1&" 您選擇投保主約保額為 "&IF(VLOOKUP(商品名稱,#REF!,17,0)="元",幣別&TEXT(主約保險金額,"#,###")&"元",VLOOKUP(商品名稱,#REF!,17,0)&TEXT(保額,"#,###")) &"，繳費年期為 "&繳費年期&"年，保障年期 "&IF(VLOOKUP(商品名稱,#REF!,18,0)="",保障年期&"年",VLOOKUP(商品名稱,#REF!, 18,0))&"，"&錄音序號_確認語_2 ->  | C11: ="您選擇的繳別為"&繳別& "，本期繳交保費為" &幣別 &TEXT(折扣後保費*IF(繳別="月繳",2,1)," #,###")&" 元，"&IF(OR(繳別="躉繳",繳別="年繳"),"您已確認可負擔此保費，"&錄音序號_確認語_1,"每年需繳交保費之保費總計為"&幣別 &TEXT(折扣後保費*繳費頻率," #,###")& " 元，您已確認可負擔此保費，"&錄音序號_確認語_1) ->  | D11: ="【銷售人員】： 您投保本保單的目的及需求為 "&投保目的及需求&"【提示:請與業務員報告書一致】，您於投保時應簽署之所有文件均會由本人親自簽名投保，並確認本保單商品符合您的需求，"&錄音序號_確認語_1 ->  | E11: ="您選擇投保主約保額為 "&IF(VLOOKUP(商品名稱,#REF!,17,0)="元",幣別&TEXT(主約保險金額,"#,###")&"元",VLOOKUP(商品名稱,#REF!,17,0)&TEXT(保額,"#,###")) &"，繳費年期為 "&繳費年期&"年，保障年期 "&IF(VLOOKUP(商品名稱,#REF!,18,0)="",保障年期&"年",VLOOKUP(商品名稱,#REF!, 18,0))&"，"&錄音序號_確認語_2 ->  | I11: ="【銷售人員】： 您投保本保單的目的及需求為 "&投保目的及需求&" (請與業務員報告書一致)，各項投保相關文件都是經您親自簽名，並確認本保單商品滿足您的需求，且符合您的財力及風險承擔能力，沒有受任何誘導以貸款、解約、保單借款買保險的情形，"&錄音序號_確認語_1&" 您選擇投保主約保額為 "&IF(VLOOKUP(商品名稱,#REF!,17,0)="元",幣別&TEXT(保額,"#,###")&"元",VLOOKUP(商品名稱,#REF!,17,0)&TEXT(保額,"#,###")) &"，繳費年期為 "&繳費年期&"年，保障年期 "&IF(VLOOKUP(商品名稱,#REF!,18,0)="",保障年期&"年",VLOOKUP(商品名稱,#REF!, 18,0))&"，"&錄音序號_確認語_2 ->  | K11: 您已確實了解此次投保之保險產品繳費年期為___年，每年繳費金額為台幣/美元_______元，請問正確或不正確？(2年繳以上產品適用) | L11: =VLOOKUP(要被保人話術稿判斷,'B2_錄音程序&共同文字(ILP)'!$AD$1:$AI$4,5,FALSE) ->  | M11: =VLOOKUP(要被保人話術稿判斷,'B2_錄音程序&共同文字(ILP)'!$AD$1:$AI$4,6,FALSE) ->  | O11: =IF(D1_高齡錄音資料檢核!C16=4,D1_高齡錄音資料檢核!D16,IFERROR(IF(FIND("企",服務公司)*FIND("銀",服務公司),錄音序號3_開頭語_臺企版&VLOOKUP(商品名稱,#REF!,12,0)),IFERROR(IF(FIND("兆豐",服務公司),錄音序號3_開頭語_兆豐版&VLOOKUP(商品名稱,#REF!,21,0)),IFERROR(IF(FIND("第一",服務公司),錄音序號3_開頭語&VLOOKUP(商品名稱,#REF!,22,0)),IFERROR(IF(FIND("花旗",服務公司),錄音序號3_開頭語&VLOOKUP(商品名稱,#REF!,23,0)),IFERROR(IF(FIND("星展",服務公司),錄音序號3_開頭語&VLOOKUP(商品名稱,#REF!,23,0)),錄音序號3_開頭語&VLOOKUP(商品名稱,#REF!,12,0))))))) -> ※本保單要保人、被保險人不需錄音。 | P11: ="【銷售人員】： 本保單主約保額為 "&IF(VLOOKUP(商品名稱,#REF!,17,0)="元",幣別&TEXT(主約保險金額,"#,###")&"元",VLOOKUP(商品名稱,#REF!,17,0)&TEXT(保額,"#,###")) &"，繳費年期為 "&繳費年期&"年，保障年期 "&IF(VLOOKUP(商品名稱,#REF!,18,0)="",保障年期&"年",VLOOKUP(商品名稱,#REF!, 18,0))&"，請問您清楚嗎?【請客戶回答：清楚/不清楚】" ->  | Q11: ="本保單保險費為"&繳別& "，本期繳交保費為" &幣別 &TEXT(折扣後保費*IF(繳別="月繳",2,1)," #,###")&" 元，"&IF(OR(繳別="躉繳",繳別="年繳"),"您已確認可負擔此保費，請問是否正確?【請客戶回答：正確/不正確】","每年需繳交保費之保費總計為"&幣別 &TEXT(折扣後保費*繳費頻率," #,###")& " 元，您已確認可負擔此保費，請問是否正確?【請客戶回答：正確/不正確】") -> 本保單保險費為月繳，本期繳交保費為新臺幣 20,000 元，每年需繳交保費之保費總計為新臺幣 120,000 元，您已確認可負擔此保費，請問是否正確?【請客戶回答：正確/不正確】 | R11: ="【銷售人員】： 您投保本保單的目的及需求為 "&投保目的及需求&" ，您已親簽各項投保文件，並確認本保單商品滿足您的需求，請問是否正確?【請客戶回答：正確/不正確】 " -> 【銷售人員】： 您投保本保單的目的及需求為 ，您已親簽各項投保文件，並確認本保單商品滿足您的需求，請問是否正確?【請客戶回答：正確/不正確】 | S11: ="您選擇投保主約保額為 "&幣別&TEXT(主約保險金額,"#,###")&"元，"&"繳費年期為 "&繳費年期&"年"&"，保障年期 "&VLOOKUP(商品名稱,#REF!,18,0)&"，請問您清楚嗎？【請客戶回答：清楚/不清楚】" ->  | W11: ="【銷售人員】： 此次代為繳交保費之本保單符合您的財力及風險承擔能力，沒有受任何誘導以貸款、解約、保單借款買保險的情形，請問是否正確?【請客戶回答：正確/不正確】"&" 您選擇投保主約保額為 "&IF(VLOOKUP(商品名稱,#REF!,17,0)="元",幣別&TEXT(保額,"#,###")&"元",VLOOKUP(商品名稱,#REF!,17,0)&TEXT(保額,"#,###")) &"，繳費年期為 "&繳費年期&"年，保障年期 "&IF(VLOOKUP(商品名稱,#REF!,18,0)="",保障年期&"年",VLOOKUP(商品名稱,#REF!, 18,0)) ->  | AL11: =" 您此次投保的保費來源為*****【提示：請參考業務員報告書勾選內容念出】， 請問是否正確？【請客戶回答：正確/不正確】"&" 【※提示：若「保費來源」來自於「保單解約金」加問下列兩題】 1. 以保單解約金投保本商品，是出自於您本人的意思，並非其他人請您這樣做，請問是否正確？【請客戶回答：正確/不正確】"&" 2. 原保單解約可能會有損失及費用，領回的解約金可能低於您過去所繳的保費、保障內容也會中斷，如果再重新投保，會依投保時的年齡、身體狀況及商品條件重新計算保費，請問您清楚嗎？【請客戶回答：清楚/不清楚】"&" 【※提示：若「保費來源」來自於「定存解約」加問下列兩題】 1. 以定存解約投保本商品，是出自於您本人的意思，並非其他人請您這樣做，請問是否正確？【請客戶回答：正確/不正確】"&" 2. 因您本次投保的保費來源為定存解約，定存中途解約利息會打折，領到的利息可能會減少，請問您清楚嗎？【請客戶回答：清楚/不清楚】" -> 您此次投保的保費來源為*****【提示：請參考業務員報告書勾選內容念出】， 請問是否正確？【請客戶回答：正確/不正確】 【※提示：若「保費來源」來自於「保單解約金」加問下列兩題】 1. 以保單解約金投保本商品，是出自於您本人的意思，並非其他人請您這樣做，請問是否正確？【請客戶回答：正確/不正確】 2. 原保單解約可能會有損失及費用，領回的解約金可能低於您過去所繳的保費、保障內容也會中斷，如果再重新投保，會依投保時的年齡、身體狀況及商品條件重新計算保費，請問您清楚嗎？【請客戶回答：清楚/不清楚】 【※提示：若「保費來源」來自於「定存解約」加問下列兩題】 1. 以定存解約投保本商品，是出自於您本人的意思，並非其他人請您這樣做，請問是否正確？【請客戶回答：正確/不正確】 2. 因您本次投保的保費來源為定存解約，定存中途解約利息會打折，領到的利息可能會減少，請問您清楚嗎？【請客戶回答：清楚/不清楚】
A12: 錄音序號3_說明商品重要條款、除外責任、商品說明書內容 | B12: 【銷售人員】： 如銷售過程中所說明， | C12: =IF(繳別="躉繳",#REF!&錄音序號_確認語_2,#REF!&錄音序號_確認語_2) ->  | G12: 【銷售人員】： 本商品之保險單條款樣張已事先交付給您，您已審閱本商品契約重要內容，並已瞭解契約各項給付條件。 如銷售過程中所說明， | H12: 【銷售人員】： 如銷售過程中所說明， (保單利益，請參考"錄音補充話術"，選擇二項向客戶說明) | J12: ="就保單條款中重要條款內容（例如契約效力的停止、恢復及終止事由、告知義務與本契約解除等事項），"&錄音序號_確認語_2&"試算表中所說明本契約保障內容及各項保險金給付等內容，"&錄音序號_確認語_2 ->  | O12: =IF(D1_高齡錄音資料檢核!C17=2,D1_高齡錄音資料檢核!D18,IFERROR(IF(FIND("企",服務公司)*FIND("銀",服務公司),錄音序號3_開頭語_臺企版_繳款人&VLOOKUP(商品名稱,#REF!,31,0)),IFERROR(IF(FIND("兆豐",服務公司),錄音序號3_開頭語_兆豐版_繳款人&VLOOKUP(商品名稱,#REF!,31,0)),IFERROR(IF(FIND("第一",服務公司),錄音序號3_開頭語_繳款人&VLOOKUP(商品名稱,#REF!,34,0)),IFERROR(IF(FIND("花旗",服務公司),錄音序號3_開頭語_繳款人&VLOOKUP(商品名稱,#REF!,23,0)),IFERROR(IF(FIND("星展",服務公司),錄音序號3_開頭語_繳款人&VLOOKUP(商品名稱,#REF!,23,0)),錄音序號3_開頭語_繳款人&VLOOKUP(商品名稱,#REF!,28,0))))))) -> ※本保單繳款人不需錄音。 | P12: 【銷售人員】： 如銷售過程中所說明， | Q12: =IF(繳別="躉繳",#REF!,#REF!) ->  | U12: 【銷售人員】： 本商品之保險單條款樣張已事先交付給您，您已審閱本商品契約重要內容，並已瞭解契約各項給付條件。 如銷售過程中所說明， | V12: 【銷售人員】： 如銷售過程中所說明， 【保單利益，請參考"錄音補充話術"，選擇二項向客戶說明】 | X12: 就保單條款中重要條款內容（例如契約效力的停止、恢復及終止事由、告知義務與本契約解除等事項），請問您清楚嗎？【請客戶回答：清楚/不清楚】 試算表中所說明本契約保障內容及各項保險金給付等內容，請問您清楚嗎？【請客戶回答：清楚/不清楚】
A13: 錄音序號4_說明保單相關風險 | B13: =IFERROR(VLOOKUP(商品名稱,'B2_錄音程序&共同文字(ILP)'!$A$23:$B$33,2,FALSE),'B2_錄音程序&共同文字(ILP)'!B22) ->  | C13: =IF(通路別="BD","本保單為保險商品，不是定存的替代品，"&錄音序號_確認語_2,"本保單為保險商品，不是定存的替代品，也不受存款保險的保障，"&錄音序號_確認語_2)&"人壽保險的死亡給付於被保險人死亡後給付於指定受益人者，依保險法相關規定不能作為被保險人遺產，若有涉及規避遺產稅等稅捐時，稽徵機關可以依據有關稅法或實質課稅原則相關規定辦理。"&錄音序號_確認語_2 ->  | I13: =IFERROR(VLOOKUP(商品名稱,'B2_錄音程序&共同文字(ILP)'!$A$23:$J$33,9,FALSE),'B2_錄音程序&共同文字(ILP)'!I22)&"人壽保險的死亡給付於被保險人死亡後給付於指定受益人者，依保險法相關規定不能作為被保險人遺產，若有涉及規避遺產稅等稅捐時，稽徵機關可以依據有關稅法或實質課稅原則相關規定辦理。"&錄音序號_確認語_2 ->  | J13: =IFERROR(VLOOKUP(商品名稱,'B2_錄音程序&共同文字(ILP)'!$A$23:$J$33,10,FALSE),'B2_錄音程序&共同文字(ILP)'!J22)&"人壽保險的死亡給付於被保險人死亡後給付於指定受益人者，依保險法相關規定不能作為被保險人遺產，若有涉及規避遺產稅等稅捐時，稽徵機關可以依據有關稅法或實質課稅原則相關規定辦理。"&錄音序號_確認語_2 ->  | K13: =IFERROR(VLOOKUP(商品名稱,'B2_錄音程序&共同文字(ILP)'!$A$23:$K$33,11,FALSE),'B2_錄音程序&共同文字(ILP)'!K22)&"人壽保險的死亡給付於被保險人死亡後給付於指定受益人者，依保險法相關規定不能作為被保險人遺產，若有涉及規避遺產稅等稅捐時，稽徵機關可以依據有關稅法或實質課稅原則相關規定辦理。"&錄音序號_確認語_2 ->  | P13: =IFERROR(VLOOKUP(商品名稱,'B2_錄音程序&共同文字(ILP)'!$A$23:$C$33,3,FALSE),C22) -> 【銷售人員】： 投保後解約或不繼續繳費，解約金可能會少於所繳的保險費且可能不利消費者，請問您清楚嗎? 【請客戶回答：清楚/不清楚】 | Q13: =IF(通路別="BD","本保單為保險商品，不是定存的替代品，請問您清楚嗎？【請客戶回答：清楚/不清楚】","本保單為保險商品，不是定存的替代品，也不受存款保險的保障，請問您清楚嗎？ 【請客戶回答：清楚/不清楚】")&" 人壽保險的死亡給付於被保險人死亡後給付於指定受益人者，依保險法相關規定不能作為被保險人遺產，若有涉及規避遺產稅等稅捐時，稽徵機關可以依據有關稅法或實質課稅原則相關規定辦理，請問您清楚嗎？ 【請客戶回答：清楚/不清楚】" -> 本保單為保險商品，不是定存的替代品，也不受存款保險的保障，請問您清楚嗎？ 【請客戶回答：清楚/不清楚】 人壽保險的死亡給付於被保險人死亡後給付於指定受益人者，依保險法相關規定不能作為被保險人遺產，若有涉及規避遺產稅等稅捐時，稽徵機關可以依據有關稅法或實質課稅原則相關規定辦理，請問您清楚嗎？ 【請客戶回答：清楚/不清楚】 | W13: =IFERROR(VLOOKUP(商品名稱,'B2_錄音程序&共同文字(ILP)'!$A$23:$Y$100,23,FALSE),'B2_錄音程序&共同文字(ILP)'!W22)&" 人壽保險的死亡給付於被保險人死亡後給付於指定受益人者，依保險法相關規定不能作為被保險人遺產，若有涉及規避遺產稅等稅捐時，稽徵機關可以依據有關稅法或實質課稅原則相關規定辦理，請問您清楚嗎？ 【提示:請等待客戶回答】" -> 【銷售人員】： 本保單為保險商品，非屬存款，也不受存款保險的保障，請問您清楚嗎? 【請客戶回答：清楚/不清楚】 投保後解約或不繼續繳費，解約金可能會少於所繳的保險費，請問您清楚嗎? 【請客戶回答：清楚/不清楚】 人壽保險的死亡給付於被保險人死亡後給付於指定受益人者，依保險法相關規定不能作為被保險人遺產，若有涉及規避遺產稅等稅捐時，稽徵機關可以依據有關稅法或實質課稅原則相關規定辦理，請問您清楚嗎？ 【提示:請等待客戶回答】 | X13: =IFERROR(VLOOKUP(商品名稱,'B2_錄音程序&共同文字(ILP)'!$A$23:$Y$33,24,FALSE),'B2_錄音程序&共同文字(ILP)'!X22)&" 人壽保險的死亡給付於被保險人死亡後給付於指定受益人者，依保險法相關規定不能作為被保險人遺產，若有涉及規避遺產稅等稅捐時，稽徵機關可以依據有關稅法或實質課稅原則相關規定辦理，請問您清楚嗎？ 【請客戶回答：清楚/不清楚】" -> 【銷售人員】： 本商品為保險商品，受人身保險安定基金保障，並非存款項目，故不受存款保險之保障。請問您清楚嗎？【請客戶回答：清楚/不清楚】 投保後解約或不繼續繳費，解約金可能會少於所繳的保險費且可能不利消費者，請問您清楚嗎？【請客戶回答：清楚/不清楚】 人壽保險的死亡給付於被保險人死亡後給付於指定受益人者，依保險法相關規定不能作為被保險人遺產，若有涉及規避遺產稅等稅捐時，稽徵機關可以依據有關稅法或實質課稅原則相關規定辦理，請問您清楚嗎？ 【請客戶回答：清楚/不清楚】
A14: 錄音序號5_契撤期說明 | B14: ="【銷售人員】： 自簽收保單隔日起算，要保人有10日撤銷契約的權益，"&錄音序號_確認語_2 ->  | P14: ="【銷售人員】： 自簽收保單隔日起算，要保人有10日撤銷契約的權益，請問您清楚嗎？【請客戶回答：清楚/不清楚】" -> 【銷售人員】： 自簽收保單隔日起算，要保人有10日撤銷契約的權益，請問您清楚嗎？【請客戶回答：清楚/不清楚】 | W14: =IFERROR(VLOOKUP(商品名稱,'B2_錄音程序&共同文字(ILP)'!$A$23:$Y$100,23,FALSE),'B2_錄音程序&共同文字(ILP)'!W22)&" 人壽保險的死亡給付於被保險人死亡後給付於指定受益人者，依保險法相關規定不能作為被保險人遺產，若有涉及規避遺產稅等稅捐時，稽徵機關可以依據有關稅法或實質課稅原則相關規定辦理，請問您清楚嗎？ 【請客戶回答：清楚/不清楚】" -> 【銷售人員】： 本保單為保險商品，非屬存款，也不受存款保險的保障，請問您清楚嗎? 【請客戶回答：清楚/不清楚】 投保後解約或不繼續繳費，解約金可能會少於所繳的保險費，請問您清楚嗎? 【請客戶回答：清楚/不清楚】 人壽保險的死亡給付於被保險人死亡後給付於指定受益人者，依保險法相關規定不能作為被保險人遺產，若有涉及規避遺產稅等稅捐時，稽徵機關可以依據有關稅法或實質課稅原則相關規定辦理，請問您清楚嗎？ 【請客戶回答：清楚/不清楚】 | X14: =IFERROR(VLOOKUP(商品名稱,'B2_錄音程序&共同文字(ILP)'!$A$23:$Y$100,23,FALSE),'B2_錄音程序&共同文字(ILP)'!W22)&" 人壽保險的死亡給付於被保險人死亡後給付於指定受益人者，依保險法相關規定不能作為被保險人遺產，若有涉及規避遺產稅等稅捐時，稽徵機關可以依據有關稅法或實質課稅原則相關規定辦理，請問您清楚嗎？ 【請客戶回答：清楚/不清楚】" -> 【銷售人員】： 本保單為保險商品，非屬存款，也不受存款保險的保障，請問您清楚嗎? 【請客戶回答：清楚/不清楚】 投保後解約或不繼續繳費，解約金可能會少於所繳的保險費，請問您清楚嗎? 【請客戶回答：清楚/不清楚】 人壽保險的死亡給付於被保險人死亡後給付於指定受益人者，依保險法相關規定不能作為被保險人遺產，若有涉及規避遺產稅等稅捐時，稽徵機關可以依據有關稅法或實質課稅原則相關規定辦理，請問您清楚嗎？ 【請客戶回答：清楚/不清楚】 | Y14: =IFERROR(VLOOKUP(商品名稱,'B2_錄音程序&共同文字(ILP)'!$A$23:$Y$100,25,FALSE),'B2_錄音程序&共同文字(ILP)'!Y22)&" 人壽保險的死亡給付於被保險人死亡後給付於指定受益人者，依保險法相關規定不能作為被保險人遺產，若有涉及規避遺產稅等稅捐時，稽徵機關可以依據有關稅法或實質課稅原則相關規定辦理，請問您清楚嗎？ 【請客戶回答：清楚/不清楚】" -> 
A15: 錄音序號6_要保人聲明 | B15: =IFERROR(IF(FIND("花旗",服務公司),VLOOKUP(商品類別,B3_解約金商品相關風險話術table!G$1:J$65536,4,FALSE)),IFERROR(IF(FIND("星展",服務公司),VLOOKUP(商品類別,B3_解約金商品相關風險話術table!G$1:J$65536,4,FALSE)),VLOOKUP(商品類別,B3_解約金商品相關風險話術table!G$1:I$65536,3,FALSE))) -> 【銷售人員】： 最後請您念出以下聲明文字以確認您瞭解本商品並願意承擔相關風險與確認投保意願,並確認所有文件如要保書、建議書、投保事項確認書及基金風險預告書等均會以本人親自簽名方式投保。 | C15: =VLOOKUP(要被保人話術稿判斷,'B2_錄音程序&共同文字(ILP)'!$AD$1:$AJ$4,7,FALSE) ->  | P15: 【銷售人員】： 最後請您念出以下聲明文字以確認您瞭解本商品並願意承擔相關風險與確認繳費意願。 | Q15: ="【繳款人】： 我，"&繳款人&" 已充分了解本保單及相關風險，且已確認可負擔保費。"&" ※以下僅供聽力或語言表達能力不便客戶簽署聲明、姓名與日期欄位： 客戶聲明：______________________________________________________________ 客戶姓名：__________簽署日期：___________錄影年份日期與時分：___________" -> 【繳款人】： 我，貴保戶 已充分了解本保單及相關風險，且已確認可負擔保費。 ※以下僅供聽力或語言表達能力不便客戶簽署聲明、姓名與日期欄位： 客戶聲明：______________________________________________________________ 客戶姓名：__________簽署日期：___________錄影年份日期與時分：___________
B21: 要被保險人 | C21: 繳款人
B22: ="【銷售人員】： 投保後解約或不繼續繳費，解約金可能會少於所繳的保險費且可能不利消費者，"&錄音序號_確認語_2 ->  | C22: ="【銷售人員】： 投保後解約或不繼續繳費，解約金可能會少於所繳的保險費且可能不利消費者，請問您清楚嗎? 【請客戶回答：清楚/不清楚】" -> 【銷售人員】： 投保後解約或不繼續繳費，解約金可能會少於所繳的保險費且可能不利消費者，請問您清楚嗎? 【請客戶回答：清楚/不清楚】 | I22: ="【銷售人員】： 本保單為保險商品，非屬存款，也不受存款保險的保障，"&錄音序號_確認語_2&" 投保後解約或不繼續繳費，解約金可能會少於所繳的保險費，"&錄音序號_確認語_2 ->  | J22: ="【銷售人員】： 本商品為保險商品，受人身保險安定基金保障，並非存款項目，故不受存款保險之保障。"&錄音序號_確認語_2&" 投保後解約或不繼續繳費，解約金可能會少於所繳的保險費且可能不利消費者，"&錄音序號_確認語_2 ->  | K22: ="【銷售人員】： 您是否清楚本次繳交之保險費用係用以購買保險商品，非辦理定存，"&錄音序號_確認語_2&" 本保險商品具有解約金，若中途解約或不繼續繳費，解約金可能低於已繳保費，"&錄音序號_確認語_2&" 此次投保之保險產品繳費年期為"&繳費年期&"年，每年繳費金額為"&幣別&TEXT(Premium*繳費頻率," #,###")&"元，" &錄音序號_確認語_2 ->  | W22: 【銷售人員】： 本保單為保險商品，非屬存款，也不受存款保險的保障，請問您清楚嗎? 【請客戶回答：清楚/不清楚】 投保後解約或不繼續繳費，解約金可能會少於所繳的保險費，請問您清楚嗎? 【請客戶回答：清楚/不清楚】 | X22: 【銷售人員】： 本商品為保險商品，受人身保險安定基金保障，並非存款項目，故不受存款保險之保障。請問您清楚嗎？【請客戶回答：清楚/不清楚】 投保後解約或不繼續繳費，解約金可能會少於所繳的保險費且可能不利消費者，請問您清楚嗎？【請客戶回答：清楚/不清楚】 | Y22: ="【銷售人員】： 您是否清楚本次繳交之保險費用係用以購買保險商品，非辦理定存？【請客戶回答：清楚/不清楚】 本保險商品具有解約金，若中途解約或不繼續繳費，解約金可能低於已繳保費，您是否清楚？【請客戶回答：清楚/不清楚】 此次投保之保險產品繳費年期為"&繳費年期&"年，每年繳費金額為"&幣別&TEXT(Premium*繳費頻率," #,###")&"元，您是否知悉？【請客戶回答：清楚/不清楚】" -> 
A23: 保誠人壽福企滿滿外幣終身保險 | B23: ="【銷售人員】： 投保後解約或不繼續繳費，解約金可能會少於所繳的保險費且可能不利消費者，"&錄音序號_確認語_2 ->  | C23: ="【銷售人員】： 投保後解約或不繼續繳費，解約金可能會少於所繳的保險費且可能不利消費者，請問您清楚嗎? 【請客戶回答：清楚/不清楚】" -> 【銷售人員】： 投保後解約或不繼續繳費，解約金可能會少於所繳的保險費且可能不利消費者，請問您清楚嗎? 【請客戶回答：清楚/不清楚】 | I23: ="【銷售人員】： 本保單為保險商品，非屬存款，也不受存款保險的保障，"&錄音序號_確認語_2&" 投保後解約或不繼續繳費，解約金可能會少於所繳的保險費，"&錄音序號_確認語_2 ->  | J23: ="【銷售人員】： 本商品為保險商品，受人身保險安定基金保障，並非存款項目，故不受存款保險之保障。"&錄音序號_確認語_2&" 投保後解約或不繼續繳費，解約金可能會少於所繳的保險費且可能不利消費者，"&錄音序號_確認語_2 ->  | K23: ="【銷售人員】： 您是否清楚本次繳交之保險費用係用以購買保險商品，非辦理定存，"&錄音序號_確認語_2&" 本保險商品具有解約金，若中途解約或不繼續繳費，解約金可能低於已繳保費，"&錄音序號_確認語_2&" 此次投保之保險產品繳費年期為"&繳費年期&"年，每年繳費金額為"&幣別&TEXT(Premium*繳費頻率," #,###")&"元，" &錄音序號_確認語_2 ->  | W23: 【銷售人員】： 本保單為保險商品，非屬存款，也不受存款保險的保障，請問您清楚嗎? 【請客戶回答：清楚/不清楚】 投保後解約或不繼續繳費，解約金可能會少於所繳的保險費，請問您清楚嗎? 【請客戶回答：清楚/不清楚】 | X23: 【銷售人員】： 本商品為保險商品，受人身保險安定基金保障，並非存款項目，故不受存款保險之保障。請問您清楚嗎？【請客戶回答：清楚/不清楚】 投保後解約或不繼續繳費，解約金可能會少於所繳的保險費且可能不利消費者，請問您清楚嗎？【請客戶回答：清楚/不清楚】 | Y23: ="【銷售人員】： 您是否清楚本次繳交之保險費用係用以購買保險商品，非辦理定存？【請客戶回答：清楚/不清楚】 本保險商品具有解約金，若中途解約或不繼續繳費，解約金可能低於已繳保費，您是否清楚？【請客戶回答：清楚/不清楚】 此次投保之保險產品繳費年期為"&繳費年期&"年，每年繳費金額為"&幣別&TEXT(Premium*繳費頻率," #,###")&"元，您是否知悉？【請客戶回答：清楚/不清楚】" -> 
A24: 保誠人壽創富御守外幣終身保險 | B24: ="【銷售人員】： 投保後解約或不繼續繳費，解約金可能會少於所繳的保險費且可能不利消費者;給付「特定傷病保險金」後，保單解約金將有所變動，"&錄音序號_確認語_2 ->  | C24: ="【銷售人員】： 投保後解約或不繼續繳費，解約金可能會少於所繳的保險費且可能不利消費者;給付「特定傷病保險金」後，保單解約金將有所變動，請問您清楚嗎? 【請客戶回答：清楚/不清楚】" -> 【銷售人員】： 投保後解約或不繼續繳費，解約金可能會少於所繳的保險費且可能不利消費者;給付「特定傷病保險金」後，保單解約金將有所變動，請問您清楚嗎? 【請客戶回答：清楚/不清楚】 | I24: ="【銷售人員】： 本保單為保險商品，非屬存款，也不受存款保險的保障，"&錄音序號_確認語_2&" 投保後解約或不繼續繳費，解約金可能會少於所繳的保險費;給付「特定傷病保險金」後，保單解約金將有所變動，"&錄音序號_確認語_2 ->  | J24: ="【銷售人員】： 本商品為保險商品，受人身保險安定基金保障，並非存款項目，故不受存款保險之保障。"&錄音序號_確認語_2&" 投保後解約或不繼續繳費，解約金可能會少於所繳的保險費且可能不利消費者;給付「特定傷病保險金」後，保單解約金將有所變動，"&錄音序號_確認語_2 ->  | K24: ="【銷售人員】： 您是否清楚本次繳交之保險費用係用以購買保險商品，非辦理定存，"&錄音序號_確認語_2&" 本保險商品具有解約金，若中途解約或不繼續繳費，解約金可能低於已繳保費；給付「特定傷病保險金」後，保單解約金將有所變動，"&錄音序號_確認語_2&" 此次投保之保險產品繳費年期為"&繳費年期&"年，每年繳費金額為"&幣別&TEXT(Premium*繳費頻率," #,###")&"元，" &錄音序號_確認語_2 ->  | W24: 【銷售人員】： 本保單為保險商品，非屬存款，也不受存款保險的保障，請問您清楚嗎? 【請客戶回答：清楚/不清楚】 投保後解約或不繼續繳費，解約金可能會少於所繳的保險費;給付「特定傷病保險金」後，保單解約金將有所變動，請問您清楚嗎? 【請客戶回答：清楚/不清楚】 | X24: 【銷售人員】： 本商品為保險商品，受人身保險安定基金保障，並非存款項目，故不受存款保險之保障。請問您清楚嗎? 【請客戶回答：清楚/不清楚】 投保後解約或不繼續繳費，解約金可能會少於所繳的保險費且可能不利消費者;給付「特定傷病保險金」後，保單解約金將有所變動，請問您清楚嗎? 【請客戶回答：清楚/不清楚】 | Y24: ="【銷售人員】： 您是否清楚本次繳交之保險費用係用以購買保險商品，非辦理定存？【請客戶回答：清楚/不清楚】 本保險商品具有解約金，若中途解約或不繼續繳費，解約金可能低於已繳保費;給付「特定傷病保險金」後，保單解約金將有所變動，您是否清楚？【請客戶回答：清楚/不清楚】 此次投保之保險產品繳費年期為"&繳費年期&"年，每年繳費金額為"&幣別&TEXT(Premium*繳費頻率," #,###")&"元，您是否知悉？【請客戶回答：清楚/不清楚】" -> 
A25: 保誠人壽橘享樂外幣終身壽險 | B25: ="【銷售人員】： 投保後解約或不繼續繳費，解約金可能會少於所繳的保險費且可能不利消費者;給付「認知功能障礙保險金」後，保單解約金將有所變動，"&錄音序號_確認語_2 ->  | C25: ="【銷售人員】： 投保後解約或不繼續繳費，解約金可能會少於所繳的保險費且可能不利消費者;給付「認知功能障礙保險金」後，保單解約金將有所變動，請問您清楚嗎? 【請客戶回答：清楚/不清楚】" -> 【銷售人員】： 投保後解約或不繼續繳費，解約金可能會少於所繳的保險費且可能不利消費者;給付「認知功能障礙保險金」後，保單解約金將有所變動，請問您清楚嗎? 【請客戶回答：清楚/不清楚】 | I25: ="【銷售人員】： 本保單為保險商品，非屬存款，也不受存款保險的保障，"&錄音序號_確認語_2&" 投保後解約或不繼續繳費，解約金可能會少於所繳的保險費;給付「認知功能障礙保險金」後，保單解約金將有所變動，"&錄音序號_確認語_2 ->  | J25: ="【銷售人員】： 本商品為保險商品，受人身保險安定基金保障，並非存款項目，故不受存款保險之保障。"&錄音序號_確認語_2&" 投保後解約或不繼續繳費，解約金可能會少於所繳的保險費且可能不利消費者;給付「認知功能障礙保險金」後，保單解約金將有所變動，"&錄音序號_確認語_2 ->  | K25: ="【銷售人員】： 您是否清楚本次繳交之保險費用係用以購買保險商品，非辦理定存，"&錄音序號_確認語_2&" 本保險商品具有解約金，若中途解約或不繼續繳費，解約金可能低於已繳保費;給付「認知功能障礙保險金」後，保單解約金將有所變動，"&錄音序號_確認語_2&" 此次投保之保險產品繳費年期為"&繳費年期&"年，每年繳費金額為"&幣別&TEXT(Premium*繳費頻率," #,###")&"元，"&錄音序號_確認語_2 ->  | W25: 【銷售人員】： 本保單為保險商品，非屬存款，也不受存款保險的保障，請問您清楚嗎? 【請客戶回答：清楚/不清楚】 投保後解約或不繼續繳費，解約金可能會少於所繳的保險費;給付「認知功能障礙保險金」後，保單解約金將有所變動，請問您清楚嗎? 【請客戶回答：清楚/不清楚】 | X25: 【銷售人員】： 本商品為保險商品，受人身保險安定基金保障，並非存款項目，故不受存款保險之保障。請問您清楚嗎? 【請客戶回答：清楚/不清楚】 投保後解約或不繼續繳費，解約金可能會少於所繳的保險費且可能不利消費者;給付「認知功能障礙保險金」後，保單解約金將有所變動，請問您清楚嗎? 【請客戶回答：清楚/不清楚】 | Y25: ="【銷售人員】： 您是否清楚本次繳交之保險費用係用以購買保險商品，非辦理定存？【請客戶回答：清楚/不清楚】 本保險商品具有解約金，若中途解約或不繼續繳費，解約金可能低於已繳保費;給付「認知功能障礙保險金」後，保單解約金將有所變動，您是否清楚？【請客戶回答：清楚/不清楚】 此次投保之保險產品繳費年期為"&繳費年期&"年，每年繳費金額為"&幣別&TEXT(Premium*繳費頻率," #,###")&"元，您是否知悉？【請客戶回答：清楚/不清楚】" -> 
A26: 保誠人壽美利29外幣終身壽險(定期給付型) | B26: ="【銷售人員】： 投保後解約或不繼續繳費，解約金可能會少於所繳的保險費且可能不利消費者，"&錄音序號_確認語_2 ->  | C26: ="【銷售人員】： 投保後解約或不繼續繳費，解約金可能會少於所繳的保險費且可能不利消費者；給付「特定傷害保險金」後，保單解約金將有所變動，請問您清楚嗎? 【請客戶回答：清楚/不清楚】" -> 【銷售人員】： 投保後解約或不繼續繳費，解約金可能會少於所繳的保險費且可能不利消費者；給付「特定傷害保險金」後，保單解約金將有所變動，請問您清楚嗎? 【請客戶回答：清楚/不清楚】 | I26: ="【銷售人員】： 本保單為保險商品，非屬存款，也不受存款保險的保障，"&錄音序號_確認語_2& "投保後解約或不繼續繳費，解約金可能會少於所繳的保險費;給付「特定傷害保險金」後，保單解約金將有所變動，"&錄音序號_確認語_2 ->  | J26: ="【銷售人員】： 本商品為保險商品，受人身保險安定基金保障，並非存款項目，故不受存款保險之保障。"&錄音序號_確認語_2&"投保後解約或不繼續繳費，解約金可能會少於所繳的保險費且可能不利消費者;給付「特定傷害保險金金」後，保單解約金將有所變動，"&錄音序號_確認語_2 ->  | K26: ="【銷售人員】： 您是否清楚本次繳交之保險費用係用以購買保險商品，非辦理定存，"&錄音序號_確認語_2& "本保險商品具有解約金，若中途解約或不繼續繳費，解約金可能低於已繳保費;給付「特定傷害保險金金」後，保單解約金將有所變動，"&錄音序號_確認語_2& "此次投保之保險產品繳費年期為"&繳費年期&"年，每年繳費金額為"&幣別&TEXT(Premium*繳費頻率," #,###")&"元，"&錄音序號_確認語_2 ->  | W26: 【銷售人員】： 本保單為保險商品，非屬存款，也不受存款保險的保障，請問您清楚嗎? 【請客戶回答：清楚/不清楚】 投保後解約或不繼續繳費，解約金可能會少於所繳的保險費;給付「特定傷害保險金金」後，保單解約金將有所變動，請問您清楚嗎? 【請客戶回答：清楚/不清楚】 | X26: 【銷售人員】： 本商品為保險商品，受人身保險安定基金保障，並非存款項目，故不受存款保險之保障。請問您清楚嗎? 【請客戶回答：清楚/不清楚】 投保後解約或不繼續繳費，解約金可能會少於所繳的保險費且可能不利消費者;給付「特定傷害保險金金」後，保單解約金將有所變動，請問您清楚嗎? 【請客戶回答：清楚/不清楚】 | Y26: ="【銷售人員】： 您是否清楚本次繳交之保險費用係用以購買保險商品，非辦理定存？【請客戶回答：清楚/不清楚】 本保險商品具有解約金，若中途解約或不繼續繳費，解約金可能低於已繳保費;給付「特定傷害保險金金」後，保單解約金將有所變動，您是否清楚？【請客戶回答：清楚/不清楚】 此次投保之保險產品繳費年期為"&繳費年期&"年，每年繳費金額為"&幣別&TEXT(Premium*繳費頻率," #,###")&"元，您是否知悉？【請客戶回答：清楚/不清楚】" -> 
A27: 保誠人壽金正旺終身保險(定期給付型) | B27: ="【銷售人員】： 投保後解約或不繼續繳費，解約金可能會少於所繳的保險費且可能不利消費者，"&錄音序號_確認語_2 ->  | C27: ="【銷售人員】： 投保後解約或不繼續繳費，解約金可能會少於所繳的保險費且可能不利消費者，請問您清楚嗎? 【請客戶回答：清楚/不清楚】" -> 【銷售人員】： 投保後解約或不繼續繳費，解約金可能會少於所繳的保險費且可能不利消費者，請問您清楚嗎? 【請客戶回答：清楚/不清楚】 | I27: ="【銷售人員】： 本保單為保險商品，非屬存款，也不受存款保險的保障，"&錄音序號_確認語_2& "投保後解約或不繼續繳費，解約金可能會少於所繳的保險費，"&錄音序號_確認語_2 ->  | J27: ="【銷售人員】： 本商品為保險商品，受人身保險安定基金保障，並非存款項目，故不受存款保險之保障。"&錄音序號_確認語_2&"投保後解約或不繼續繳費，解約金可能會少於所繳的保險費且可能不利消費者，"&錄音序號_確認語_2 ->  | K27: ="【銷售人員】： 您是否清楚本次繳交之保險費用係用以購買保險商品，非辦理定存，"&錄音序號_確認語_2& "本保險商品具有解約金，若中途解約或不繼續繳費，解約金可能低於已繳保費，"&錄音序號_確認語_2& "此次投保之保險產品繳費年期為"&繳費年期&"年，每年繳費金額為"&幣別&TEXT(Premium*繳費頻率," #,###")&"元，"&錄音序號_確認語_2 ->  | W27: 【銷售人員】： 本保單為保險商品，非屬存款，也不受存款保險的保障，請問您清楚嗎? 【請客戶回答：清楚/不清楚】 投保後解約或不繼續繳費，解約金可能會少於所繳的保險費，請問您清楚嗎? 【請客戶回答：清楚/不清楚】 | X27: 【銷售人員】： 本商品為保險商品，受人身保險安定基金保障，並非存款項目，故不受存款保險之保障。請問您清楚嗎? 【請客戶回答：清楚/不清楚】 投保後解約或不繼續繳費，解約金可能會少於所繳的保險費且可能不利消費者，請問您清楚嗎? 【請客戶回答：清楚/不清楚】 | Y27: ="【銷售人員】： 您是否清楚本次繳交之保險費用係用以購買保險商品，非辦理定存？【請客戶回答：清楚/不清楚】 本保險商品具有解約金，若中途解約或不繼續繳費，解約金可能低於已繳保費，您是否清楚？【請客戶回答：清楚/不清楚】 此次投保之保險產品繳費年期為"&繳費年期&"年，每年繳費金額為"&幣別&TEXT(Premium*繳費頻率," #,###")&"元，您是否知悉？【請客戶回答：清楚/不清楚】" -> 

Sheet B3_解約金商品相關風險話術table (hidden)
A1: 判斷值 | B1: 風險項目 | C1: 風險話術 | D1: 風險話術-ePOS | E1: 風險話術-繳款人 | F1: =VLOOKUP(商品名稱,#REF!,24,FALSE) ->  | G1: 判斷值 | H1: 保單類型 | I1: 風險話術 | J1: 風險話術（星展／花旗）
A2: #分紅類型#="R" or ""C" | B2: 分紅風險 | C2: ="本保單為分紅商品，保單紅利是預估值，紅利給付的金額不保證也不固定，是依實際宣告分紅金額為準，"&錄音序號_確認語_2 ->  | D2: ="【銷售人員】： 本保單為分紅商品，保單紅利是預估值，紅利給付的金額不保證也不固定，是依實際宣告分紅金額為準，"&錄音序號_確認語_2 ->  | E2: 本保單為分紅商品，保單紅利是預估值，紅利給付的金額不保證也不固定，是依實際宣告分紅金額為準，請問您清楚嗎? 【提示:請等待客戶回答】 | G2: RL | H2: 分紅-台幣 | I2: 【銷售人員】： 最後請您念出以下聲明文字以確認您瞭解本商品並願意承擔相關風險與確認投保意願，並確認所有文件如要保書、建議書摘要表等均會以本人親自簽名方式投保。 | J2: 【銷售人員】： 最後請您念出以下聲明文字以確認您瞭解本商品並願意承擔相關風險與確認投保意願，並確認所有文件如要保書、建議書等均會以本人親自簽名方式投保。
A3: #商品幣別#<>"NT$" | B3: 匯率風險 | C3: ="這張保單收取保險費及支付各項保險金均以"&幣別&"計價，若您自行換回新台幣，須承擔匯率風險。"&錄音序號_確認語_2 ->  | D3: ="【銷售人員】： 這張保單收取保險費及支付各項保險金均以"&幣別&"計價，若您自行換回新台幣，須承擔匯率風險。"&錄音序號_確認語_2 ->  | E3: ="這張保單收取保險費及支付各項保險金均以"&幣別&"計價，若您自行換回新台幣，須承擔匯率風險，請問您清楚嗎? 【提示:請等待客戶回答】" -> 這張保單收取保險費及支付各項保險金均以新臺幣計價，若您自行換回新台幣，須承擔匯率風險，請問您清楚嗎? 【提示:請等待客戶回答】 | G3: RF | H3: 分紅-外幣 | I3: 【銷售人員】： 最後請您念出以下聲明文字以確認您瞭解本商品並願意承擔相關風險與確認投保意願，並確認所有文件如要保書、建議書摘要表、匯率風險說明書、客戶適合度調查評估表等均會以本人親自簽名方式投保。 | J3: 【銷售人員】： 最後請您念出以下聲明文字以確認您瞭解本商品並願意承擔相關風險與確認投保意願，並確認所有文件如要保書、建議書、匯率風險說明書、客戶適合度調查評估表均會以本人親自簽名方式投保。
A4: #分紅類型#="H" | B4: 綜合險分紅 | C4: ="本保險人壽保險部分為分紅保險，保單紅利是預估值，紅利給付的金額不保證也不固定，是依實際宣告分紅金額為準；本保險健康保險部分為不分紅保險，不參加紅利分配，並無紅利給付項目，"&錄音序號_確認語_2 ->  | D4: ="【銷售人員】： 本保險人壽保險部分為分紅保險，保單紅利是預估值，紅利給付的金額不保證也不固定，是依實際宣告分紅金額為準；本保險健康保險部分為不分紅保險，不參加紅利分配，並無紅利給付項目，"&錄音序號_確認語_2 ->  | E4: 本保險人壽保險部分為分紅保險，保單紅利是預估值，紅利給付的金額不保證也不固定，是依實際宣告分紅金額為準；本保險健康保險部分為不分紅保險，不參加紅利分配，並無紅利給付項目，請問您清楚嗎? 【提示:請等待客戶回答】 | G4: NL | H4: 非分紅-台幣 | I4: 【銷售人員】： 最後請您念出以下聲明文字以確認您瞭解本商品並願意承擔相關風險與確認投保意願，並確認所有文件如要保書等均會以本人親自簽名方式投保。 | J4: 【銷售人員】： 最後請您念出以下聲明文字以確認您瞭解本商品並願意承擔相關風險與確認投保意願，並確認所有文件如要保書等均會以本人親自簽名方式投保。
A5: #分紅類型#="I" | B5: 綜合險分紅_傷害 | C5: ="本保險人壽保險部分為分紅保險，保單紅利是預估值，紅利給付的金額不保證也不固定，是依實際宣告分紅金額為準；本保險傷害保險部分為不分紅保險，不參加紅利分配，並無紅利給付項目，"&錄音序號_確認語_2 ->  | D5: ="【銷售人員】： 本保險人壽保險部分為分紅保險，保單紅利是預估值，紅利給付的金額不保證也不固定，是依實際宣告分紅金額為準；本保險傷害保險部分為不分紅保險，不參加紅利分配，並無紅利給付項目，"&錄音序號_確認語_2 ->  | E5: 本保險人壽保險部分為分紅保險，保單紅利是預估值，紅利給付的金額不保證也不固定，是依實際宣告分紅金額為準；本保險傷害保險部分為不分紅保險，不參加紅利分配，並無紅利給付項目，請問您清楚嗎? 【提示:請等待客戶回答】 | G5: NF | H5: 非分紅-外幣 | I5: 【銷售人員】： 最後請您念出以下聲明文字以確認您瞭解本商品並願意承擔相關風險與確認投保意願,並確認所有文件如要保書、匯率風險說明書、客戶適合度調查評估表等均會以本人親自簽名方式投保。 | J5: 【銷售人員】： 最後請您念出以下聲明文字以確認您瞭解本商品並願意承擔相關風險與確認投保意願,並確認所有文件如要保書、匯率風險說明書、客戶適合度調查評估表等均會以本人親自簽名方式投保。
G6: IL | H6: 投資型-台幣 | I6: 【銷售人員】： 最後請您念出以下聲明文字以確認您瞭解本商品並願意承擔相關風險與確認投保意願,並確認所有文件如要保書、建議書、投保事項確認書及基金風險預告書等均會以本人親自簽名方式投保。 | J6: 【銷售人員】： 最後請您念出以下聲明文字以確認您瞭解本商品並願意承擔相關風險與確認投保意願,並確認所有文件如要保書、建議書、投保事項確認書及基金風險預告書等均會以本人親自簽名方式投保。
G7: IF | H7: 投資型-外幣 | I7: 【銷售人員】： 最後請您念出以下聲明文字以確認您瞭解本商品並願意承擔相關風險與確認投保意願,並確認所有文件如要保書、建議書、投保事項確認書及基金風險預告書、匯率風險說明書等均會以本人親自簽名方式投保。 | J7: 【銷售人員】： 最後請您念出以下聲明文字以確認您瞭解本商品並願意承擔相關風險與確認投保意願,並確認所有文件如要保書、建議書、投保事項確認書及基金風險預告書、匯率風險說明書等均會以本人親自簽名方式投保。
G8: O | H8: 鑫想事成 | I8: 【銷售人員】： 最後請您念出以下聲明文字以確認您瞭解本商品並願意承擔相關風險與確認投保意願,並確認所有文件如要保書、建議書、投保事項確認書及基金風險預告書等均會以本人親自簽名方式投保。
G9: T | H9: 福企滿滿 | I9: 【銷售人員】： 最後請您念出以下聲明文字以確認您瞭解本商品並願意承擔相關風險與確認投保意願，並確認所有文件如要保書、建議書摘要表、匯率風險說明書、客戶適合度調查評估表等均會以本人親自簽名方式投保。

Sheet B6_解約金附約ePOS調整 (hidden)
B2: 附約對照 | C2: 條款說明 | D2: 序號
B3: 壽險_附約 | C3: 說明商品重要條款內容、除外責任(壽險附約) | D3: 8
B4: 健康險_附約 | C4: 說明商品重要條款內容、除外責任(健康險附約) | D4: 7
B5: 特定傷害險_附約 | C5: 說明商品重要條款內容、除外責任(特定傷病險附約) | D5: 6
B6: 癌症險_附約 | C6: 說明商品重要條款內容、除外責任(癌症險附約) | D6: 5
B7: 失能險_附約 | C7: 說明商品重要條款內容、除外責任(失能險附約) | D7: 4
B8: 長照險_附約 | C8: 說明商品重要條款內容、除外責任(長照險附約) | D8: 3
B9: 傷害險_附約 | C9: 說明商品重要條款內容、除外責任(傷害險附約) | D9: 2
B10: 豁免_附約 | C10: 說明商品重要條款內容、除外責任(豁免險附約) | D10: 1
A15: 序號 | B15: No | C15: 名稱 | D15: 類別 | E15: 項目名稱 | F15: 話術 | G15: 話術 | I15: 序號 | J15: No | K15: 名稱 | L15: 類別 | M15: 項目名稱 | N15: 話術 | O15: 話術
A16: =VALUE(IF(G16="N",0,_xlfn.IFNA(VLOOKUP(D16,$B$3:$D$10,3,FALSE)&7,0))) -> 0 | B16: 附約1 | C16: =IF(商品名稱="保誠人壽享保障變額萬能壽險",IF(VALUE(資料輸入_主被保人!L40)>0,資料輸入_主被保人!D40,""),IF(商品名稱="保誠人壽享保障外幣變額萬能壽險",IF(VALUE(資料輸入_主被保人!L38)>0,資料輸入_主被保人!D38,""),"")) ->  | D16: =IFERROR(VLOOKUP(C16,B1_解約金商品錄音話術table!B:Z,25,0),"") ->  | E16: =IF(G16="N","",_xlfn.IFNA(VLOOKUP(D16,$B$3:$D$10,2,FALSE),"")) ->  | F16: =IF(E16="","","【銷售人員】："& IF(C16<>"",IFERROR(VLOOKUP(C16,B1_解約金商品錄音話術table!B:M,12,0),""),"")) ->  | G16: =IF(IFERROR(VLOOKUP(C16,B1_解約金商品錄音話術table!B:N,12,0),"")="","N","Y") -> N | I16: =VALUE(IF(O16="N",0,_xlfn.IFNA(VLOOKUP(L16,$B$3:$D$10,3,FALSE)&7,0))) -> 0 | J16: 附約1 | K16: =C16 ->  | L16: =IFERROR(VLOOKUP(K16,B1_解約金商品錄音話術table!B:Z,25,0),"") ->  | M16: =IF(O16="N","",_xlfn.IFNA(VLOOKUP(L16,$B$3:$D$10,2,FALSE),"")) ->  | N16: =IF(M16="","","【銷售人員】： "& IF(C16<>"",IFERROR(VLOOKUP(K16,B1_解約金商品錄音話術table!B:AC,28,0),""),"")) ->  | O16: =IF(IFERROR(VLOOKUP(K16,B1_解約金商品錄音話術table!B:AC,28,0),"")="","N","Y") -> N | Q16: =RANK(A16,$A$16:$A$18,-1) -> 1 | R16: =A16 -> 0 | T16: =RANK(I16,$I$16:$I$18,-1) -> 1 | U16: =I16 -> 0
A17: =VALUE(IF(G17="N",0,_xlfn.IFNA(VLOOKUP(D17,$B$3:$D$10,3,FALSE)&5,0))) -> 0 | B17: 附約2 | D17: =IFERROR(VLOOKUP(附約二名稱,#REF!,25,0),"") ->  | E17: =IF(G17="N","",_xlfn.IFNA(VLOOKUP(D17,$B$3:$D$10,2,FALSE),"")) ->  | F17: =IF(E17="","","【銷售人員】："& IF(附約一名稱<>"",IFERROR(VLOOKUP(C17,#REF!,12,0),""),"")) ->  | G17: =IF(IFERROR(VLOOKUP(C17,#REF!,12,0),"")="","N","Y") -> N | I17: =VALUE(IF(O17="N",0,_xlfn.IFNA(VLOOKUP(L17,$B$3:$D$10,3,FALSE)&5,0))) -> 0 | J17: 附約2 | K17: =C17 -> 0 | L17: =IFERROR(VLOOKUP(K17,#REF!,25,0),"") ->  | M17: =IF(O17="N","",_xlfn.IFNA(VLOOKUP(L17,$B$3:$D$10,2,FALSE),"")) ->  | N17: =IF(M17="","","【銷售人員】： "& IF(附約一名稱<>"",IFERROR(VLOOKUP(K17,#REF!,28,0),""),"")) ->  | O17: =IF(IFERROR(VLOOKUP(K17,#REF!,28,0),"")="","N","Y") -> N | Q17: =RANK(A17,$A$16:$A$18,-1) -> 1 | R17: =A17 -> 0 | T17: =RANK(I17,$I$16:$I$18,-1) -> 1 | U17: =I17 -> 0
A18: =VALUE(IF(G18="N",0,_xlfn.IFNA(VLOOKUP(D18,$B$3:$D$10,3,FALSE)&3,0))) -> 0 | B18: 附約3 | D18: =IFERROR(VLOOKUP(附約三名稱,#REF!,25,0),"") ->  | E18: =IF(G18="N","",_xlfn.IFNA(VLOOKUP(D18,$B$3:$D$10,2,FALSE),"")) ->  | F18: =IF(E18="","","【銷售人員】："& IF(附約一名稱<>"",IFERROR(VLOOKUP(C18,#REF!,12,0),""),"")) ->  | G18: =IF(IFERROR(VLOOKUP(C18,#REF!,12,0),"")="","N","Y") -> N | I18: =VALUE(IF(O18="N",0,_xlfn.IFNA(VLOOKUP(L18,$B$3:$D$10,3,FALSE)&3,0))) -> 0 | J18: 附約3 | K18: =C18 -> 0 | L18: =IFERROR(VLOOKUP(K18,#REF!,25,0),"") ->  | M18: =IF(O18="N","",_xlfn.IFNA(VLOOKUP(L18,$B$3:$D$10,2,FALSE),"")) ->  | N18: =IF(M18="","","【銷售人員】： "& IF(附約一名稱<>"",IFERROR(VLOOKUP(K18,#REF!,28,0),""),"")) ->  | O18: =IF(IFERROR(VLOOKUP(K18,#REF!,28,0),"")="","N","Y") -> N | Q18: 1 | R18: 0 | T18: 1 | U18: 0
B19: 附約4 | D19: =IFERROR(VLOOKUP(附約四,#REF!,25,0),"") ->  | E19: =IF(G19="N","",_xlfn.IFNA(VLOOKUP(D19,$B$3:$D$10,2,FALSE),"")) ->  | F19: =IF(E19="","","【銷售人員】："& IF(附約一名稱<>"",IFERROR(VLOOKUP(C19,#REF!,12,0),""),"")) ->  | G19: =IF(IFERROR(VLOOKUP(C19,#REF!,12,0),"")="","N","Y") -> N | J19: 附約4 | K19: =C19 -> 0 | L19: =IFERROR(VLOOKUP(K19,#REF!,25,0),"") ->  | M19: =IF(O19="N","",_xlfn.IFNA(VLOOKUP(L19,$B$3:$D$10,2,FALSE),"")) ->  | N19: =IF(M19="","","【銷售人員】： "& IF(附約一名稱<>"",IFERROR(VLOOKUP(K19,#REF!,28,0),""),"")) ->  | O19: =IF(IFERROR(VLOOKUP(K19,#REF!,28,0),"")="","N","Y") -> N
A22: =IFERROR(VLOOKUP(3,$Q$16:$R$18,2,0),0) -> 0 | B22: =VLOOKUP(A22,$A$16:$F$19,5,FALSE) ->  | C22: =VLOOKUP(A22,$A$16:$F$19,6,FALSE) ->  | I22: =IFERROR(VLOOKUP(3,$T$16:$U$18,2,0),0) -> 0 | J22: =VLOOKUP(I22,$I$16:$N$19,5,FALSE) ->  | K22: =VLOOKUP(I22,$I$16:$N$19,6,FALSE) -> 
A23: =IFERROR(VLOOKUP(2,$Q$16:$R$18,2,0),0) -> 0 | B23: =VLOOKUP(A23,$A$16:$F$19,5,FALSE) ->  | C23: =VLOOKUP(A23,$A$16:$F$19,6,FALSE) ->  | I23: =IFERROR(VLOOKUP(2,$T$16:$U$18,2,0),0) -> 0 | J23: =VLOOKUP(I23,$I$16:$N$19,5,FALSE) ->  | K23: =VLOOKUP(I23,$I$16:$N$19,6,FALSE) -> 
A24: =IFERROR(VLOOKUP(1,$Q$16:$R$18,2,0),0) -> 0 | B24: =VLOOKUP(A24,$A$16:$F$19,5,FALSE) ->  | C24: =VLOOKUP(A24,$A$16:$F$19,6,FALSE) ->  | I24: =IFERROR(VLOOKUP(1,$T$16:$U$18,2,0),0) -> 0 | J24: =VLOOKUP(I24,$I$16:$N$19,5,FALSE) ->  | K24: =VLOOKUP(I24,$I$16:$N$19,6,FALSE) -> 
B25: =VLOOKUP(A25,$A$16:$F$19,5,FALSE) ->  | C25: =VLOOKUP(A25,$A$16:$F$19,6,FALSE) ->  | J25: =VLOOKUP(I25,$I$16:$N$19,5,FALSE) ->  | K25: =VLOOKUP(I25,$I$16:$N$19,6,FALSE) -> 

Sheet D1_高齡錄音資料檢核 (hidden)
B1: 【高齡錄音話術】相關檢核 | H1: 高齡對象判斷角色重疊判斷 (高齡對象判斷代碼 & ID檢核代碼 | I1: 應錄音對象判斷 | J1: 要被保人話術稿判斷 | K1: 繳款人話術稿判斷 | O1: 高齡對象判斷 | P1: 提醒文字1 | Q1: 提醒文字2 | R1: 提醒文字3 | S1: 提醒文字4 | T1: 提醒文字5
B2: 啟動年齡 | C2: 65 | H2: 11 | I2: 5 | J2: 2 | K2: 2 | M2: Note. 由於生日可能在人員相同時不填，就假設 例如 1. 說明高齡對象判斷4寫到本保單被保人、繳款人保險年齡達65歲(含)以上 2. ID檢核說 3.繳款人=要保人，就要假設要保人其實也65歲，所以就要錄要保人、被保人 | O2: 1 | P2: =IF(擴大錄音對象="N","本保單要保人、被保險人、繳款人保險年齡達65歲(含)以上，","要保人、被保險人、繳款人其一達65歲，") -> 本保單要保人、被保險人、繳款人保險年齡達65歲(含)以上， | Q2: 其中，要、被保險人及繳款人為同一人， | R2: 故需對要保人、被保險人、繳款人共三人進行錄音。 | S2: ※繳款人錄音話術稿請至「繳款人高齡錄音話術範本」。 | T2: ※要/被保險人錄音話術稿請至「要保人/被保險人高齡錄音話術範本」。
B3: ▲ 要保人判斷 | C3: =IF(擴大錄音對象="N",IFERROR(AND(要保人保險年齡>=高齡錄音年齡,被保人保險年齡<=被保人最大投保年齡),FALSE),IFERROR(AND(MAX(要保人保險年齡,被保人保險年齡,繳款人保險年齡)>=高齡錄音年齡,被保人保險年齡<=被保人最大投保年齡),FALSE)) -> FALSE | D3: =IF(擴大錄音對象="N","◆要保人達"&高齡錄音年齡&"歲，請填寫錄音話術補充資訊，依錄音話術表進行錄音。 ","◆要保人需進行錄音，請填寫錄音話術補充資訊，依錄音話術表進行錄音。 ") -> ◆要保人達65歲，請填寫錄音話術補充資訊，依錄音話術表進行錄音。 | E3: =IF(要保人保險年齡<>"",IF(ISERROR(AND(要保人保險年齡>=高齡錄音年齡,被保人保險年齡<=被保人最大投保年齡)),FALSE,IF(AND(要保人保險年齡>=高齡錄音年齡,被保人保險年齡<=被保人最大投保年齡),TRUE,FALSE)),FALSE) | H3: 12 | I3: 3 | J3: 2 | K3: 1 | O3: 2 | P3: =IF(擴大錄音對象="N","本保單要保人、被保險人保險年齡達65歲(含)以上，","要保人、被保險人、繳款人其一達65歲，") -> 本保單要保人、被保險人保險年齡達65歲(含)以上， | Q3: 其中，要、被保險人為同一人， | R3: 故需對要保人、被保險人共二人進行錄音。
B4: ▲ 被保人判斷 | C4: =IF(擴大錄音對象="N",IF(被保人生日6碼="",FALSE,IFERROR(AND(被保人保險年齡>=高齡錄音年齡,被保人保險年齡<=被保人最大投保年齡),FALSE)),IF(被保人生日6碼="",FALSE,IFERROR(AND(MAX(要保人保險年齡,被保人保險年齡,繳款人保險年齡)>=高齡錄音年齡,被保人保險年齡<=被保人最大投保年齡),FALSE))) -> FALSE | H4: 13 | I4: 2 | J4: 1 | K4: 2 | O4: 3 | P4: =IF(擴大錄音對象="N","本保單要保人、繳款人保險年齡達65歲(含)以上，","要保人、被保險人、繳款人其一達65歲，") -> 本保單要保人、繳款人保險年齡達65歲(含)以上， | Q4: 其中，要保人、繳款人為同一人， | R4: 故需對要保人、繳款人共二人進行錄音。
B5: ▲ 繳款人判斷 | C5: =IF(擴大錄音對象="N",IFERROR(AND(繳款人保險年齡>=高齡錄音年齡,被保人保險年齡<=被保人最大投保年齡),FALSE),IFERROR(AND(MAX(要保人保險年齡,被保人保險年齡,繳款人保險年齡)>=高齡錄音年齡,被保人保險年齡<=被保人最大投保年齡),FALSE)) -> FALSE | E5: =IF(繳款人保險年齡<>"",IF(ISERROR(AND(繳款人保險年齡>=高齡錄音年齡,被保人保險年齡<=被保人最大投保年齡)),FALSE,IF(AND(繳款人保險年齡>=高齡錄音年齡,被保人保險年齡<=被保人最大投保年齡),TRUE,FALSE)),FALSE) | H5: 14 | I5: 2 | J5: 1 | K5: 2 | O5: 4 | P5: =IF(擴大錄音對象="N","本保單被保人、繳款人保險年齡達65歲(含)以上，","要保人、被保險人、繳款人其一達65歲，") -> 本保單被保人、繳款人保險年齡達65歲(含)以上， | Q5: 其中，被保險人、繳款人為同一人， | R5: 故需對被保人、繳款人共二人進行錄音。
B6: 顯示高齡錄音視窗 | C6: =OR(要保人高齡錄音判斷,被保人高齡錄音判斷,繳款人高齡錄音判斷) -> FALSE | H6: 15 | I6: 1 | J6: 1 | K6: 1 | O6: 5 | P6: =IF(擴大錄音對象="N","本保單要保人保險年齡達65歲(含)以上，","要保人、被保險人、繳款人其一達65歲，") -> 本保單要保人保險年齡達65歲(含)以上， | R6: 故需對要保人共一人進行錄音。
H7: 21 | I7: 5 | J7: 4 | K7: 2 | O7: 6 | P7: =IF(擴大錄音對象="N","本保單被保險人保險年齡達65歲(含)以上，","要保人、被保險人、繳款人其一達65歲，") -> 本保單被保險人保險年齡達65歲(含)以上， | R7: 故需對被保險人共一人進行錄音。
H8: 22 | I8: 5 | J8: 2 | K8: 2 | O8: 7 | P8: =IF(擴大錄音對象="N","本保單繳款人保險年齡達65歲(含)以上，","要保人、被保險人、繳款人其一達65歲，") -> 本保單繳款人保險年齡達65歲(含)以上， | R8: 故需對繳款人共一人進行錄音。
B9: 角色重疊檢核 | H9: 23 | I9: 2 | J9: 1 | K9: 2
B10: ▲ ID檢核 | C10: =IF(AND(被保人同一人檢核,繳款人同一人檢核),1,IF(AND(被保人同一人檢核,繳款人同一人檢核=FALSE),2,IF(AND(被保人同一人檢核=FALSE,繳款人身分="與要保人為「同一人」"),3,IF(AND(被保人同一人檢核=FALSE,繳款人身分="與被保險人為「同一人」"),4,5)))) -> 4 | D10: Note. 此處借用使用者填入的是否同一人資訊來判斷，而不去判斷姓名或ID，若非高齡錄音場合不適用 | H10: 24 | I10: 2 | J10: 1 | K10: 2
B11: ▲ 姓名 | C11: =IF(AND(被保人同一人檢核,繳款人同一人檢核),1,IF(AND(被保人同一人檢核,繳款人同一人檢核=FALSE),2,IF(AND(被保人同一人檢核=FALSE,繳款人身分="與要保人為「同一人」"),3,IF(AND(被保人同一人檢核=FALSE,繳款人身分="與被保險人為「同一人」"),4,5)))) -> 4 | H11: 25 | I11: 2 | J11: 1 | K11: 2
H12: 31 | I12: 5 | J12: 2 | K12: 2
H13: 32 | I13: 3 | J13: 2 | K13: 1 | O13: ID檢核-代碼 | P13: 說明
B14: 應錄音對象判斷 | C14: =VLOOKUP(C15&ID檢核,$H$1:$K$41,2,FALSE) -> 8 | D14: ="※"&VLOOKUP(C15,$O$2:$R$8,2,FALSE)&VLOOKUP(C10,$O$2:$R$8,3,FALSE)&VLOOKUP(C14,$O$2:$R$8,4,FALSE)&VLOOKUP(繳款人話術稿判斷,O1:S8,5,FALSE) ->  | H14: 33 | I14: 5 | J14: 2 | K14: 2 | O14: 1 | P14: 要保人=被保險人=繳款人
B15: ▲ 高齡對象判斷 | C15: =IF(AND(要保人高齡錄音判斷,被保人高齡錄音判斷,繳款人高齡錄音判斷),1,IF(AND(要保人高齡錄音判斷,被保人高齡錄音判斷),2,IF(AND(要保人高齡錄音判斷,繳款人高齡錄音判斷),3,IF(AND(被保人高齡錄音判斷,繳款人高齡錄音判斷),4,IF(AND(要保人高齡錄音判斷),5,IF(AND(被保人高齡錄音判斷),6,IF(AND(繳款人高齡錄音判斷),7,8))))))) -> 8 | D15: ="※"&VLOOKUP(C15,$O$2:$R$8,2,FALSE)&VLOOKUP(C10,$O$2:$R$8,3,FALSE)&VLOOKUP(C14,$O$2:$R$8,4,FALSE)&VLOOKUP(繳款人話術稿判斷,O1:T8,6,FALSE) ->  | H15: 34 | I15: 2 | J15: 2 | K15: 2 | O15: 2 | P15: 要保人=被保險人<>繳款人
B16: ▲ 要被保人話術稿判斷 | C16: =VLOOKUP(C15&ID檢核,$H$1:$K$41,3,FALSE) -> 4 | D16: ※本保單要保人、被保險人不需錄音。 | H16: 35 | I16: 3 | J16: 2 | K16: 1 | O16: 3 | P16: 要保人=繳款人<>被保險人
B17: ▲ 繳款人話術稿判斷 | C17: =VLOOKUP(C15&ID檢核,$H$1:$K$41,4,FALSE) -> 2 | D17: =IF(VLOOKUP(繳款人話術稿判斷,O1:S3,5,FALSE)=0,"",VLOOKUP(繳款人話術稿判斷,O1:S3,5,FALSE)) ->  | H17: 41 | I17: 5 | J17: 2 | K17: 2 | O17: 4 | P17: 要保人<>被保險人=繳款人
D18: ※本保單繳款人不需錄音。 | H18: 42 | I18: 3 | J18: 2 | K18: 1 | O18: 5 | P18: 要保人<>被保險人<>繳款人
H19: 43 | I19: 2 | J19: 1 | K19: 2
B20: 通路別 | C20: BR | H20: 44 | I20: 6 | J20: 3 | K20: 2 | O20: 高齡對象判斷-代碼 | P20: 說明
B21: 商品類別 | C21: =IF(商品名稱="保誠人壽享保障變額萬能壽險","IL","IF") -> IL | H21: 45 | I21: 4 | J21: 3 | K21: 1 | O21: 1 | P21: 本保單要保人、被保險人、繳款人保險年齡達65歲(含)以上，
B22: 服務單位名稱 | H22: 51 | I22: 5 | J22: 2 | K22: 2 | O22: 2 | P22: 本保單要保人、被保險人保險年齡達65歲(含)以上，
B23: 雙招選項名稱 | C23: =IF(AND(業務員_2<>"",登錄字號_2<>""),1,2) -> 2 | H23: 52 | I23: 5 | J23: 2 | K23: 2 | O23: 3 | P23: 本保單要保人、繳款人保險年齡達65歲(含)以上，
B24: 雙招攬判斷 | C24: =IF(高齡話術檢核,IF(資料輸入_主被保人!W4="是",TRUE,FALSE),FALSE) -> FALSE | H24: 53 | I24: 5 | J24: 2 | K24: 2 | O24: 4 | P24: 本保單被保人、繳款人保險年齡達65歲(含)以上，
B25: 保險成本Temp | C25: =建議書!#REF! ->  | H25: 54 | I25: 5 | J25: 2 | K25: 2 | O25: 5 | P25: 本保單要保人保險年齡達65歲(含)以上，
H26: 55 | I26: 5 | J26: 2 | K26: 2 | O26: 6 | P26: 本保單被保險人保險年齡達65歲(含)以上，
B27: 保障期間年 | C27: =IF(高齡錄音填寫資訊檢核=1,TRUE,FALSE) -> FALSE | H27: 61 | I27: 5 | J27: 2 | K27: 2 | O27: 7 | P27: 本保單繳款人保險年齡達65歲(含)以上，
B28: 高齡錄音資訊 | C28: =MAX(C29:C37,C42:C43) -> 5 | D28: ="◆錄音話術補充資訊填寫不完整，請補全內容。 " -> ◆錄音話術補充資訊填寫不完整，請補全內容。 | H28: 62 | I28: 5 | J28: 2 | K28: 2 | O28: 8 | P28: 無人達65歲以上
B29: ▲ 服務公司檢核 | C29: =IF(高齡錄音檢核,IF(服務公司<>"",1,2),1) -> 1 | H29: 63 | I29: 6 | J29: 3 | K29: 2
B30: ▲ 服務專員檢核 | C30: =IF(高齡錄音檢核,IF(業務員_1<>"",1,3),1) -> 1 | H30: 64 | I30: 6 | J30: 3 | K30: 2
B31: ▲ 登錄字號檢核 | C31: =IF(高齡錄音檢核,IF(登錄字號_1<>"",1,4),1) -> 1 | H31: 65 | I31: 6 | J31: 3 | K31: 2
B32: ▲ 身分證檢核-要保 | C32: =IF(要保人高齡錄音判斷,IF(要保人身分證字號<>"",1,5),1) -> 1 | D32: Note. 若達65歲時必填 | H32: 71 | I32: 5 | J32: 2 | K32: 2
B33: ▲ 身分證檢核-被保 | C33: =IF(被保人高齡錄音判斷,IF(AND(被保險人身分證字號="",被保人同一人檢核=FALSE),5,1),1) -> 1 | D33: Note. 若達65歲且與要保人不同人時必填 | H33: 72 | I33: 7 | J33: 4 | K33: 1
B34: ▲ 身分證檢核-繳款 | C34: =IF(繳款人高齡錄音判斷,IF(AND(繳款人身分證字號="",繳款人同一人檢核=FALSE),5,1),1) -> 1 | D34: Note. 若達65歲且與要、被保人不同人時必填 | H34: 73 | I34: 5 | J34: 2 | K34: 2
B35: ▲ 投保目的檢核 | C35: =IF(高齡錄音檢核,IF(OR(投保目的及需求="",投保目的其他文字檢核=1),6,1),1) -> 1 | H35: 74 | I35: 6 | J35: 3 | K35: 2
B36: ▲ 第二招攬 | C36: =IF(雙招選項="",5,1) -> 5 | H36: 75 | I36: 7 | J36: 4 | K36: 1
B37: ▲ 雙招 | C37: =IF(雙招選項="是", IF(COUNTBLANK(業務員_2)+COUNTBLANK(登錄字號_2)>0,9,1),1) -> 1 | H37: 81 | I37: 8 | J37: 4 | K37: 2
B38: ▲ 要被保人同一人檢核 | C38: =IF(高齡錄音檢核,IF(要保人身分="與被保險人為「同一人」",TRUE,FALSE),FALSE) -> FALSE | D38: =IF(擴大錄音對象="N","◆被保險人達"&高齡錄音年齡&"歲，請填寫錄音話術補充資訊，依錄音話術表進行錄音。 ","◆被保險人需進行錄音，請填寫錄音話術補充資訊，依錄音話術表進行錄音。 ") -> ◆被保險人達65歲，請填寫錄音話術補充資訊，依錄音話術表進行錄音。 | H38: 82 | I38: 8 | J38: 4 | K38: 2
B39: ▲ 繳款人同一人檢核 | C39: =IF(高齡錄音檢核,IF(OR(繳款人身分="與要保人為「同一人」",繳款人身分="與被保險人為「同一人」"),TRUE, FALSE),FALSE) -> FALSE | D39: =IF(擴大錄音對象="N","◆繳款人達"&高齡錄音年齡&"歲，請填寫錄音話術補充資訊，依錄音話術表進行錄音。 ","◆繳款人需進行錄音，請填寫錄音話術補充資訊，依錄音話術表進行錄音。 ") -> ◆繳款人達65歲，請填寫錄音話術補充資訊，依錄音話術表進行錄音。 | H39: 83 | I39: 8 | J39: 4 | K39: 2
H40: 84 | I40: 8 | J40: 4 | K40: 2
B41: 錄音填寫與錄音對象提示訊息 | D41: =IFERROR(IF(C28>1,D28,"")& IF(要保人高齡錄音判斷,D3,"")& IF(AND(被保人同一人檢核=FALSE,被保人高齡錄音判斷=TRUE),D38,"")& IF(AND(繳款人同一人檢核=FALSE,繳款人高齡錄音判斷=TRUE),D39,""),"") -> ◆錄音話術補充資訊填寫不完整，請補全內容。 | H41: 85 | I41: 8 | J41: 4 | K41: 2
B42: 通路名稱檢核 | C42: =IF(服務單位檢核,IF(服務單位="",5,1),1) -> 1
B43: 保經代檢核 | C43: =IF(保經保代="",5,1) -> 5
B46: 錄音序號適用通路
B47: 第一商業銀行股份有限公司
B48: 彰化商業銀行股份有限公司
B49: 台新商業銀行股份有限公司
B50: 中國信託商業銀行股份有限公司
B53: 繳費頻率 | C53: =IFERROR(VLOOKUP(繳別,B54:C57,2,0),1) -> 12
B54: 年繳 | C54: 1
B55: 半年繳 | C55: 2
B56: 季繳 | C56: 4
B57: 月繳 | C57: 12
B59: 服務公司
B60: ▲ 服務單位檢核(欣台) | C60: =IF(ISERROR(FIND("欣台",服務公司,1)),FALSE,TRUE) -> FALSE
B61: ▲ 服務公司檢核 | C61: =IF(服務單位檢核=TRUE,AND(服務公司<>"",保經保代<>"",服務單位<>""),AND(服務公司<>"",保經保代<>"")) -> FALSE
B63: 投保目的檢核 | C63: =OR(C65,C66) -> FALSE | D63: =IF(AND(COUNTIF(資料輸入_主被保人!O55:O57,"V")=1,投保目的保障項次="V"),投保目的保障文字,IF(投保目的保障項次="V",投保目的保障文字&"、",""))&IF(AND(COUNTIF(資料輸入_主被保人!O55:O57,"V")=1,投保目的子女="V"),投保目的子女文字,IF(投保目的子女="V",投保目的子女文字&"、",""))&IF(AND(COUNTIF(資料輸入_主被保人!O53:O57,"V")=1,投保目的退休="V"),投保目的退休文字,IF(投保目的退休="V",投保目的退休文字&"、",""))&IF(AND(COUNTIF(資料輸入_主被保人!O56:O57,"V")=1,投保目的房貸="V"),投保目的房貸文字,IF(投保目的房貸="V",投保目的房貸文字&"、",""))&IF(投保目的其他="V",投保目的其他文字,"") -> 
B64: 投保目的勾選檢核 | C64: =OR(C65,C67) -> FALSE
B65: ▲ 投保目的 | C65: =OR(投保目的保障項次="V",投保目的子女="V",投保目的退休="V",投保目的房貸="V") -> FALSE
B66: ▲ 投保目的其他 | C66: =AND(投保目的其他="V",投保目的其他文字<>"") -> FALSE
B67: ▲ 投保目的其他勾選 | C67: =AND(投保目的其他="V") -> FALSE
B68: ▲ 投保目的其他文字 | C68: =IF(投保目的其他="V",IF(投保目的其他文字="",1,2),3) -> 3

Sheet C1_投資型_各商品話術&相關費用 (hidden)
A1: No. | B1: 商品名稱 | C1: 費用說明 | P1: 保費費用 | T1: 保單管理費 | X1: 解約費用 | AB1: 保險成本 | AF1: 投資相關費用 | AI1: 其它費用 | AL1: 其他 | AO1: 是否為甲型商品 | AP1: 繳費年期 | AR1: 最低保費 | AT1: 錄音序號1_錄音取得要保人同意錄音及說明係購買保險商品 | AU1: 錄音序號2_告知繳費年期與繳費金額 | AV1: 錄音序號3_告知保單相關費用 | AW1: 錄音序號4_說明投資風險 | AX1: 錄音序號5_說明商品重要條款內容、除外責任、保險商品說明書重要內容、建議書內容_保單利益 | BL1: 錄音序號6_契撤期說明 | BM1: 錄音序號7_要保人聲明 | BN1: 投保年齡限制 | BO1: 保障年期 | BQ1: 錄音序號5_說明商品重要條款內容、除外責任、保險商品說明書重要內容、建議書內容_保單利益
C2: 建議書說明文字 | D2: 錄音紀錄話術-保單相關費用參考文字 | E2: 錄音紀錄話術-保單相關費用參考文字-繳款人 | H2: 費用數字 | I2: 保費費用 | J2: 保單管理費 | K2: 解約費用 | L2: 保險成本 | M2: 投資相關費用 | N2: 其他費用 | O2: 其他 | P2: Y/N | Q2: 題號 | R2: 扣除方式 | S2: 題項文字 | T2: Y/N | U2: 題號 | V2: 扣除方式 | W2: 題項文字 | X2: Y/N | Y2: 題號 | Z2: 扣除年度 | AA2: 題項文字 | AB2: Y/N | AC2: 題號 | AD2: 題項文字 | AE2: 扣除年度 | AF2: Y/N | AG2: 題號 | AH2: 題項文字 | AI2: Y/N | AJ2: 題號 | AK2: 題項文字 | AL2: Y/N | AM2: 題號 | AN2: 題項文字 | AP2: Y/N | AQ2: 年期 | AR2: Y/N | AS2: 保費金額 | AX2: 保單利益 | AY2: 說明重要條款 | AZ2: 重要條款_1 | BA2: 重要條款_2 | BB2: 重要條款_3 | BC2: 重要條款_4 | BD2: 重要條款_5 | BE2: 重要條款_6 | BF2: 重要條款_7 | BG2: 重要條款_8 | BH2: 重要條款_9 | BI2: 重要條款_10 | BJ2: 重要條款確認 | BO2: 1年，可續保至被保險人保險年齡50歲 | BQ2: 保單利益 | BR2: 說明重要條款 | BS2: 重要條款_1 | BT2: 重要條款_2 | BU2: 重要條款_3 | BV2: 重要條款_4 | BW2: 重要條款_5 | BX2: 重要條款_6 | BY2: 重要條款_7 | BZ2: 重要條款_8 | CA2: 重要條款_9 | CB2: 重要條款_10 | CC2: 重要條款確認 | CD2: 保險商品說明書重要內容
A3: 1 | B3: 保誠人壽誠億滿滿變額壽險 | D3: ="再次向您說明本商品收取的費用： "&S3&W3&AA3&AD3&AH3&AK3&AN3&錄音序號_確認語_2 ->  | E3: ="再次向您說明本商品收取的費用： "&S3&W3&AA3&AD3&AH3&AK3&AN3&" 請問您清楚嗎? 【請客戶回答：清楚/不清楚】" ->  | G3: =F3=E3 ->  | I3: 本商品保費費用為0 | J3: 本商品每個月會從保單帳戶價值中收取一筆保單管理費。 | K3: 目標保費保單帳戶之解約費用或部分提領費用，於第1至第5保單年度分別為目標保費保單帳戶價值或部分提領金額的9.3%、8%、6%、4%、2%，第6保單年度後為0%。 | M3: .「投資相關費用」：如申購投資標的手續費、投資標的經理費(管理費)、帳戶管理費、轉換費用等費用。 | P3: 0 | Q3: =IF(P3=0,"","1") ->  | R3: =I3 -> 本商品保費費用為0 | S3: =IF(P3=0,"",Q3&".「保費費用」："&R3&" ") ->  | T3: 1 | U3: =IF(T3+P3=0,"",IF(T3=0,"",T3+P3)) -> 1 | V3: 保單帳戶價值 | W3: =IF(T3=0,"",U3&".「保單管理費」："&J3 ) -> 1.「保單管理費」：本商品每個月會從保單帳戶價值中收取一筆保單管理費。 | X3: 1 | Y3: =IF(P3+T3+X3=0,"",IF(X3=0,"",P3+T3+X3)) -> 2 | Z3: =K3 -> 目標保費保單帳戶之解約費用或部分提領費用，於第1至第5保單年度分別為目標保費保單帳戶價值或部分提領金額的9.3%、8%、6%、4%、2%，第6保單年度後為0%。 | AA3: =IF(X3=0,"",Y3&".「解約費用/部分提領費用」："&Z3&" ") -> 2.「解約費用/部分提領費用」：目標保費保單帳戶之解約費用或部分提領費用，於第1至第5保單年度分別為目標保費保單帳戶價值或部分提領金額的9.3%、8%、6%、4%、2%，第6保單年度後為0%。 | AB3: 1 | AC3: =IF(P3+T3+X3+AB3=0,"",IF(AB3=0,"",P3+T3+X3+AB3)) -> 3 | AD3: =IF(AB3=0,"",IF(AO3="Y",AC3&".「保險成本」：本商品"&AE3&"會從保單帳戶價值中收取一筆保險成本。 -若保單帳戶價值下降會讓淨危險保額提高，而將增加保險成本。建議書所載範例之假設情境下，首年應收保險成本約為"&幣別&TEXT(保險成本Temp,"#,###")&"元，若實際投資報酬率低於假設情境，則保險成本可能增加，也會影響到您的保單帳戶價值。 -保險成本原則上隨年齡增長而逐年增加，也就是說如果年紀越大每個月會被扣的保險成本有可能會更多。 ",AC3&".「保險成本」：本商品"&AE3&"會從保單帳戶價值中收取一筆保險成本。 ")) ->  | AE3: 每個月 | AF3: 1 | AG3: =IF(P3+T3+X3+AB3+AF3=0,"",IF(AF3=0,"",P3+T3+X3+AB3+AF3)) -> 4 | AH3: =IF(AF3=0,"",AG3&M3) -> 4.「投資相關費用」：如申購投資標的手續費、投資標的經理費(管理費)、帳戶管理費、轉換費用等費用。 | AI3: =IF(幣別="新臺幣",0,1) -> 0 | AJ3: =IF(P3+T3+X3+AB3+AF3+AI3=0,"",IF(AI3=0,"",P3+T3+X3+AB3+AF3+AI3)) ->  | AK3: =IF(AI3=0,""," "&AJ3&".「其它費用」：本商品相關款項之往來，若採用保誠人壽指定銀行之外幣帳戶，無需負擔所產生之匯款相關費用，但若非採用保誠人壽指定銀行之外幣帳戶者，則會收取匯款費用。") ->  | AL3: 0 | AO3: Y | AP3: N | AR3: N | AX3: ="【銷售人員】： 如銷售過程中說明， 您所投保的"&B3&"的保單利益，包含： 一、祝壽保險金。 二、身故保險金或喪葬費用保險金 。 三、完全失能保險金。 "&錄音序號_確認語_2 ->  | AY3: 以下再為您說明商品重要條款內容， | AZ3: 有關【投資標的轉換】 要保人得申請將投資於某一「投資標的」的款項轉移至其他「投資標的」。 | BA3: 有關【投資標的之關閉與終止】 一、保誠人壽得主動終止某一「投資標的」，且應於終止日前三十日通知要保人。 二、保誠人壽得經所有持有「投資標的價值」之要保人同意後，主動關閉該「投資標的」，並於關閉日前三十日通知要保人。 三、保誠人壽於接獲發行或經理機構之「投資標的」終止或關閉通知時，應於五日內在保誠人壽網站公布，並於三十日內通知要保人。 | BB3: 有關【保險事故的通知與保險金的申請時間】 要保人或受益人應於知悉保險事故後十日內通知保誠人壽，並於通知後儘速檢具所需文件申請給付保險金。 | BC3: 有關【除外責任】 因除外責任所導致的保險事故發生，保誠人壽不負給付各項保險金之責任。 本商品除外責任包括，要、被保險人故意行為或被保險人犯罪行為等。完整之除外責任請詳保單條款。 | BD3: 有關【保險單借款】 本契約有效期間內，要保人得申請保險單借款，其可借金額上限詳保單條款約定。 | BE3: 有關【寬限期間及契約效力】 「保單帳戶價值」扣除保險單借款本息後不足以支付當月「保險成本」及「保單管理費」時，將催告要保人交付「超額保險費」， 自催告到達翌日起三十日內為寬限期間，逾寬限期間仍未交付者，將停止效力。要保人得在停效日起二年內，申請復效。 | BJ3: ="以上說明的詳細內容都載明於保單條款中，"&錄音序號_確認語_2 ->  | BK3: ="本商品為投資型保險，非屬存款，故不受存款保險之保障。 本商品不保證保本、不保證獲利，而且解約金有可能小於已繳之保險費。"&錄音序號_確認語_2&"另建議書中已有說明不同投資報酬率試算的保單帳戶價值、解約金、保障內容，"&錄音序號_確認語_2&"人壽保險的死亡給付於被保險人死亡後給付於指定受益人者，依保險法相關規定不能作為被保險人遺產，若有涉及規避遺產稅等稅捐時，稽徵機關可以依據有關稅法或實質課稅原則相關規定辦理。"&錄音序號_確認語_2 ->  | BQ3: 【銷售人員】： 以下再為您說明商品重要條款內容， | BV3: 有關【除外責任】 因除外責任所導致的保險事故發生，保誠人壽不負給付各項保險金之責任。 本商品除外責任包括，要、被保險人故意行為或被保險人犯罪行為等。完整之除外責任請詳保單條款。 | BW3: 有關【保險單借款】 本契約有效期間內，要保人得申請保險單借款，可借金額上限詳保單條款約定。 | BX3: 有關【寬限期間及契約效力】 「保單帳戶價值」扣除保險單借款本息後不足以支付當月「保險成本」及「保單管理費」時，將催告要保人交付「超額保險費」，逾寬限期間仍未交付者，將停止效力。 | BY3: 有關【保險給付】 包含祝壽保險金、身故保險金或喪葬費用保險金 、完全失能保險金。 | CC3: 以上說明的詳細內容都載明於保單條款中，請問您清楚嗎？【請客戶回答：清楚/不清楚】 | CD3: 本商品為投資型保險，非屬存款，故不受存款保險之保障。 本商品不保證保本、不保證獲利，而且解約金有可能小於已繳之保險費，請問您清楚嗎？ 人壽保險的死亡給付於被保險人死亡後給付於指定受益人者，依保險法相關規定不能作為被保險人遺產，若有涉及規避遺產稅等稅捐時，稽徵機關可以依據有關稅法或實質課稅原則相關規定辦理。【請客戶回答：清楚/不清楚】
A4: 2 | B4: 保誠人壽誠億滿滿外幣變額壽險 | I4: 本商品保費費用為0 | J4: 本商品每個月會從保單帳戶價值中收取一筆保單管理費。 | K4: 目標保費保單帳戶之解約費用或部分提領費用，於第1至第5保單年度分別為目標保費保單帳戶價值或部分提領金額的9.3%、8%、6%、4%、2%，第6保單年度後為0%。 | M4: .「投資相關費用」：如申購投資標的手續費、投資標的經理費(管理費)、帳戶管理費、轉換費用等費用。 | N4: .「其它費用」：本商品相關款項之往來，若採用保誠人壽指定銀行之外幣帳戶，無需負擔所產生之匯款相關費用，但若非採用保誠人壽指定銀行之外幣帳戶者，則會收取匯款費用。 | P4: 0 | R4: 本商品保費費用為0 | S4: =IF(P4=0,"",Q4&".「保費費用」："&R4&" ") ->  | T4: 1 | U4: =IF(T4+P4=0,"",IF(T4=0,"",T4+P4)) -> 1 | V4: 保單帳戶價值 | W4: =IF(T4=0,"",U4&".「保單管理費」："&J4) -> 1.「保單管理費」：本商品每個月會從保單帳戶價值中收取一筆保單管理費。 | X4: 1 | Y4: =IF(P4+T4+X4=0,"",IF(X4=0,"",P4+T4+X4)) -> 2 | Z4: 目標保費保單帳戶之解約費用或部分提領費用，於第1至第5保單年度分別為目標保費保單帳戶價值或部分提領金額的9.3%、8%、6%、4%、2%，第6保單年度後為0%。 | AA4: =IF(X4=0,"",Y4&".「解約費用/部分提領費用」："&Z4&" ") -> 2.「解約費用/部分提領費用」：目標保費保單帳戶之解約費用或部分提領費用，於第1至第5保單年度分別為目標保費保單帳戶價值或部分提領金額的9.3%、8%、6%、4%、2%，第6保單年度後為0%。 | AB4: 1 | AC4: =IF(P4+T4+X4+AB4=0,"",IF(AB4=0,"",P4+T4+X4+AB4)) -> 3 | AE4: 每個月 | AF4: 1 | AG4: =IF(P4+T4+X4+AB4+AF4=0,"",IF(AF4=0,"",P4+T4+X4+AB4+AF4)) -> 4 | AH4: =IF(AF4=0,"",AG4&M4) -> 4.「投資相關費用」：如申購投資標的手續費、投資標的經理費(管理費)、帳戶管理費、轉換費用等費用。 | AI4: 0 | AJ4: =IF(P4+T4+X4+AB4+AF4+AI4=0,"",IF(AI4=0,"",P4+T4+X4+AB4+AF4+AI4)) ->  | AK4: =IF(AI4=0,""," "&AJ4&N4) ->  | AL4: 0 | AO4: Y | AP4: N | AR4: N | AY4: 以下再為您說明商品重要條款內容， | AZ4: 有關【投資標的轉換】 要保人得申請將投資於某一「投資標的」的款項轉移至其他「投資標的」。 | BA4: 有關【投資標的之關閉與終止】 一、保誠人壽得主動終止某一「投資標的」，且應於終止日前三十日通知要保人。 二、保誠人壽得經所有持有「投資標的價值」之要保人同意後，主動關閉該「投資標的」，並於關閉日前三十日通知要保人。 三、保誠人壽於接獲發行或經理機構之「投資標的」終止或關閉通知時，應於五日內在保誠人壽網站公布，並於三十日內通知要保人。 | BB4: 有關【保險事故的通知與保險金的申請時間】 要保人或受益人應於知悉保險事故後十日內通知保誠人壽，並於通知後儘速檢具所需文件申請給付保險金。 | BC4: 有關【除外責任】 因除外責任所導致的保險事故發生，保誠人壽不負給付各項保險金之責任。 本商品除外責任包括，要、被保險人故意行為或被保險人犯罪行為等。完整之除外責任請詳保單條款。 | BD4: 有關【保險單借款】 本契約有效期間內，要保人得申請保險單借款，其可借金額上限詳保單條款約定。 | BE4: 有關【寬限期間及契約效力】 「保單帳戶價值」扣除保險單借款本息後不足以支付當月「保險成本」及「保單管理費」時，將催告要保人交付「超額保險費」， 自催告到達翌日起三十日內為寬限期間，逾寬限期間仍未交付者，將停止效力。要保人得在停效日起二年內，申請復效。 | BQ4: 【銷售人員】： 以下再為您說明商品重要條款內容， | BV4: 有關【除外責任】 因除外責任所導致的保險事故發生，保誠人壽不負給付各項保險金之責任。 本商品除外責任包括，要、被保險人故意行為或被保險人犯罪行為等。完整之除外責任請詳保單條款。 | BW4: 有關【保險單借款】 本契約有效期間內，要保人得申請保險單借款，可借金額上限詳保單條款約定。 | BX4: =BE4 -> 有關【寬限期間及契約效力】 「保單帳戶價值」扣除保險單借款本息後不足以支付當月「保險成本」及「保單管理費」時，將催告要保人交付「超額保險費」， 自催告到達翌日起三十日內為寬限期間，逾寬限期間仍未交付者，將停止效力。要保人得在停效日起二年內，申請復效。 | BY4: 有關【保險給付】 包含祝壽保險金、身故保險金或喪葬費用保險金 、完全失能保險金。 | CC4: 以上說明的詳細內容都載明於保單條款中，請問您清楚嗎？【請客戶回答：清楚/不清楚】 | CD4: 本商品為投資型保險，非屬存款，故不受存款保險之保障。 本商品不保證保本、不保證獲利，而且解約金有可能小於已繳之保險費，請問您清楚嗎？ 人壽保險的死亡給付於被保險人死亡後給付於指定受益人者，依保險法相關規定不能作為被保險人遺產，若有涉及規避遺產稅等稅捐時，稽徵機關可以依據有關稅法或實質課稅原則相關規定辦理。【請客戶回答：清楚/不清楚】
A5: 3 | B5: 保誠人壽新三五寶島變額壽險 | I5: 本商品保費費用為0 | J5: 本商品每個月會從保單帳戶價值中收取一筆保單管理費。 | K5: 本商品在正常繳費的情形下，如在前5個保單年度中辦理解約或部分提領，需要扣除保單帳戶價值或部分提領金額一定比率的解約費用或部分提領費用，例如：只繳一期保險費的解約費用率為25%；解約費用率是依實際繳交保費期數為計算基準，所以如果沒有正常繳費，可能造成超過5個保單年度辦理解約或部分提領，仍需支付解約費用或部分提領費用；所以投保後解約或不繼續繳費可能對要保人造成不利影響。 | M5: .「投資相關費用」：如申購投資標的手續費、投資標的經理費(管理費)、帳戶管理費、轉換費用等費用。 | P5: 0 | R5: 本商品保費費用為0 | T5: 1 | U5: 1 | V5: 保單帳戶價值 | W5: 1.「保單管理費」：本商品每個月會從保單帳戶價值中收取一筆保單管理費。 | X5: 1 | Y5: 2 | Z5: 本商品在正常繳費的情形下，如在前5個保單年度中辦理解約或部分提領，需要扣除保單帳戶價值或部分提領金額一定比率的解約費用或部分提領費用，例如：只繳一期保險費的解約費用率為25%；解約費用率是依實際繳交保費期數為計算基準，所以如果沒有正常繳費，可能造成超過5個保單年度辦理解約或部分提領，仍需支付解約費用或部分提領費用；所以投保後解約或不繼續繳費可能對要保人造成不利影響。 | AA5: 2.「解約費用/部分提領費用」：本商品在正常繳費的情形下，如在前5個保單年度中辦理解約或部分提領，需要扣除保單帳戶價值或部分提領金額一定比率的解約費用或部分提領費用，例如：只繳一期保險費的解約費用率為25%；解約費用率是依實際繳交保費期數為計算基準，所以如果沒有正常繳費，可能造成超過5個保單年度辦理解約或部分提領，仍需支付解約費用或部分提領費用；所以投保後解約或不繼續繳費可能對要保人造成不利影響。 | AB5: 1 | AC5: 3 | AE5: 每個月 | AF5: 1 | AG5: 4 | AH5: 4.「投資相關費用」：如申購投資標的手續費、投資標的經理費(管理費)、帳戶管理費、轉換費用等費用。 | AI5: 0 | AK5: =IF(AI5=0,""," "&AJ5&".「其它費用」：本商品相關款項之往來，若採用保誠人壽指定銀行之外幣帳戶，無需負擔所產生之匯款相關費用，但若非採用保誠人壽指定銀行之外幣帳戶者，則會收取匯款費用。") ->  | AL5: 0 | AO5: Y | AP5: Y | AQ5: ，共3期 | AR5: Y | AS5: 300000 | AY5: 以下再為您說明商品重要條款內容， | AZ5: 有關【投資標的轉換】 要保人得申請將投資於某一「投資標的」的款項轉移至其他「投資標的」。 | BA5: 有關【投資標的之關閉與終止】 一、保誠人壽得主動終止某一「投資標的」，且應於終止日前三十日通知要保人。 二、保誠人壽得經所有持有「投資標的價值」之要保人同意後，主動關閉該「投資標的」，並於關閉日前三十日通知要保人。 三、保誠人壽於接獲發行或經理機構之「投資標的」終止或關閉通知時，應於五日內在保誠人壽網站公布，並於三十日內通知要保人。 | BB5: 有關【保險事故的通知與保險金的申請時間】 要保人或受益人應於知悉保險事故後十日內通知保誠人壽，並於通知後儘速檢具所需文件申請給付保險金。 | BC5: 有關【除外責任】 因除外責任所導致的保險事故發生，保誠人壽不負給付各項保險金之責任。 本商品除外責任包括，要、被保險人故意行為或被保險人犯罪行為等。完整之除外責任請詳保單條款。 | BD5: 有關【保險單借款】 本契約有效期間內，要保人得申請保險單借款，其可借金額上限詳保單條款約定。 | BE5: 有關【寬限期間及契約效力】 「保單帳戶價值」扣除保險單借款本息後不足以支付當月「保險成本」及「保單管理費」時，將催告要保人交付「目標保險費」，如要保人無欠繳之「目標保險費」，將催告要保人交付「超額保險費」， 自催告到達翌日起三十日內為寬限期間，逾寬限期間仍未交付者，將停止效力。要保人得在停效日起二年內，申請復效。 | BQ5: 【銷售人員】： 以下再為您說明商品重要條款內容， | BV5: =BC5 -> 有關【除外責任】 因除外責任所導致的保險事故發生，保誠人壽不負給付各項保險金之責任。 本商品除外責任包括，要、被保險人故意行為或被保險人犯罪行為等。完整之除外責任請詳保單條款。 | BW5: =BD5 -> 有關【保險單借款】 本契約有效期間內，要保人得申請保險單借款，其可借金額上限詳保單條款約定。 | BX5: =BE5 -> 有關【寬限期間及契約效力】 「保單帳戶價值」扣除保險單借款本息後不足以支付當月「保險成本」及「保單管理費」時，將催告要保人交付「目標保險費」，如要保人無欠繳之「目標保險費」，將催告要保人交付「超額保險費」， 自催告到達翌日起三十日內為寬限期間，逾寬限期間仍未交付者，將停止效力。要保人得在停效日起二年內，申請復效。 | BY5: 有關【保險給付】 包含祝壽保險金、身故保險金或喪葬費用保險金 、完全失能保險金。 | CC5: 以上說明的詳細內容都載明於保單條款中，請問您清楚嗎？【請客戶回答：清楚/不清楚】 | CD5: 本商品為投資型保險，非屬存款，故不受存款保險之保障。 本商品不保證保本、不保證獲利，而且解約金有可能小於已繳之保險費，請問您清楚嗎？ 人壽保險的死亡給付於被保險人死亡後給付於指定受益人者，依保險法相關規定不能作為被保險人遺產，若有涉及規避遺產稅等稅捐時，稽徵機關可以依據有關稅法或實質課稅原則相關規定辦理。【請客戶回答：清楚/不清楚】
A6: 4 | B6: 保誠人壽三五美金外幣變額壽險 | I6: 本商品保費費用為0 | J6: 本商品每個月會從保單帳戶價值中收取一筆保單管理費。 | K6: 本商品在正常繳費的情形下，如在前5個保單年度中辦理解約或部分提領，需要扣除保單帳戶價值或部分提領金額一定比率的解約費用或部分提領費用，例如：只繳一期保險費的解約費用率為25%；解約費用率是依實際繳交保費期數為計算基準，所以如果沒有正常繳費，可能造成超過5個保單年度辦理解約或部分提領，仍需支付解約費用或部分提領費用；所以投保後解約或不繼續繳費可能對要保人造成不利影響。 | M6: .「投資相關費用」：如申購投資標的手續費、投資標的經理費(管理費)、帳戶管理費、轉換費用等費用。 | N6: .「其它費用」：本商品相關款項之往來，若採用保誠人壽指定銀行之外幣帳戶，無需負擔所產生之匯款相關費用，但若非採用保誠人壽指定銀行之外幣帳戶者，則會收取匯款費用。 | P6: 0 | R6: 本商品保費費用為0 | T6: 1 | U6: 1 | V6: 保單帳戶價值 | W6: 1.「保單管理費」：本商品每個月會從保單帳戶價值中收取一筆保單管理費。 | X6: 1 | Y6: 2 | Z6: 本商品在正常繳費的情形下，如在前5個保單年度中辦理解約或部分提領，需要扣除保單帳戶價值或部分提領金額一定比率的解約費用或部分提領費用，例如：只繳一期保險費的解約費用率為25%；解約費用率是依實際繳交保費期數為計算基準，所以如果沒有正常繳費，可能造成超過5個保單年度辦理解約或部分提領，仍需支付解約費用或部分提領費用；所以投保後解約或不繼續繳費可能對要保人造成不利影響。 | AA6: 2.「解約費用/部分提領費用」：本商品在正常繳費的情形下，如在前5個保單年度中辦理解約或部分提領，需要扣除保單帳戶價值或部分提領金額一定比率的解約費用或部分提領費用，例如：只繳一期保險費的解約費用率為25%；解約費用率是依實際繳交保費期數為計算基準，所以如果沒有正常繳費，可能造成超過5個保單年度辦理解約或部分提領，仍需支付解約費用或部分提領費用；所以投保後解約或不繼續繳費可能對要保人造成不利影響。 | AB6: 1 | AC6: 3 | AE6: 每個月 | AF6: 1 | AG6: 4 | AH6: 4.「投資相關費用」：如申購投資標的手續費、投資標的經理費(管理費)、帳戶管理費、轉換費用等費用。 | AI6: 0 | AK6: =IF(AI6=0,""," "&AJ6&N6) ->  | AL6: 0 | AO6: Y | AP6: Y | AQ6: ，共3期 | AR6: Y | AS6: 10000 | AY6: 以下再為您說明商品重要條款內容， | AZ6: 有關【投資標的轉換】 要保人得申請將投資於某一「投資標的」的款項轉移至其他「投資標的」。 | BA6: 有關【投資標的之關閉與終止】 一、保誠人壽得主動終止某一「投資標的」，且應於終止日前三十日通知要保人。 二、保誠人壽得經所有持有「投資標的價值」之要保人同意後，主動關閉該「投資標的」，並於關閉日前三十日通知要保人。 三、保誠人壽於接獲發行或經理機構之「投資標的」終止或關閉通知時，應於五日內在保誠人壽網站公布，並於三十日內通知要保人。 | BB6: 有關【保險事故的通知與保險金的申請時間】 要保人或受益人應於知悉保險事故後十日內通知保誠人壽，並於通知後儘速檢具所需文件申請給付保險金。 | BC6: 有關【除外責任】 因除外責任所導致的保險事故發生，保誠人壽不負給付各項保險金之責任。 本商品除外責任包括，要、被保險人故意行為或被保險人犯罪行為等。完整之除外責任請詳保單條款。 | BD6: 有關【保險單借款】 本契約有效期間內，要保人得申請保險單借款，其可借金額上限詳保單條款約定。 | BE6: 有關【寬限期間及契約效力】 「保單帳戶價值」扣除保險單借款本息後不足以支付當月「保險成本」及「保單管理費」時，將催告要保人交付「目標保險費」，如要保人無欠繳之「目標保險費」，將催告要保人交付「超額保險費」， 自催告到達翌日起三十日內為寬限期間，逾寬限期間仍未交付者，將停止效力。要保人得在停效日起二年內，申請復效。 | BQ6: 【銷售人員】： 以下再為您說明商品重要條款內容， | BV6: =BC6 -> 有關【除外責任】 因除外責任所導致的保險事故發生，保誠人壽不負給付各項保險金之責任。 本商品除外責任包括，要、被保險人故意行為或被保險人犯罪行為等。完整之除外責任請詳保單條款。 | BW6: 有關【保險單借款】 本契約有效期間內，要保人得申請保險單借款，其可借金額上限詳保單條款約定。 | BX6: 有關【寬限期間及契約效力】 「保單帳戶價值」扣除保險單借款本息後不足以支付當月「保險成本」及「保單管理費」時，將催告要保人交付「目標保險費」，如要保人無欠繳之「目標保險費」，將催告要保人交付「超額保險費」， 自催告到達翌日起三十日內為寬限期間，逾寬限期間仍未交付者，將停止效力。要保人得在停效日起二年內，申請復效。 | BY6: 有關【保險給付】 包含祝壽保險金、身故保險金或喪葬費用保險金 、完全失能保險金。 | CC6: 以上說明的詳細內容都載明於保單條款中，請問您清楚嗎？【請客戶回答：清楚/不清楚】 | CD6: 本商品為投資型保險，非屬存款，故不受存款保險之保障。 本商品不保證保本、不保證獲利，而且解約金有可能小於已繳之保險費，請問您清楚嗎？ 人壽保險的死亡給付於被保險人死亡後給付於指定受益人者，依保險法相關規定不能作為被保險人遺產，若有涉及規避遺產稅等稅捐時，稽徵機關可以依據有關稅法或實質課稅原則相關規定辦理。【請客戶回答：清楚/不清楚】
A7: 5 | B7: 保誠人壽新三五中國外幣變額壽險 | I7: 本商品保費費用為0 | J7: 本商品每個月會從保單帳戶價值中收取一筆保單管理費。 | K7: 本商品在正常繳費的情形下，如在前5個保單年度中辦理解約或部分提領，需要扣除保單帳戶價值或部分提領金額一定比率的解約費用或部分提領費用，例如：只繳一期保險費的解約費用率為25%；解約費用率是依實際繳交保費期數為計算基準，所以如果沒有正常繳費，可能造成超過5個保單年度辦理解約或部分提領，仍需支付解約費用或部分提領費用；所以投保後解約或不繼續繳費可能對要保人造成不利影響。 | M7: .「投資相關費用」：如申購投資標的手續費、投資標的經理費(管理費)、帳戶管理費、轉換費用等費用。 | N7: .「其它費用」：本商品相關款項之往來，若採用保誠人壽指定銀行之外幣帳戶，無需負擔所產生之匯款相關費用，但若非採用保誠人壽指定銀行之外幣帳戶者，則會收取匯款費用。 | P7: 0 | R7: 本商品保費費用為0 | T7: 1 | U7: 1 | V7: 保單帳戶價值 | W7: 1.「保單管理費」：本商品每個月會從保單帳戶價值中收取一筆保單管理費。 | X7: 1 | Y7: 2 | Z7: 本商品在正常繳費的情形下，如在前5個保單年度中辦理解約或部分提領，需要扣除保單帳戶價值或部分提領金額一定比率的解約費用或部分提領費用，例如：只繳一期保險費的解約費用率為25%；解約費用率是依實際繳交保費期數為計算基準，所以如果沒有正常繳費，可能造成超過5個保單年度辦理解約或部分提領，仍需支付解約費用或部分提領費用；所以投保後解約或不繼續繳費可能對要保人造成不利影響。 | AA7: 2.「解約費用/部分提領費用」：本商品在正常繳費的情形下，如在前5個保單年度中辦理解約或部分提領，需要扣除保單帳戶價值或部分提領金額一定比率的解約費用或部分提領費用，例如：只繳一期保險費的解約費用率為25%；解約費用率是依實際繳交保費期數為計算基準，所以如果沒有正常繳費，可能造成超過5個保單年度辦理解約或部分提領，仍需支付解約費用或部分提領費用；所以投保後解約或不繼續繳費可能對要保人造成不利影響。 | AB7: 1 | AC7: 3 | AE7: 每個月 | AF7: 1 | AG7: 4 | AH7: 4.「投資相關費用」：如申購投資標的手續費、投資標的經理費(管理費)、帳戶管理費、轉換費用等費用。 | AI7: 0 | AK7: =IF(AI7=0,""," "&AJ7&N7) ->  | AL7: 0 | AO7: Y | AP7: Y | AQ7: ，共3期 | AR7: Y | AS7: 60000 | AY7: 以下再為您說明商品重要條款內容， | AZ7: 有關【投資標的轉換】 要保人得申請將投資於某一「投資標的」的款項轉移至其他「投資標的」。 | BA7: 有關【投資標的之關閉與終止】 一、保誠人壽得主動終止某一「投資標的」，且應於終止日前三十日通知要保人。 二、保誠人壽得經所有持有「投資標的價值」之要保人同意後，主動關閉該「投資標的」，並於關閉日前三十日通知要保人。 三、保誠人壽於接獲發行或經理機構之「投資標的」終止或關閉通知時，應於五日內在保誠人壽網站公布，並於三十日內通知要保人。 | BB7: 有關【保險事故的通知與保險金的申請時間】 要保人或受益人應於知悉保險事故後十日內通知保誠人壽，並於通知後儘速檢具所需文件申請給付保險金。 | BC7: 有關【除外責任】 因除外責任所導致的保險事故發生，保誠人壽不負給付各項保險金之責任。 本商品除外責任包括，要、被保險人故意行為或被保險人犯罪行為等。完整之除外責任請詳保單條款。 | BD7: 有關【保險單借款】 本契約有效期間內，要保人得申請保險單借款，其可借金額上限詳保單條款約定。 | BE7: 有關【寬限期間及契約效力】 「保單帳戶價值」扣除保險單借款本息後不足以支付當月「保險成本」及「保單管理費」時，將催告要保人交付「目標保險費」，如要保人無欠繳之「目標保險費」，將催告要保人交付「超額保險費」， 自催告到達翌日起三十日內為寬限期間，逾寬限期間仍未交付者，將停止效力。要保人得在停效日起二年內，申請復效。 | BQ7: 【銷售人員】： 以下再為您說明商品重要條款內容， | BV7: 有關【除外責任】 因除外責任所導致的保險事故發生，保誠人壽不負給付各項保險金之責任。 本商品除外責任包括，要、被保險人故意行為或被保險人犯罪行為等。完整之除外責任請詳保單條款。 | BW7: 有關【保險單借款】 本契約有效期間內，要保人得申請保險單借款，其可借金額上限詳保單條款約定。 | BX7: 有關【寬限期間及契約效力】 「保單帳戶價值」扣除保險單借款本息後不足以支付當月「保險成本」及「保單管理費」時，將催告要保人交付「目標保險費」，如要保人無欠繳之「目標保險費」，將催告要保人交付「超額保險費」， 自催告到達翌日起三十日內為寬限期間，逾寬限期間仍未交付者，將停止效力。要保人得在停效日起二年內，申請復效。 | BY7: 有關【保險給付】 包含祝壽保險金、身故保險金或喪葬費用保險金 、完全失能保險金。 | CC7: 以上說明的詳細內容都載明於保單條款中，請問您清楚嗎？【請客戶回答：清楚/不清楚】 | CD7: 本商品為投資型保險，非屬存款，故不受存款保險之保障。 本商品不保證保本、不保證獲利，而且解約金有可能小於已繳之保險費，請問您清楚嗎？ 人壽保險的死亡給付於被保險人死亡後給付於指定受益人者，依保險法相關規定不能作為被保險人遺產，若有涉及規避遺產稅等稅捐時，稽徵機關可以依據有關稅法或實質課稅原則相關規定辦理。【請客戶回答：清楚/不清楚】
A8: 6 | B8: 保誠人壽新三五歐霸外幣變額壽險 | I8: 本商品保費費用為0 | J8: 本商品每個月會從保單帳戶價值中收取一筆保單管理費。 | K8: 本商品在正常繳費的情形下，如在前5個保單年度中辦理解約或部分提領，需要扣除保單帳戶價值或部分提領金額一定比率的解約費用或部分提領費用，例如：只繳一期保險費的解約費用率為25%；解約費用率是依實際繳交保費期數為計算基準，所以如果沒有正常繳費，可能造成超過5個保單年度辦理解約或部分提領，仍需支付解約費用或部分提領費用；故投保後解約或不繼續繳費可能對要保人造成不利影響。 | M8: .「投資相關費用」：如申購投資標的手續費、投資標的經理費(管理費)、帳戶管理費、轉換費用等費用。 | N8: .「其它費用」：本商品相關款項之往來，若採用保誠人壽指定銀行之外幣帳戶，無需負擔所產生之匯款相關費用，但若非採用保誠人壽指定銀行之外幣帳戶者，則會收取匯款費用。 | P8: 0 | R8: 本商品保費費用為0 | T8: 1 | U8: 1 | V8: 保單帳戶價值 | W8: 1.「保單管理費」：本商品每個月會從保單帳戶價值中收取一筆保單管理費。 | X8: 1 | Y8: 2 | Z8: 本商品在正常繳費的情形下，如在前5個保單年度中辦理解約或部分提領，需要扣除保單帳戶價值或部分提領金額一定比率的解約費用或部分提領費用，例如：只繳一期保險費的解約費用率為25%；解約費用率是依實際繳交保費期數為計算基準，所以如果沒有正常繳費，可能造成超過5個保單年度辦理解約或部分提領，仍需支付解約費用或部分提領費用；故投保後解約或不繼續繳費可能對要保人造成不利影響。 | AA8: 2.「解約費用/部分提領費用」：本商品在正常繳費的情形下，如在前5個保單年度中辦理解約或部分提領，需要扣除保單帳戶價值或部分提領金額一定比率的解約費用或部分提領費用，例如：只繳一期保險費的解約費用率為25%；解約費用率是依實際繳交保費期數為計算基準，所以如果沒有正常繳費，可能造成超過5個保單年度辦理解約或部分提領，仍需支付解約費用或部分提領費用；故投保後解約或不繼續繳費可能對要保人造成不利影響。 | AB8: 1 | AC8: 3 | AE8: 每個月 | AF8: 1 | AG8: 4 | AH8: 4.「投資相關費用」：如申購投資標的手續費、投資標的經理費(管理費)、帳戶管理費、轉換費用等費用。 | AI8: 0 | AK8: =IF(AI8=0,""," "&AJ8&N8) ->  | AL8: 0 | AO8: Y | AP8: Y | AQ8: ，共3期 | AR8: Y | AS8: 8500 | AY8: 以下再為您說明商品重要條款內容， | AZ8: 有關【投資標的轉換】 要保人得申請將投資於某一「投資標的」的款項轉移至其他「投資標的」。 | BA8: 有關【投資標的之關閉與終止】 一、保誠人壽得主動終止某一「投資標的」，且應於終止日前三十日通知要保人。 二、保誠人壽得經所有持有「投資標的價值」之要保人同意後，主動關閉該「投資標的」，並於關閉日前三十日通知要保人。 三、保誠人壽於接獲發行或經理機構之「投資標的」終止或關閉通知時，應於五日內在保誠人壽網站公布，並於三十日內通知要保人。 | BB8: 有關【保險事故的通知與保險金的申請時間】 要保人或受益人應於知悉保險事故後十日內通知保誠人壽，並於通知後儘速檢具所需文件申請給付保險金。 | BC8: 有關【除外責任】 因除外責任所導致的保險事故發生，保誠人壽不負給付各項保險金之責任。 本商品除外責任包括，要、被保險人故意行為或被保險人犯罪行為等。完整之除外責任請詳保單條款。 | BD8: 有關【保險單借款】 本契約有效期間內，要保人得申請保險單借款，其可借金額上限詳保單條款約定。 | BE8: 有關【寬限期間及契約效力】 「保單帳戶價值」扣除保險單借款本息後不足以支付當月「保險成本」及「保單管理費」時，將催告要保人交付「目標保險費」，如要保人無欠繳之「目標保險費」，將催告要保人交付「超額保險費」， 自催告到達翌日起三十日內為寬限期間，逾寬限期間仍未交付者，將停止效力。要保人得在停效日起二年內，申請復效。 | BQ8: 【銷售人員】： 以下再為您說明商品重要條款內容， | BV8: 有關【除外責任】 因除外責任所導致的保險事故發生，保誠人壽不負給付各項保險金之責任。 本商品除外責任包括，要、被保險人故意行為或被保險人犯罪行為等。完整之除外責任請詳保單條款。 | BW8: 有關【保險單借款】 本契約有效期間內，要保人得申請保險單借款，其可借金額上限詳保單條款約定。 | BX8: 有關【寬限期間及契約效力】 「保單帳戶價值」扣除保險單借款本息後不足以支付當月「保險成本」及「保單管理費」時，將催告要保人交付「目標保險費」，如要保人無欠繳之「目標保險費」，將催告要保人交付「超額保險費」， 自催告到達翌日起三十日內為寬限期間，逾寬限期間仍未交付者，將停止效力。要保人得在停效日起二年內，申請復效。 | BY8: 有關【保險給付】 包含祝壽保險金、身故保險金或喪葬費用保險金 、完全失能保險金。 | CC8: 以上說明的詳細內容都載明於保單條款中，請問您清楚嗎？【請客戶回答：清楚/不清楚】 | CD8: 本商品為投資型保險，非屬存款，故不受存款保險之保障。 本商品不保證保本、不保證獲利，而且解約金有可能小於已繳之保險費，請問您清楚嗎？ 人壽保險的死亡給付於被保險人死亡後給付於指定受益人者，依保險法相關規定不能作為被保險人遺產，若有涉及規避遺產稅等稅捐時，稽徵機關可以依據有關稅法或實質課稅原則相關規定辦理。【請客戶回答：清楚/不清楚】
A9: 7 | B9: 保誠人壽新美澳雙享外幣變額壽險 | C9: 給付項目 ：祝壽保險金、身故保險金或喪葬費用保險金、完全殘廢保險金、保單帳戶價值之返還。 ◆「 保險成本 」：指提供被保險人契約身故、完全殘廢保障所需的成本。由保誠人壽每月根據訂立契約時被保險人的性別、體況、計算「保險成本」當時之保險 年齡及淨危險保額，以每單位保險成本計算，並依條款約定時點扣除，原則上保險成本將隨年齡的增長而逐年增加。惟保險成本未來可能有變動，保誠人壽保 留依實際經驗發生率而調整「保險成本」之權利。「淨危險保額」指基本保額扣除保單帳戶價值之餘額。淨危險保額為負值時，則以零計算，保誠人壽不收取 保險成本。 ◆「 保單管理費 」：於生效日至第119「保單週月日」以目標保費保單帳戶價值之0.15%計算。超額保費保單帳戶不收取保單管理費。 ◆「 年度末保單帳戶價值 」 及 「 年度末壽險保障 」：其數值皆為扣除保險成本及保單管理費後，當年度末增值後之數值。 ◆「 年度末解約金 」：為「年度末保單帳戶價值」扣除解約費用後之數值。（詳細說明請詳保單條款。） ◆「 解約費用 」 或 「 部分提領費用 」：要保人申請辦理契約終止或部分提領時，保誠人壽依目標保費保單帳戶價值或部分提領金額扣除「免費部分提領金額」後 ，乘以申請時之解約費用率，但不得為負值(解約費用年度第1至第6年分別收取目標保費保單帳戶價值15%、15%、15%、10%、5%、5%之費用，第7解約費用年度 (含)以後為0%)。本建議書之「年度末解約金」已扣除解約費用，但未考慮「免費部分提領金額」。（詳細說明請詳保單條款。） 壽險保障金額及保單帳戶價值試算表 (非保證給付項目) (單位:澳幣 | D9: ="再次向您說明本商品收取的費用： "&S9&W9&AA9&AD9&AH9&AK9&AN9&錄音序號_確認語_2 ->  | H9: 1.保費費用：0 2.保單管理費：於生效日至第119「保單週月日」以目標保費保單帳戶價值之0.15%計算。超額保費保單帳戶不收取保單管理費。 3.解約費用率： 第1至第6年分別收取目標保費保單帳戶價值15%、15%、15%、10%、5%、5%之費用，第7解約費用年度(含)以後為0%) | I9: 本商品保費費用為0 | J9: 本商品自契約生效日至第一百一十九「保單週月日」，每個月會從保單帳戶價值中收取一筆保單管理費。 | K9: 本商品在正常繳費的情形下，如在前6個保單年度中辦理解約或部分提領，需要扣除保單帳戶價值或部分提領金額一定比率的解約費用或部分提領費用，例如：只繳一期保險費的解約費用率為15%；解約費用率是依實際繳交保費期數為計算基準，所以如果沒有正常繳費，可能造成超過6個保單年度辦理解約或部分提領，仍需支付解約費用或部分提領費用；所以投保後解約或不繼續繳費可能對要保人造成不利影響。 | M9: .「投資相關費用」：如申購投資標的手續費、投資標的經理費(管理費)、帳戶管理費、轉換費用等費用。 | N9: .「其它費用」：本商品相關款項之往來，若採用保誠人壽指定銀行之外幣帳戶，無需負擔所產生之匯款相關費用，但若非採用保誠人壽指定銀行之外幣帳戶者，則會收取匯款費用。 | P9: 0 | R9: 本商品保費費用為0 | T9: 1 | U9: 1 | V9: 保單帳戶價值 | W9: 1.「保單管理費」：本商品自契約生效日至第一百一十九「保單週月日」，每個月會從保單帳戶價值中收取一筆保單管理費。 | X9: 1 | Y9: 2 | Z9: 本商品在正常繳費的情形下，如在前6個保單年度中辦理解約或部分提領，需要扣除保單帳戶價值或部分提領金額一定比率的解約費用或部分提領費用，例如：只繳一期保險費的解約費用率為15%；解約費用率是依實際繳交保費期數為計算基準，所以如果沒有正常繳費，可能造成超過6個保單年度辦理解約或部分提領，仍需支付解約費用或部分提領費用；所以投保後解約或不繼續繳費可能對要保人造成不利影響。 | AA9: 2.「解約費用/部分提領費用」：本商品在正常繳費的情形下，如在前6個保單年度中辦理解約或部分提領，需要扣除保單帳戶價值或部分提領金額一定比率的解約費用或部分提領費用，例如：只繳一期保險費的解約費用率為15%；解約費用率是依實際繳交保費期數為計算基準，所以如果沒有正常繳費，可能造成超過6個保單年度辦理解約或部分提領，仍需支付解約費用或部分提領費用；所以投保後解約或不繼續繳費可能對要保人造成不利影響。 | AB9: 1 | AC9: 3 | AE9: 每個月 | AF9: 1 | AG9: 4 | AH9: 4.「投資相關費用」：如申購投資標的手續費、投資標的經理費(管理費)、帳戶管理費、轉換費用等費用。 | AI9: 0 | AK9: =IF(AI9=0,""," "&AJ9&N9) ->  | AL9: 0 | AO9: Y | AP9: Y | AQ9: ，共3期 | AR9: Y | AS9: 1萬美元 1.3萬澳幣 13萬南非幣 | AY9: 以下再為您說明商品重要條款內容， | AZ9: 有關【投資標的轉換】 要保人得申請將投資於某一「投資標的」的款項轉移至其他「投資標的」。 | BA9: 有關【投資標的之關閉與終止】 一、保誠人壽得主動終止某一「投資標的」，且應於終止日前三十日通知要保人。 二、保誠人壽得經所有持有「投資標的價值」之要保人同意後，主動關閉該「投資標的」，並於關閉日前三十日通知要保人。 三、保誠人壽於接獲發行或經理機構之「投資標的」終止或關閉通知時，應於五日內在保誠人壽網站公布，並於三十日內通知要保人。 | BB9: 有關【保險事故的通知與保險金的申請時間】 要保人或受益人應於知悉保險事故後十日內通知保誠人壽，並於通知後儘速檢具所需文件申請給付保險金。 | BC9: 有關【除外責任】 因除外責任所導致的保險事故發生，保誠人壽不負給付各項保險金之責任。 本商品除外責任包括，要、被保險人故意行為或被保險人犯罪行為等。完整之除外責任請詳保單條款。 | BD9: 有關【保險單借款】 本契約有效期間內，要保人得申請保險單借款，其可借金額上限詳保單條款約定。 | BE9: 有關【寬限期間及契約效力】 「保單帳戶價值」扣除保險單借款本息後不足以支付當月「保險成本」及「保單管理費」時，將催告要保人交付「目標保險費」，如要保人無欠繳之「目標保險費」，將催告要保人交付「超額保險費」， 自催告到達翌日起三十日內為寬限期間，逾寬限期間仍未交付者，將停止效力。要保人得在停效日起二年內，申請復效。 | BQ9: 【銷售人員】： 以下再為您說明商品重要條款內容， | BV9: 有關【除外責任】 因除外責任所導致的保險事故發生，保誠人壽不負給付各項保險金之責任。 本商品除外責任包括，要、被保險人故意行為或被保險人犯罪行為等。完整之除外責任請詳保單條款。 | BW9: 有關【保險單借款】 本契約有效期間內，要保人得申請保險單借款，其可借金額上限詳保單條款約定。 | BX9: 有關【寬限期間及契約效力】 「保單帳戶價值」扣除保險單借款本息後不足以支付當月「保險成本」及「保單管理費」時，將催告要保人交付「目標保險費」，如要保人無欠繳之「目標保險費」，將催告要保人交付「超額保險費」， 自催告到達翌日起三十日內為寬限期間，逾寬限期間仍未交付者，將停止效力。要保人得在停效日起二年內，申請復效。 | BY9: 有關【保險給付】 包含祝壽保險金、身故保險金或喪葬費用保險金 、完全失能保險金。 | CC9: 以上說明的詳細內容都載明於保單條款中，請問您清楚嗎？【請客戶回答：清楚/不清楚】 | CD9: 本商品為投資型保險，非屬存款，故不受存款保險之保障。 本商品不保證保本、不保證獲利，而且解約金有可能小於已繳之保險費，請問您清楚嗎？ 人壽保險的死亡給付於被保險人死亡後給付於指定受益人者，依保險法相關規定不能作為被保險人遺產，若有涉及規避遺產稅等稅捐時，稽徵機關可以依據有關稅法或實質課稅原則相關規定辦理。【請客戶回答：清楚/不清楚】
A10: 8 | B10: 保誠人壽新智富人生變額壽險 | C10: 給付項目 ：祝壽保險金、身故保險金或喪葬費用保險金、完全殘廢保險金。 ◆「 保險成本 」：指提供被保險人契約身故、完全殘廢保障所需的成本。由保誠人壽每月根據訂立契約時被保險人的性別、體況、計算「保險成本」當時之保險 年齡及淨危險保額，以每單位保險成本計算，並依條款約定時點扣除，原則上保險成本將隨年齡的增長而逐年增加。惟保險成本未來可能有變動，保誠人壽保 留依實際經驗發生率而調整「保險成本」之權利。「淨危險保額」指基本保額扣除保單帳戶價值之餘額。淨危險保額為負值時，則以零計算，保誠人壽不收取 保險成本。 ◆「 保單管理費 」：於第一「保單週月日」至第六十「保單週月日」，以目標保費保單帳戶價值的0.12%計算，第六十一「保單週月日」(含)之後不再計算。 ◆「 年度末保單帳戶價值 」 及 「 年度末壽險保障 」：其數值為每月扣除保險成本及保單管理費，並考量投資報酬率後之數值。 ◆「 年度末解約金 」：為「年度末保單帳戶價值」扣除解約費用後之數值。（詳細說明請詳保單條款。） ◆「 解約費用 」 或 「 部分提領費用 」：目標保費保單帳戶之解約/部分提領費用，於第一至第三保單年度分別為目標保費保單帳戶價值／部分提領金額的8%、6% 、3%，第四保單年度後為零。 | H10: 1.保費費用：0 2.保單管理費：前六十期為帳戶價值0.12%，第六十一期之後不再計算 3.解約費用率：第一至第三保單年度分別為8%、6%、3%，第四保單年度後為零 | I10: 本商品保費費用為0 | J10: 本商品自第一「保單週月日」至第六十「保單週月日」，每個月會從保單帳戶價值中收取一筆保單管理費。 | K10: 本商品如在前3個保單年度中辦理解約或部分提領，需要扣除保單帳戶價值或部分提領金額一定比率的解約費用或部分提領費用，例如：第1保單年度的解約費用率為8%；解約費用率是依實際繳交保費期數為計算基準，所以如果沒有正常繳費，可能造成超過3個保單年度辦理解約或部分提領，仍需支付解約費用或部分提領費用；所以投保後提前解約或部分提領可能對要保人造成不利影響。 | M10: .「投資相關費用」：如申購投資標的手續費、投資標的經理費(管理費)、帳戶管理費、轉換費用等費用。 | P10: 0 | R10: 本商品保費費用為0 | T10: 1 | U10: 1 | V10: 保單帳戶價值 | W10: 1.「保單管理費」：本商品自第一「保單週月日」至第六十「保單週月日」，每個月會從保單帳戶價值中收取一筆保單管理費。 | X10: 1 | Y10: 2 | Z10: 本商品如在前3個保單年度中辦理解約或部分提領，需要扣除保單帳戶價值或部分提領金額一定比率的解約費用或部分提領費用，例如：第1保單年度的解約費用率為8%；解約費用率是依實際繳交保費期數為計算基準，所以如果沒有正常繳費，可能造成超過3個保單年度辦理解約或部分提領，仍需支付解約費用或部分提領費用；所以投保後提前解約或部分提領可能對要保人造成不利影響。 | AA10: 2.「解約費用/部分提領費用」：本商品如在前3個保單年度中辦理解約或部分提領，需要扣除保單帳戶價值或部分提領金額一定比率的解約費用或部分提領費用，例如：第1保單年度的解約費用率為8%；解約費用率是依實際繳交保費期數為計算基準，所以如果沒有正常繳費，可能造成超過3個保單年度辦理解約或部分提領，仍需支付解約費用或部分提領費用；所以投保後提前解約或部分提領可能對要保人造成不利影響。 | AB10: 1 | AC10: 3 | AE10: 每個月 | AF10: 1 | AG10: 4 | AH10: 4.「投資相關費用」：如申購投資標的手續費、投資標的經理費(管理費)、帳戶管理費、轉換費用等費用。 | AI10: 0 | AL10: 0 | AO10: Y | AP10: N | AR10: N | AY10: 以下再為您說明商品重要條款內容， | AZ10: 有關【投資標的轉換】 要保人得申請將投資於某一「投資標的」的款項轉移至其他「投資標的」。 | BA10: 有關【投資標的之關閉與終止】 一、保誠人壽得主動終止某一「投資標的」，且應於終止日前三十日通知要保人。 二、保誠人壽得經所有持有「投資標的價值」之要保人同意後，主動關閉該「投資標的」，並於關閉日前三十日通知要保人。 三、保誠人壽於接獲發行或經理機構之「投資標的」終止或關閉通知時，應於五日內在保誠人壽網站公布，並於三十日內通知要保人。 | BB10: 有關【保險事故的通知與保險金的申請時間】 要保人或受益人應於知悉保險事故後十日內通知保誠人壽，並於通知後儘速檢具所需文件申請給付保險金。 | BC10: 有關【除外責任】 因除外責任所導致的保險事故發生，保誠人壽不負給付各項保險金之責任。 本商品除外責任包括，要、被保險人故意行為或被保險人犯罪行為等。完整之除外責任請詳保單條款。 | BD10: 有關【保險單借款】 本契約有效期間內，要保人得申請保險單借款，其可借金額上限詳保單條款約定。 | BE10: 有關【寬限期間及契約效力】 「保單帳戶價值」扣除保險單借款本息後不足以支付當月「保險成本」及「保單管理費」時，將催告要保人交付「超額保險費」， 自催告到達翌日起三十日內為寬限期間，逾寬限期間仍未交付者，將停止效力。要保人得在停效日起二年內，申請復效。 | BQ10: 【銷售人員】： 以下再為您說明商品重要條款內容， | BV10: 有關【除外責任】 因除外責任所導致的保險事故發生，保誠人壽不負給付各項保險金之責任。 本商品除外責任包括，要、被保險人故意行為或被保險人犯罪行為等。完整之除外責任請詳保單條款。 | BW10: 有關【保險單借款】 本契約有效期間內，要保人得申請保險單借款，其可借金額上限詳保單條款約定。 | BX10: 有關【寬限期間及契約效力】 「保單帳戶價值」扣除保險單借款本息後不足以支付當月「保險成本」及「保單管理費」時，將催告要保人交付「超額保險費」， 自催告到達翌日起三十日內為寬限期間，逾寬限期間仍未交付者，將停止效力。要保人得在停效日起二年內，申請復效。 | BY10: 有關【保險給付】 包含祝壽保險金、身故保險金或喪葬費用保險金 、完全失能保險金。 | CC10: 以上說明的詳細內容都載明於保單條款中，請問您清楚嗎？【請客戶回答：清楚/不清楚】 | CD10: 本商品為投資型保險，非屬存款，故不受存款保險之保障。 本商品不保證保本、不保證獲利，而且解約金有可能小於已繳之保險費，請問您清楚嗎？ 人壽保險的死亡給付於被保險人死亡後給付於指定受益人者，依保險法相關規定不能作為被保險人遺產，若有涉及規避遺產稅等稅捐時，稽徵機關可以依據有關稅法或實質課稅原則相關規定辦理。【請客戶回答：清楚/不清楚】
A11: 9 | B11: 保誠人壽新卓越人生外幣變額壽險 | I11: 本商品保費費用為0 | J11: 本商品自第一「保單週月日」至第六十「保單週月日」，每個月會從保單帳戶價值中收取一筆保單管理費。 | K11: 本商品如在前 3 個保單年度中辦理解約或部分提領，需要扣除保單帳戶價值或部分提領金額一定比率的解約費用或部分提領費用，例如：第 1 保單年度的解約費用率為8%；解約費用率是依實際繳交保費期數為計算基準，所以如果沒有正常繳費，可能造成超過3個保單年度辦理解約或部分提領，仍需支付解約費用或部分提領費用；所以投保後提前解約或部分提領可能對要保人造成不利影響。 | M11: .「投資相關費用」：如申購投資標的手續費、投資標的經理費(管理費)、帳戶管理費、轉換費用等費用。 | N11: .「其它費用」：本商品相關款項之往來，若採用保誠人壽指定銀行之外幣帳戶，無需負擔所產生之匯款相關費用，但若非採用保誠人壽指定銀行之外幣帳戶者，則會收取匯款費用。 | P11: 0 | R11: 本商品保費費用為0 | T11: 1 | U11: 1 | V11: 保單帳戶價值 | W11: 1.「保單管理費」：本商品自第一「保單週月日」至第六十「保單週月日」，每個月會從保單帳戶價值中收取一筆保單管理費。 | X11: 1 | Y11: 2 | Z11: 本商品如在前 3 個保單年度中辦理解約或部分提領，需要扣除保單帳戶價值或部分提領金額一定比率的解約費用或部分提領費用，例如：第 1 保單年度的解約費用率為8%；解約費用率是依實際繳交保費期數為計算基準，所以如果沒有正常繳費，可能造成超過3個保單年度辦理解約或部分提領，仍需支付解約費用或部分提領費用；所以投保後提前解約或部分提領可能對要保人造成不利影響。 | AA11: 2.「解約費用/部分提領費用」：本商品如在前 3 個保單年度中辦理解約或部分提領，需要扣除保單帳戶價值或部分提領金額一定比率的解約費用或部分提領費用，例如：第 1 保單年度的解約費用率為8%；解約費用率是依實際繳交保費期數為計算基準，所以如果沒有正常繳費，可能造成超過3個保單年度辦理解約或部分提領，仍需支付解約費用或部分提領費用；所以投保後提前解約或部分提領可能對要保人造成不利影響。 | AB11: 1 | AC11: 3 | AE11: 每個月 | AF11: 1 | AG11: 4 | AH11: 4.「投資相關費用」：如申購投資標的手續費、投資標的經理費(管理費)、帳戶管理費、轉換費用等費用。 | AI11: 0 | AK11: =IF(AI11=0,""," "&AJ11&N11) ->  | AL11: 0 | AO11: Y | AP11: N | AR11: N | AY11: 以下再為您說明商品重要條款內容， | AZ11: 有關【投資標的轉換】 要保人得申請將投資於某一「投資標的」的款項轉移至其他「投資標的」。 | BA11: 有關【投資標的之關閉與終止】 一、保誠人壽得主動終止某一「投資標的」，且應於終止日前三十日通知要保人。 二、保誠人壽得經所有持有「投資標的價值」之要保人同意後，主動關閉該「投資標的」，並於關閉日前三十日通知要保人。 三、保誠人壽於接獲發行或經理機構之「投資標的」終止或關閉通知時，應於五日內在保誠人壽網站公布，並於三十日內通知要保人。 | BB11: 有關【保險事故的通知與保險金的申請時間】 要保人或受益人應於知悉保險事故後十日內通知保誠人壽，並於通知後儘速檢具所需文件申請給付保險金。 | BC11: 有關【除外責任】 因除外責任所導致的保險事故發生，保誠人壽不負給付各項保險金之責任。 本商品除外責任包括，要、被保險人故意行為或被保險人犯罪行為等。完整之除外責任請詳保單條款。 | BD11: 有關【保險單借款】 本契約有效期間內，要保人得申請保險單借款，其可借金額上限詳保單條款約定。 | BE11: 有關【寬限期間及契約效力】 「保單帳戶價值」扣除保險單借款本息後不足以支付當月「保險成本」及「保單管理費」時，將催告要保人交付「超額保險費」， 自催告到達翌日起三十日內為寬限期間，逾寬限期間仍未交付者，將停止效力。要保人得在停效日起二年內，申請復效。 | BQ11: 【銷售人員】： 以下再為您說明商品重要條款內容， | BV11: 有關【除外責任】 因除外責任所導致的保險事故發生，保誠人壽不負給付各項保險金之責任。 本商品除外責任包括，要、被保險人故意行為或被保險人犯罪行為等。完整之除外責任請詳保單條款。 | BW11: 有關【保險單借款】 本契約有效期間內，要保人得申請保險單借款，其可借金額上限詳保單條款約定。 | BX11: 有關【寬限期間及契約效力】 「保單帳戶價值」扣除保險單借款本息後不足以支付當月「保險成本」及「保單管理費」時，將催告要保人交付「超額保險費」， 自催告到達翌日起三十日內為寬限期間，逾寬限期間仍未交付者，將停止效力。要保人得在停效日起二年內，申請復效。 | BY11: 有關【保險給付】 包含祝壽保險金、身故保險金或喪葬費用保險金 、完全失能保險金。 | CC11: 以上說明的詳細內容都載明於保單條款中，請問您清楚嗎？【請客戶回答：清楚/不清楚】 | CD11: 本商品為投資型保險，非屬存款，故不受存款保險之保障。 本商品不保證保本、不保證獲利，而且解約金有可能小於已繳之保險費，請問您清楚嗎？ 人壽保險的死亡給付於被保險人死亡後給付於指定受益人者，依保險法相關規定不能作為被保險人遺產，若有涉及規避遺產稅等稅捐時，稽徵機關可以依據有關稅法或實質課稅原則相關規定辦理。【請客戶回答：清楚/不清楚】
A12: 10 | B12: 保誠人壽誠億滿滿變額壽險 | I12: 本商品保費費用為0 | J12: 本商品每個月會從保單帳戶價值中收取一筆保單管理費。 | K12: 目標保費保單帳戶之解約費用或部分提領費用，於第1至第5保單年度分別為目標保費保單帳戶價值或部分提領金額的9.3%、8%、6%、4%、2%，第6保單年度後為0%。 | M12: .「投資相關費用」：如申購投資標的手續費、投資標的經理費(管理費)、帳戶管理費、轉換費用等費用。 | P12: 0 | R12: 本商品保費費用為0 | T12: 1 | U12: 1 | V12: 保單帳戶價值 | W12: 1.「保單管理費」：本商品每個月會從保單帳戶價值中收取一筆保單管理費。 | X12: 1 | Y12: 2 | Z12: 目標保費保單帳戶之解約費用或部分提領費用，於第1至第5保單年度分別為目標保費保單帳戶價值或部分提領金額的9.3%、8%、6%、4%、2%，第6保單年度後為0%。 | AA12: 2.「解約費用/部分提領費用」：目標保費保單帳戶之解約費用或部分提領費用，於第1至第5保單年度分別為目標保費保單帳戶價值或部分提領金額的9.3%、8%、6%、4%、2%，第6保單年度後為0%。 | AB12: 1 | AC12: 3 | AE12: 每個月 | AF12: 1 | AG12: 4 | AH12: 4.「投資相關費用」：如申購投資標的手續費、投資標的經理費(管理費)、帳戶管理費、轉換費用等費用。 | AI12: 0 | AL12: 0 | AO12: Y | AP12: N | AR12: N | AY12: 以下再為您說明商品重要條款內容， | AZ12: 有關【投資標的轉換】 要保人得申請將投資於某一「投資標的」的款項轉移至其他「投資標的」。 | BA12: 有關【投資標的之關閉與終止】 一、保誠人壽得主動終止某一「投資標的」，且應於終止日前三十日通知要保人。 二、保誠人壽得經所有持有「投資標的價值」之要保人同意後，主動關閉該「投資標的」，並於關閉日前三十日通知要保人。 三、保誠人壽於接獲發行或經理機構之「投資標的」終止或關閉通知時，應於五日內在保誠人壽網站公布，並於三十日內通知要保人。 | BB12: 有關【保險事故的通知與保險金的申請時間】 要保人或受益人應於知悉保險事故後十日內通知保誠人壽，並於通知後儘速檢具所需文件申請給付保險金。 | BC12: 有關【除外責任】 因除外責任所導致的保險事故發生，保誠人壽不負給付各項保險金之責任。 本商品除外責任包括，要、被保險人故意行為或被保險人犯罪行為等。完整之除外責任請詳保單條款。 | BD12: 有關【保險單借款】 本契約有效期間內，要保人得申請保險單借款，其可借金額上限詳保單條款約定。 | BE12: 有關【寬限期間及契約效力】 「保單帳戶價值」扣除保險單借款本息後不足以支付當月「保險成本」及「保單管理費」時，將催告要保人交付「超額保險費」， 自催告到達翌日起三十日內為寬限期間，逾寬限期間仍未交付者，將停止效力。要保人得在停效日起二年內，申請復效。 | BQ12: 【銷售人員】： 以下再為您說明商品重要條款內容， | BV12: 有關【除外責任】 因除外責任所導致的保險事故發生，保誠人壽不負給付各項保險金之責任。 本商品除外責任包括，要、被保險人故意行為或被保險人犯罪行為等。完整之除外責任請詳保單條款。 | BW12: 有關【保險單借款】 本契約有效期間內，要保人得申請保險單借款，可借金額上限詳保單條款約定。 | BX12: 有關【寬限期間及契約效力】 「保單帳戶價值」扣除保險單借款本息後不足以支付當月「保險成本」及「保單管理費」時，將催告要保人交付「超額保險費」，逾寬限期間仍未交付者，將停止效力。 | BY12: 有關【保險給付】 包含祝壽保險金、身故保險金或喪葬費用保險金 、完全失能保險金。 | CC12: 以上說明的詳細內容都載明於保單條款中，請問您清楚嗎？【請客戶回答：清楚/不清楚】 | CD12: 本商品為投資型保險，非屬存款，故不受存款保險之保障。 本商品不保證保本、不保證獲利，而且解約金有可能小於已繳之保險費，請問您清楚嗎？ 人壽保險的死亡給付於被保險人死亡後給付於指定受益人者，依保險法相關規定不能作為被保險人遺產，若有涉及規避遺產稅等稅捐時，稽徵機關可以依據有關稅法或實質課稅原則相關規定辦理。【請客戶回答：清楚/不清楚】
A13: 11 | B13: 保誠人壽誠億滿滿外幣變額壽險 | I13: 本商品保費費用為0 | J13: 本商品每個月會從保單帳戶價值中收取一筆保單管理費。 | K13: 目標保費保單帳戶之解約費用或部分提領費用，於第1至第5保單年度分別為目標保費保單帳戶價值或部分提領金額的9.3%、8%、6%、4%、2%，第6保單年度後為0%。 | M13: .「投資相關費用」：如申購投資標的手續費、投資標的經理費(管理費)、帳戶管理費、轉換費用等費用。 | N13: .「其它費用」：本商品相關款項之往來，若採用保誠人壽指定銀行之外幣帳戶，無需負擔所產生之匯款相關費用，但若非採用保誠人壽指定銀行之外幣帳戶者，則會收取匯款費用。 | P13: 0 | R13: 本商品保費費用為0 | T13: 1 | U13: 1 | V13: 保單帳戶價值 | W13: 1.「保單管理費」：本商品每個月會從保單帳戶價值中收取一筆保單管理費。 | X13: 1 | Y13: 2 | Z13: 目標保費保單帳戶之解約費用或部分提領費用，於第1至第5保單年度分別為目標保費保單帳戶價值或部分提領金額的9.3%、8%、6%、4%、2%，第6保單年度後為0%。 | AA13: 2.「解約費用/部分提領費用」：目標保費保單帳戶之解約費用或部分提領費用，於第1至第5保單年度分別為目標保費保單帳戶價值或部分提領金額的9.3%、8%、6%、4%、2%，第6保單年度後為0%。 | AB13: 1 | AC13: 3 | AE13: 每個月 | AF13: 1 | AG13: 4 | AH13: 4.「投資相關費用」：如申購投資標的手續費、投資標的經理費(管理費)、帳戶管理費、轉換費用等費用。 | AI13: 0 | AK13: =IF(AI13=0,""," "&AJ13&N13) ->  | AL13: 0 | AO13: Y | AP13: N | AR13: N | AY13: 以下再為您說明商品重要條款內容， | AZ13: 有關【投資標的轉換】 要保人得申請將投資於某一「投資標的」的款項轉移至其他「投資標的」。 | BA13: 有關【投資標的之關閉與終止】 一、保誠人壽得主動終止某一「投資標的」，且應於終止日前三十日通知要保人。 二、保誠人壽得經所有持有「投資標的價值」之要保人同意後，主動關閉該「投資標的」，並於關閉日前三十日通知要保人。 三、保誠人壽於接獲發行或經理機構之「投資標的」終止或關閉通知時，應於五日內在保誠人壽網站公布，並於三十日內通知要保人。 | BB13: 有關【保險事故的通知與保險金的申請時間】 要保人或受益人應於知悉保險事故後十日內通知保誠人壽，並於通知後儘速檢具所需文件申請給付保險金。 | BC13: 有關【除外責任】 因除外責任所導致的保險事故發生，保誠人壽不負給付各項保險金之責任。 本商品除外責任包括，要、被保險人故意行為或被保險人犯罪行為等。完整之除外責任請詳保單條款。 | BD13: 有關【保險單借款】 本契約有效期間內，要保人得申請保險單借款，其可借金額上限詳保單條款約定。 | BE13: 有關【寬限期間及契約效力】 「保單帳戶價值」扣除保險單借款本息後不足以支付當月「保險成本」及「保單管理費」時，將催告要保人交付「超額保險費」， 自催告到達翌日起三十日內為寬限期間，逾寬限期間仍未交付者，將停止效力。要保人得在停效日起二年內，申請復效。 | BQ13: 【銷售人員】： 以下再為您說明商品重要條款內容， | BV13: 有關【除外責任】 因除外責任所導致的保險事故發生，保誠人壽不負給付各項保險金之責任。 本商品除外責任包括，要、被保險人故意行為或被保險人犯罪行為等。完整之除外責任請詳保單條款。 | BW13: 有關【保險單借款】 本契約有效期間內，要保人得申請保險單借款，可借金額上限詳保單條款約定。 | BX13: 有關【寬限期間及契約效力】 「保單帳戶價值」扣除保險單借款本息後不足以支付當月「保險成本」及「保單管理費」時，將催告要保人交付「超額保險費」，逾寬限期間仍未交付者，將停止效力。 | BY13: 有關【保險給付】 包含祝壽保險金、身故保險金或喪葬費用保險金 、完全失能保險金。 | CC13: 以上說明的詳細內容都載明於保單條款中，請問您清楚嗎？【請客戶回答：清楚/不清楚】 | CD13: 本商品為投資型保險，非屬存款，故不受存款保險之保障。 本商品不保證保本、不保證獲利，而且解約金有可能小於已繳之保險費，請問您清楚嗎？ 人壽保險的死亡給付於被保險人死亡後給付於指定受益人者，依保險法相關規定不能作為被保險人遺產，若有涉及規避遺產稅等稅捐時，稽徵機關可以依據有關稅法或實質課稅原則相關規定辦理。【請客戶回答：清楚/不清楚】
A14: 12 | B14: 保誠人壽富利如山變額萬能壽險(10) | I14: 目標保險費，保費費用率為0%。超額保險費，保費費用率為3%。 | J14: 本商品自第一「保單週月日」至第六十「保單週月日」，每個月會從保單帳戶價值中收取一筆保單管理費。 | K14: 本商品在正常繳費的情形下，如在前6個保單年度中辦理解約或部分提領，需要扣除保單帳戶價值或部分提領金額一定比率的解約費用或部分提領費用，例如：只繳一期保險費的解約費用率為25%；解約費用率是依實際繳交保費期數為計算基準，所以如果沒有正常繳費，可能造成超過6個保單年度辦理解約或部分提領，仍需支付解約費用或部分提領費用；故投保後解約或不繼續繳費可能對要保人造成不利影響。 | M14: .「投資相關費用」：如申購投資標的手續費、投資標的經理費(管理費)、帳戶管理費、轉換費用等費用。 | P14: 1 | Q14: 1 | R14: 目標保險費，保費費用率為0%。超額保險費，保費費用率為3%。 | S14: 1.「保費費用」：目標保險費，保費費用率為0%。超額保險費，保費費用率為3%。 | T14: 1 | U14: 2 | V14: 保單帳戶價值 | W14: 2.「保單管理費」：本商品自第一「保單週月日」至第六十「保單週月日」，每個月會從保單帳戶價值中收取一筆保單管理費。 | X14: 1 | Y14: 3 | Z14: 本商品在正常繳費的情形下，如在前6個保單年度中辦理解約或部分提領，需要扣除保單帳戶價值或部分提領金額一定比率的解約費用或部分提領費用，例如：只繳一期保險費的解約費用率為25%；解約費用率是依實際繳交保費期數為計算基準，所以如果沒有正常繳費，可能造成超過6個保單年度辦理解約或部分提領，仍需支付解約費用或部分提領費用；故投保後解約或不繼續繳費可能對要保人造成不利影響。 | AA14: 3.「解約費用/部分提領費用」：本商品在正常繳費的情形下，如在前6個保單年度中辦理解約或部分提領，需要扣除保單帳戶價值或部分提領金額一定比率的解約費用或部分提領費用，例如：只繳一期保險費的解約費用率為25%；解約費用率是依實際繳交保費期數為計算基準，所以如果沒有正常繳費，可能造成超過6個保單年度辦理解約或部分提領，仍需支付解約費用或部分提領費用；故投保後解約或不繼續繳費可能對要保人造成不利影響。 | AB14: 1 | AC14: 4 | AE14: 每個月 | AF14: 1 | AG14: 5 | AH14: 5.「投資相關費用」：如申購投資標的手續費、投資標的經理費(管理費)、帳戶管理費、轉換費用等費用。 | AI14: 0 | AL14: 0 | AO14: Y | AY14: 以下再為您說明商品重要條款內容， | AZ14: 有關【投資標的轉換】 要保人得申請將投資於某一「投資標的」的款項轉移至其他「投資標的」。 | BA14: 有關【投資標的之關閉與終止】 一、保誠人壽得主動終止某一「投資標的」，且應於終止日前三十日通知要保人。 二、保誠人壽得經所有持有「投資標的價值」之要保人同意後，主動關閉該「投資標的」，並於關閉日前三十日通知要保人。 三、保誠人壽於接獲發行或經理機構之「投資標的」終止或關閉通知時，應於五日內在保誠人壽網站公布，並於三十日內通知要保人。 | BB14: 有關【保險事故的通知與保險金的申請時間】 要保人或受益人應於知悉保險事故後十日內通知保誠人壽，並於通知後儘速檢具所需文件申請給付保險金。 | BC14: 有關【除外責任】 因除外責任所導致的保險事故發生，保誠人壽不負給付各項保險金之責任。 本商品除外責任包括，要、被保險人故意行為或被保險人犯罪行為等。完整之除外責任請詳保單條款。 | BD14: 有關【保險單借款】 本契約有效期間內，要保人得申請保險單借款，其可借金額上限詳保單條款約定。 | BE14: 有關【寬限期間及契約效力】 「保單帳戶價值」扣除保險單借款本息後不足以支付當月「保險成本」及「保單管理費」時，將催告要保人交付「目標保險費」,如要保人無欠繳之「目標保險費」，本公司將催告要保人交付「超額保險費」， 自催告到達翌日起三十日內為寬限期間，逾寬限期間仍未交付者，將停止效力。要保人得在停效日起二年內，申請復效 | BQ14: 【銷售人員】： 以下再為您說明商品重要條款內容， | BV14: 有關【除外責任】 因除外責任所導致的保險事故發生，保誠人壽不負給付各項保險金之責任。 本商品除外責任包括，要、被保險人故意行為或被保險人犯罪行為等。完整之除外責任請詳保單條款。 | BW14: 有關【保險單借款】 本契約有效期間內，要保人得申請保險單借款，可借金額上限詳保單條款約定。 | BX14: 有關【寬限期間及契約效力】 「保單帳戶價值」扣除保險單借款本息後不足以支付當月「保險成本」及「保單管理費」時，將催告要保人交付「超額保險費」，逾寬限期間仍未交付者，將停止效力。 | BY14: 有關【保險給付】 包含祝壽保險金、身故保險金或喪葬費用保險金 、完全失能保險金。 | CC14: 以上說明的詳細內容都載明於保單條款中，請問您清楚嗎？【請客戶回答：清楚/不清楚】 | CD14: 本商品為投資型保險，非屬存款，故不受存款保險之保障。 本商品不保證保本、不保證獲利，而且解約金有可能小於已繳之保險費，請問您清楚嗎？ 人壽保險的死亡給付於被保險人死亡後給付於指定受益人者，依保險法相關規定不能作為被保險人遺產，若有涉及規避遺產稅等稅捐時，稽徵機關可以依據有關稅法或實質課稅原則相關規定辦理。【請客戶回答：清楚/不清楚】
A15: 13 | B15: 保誠人壽富利如山變額萬能壽險(20) | I15: 目標保險費，保費費用率為0%。超額保險費，保費費用率為3%。 | J15: 本商品每個月會從保單帳戶價值中收取一筆保單管理費。 | K15: 本商品在正常繳費的情形下，如在前 19 個保費年度中辦理解約或部分提領，需要扣除一定比率的解約費用或部分提領費用，例如：只繳一期保險費的解約費用率為25%，所以投保後解約或不繼續繳費可能對要保人造成不利影響。 | M15: .「投資相關費用」：如申購投資標的手續費、投資標的經理費(管理費)、帳戶管理費、轉換費用等費用。 | P15: 1 | Q15: 1 | R15: 目標保險費，保費費用率為0%。超額保險費，保費費用率為3%。 | S15: 1.「保費費用」：目標保險費，保費費用率為0%。超額保險費，保費費用率為3%。 | T15: 1 | U15: 2 | V15: 保單帳戶價值 | W15: 2.「保單管理費」：本商品每個月會從保單帳戶價值中收取一筆保單管理費。 | X15: 1 | Y15: 3 | Z15: 本商品在正常繳費的情形下，如在前 19 個保費年度中辦理解約或部分提領，需要扣除一定比率的解約費用或部分提領費用，例如：只繳一期保險費的解約費用率為25%，所以投保後解約或不繼續繳費可能對要保人造成不利影響。 | AA15: 3.「解約費用/部分提領費用」：本商品在正常繳費的情形下，如在前 19 個保費年度中辦理解約或部分提領，需要扣除一定比率的解約費用或部分提領費用，例如：只繳一期保險費的解約費用率為25%，所以投保後解約或不繼續繳費可能對要保人造成不利影響。 | AB15: 1 | AC15: 4 | AE15: 每個月 | AF15: 1 | AG15: 5 | AH15: 5.「投資相關費用」：如申購投資標的手續費、投資標的經理費(管理費)、帳戶管理費、轉換費用等費用。 | AI15: 0 | AL15: 0 | AO15: Y | AY15: 以下再為您說明商品重要條款內容， | AZ15: 有關【投資標的轉換】 要保人得申請將投資於某一「投資標的」的款項轉移至其他「投資標的」。 | BA15: 有關【投資標的之關閉與終止】 一、保誠人壽得主動終止某一「投資標的」，且應於終止日前三十日通知要保人。 二、保誠人壽得經所有持有「投資標的價值」之要保人同意後，主動關閉該「投資標的」，並於關閉日前三十日通知要保人。 三、保誠人壽於接獲發行或經理機構之「投資標的」終止或關閉通知時，應於五日內在保誠人壽網站公布，並於三十日內通知要保人。 | BB15: 有關【保險事故的通知與保險金的申請時間】 要保人或受益人應於知悉保險事故後十日內通知保誠人壽，並於通知後儘速檢具所需文件申請給付保險金。 | BC15: 有關【除外責任】 因除外責任所導致的保險事故發生，保誠人壽不負給付各項保險金之責任。 本商品除外責任包括，要、被保險人故意行為或被保險人犯罪行為等。完整之除外責任請詳保單條款。 | BD15: 有關【保險單借款】 本契約有效期間內，要保人得申請保險單借款，其可借金額上限詳保單條款約定。 | BE15: 有關【寬限期間及契約效力】 「保單帳戶價值」扣除保險單借款本息後不足以支付當月「保險成本」及「保單管理費」時，將催告要保人交付「超額保險費」， 自催告到達翌日起三十日內為寬限期間，逾寬限期間仍未交付者，將停止效力。要保人得在停效日起二年內，申請復效。 | BQ15: 【銷售人員】： 以下再為您說明商品重要條款內容， | BV15: 有關【除外責任】 因除外責任所導致的保險事故發生，保誠人壽不負給付各項保險金之責任。 本商品除外責任包括，要、被保險人故意行為或被保險人犯罪行為等。完整之除外責任請詳保單條款。 | BW15: 有關【保險單借款】 本契約有效期間內，要保人得申請保險單借款，可借金額上限詳保單條款約定。 | BX15: 有關【寬限期間及契約效力】 「保單帳戶價值」扣除保險單借款本息後不足以支付當月「保險成本」及「保單管理費」時，將催告要保人交付「超額保險費」，逾寬限期間仍未交付者，將停止效力。 | BY15: 有關【保險給付】 包含祝壽保險金、身故保險金或喪葬費用保險金 、完全失能保險金。 | CC15: 以上說明的詳細內容都載明於保單條款中，請問您清楚嗎？【請客戶回答：清楚/不清楚】 | CD15: 本商品為投資型保險，非屬存款，故不受存款保險之保障。 本商品不保證保本、不保證獲利，而且解約金有可能小於已繳之保險費，請問您清楚嗎？ 人壽保險的死亡給付於被保險人死亡後給付於指定受益人者，依保險法相關規定不能作為被保險人遺產，若有涉及規避遺產稅等稅捐時，稽徵機關可以依據有關稅法或實質課稅原則相關規定辦理。【請客戶回答：清楚/不清楚】
A16: 14 | B16: 保誠人壽誠億滿滿變額年金保險 | E16: 再次向您說明本商品收取的費用： 1.「保單管理費」：本商品每個月會從保單帳戶價值中收取一筆保單管理費。 2.「解約費用/部分提領費用」：目標保費保單帳戶之解約費用或部分提領費用，於第1至第5保單年度分別為目標保費保單帳戶價值或部分提領金額的9.3%、8%、6%、4%、2%，第6保單年度後為0%。 3.「投資相關費用」：如申購投資標的手續費、投資標的經理費(管理費)、帳戶管理費、轉換費用等費用。 請問您清楚嗎? 【請客戶回答：清楚/不清楚】 | I16: 本商品保費費用為0 | J16: 本商品每個月會從保單帳戶價值中收取一筆保單管理費。 | K16: 目標保費保單帳戶之解約費用或部分提領費用，於第1至第5保單年度分別為目標保費保單帳戶價值或部分提領金額的9.3%、8%、6%、4%、2%，第6保單年度後為0%。 | M16: .「投資相關費用」：如申購投資標的手續費、投資標的經理費(管理費)、帳戶管理費、轉換費用等費用。 | P16: 0 | R16: 本商品保費費用為0 | T16: 1 | U16: 1 | V16: 保單帳戶價值 | W16: 1.「保單管理費」：本商品每個月會從保單帳戶價值中收取一筆保單管理費。 | X16: 1 | Y16: 2 | Z16: 目標保費保單帳戶之解約費用或部分提領費用，於第1至第5保單年度分別為目標保費保單帳戶價值或部分提領金額的9.3%、8%、6%、4%、2%，第6保單年度後為0%。 | AA16: 2.「解約費用/部分提領費用」：目標保費保單帳戶之解約費用或部分提領費用，於第1至第5保單年度分別為目標保費保單帳戶價值或部分提領金額的9.3%、8%、6%、4%、2%，第6保單年度後為0%。 | AB16: 0 | AF16: 1 | AG16: 3 | AH16: 3.「投資相關費用」：如申購投資標的手續費、投資標的經理費(管理費)、帳戶管理費、轉換費用等費用。 | AI16: 0 | AL16: 0 | AO16: N | AP16: N | AR16: N | AX16: ="【銷售人員】： 如銷售過程中說明， 您所投保的"&B16&"的保單利益，包含： 一、返還保單帳戶價值，返還後保險契約效力終止。 二、年金累積期滿保險金，一次領取後保險契約效力終止。 三、年金給付。 "&錄音序號_確認語_2 ->  | AY16: 以下再為您說明商品重要條款內容， | AZ16: 有關【投資標的轉換】 要保人得申請將投資於某一「投資標的」的款項轉移至其他「投資標的」。 | BA16: 有關【投資標的之關閉與終止】 一、保誠人壽得主動終止某一「投資標的」，且應於終止日前三十日通知要保人。 二、保誠人壽得經所有持有「投資標的價值」之要保人同意後，主動關閉該「投資標的」，並於關閉日前三十日通知要保人。 三、保誠人壽於接獲發行或經理機構之「投資標的」終止或關閉通知時，應於五日內在保誠人壽網站公布，並於三十日內通知要保人。 | BB16: 有關【被保險人身故的通知】 被保險人身故後，要保人或受益人應於知悉被保險人發生身故後通知保誠人壽。 | BC16: 有關【年金的申領】 被保險人於「年金給付開始日」後生存期間每年第一次申領年金給付時，應提出可資證明被保險人生存之文件。但於「保證期間」內不在此限。 | BD16: 有關【保險單借款】 「年金給付開始日」前，要保人得申請保險單借款，其可借金額上限詳保單條款約定。 | BE16: 有關【寬限期間及契約效力】 「年金累積期間」內，若「保單帳戶價值」扣除保險單借款本息後不足以支付當月「保單管理費」時，將催告要保人交付「超額保險費」， 自催告到達翌日起三十日內為寬限期間，逾寬限期間仍未交付者，將停止效力。要保人得在停效日起二年內，申請復效。但「 年金累積期間」 屆滿後不得申請復效。 | BK16: ="本商品為投資型保險，非屬存款，故不受存款保險之保障。 本商品不保證保本、不保證獲利，而且解約金有可能小於已繳之保險費。"&錄音序號_確認語_2&"另建議書中已有說明不同投資報酬率試算的保單帳戶價值、解約金、保障內容，"&錄音序號_確認語_2&"人壽保險的死亡給付及年金保險的確定年金給付於被保險人死亡後給付於指定受益人者，依保險法相關規定不能作為被保險人遺產，若有涉及規避遺產稅等稅捐時，稽徵機關可以依據有關稅法或實質課稅原則相關規定辦理。"&錄音序號_確認語_2 ->  | BQ16: 【銷售人員】： 以下再為您說明商品重要條款內容， | BW16: 有關【保險單借款】 「年金給付開始日」前，要保人得申請保險單借款，可借金額上限詳保單條款約定。 | BX16: 有關【寬限期間及契約效力】 「年金累積期間」內，若「保單帳戶價值」扣除保險單借款本息後不足以支付當月「保單管理費」時，將催告要保人交付「超額保險費」，逾寬限期間仍未交付者，將停止效力。 | BY16: 有關【保險給付】 包含返還保單帳戶價值、年金累積期滿保險金、年金給付。 | CC16: 以上說明的詳細內容都載明於保單條款中，請問您清楚嗎？【請客戶回答：清楚/不清楚】 | CD16: 本商品為投資型保險，非屬存款，故不受存款保險之保障。 本商品不保證保本、不保證獲利，而且解約金有可能小於已繳之保險費，請問您清楚嗎？ 人壽保險的死亡給付及年金保險的確定年金給付於被保險人死亡後給付於指定受益人者，依保險法相關規定不能作為被保險人遺產，若有涉及規避遺產稅等稅捐時，稽徵機關可以依據有關稅法或實質課稅原則相關規定辦理。【請客戶回答：清楚/不清楚】
A17: 15 | B17: 保誠人壽誠億滿滿外幣變額年金保險 | E17: 再次向您說明本商品收取的費用： 1.「保單管理費」：本商品每個月會從保單帳戶價值中收取一筆保單管理費。 2.「解約費用/部分提領費用」：目標保費保單帳戶之解約費用或部分提領費用，於第1至第5保單年度分別為目標保費保單帳戶價值或部分提領金額的9.3%、8%、6%、4%、2%，第6保單年度後為0%。 3.「投資相關費用」：如申購投資標的手續費、投資標的經理費(管理費)、帳戶管理費、轉換費用等費用。 請問您清楚嗎? 【請客戶回答：清楚/不清楚】 | I17: 本商品保費費用為0 | J17: 本商品每個月會從保單帳戶價值中收取一筆保單管理費。 | K17: 目標保費保單帳戶之解約費用或部分提領費用，於第1至第5保單年度分別為目標保費保單帳戶價值或部分提領金額的9.3%、8%、6%、4%、2%，第6保單年度後為0%。 | M17: .「投資相關費用」：如申購投資標的手續費、投資標的經理費(管理費)、帳戶管理費、轉換費用等費用。 | N17: .「其它費用」：本商品相關款項之往來，若採用保誠人壽指定銀行之外幣帳戶，無需負擔所產生之匯款相關費用，但若非採用保誠人壽指定銀行之外幣帳戶者，則會收取匯款費用。 | P17: 0 | R17: 本商品保費費用為0 | T17: 1 | U17: 1 | V17: 保單帳戶價值 | W17: 1.「保單管理費」：本商品每個月會從保單帳戶價值中收取一筆保單管理費。 | X17: 1 | Y17: 2 | Z17: 目標保費保單帳戶之解約費用或部分提領費用，於第1至第5保單年度分別為目標保費保單帳戶價值或部分提領金額的9.3%、8%、6%、4%、2%，第6保單年度後為0%。 | AA17: 2.「解約費用/部分提領費用」：目標保費保單帳戶之解約費用或部分提領費用，於第1至第5保單年度分別為目標保費保單帳戶價值或部分提領金額的9.3%、8%、6%、4%、2%，第6保單年度後為0%。 | AB17: 0 | AF17: 1 | AG17: 3 | AH17: 3.「投資相關費用」：如申購投資標的手續費、投資標的經理費(管理費)、帳戶管理費、轉換費用等費用。 | AI17: 0 | AK17: =IF(AI17=0,""," "&AJ17&N17) ->  | AL17: 0 | AO17: N | AP17: N | AR17: N | AX17: ="【銷售人員】： 如銷售過程中說明， 您所投保的"&B17&"的保單利益，包含： 一、返還保單帳戶價值，返還後保險契約效力終止。 二、年金累積期滿保險金，一次領取後保險契約效力終止。 三、年金給付。 "&錄音序號_確認語_2 ->  | AY17: 以下再為您說明商品重要條款內容， | AZ17: 有關【投資標的轉換】 要保人得申請將投資於某一「投資標的」的款項轉移至其他「投資標的」。 | BA17: 有關【投資標的之關閉與終止】 一、保誠人壽得主動終止某一「投資標的」，且應於終止日前三十日通知要保人。 二、保誠人壽得經所有持有「投資標的價值」之要保人同意後，主動關閉該「投資標的」，並於關閉日前三十日通知要保人。 三、保誠人壽於接獲發行或經理機構之「投資標的」終止或關閉通知時，應於五日內在保誠人壽網站公布，並於三十日內通知要保人。 | BB17: 有關【被保險人身故的通知】 被保險人身故後，要保人或受益人應於知悉被保險人發生身故後通知保誠人壽。 | BC17: 有關【年金的申領】 被保險人於「年金給付開始日」後生存期間每年第一次申領年金給付時，應提出可資證明被保險人生存之文件。但於「保證期間」內不在此限。 | BD17: 有關【保險單借款】 「年金給付開始日」前，要保人得申請保險單借款，其可借金額上限詳保單條款約定。 | BE17: 有關【寬限期間及契約效力】 「年金累積期間」內，若「保單帳戶價值」扣除保險單借款本息後不足以支付當月「保單管理費」時，將催告要保人交付「超額保險費」， 自催告到達翌日起三十日內為寬限期間，逾寬限期間仍未交付者，將停止效力。要保人得在停效日起二年內，申請復效。但「 年金累積期間」 屆滿後不得申請復效。 | BK17: ="本商品為投資型保險，非屬存款，故不受存款保險之保障。 本商品不保證保本、不保證獲利，而且解約金有可能小於已繳之保險費。"&錄音序號_確認語_2&"另建議書中已有說明不同投資報酬率試算的保單帳戶價值、解約金、保障內容，"&錄音序號_確認語_2&"人壽保險的死亡給付及年金保險的確定年金給付於被保險人死亡後給付於指定受益人者，依保險法相關規定不能作為被保險人遺產，若有涉及規避遺產稅等稅捐時，稽徵機關可以依據有關稅法或實質課稅原則相關規定辦理。"&錄音序號_確認語_2 ->  | BQ17: 【銷售人員】： 以下再為您說明商品重要條款內容， | BW17: 有關【保險單借款】 「年金給付開始日」前，要保人得申請保險單借款，可借金額上限詳保單條款約定。 | BX17: 有關【寬限期間及契約效力】 「年金累積期間」內，若「保單帳戶價值」扣除保險單借款本息後不足以支付當月「保單管理費」時，將催告要保人交付「超額保險費」，逾寬限期間仍未交付者，將停止效力。 | BY17: 有關【保險給付】 包含返還保單帳戶價值、年金累積期滿保險金、年金給付。 | CC17: 以上說明的詳細內容都載明於保單條款中，請問您清楚嗎？【請客戶回答：清楚/不清楚】 | CD17: 本商品為投資型保險，非屬存款，故不受存款保險之保障。 本商品不保證保本、不保證獲利，而且解約金有可能小於已繳之保險費，請問您清楚嗎？【請客戶回答：清楚/不清楚】
A18: 16 | B18: 保誠人壽智富人生變額壽險 | C18: 給付項目 ：祝壽保險金、身故保險金或喪葬費用保險金、完全殘廢保險金。 ◆「 保險成本 」：指提供被保險人契約身故、完全殘廢保障所需的成本。由保誠人壽每月根據訂立契約時被保險人的性別、體況、計算「保險成本」當時之保險 年齡及淨危險保額，以每單位保險成本計算，並依條款約定時點扣除，原則上保險成本將隨年齡的增長而逐年增加。惟保險成本未來可能有變動，保誠人壽保 留依實際經驗發生率而調整「保險成本」之權利。「淨危險保額」指基本保額扣除保單帳戶價值之餘額。淨危險保額為負值時，則以零計算，保誠人壽不收取 保險成本。 ◆「 保單管理費 」：於第一「保單週月日」至第六十「保單週月日」，以目標保費保單帳戶價值的0.12%計算，第六十一「保單週月日」(含)之後不再計算。 ◆「 年度末保單帳戶價值 」 及 「 年度末壽險保障 」：其數值為每月扣除保險成本及保單管理費，並考量投資報酬率後之數值。 ◆「 年度末解約金 」：為「年度末保單帳戶價值」扣除解約費用後之數值。（詳細說明請詳保單條款。） ◆「 解約費用 」 或 「 部分提領費用 」：目標保費保單帳戶之解約/部分提領費用，於第一至第三保單年度分別為目標保費保單帳戶價值／部分提領金額的8%、6% 、3%，第四保單年度後為零。 | H18: 1.保費費用：0 2.保單管理費：前六十期為帳戶價值0.12%，第六十一期之後不再計算 3.解約費用率：第一至第三保單年度分別為8%、6%、3%，第四保單年度後為零 | I18: 本商品保費費用為0 | J18: 本商品每個月會從保單帳戶價值中收取一筆保單管理費。 | K18: 本商品如在前3個保單年度中辦理解約或部分提領，需要扣除一定比率的解約費用或部分提領費用，例如：第1保單年度的解約費用率為8%，所以投保後提前解約或部分提領可能對要保人造成不利影響。 | M18: .「投資相關費用」：如申購投資標的手續費、投資標的經理費(管理費)、帳戶管理費、轉換費用等費用。 | P18: 0 | R18: 本商品保費費用為0 | T18: 1 | U18: 1 | V18: 保單帳戶價值 | W18: 1.「保單管理費」：本商品每個月會從保單帳戶價值中收取一筆保單管理費。 | X18: 1 | Y18: 2 | Z18: 本商品如在前3個保單年度中辦理解約或部分提領，需要扣除一定比率的解約費用或部分提領費用，例如：第1保單年度的解約費用率為8%，所以投保後提前解約或部分提領可能對要保人造成不利影響。 | AA18: 2.「解約費用/部分提領費用」：本商品如在前3個保單年度中辦理解約或部分提領，需要扣除一定比率的解約費用或部分提領費用，例如：第1保單年度的解約費用率為8%，所以投保後提前解約或部分提領可能對要保人造成不利影響。 | AB18: 1 | AC18: 3 | AE18: 每個月 | AF18: 1 | AG18: 4 | AH18: 4.「投資相關費用」：如申購投資標的手續費、投資標的經理費(管理費)、帳戶管理費、轉換費用等費用。 | AI18: 0 | AL18: 0 | AO18: Y | AP18: N | AR18: N | BO18: 至被保險人保險年齡達99歲當年之保單週年日 | BQ18: 【銷售人員】： 以下再為您說明商品重要條款內容，
A19: 17 | B19: 保誠人壽卓越人生外幣變額壽險 | I19: 本商品保費費用為0 | J19: 本商品每個月會從保單帳戶價值中收取一筆保單管理費。 | K19: 本商品如在前3個保單年度中辦理解約或部分提領，需要扣除一定比率的解約費用或部分提領費用，例如：第1保單年度的解約費用率為8%，所以投保後提前解約或部分提領可能對要保人造成不利影響。 | M19: .「投資相關費用」：如申購投資標的手續費、投資標的經理費(管理費)、帳戶管理費、轉換費用等費用。 | N19: .「其它費用」：本商品相關款項之往來，若採用保誠人壽指定銀行之外幣帳戶，無需負擔所產生之匯款相關費用，但若非採用保誠人壽指定銀行之外幣帳戶者，則會收取匯款費用。 | P19: 0 | R19: 本商品保費費用為0 | T19: 1 | U19: 1 | V19: 保單帳戶價值 | W19: 1.「保單管理費」：本商品每個月會從保單帳戶價值中收取一筆保單管理費。 | X19: 1 | Y19: 2 | Z19: 本商品如在前3個保單年度中辦理解約或部分提領，需要扣除一定比率的解約費用或部分提領費用，例如：第1保單年度的解約費用率為8%，所以投保後提前解約或部分提領可能對要保人造成不利影響。 | AA19: 2.「解約費用/部分提領費用」：本商品如在前3個保單年度中辦理解約或部分提領，需要扣除一定比率的解約費用或部分提領費用，例如：第1保單年度的解約費用率為8%，所以投保後提前解約或部分提領可能對要保人造成不利影響。 | AB19: 1 | AC19: 3 | AE19: 每個月 | AF19: 1 | AG19: 4 | AH19: 4.「投資相關費用」：如申購投資標的手續費、投資標的經理費(管理費)、帳戶管理費、轉換費用等費用。 | AI19: 0 | AK19: =IF(AI19=0,""," "&AJ19&N19) ->  | AL19: 0 | AO19: Y | AP19: N | AR19: N | BN19: 55 | BQ19: 【銷售人員】： 以下再為您說明商品重要條款內容，
A20: 18 | B20: 保誠人壽三五寶島變額壽險 | I20: 本商品保費費用為0 | J20: 本商品每個月會從保單帳戶價值中收取一筆保單管理費。 | K20: 本商品在正常繳費的情形下，如在前5個保單年度中辦理解約或部分提領，需要扣除一定比率的解約費用或部分提領費用，例如：只繳一期保險費的解約費用率為25%，所以投保後解約或不繼續繳費可能對要保人造成不利影響。 | M20: .「投資相關費用」：如申購投資標的手續費、投資標的經理費(管理費)、帳戶管理費、轉換費用等費用。 | P20: 0 | R20: 本商品保費費用為0 | T20: 1 | U20: 1 | V20: 保單帳戶價值 | W20: 1.「保單管理費」：本商品每個月會從保單帳戶價值中收取一筆保單管理費。 | X20: 1 | Y20: 2 | Z20: 本商品在正常繳費的情形下，如在前5個保單年度中辦理解約或部分提領，需要扣除一定比率的解約費用或部分提領費用，例如：只繳一期保險費的解約費用率為25%，所以投保後解約或不繼續繳費可能對要保人造成不利影響。 | AA20: 2.「解約費用/部分提領費用」：本商品在正常繳費的情形下，如在前5個保單年度中辦理解約或部分提領，需要扣除一定比率的解約費用或部分提領費用，例如：只繳一期保險費的解約費用率為25%，所以投保後解約或不繼續繳費可能對要保人造成不利影響。 | AB20: 1 | AC20: 3 | AE20: 每個月 | AF20: 1 | AG20: 4 | AH20: 4.「投資相關費用」：如申購投資標的手續費、投資標的經理費(管理費)、帳戶管理費、轉換費用等費用。 | AI20: 0 | AL20: 0 | AO20: Y | AP20: Y | AQ20: ，共3期 | AR20: Y | AS20: 300000 | BO20: 至被保險人保險年齡達100歲當年之保單週年日 | BQ20: 【銷售人員】： 以下再為您說明商品重要條款內容，
A21: 19 | B21: 保誠人壽三五成金外幣變額壽險 | I21: 本商品保費費用為0 | J21: 本商品每個月會從保單帳戶價值中收取一筆保單管理費。 | K21: 本商品在正常繳費的情形下，如在前5個保單年度中辦理解約或部分提領，需要扣除一定比率的解約費用或部分提領費用，例如：只繳一期保險費的解約費用率為25%，所以投保後解約或不繼續繳費可能對要保人造成不利影響。 | M21: .「投資相關費用」：如申購投資標的手續費、投資標的經理費(管理費)、帳戶管理費、轉換費用等費用。 | N21: .「其它費用」：本商品相關款項之往來，若採用保誠人壽指定銀行之外幣帳戶，無需負擔所產生之匯款相關費用，但若非採用保誠人壽指定銀行之外幣帳戶者，則會收取匯款費用。 | P21: 0 | R21: 本商品保費費用為0 | T21: 1 | U21: 1 | V21: 保單帳戶價值 | W21: 1.「保單管理費」：本商品每個月會從保單帳戶價值中收取一筆保單管理費。 | X21: 1 | Y21: 2 | Z21: 本商品在正常繳費的情形下，如在前5個保單年度中辦理解約或部分提領，需要扣除一定比率的解約費用或部分提領費用，例如：只繳一期保險費的解約費用率為25%，所以投保後解約或不繼續繳費可能對要保人造成不利影響。 | AA21: 2.「解約費用/部分提領費用」：本商品在正常繳費的情形下，如在前5個保單年度中辦理解約或部分提領，需要扣除一定比率的解約費用或部分提領費用，例如：只繳一期保險費的解約費用率為25%，所以投保後解約或不繼續繳費可能對要保人造成不利影響。 | AB21: 1 | AC21: 3 | AE21: 每個月 | AF21: 1 | AG21: 4 | AH21: 4.「投資相關費用」：如申購投資標的手續費、投資標的經理費(管理費)、帳戶管理費、轉換費用等費用。 | AI21: 0 | AK21: =IF(AI21=0,""," "&AJ21&N21) ->  | AL21: 0 | AO21: Y | AP21: Y | AQ21: ，共3期 | AR21: Y | AS21: 10000 | BO21: 至被保險人保險年齡達100歲當年之保單週年日 | BQ21: 【銷售人員】： 以下再為您說明商品重要條款內容，
A22: 20 | B22: 保誠人壽三五中國外幣變額壽險 | I22: 本商品保費費用為0 | J22: 本商品每個月會從保單帳戶價值中收取一筆保單管理費。 | K22: 本商品在正常繳費的情形下，如在前5個保單年度中辦理解約或部分提領，需要扣除一定比率的解約費用或部分提領費用，例如：只繳一期保險費的解約費用率為25%，所以投保後解約或不繼續繳費可能對要保人造成不利影響。 | M22: .「投資相關費用」：如申購投資標的手續費、投資標的經理費(管理費)、帳戶管理費、轉換費用等費用。 | N22: .「其它費用」：本商品相關款項之往來，若採用保誠人壽指定銀行之外幣帳戶，無需負擔所產生之匯款相關費用，但若非採用保誠人壽指定銀行之外幣帳戶者，則會收取匯款費用。 | P22: 0 | R22: 本商品保費費用為0 | T22: 1 | U22: 1 | V22: 保單帳戶價值 | W22: 1.「保單管理費」：本商品每個月會從保單帳戶價值中收取一筆保單管理費。 | X22: 1 | Y22: 2 | Z22: 本商品在正常繳費的情形下，如在前5個保單年度中辦理解約或部分提領，需要扣除一定比率的解約費用或部分提領費用，例如：只繳一期保險費的解約費用率為25%，所以投保後解約或不繼續繳費可能對要保人造成不利影響。 | AA22: 2.「解約費用/部分提領費用」：本商品在正常繳費的情形下，如在前5個保單年度中辦理解約或部分提領，需要扣除一定比率的解約費用或部分提領費用，例如：只繳一期保險費的解約費用率為25%，所以投保後解約或不繼續繳費可能對要保人造成不利影響。 | AB22: 1 | AC22: 3 | AE22: 每個月 | AF22: 1 | AG22: 4 | AH22: 4.「投資相關費用」：如申購投資標的手續費、投資標的經理費(管理費)、帳戶管理費、轉換費用等費用。 | AI22: 0 | AK22: =IF(AI22=0,""," "&AJ22&N22) ->  | AL22: 0 | AO22: Y | AP22: Y | AQ22: ，共3期 | AR22: Y | AS22: 60000 | BO22: 至被保險人保險年齡達75歲當年之保單週年日 | BQ22: 【銷售人員】： 以下再為您說明商品重要條款內容，
A23: 21 | B23: 保誠人壽三五美鑫外幣變額壽險 | I23: 本商品保費費用為0 | J23: 本商品每個月會從保單帳戶價值中收取一筆保單管理費。 | K23: 本商品在正常繳費的情形下，如在前5個保單年度中辦理解約或部分提領，需要扣除一定比率的解約費用或部分提領費用，例如：只繳一期保險費的解約費用率為25%，所以投保後解約或不繼續繳費可能對要保人造成不利影響。 | M23: .「投資相關費用」：如申購投資標的手續費、投資標的經理費(管理費)、帳戶管理費、轉換費用等費用。 | N23: .「其它費用」：本商品相關款項之往來，若採用保誠人壽指定銀行之外幣帳戶，無需負擔所產生之匯款相關費用，但若非採用保誠人壽指定銀行之外幣帳戶者，則會收取匯款費用。 | P23: 0 | R23: 本商品保費費用為0 | T23: 1 | U23: 1 | V23: 保單帳戶價值 | W23: 1.「保單管理費」：本商品每個月會從保單帳戶價值中收取一筆保單管理費。 | X23: 1 | Y23: 2 | Z23: 本商品在正常繳費的情形下，如在前5個保單年度中辦理解約或部分提領，需要扣除一定比率的解約費用或部分提領費用，例如：只繳一期保險費的解約費用率為25%，所以投保後解約或不繼續繳費可能對要保人造成不利影響。 | AA23: 2.「解約費用/部分提領費用」：本商品在正常繳費的情形下，如在前5個保單年度中辦理解約或部分提領，需要扣除一定比率的解約費用或部分提領費用，例如：只繳一期保險費的解約費用率為25%，所以投保後解約或不繼續繳費可能對要保人造成不利影響。 | AB23: 1 | AC23: 3 | AE23: 每個月 | AF23: 1 | AG23: 4 | AH23: 4.「投資相關費用」：如申購投資標的手續費、投資標的經理費(管理費)、帳戶管理費、轉換費用等費用。 | AI23: 0 | AL23: 0 | AO23: Y | AP23: Y | AQ23: ，共3期 | AR23: Y | AS23: 10000 | BO23: 終身 | BQ23: 【銷售人員】： 以下再為您說明商品重要條款內容，
A24: 22 | B24: 保誠人壽美澳雙享外幣變額壽險 | C24: 給付項目 ：祝壽保險金、身故保險金或喪葬費用保險金、完全殘廢保險金、保單帳戶價值之返還。 ◆「 保險成本 」：指提供被保險人契約身故、完全殘廢保障所需的成本。由保誠人壽每月根據訂立契約時被保險人的性別、體況、計算「保險成本」當時之保險 年齡及淨危險保額，以每單位保險成本計算，並依條款約定時點扣除，原則上保險成本將隨年齡的增長而逐年增加。惟保險成本未來可能有變動，保誠人壽保 留依實際經驗發生率而調整「保險成本」之權利。「淨危險保額」指基本保額扣除保單帳戶價值之餘額。淨危險保額為負值時，則以零計算，保誠人壽不收取 保險成本。 ◆「 保單管理費 」：於生效日至第119「保單週月日」以目標保費保單帳戶價值之0.15%計算。超額保費保單帳戶不收取保單管理費。 ◆「 年度末保單帳戶價值 」 及 「 年度末壽險保障 」：其數值皆為扣除保險成本及保單管理費後，當年度末增值後之數值。 ◆「 年度末解約金 」：為「年度末保單帳戶價值」扣除解約費用後之數值。（詳細說明請詳保單條款。） ◆「 解約費用 」 或 「 部分提領費用 」：要保人申請辦理契約終止或部分提領時，保誠人壽依目標保費保單帳戶價值或部分提領金額扣除「免費部分提領金額」後 ，乘以申請時之解約費用率，但不得為負值(解約費用年度第1至第6年分別收取目標保費保單帳戶價值15%、15%、15%、10%、5%、5%之費用，第7解約費用年度 (含)以後為0%)。本建議書之「年度末解約金」已扣除解約費用，但未考慮「免費部分提領金額」。（詳細說明請詳保單條款。） 壽險保障金額及保單帳戶價值試算表 (非保證給付項目) (單位:澳幣 | H24: 1.保費費用：0 2.保單管理費：於生效日至第119「保單週月日」以目標保費保單帳戶價值之0.15%計算。超額保費保單帳戶不收取保單管理費。 3.解約費用率： 第1至第6年分別收取目標保費保單帳戶價值15%、15%、15%、10%、5%、5%之費用，第7解約費用年度(含)以後為0%) | I24: 本商品保費費用為0 | J24: 本商品每個月會從保單帳戶價值中收取一筆保單管理費。 | K24: 本商品在正常繳費的情形下，如在前6個保單年度中辦理解約或部分提領，需要扣除一定比率的解約費用或部分提領費用，例如：只繳一期保險費的解約費用率為15%，所以投保後解約或不繼續繳費可能對要保人造成不利影響。 | M24: .「投資相關費用」：如申購投資標的手續費、投資標的經理費(管理費)、帳戶管理費、轉換費用等費用。 | N24: .「其它費用」：本商品相關款項之往來，若採用保誠人壽指定銀行之外幣帳戶，無需負擔所產生之匯款相關費用，但若非採用保誠人壽指定銀行之外幣帳戶者，則會收取匯款費用。 | P24: 0 | R24: 本商品保費費用為0 | T24: 1 | U24: 1 | V24: 保單帳戶價值 | W24: 1.「保單管理費」：本商品每個月會從保單帳戶價值中收取一筆保單管理費。 | X24: 1 | Y24: 2 | Z24: 本商品在正常繳費的情形下，如在前6個保單年度中辦理解約或部分提領，需要扣除一定比率的解約費用或部分提領費用，例如：只繳一期保險費的解約費用率為15%，所以投保後解約或不繼續繳費可能對要保人造成不利影響。 | AA24: 2.「解約費用/部分提領費用」：本商品在正常繳費的情形下，如在前6個保單年度中辦理解約或部分提領，需要扣除一定比率的解約費用或部分提領費用，例如：只繳一期保險費的解約費用率為15%，所以投保後解約或不繼續繳費可能對要保人造成不利影響。 | AB24: 1 | AC24: 3 | AE24: 每個月 | AF24: 1 | AG24: 4 | AH24: 4.「投資相關費用」：如申購投資標的手續費、投資標的經理費(管理費)、帳戶管理費、轉換費用等費用。 | AI24: 0 | AL24: 0 | AO24: Y | AP24: Y | AQ24: ，共3期 | AR24: Y | AS24: 1萬美元 1.3萬澳幣 13萬南非幣 | BN24: 10年：15足歲~65歲 15年：15足歲~60歲 20年：15足歲~55歲 | BQ24: 【銷售人員】： 以下再為您說明商品重要條款內容，
A25: 23 | B25: 保誠人壽三五歐霸外幣變額壽險 | I25: 本商品保費費用為0 | J25: 本商品每個月會從保單帳戶價值中收取一筆保單管理費。 | K25: 本商品在正常繳費的情形下，如在前5個保單年度中辦理解約或部分提領，則須扣除解約費用或部分提領費用，例如：只繳一期保險費的解約費用率為25%。 | M25: .「投資相關費用」：如申購投資標的手續費、投資標的經理費(管理費)、帳戶管理費、轉換費用等費用。 | N25: .「其它費用」：本商品相關款項之往來，若採用保誠人壽指定銀行之外幣帳戶，無需負擔所產生之匯款相關費用，但若非採用保誠人壽指定銀行之外幣帳戶者，則會收取匯款費用。 | P25: 0 | R25: 本商品保費費用為0 | T25: 1 | U25: 1 | V25: 保單帳戶價值 | W25: 1.「保單管理費」：本商品每個月會從保單帳戶價值中收取一筆保單管理費。 | X25: 1 | Y25: 2 | Z25: 本商品在正常繳費的情形下，如在前5個保單年度中辦理解約或部分提領，則須扣除解約費用或部分提領費用，例如：只繳一期保險費的解約費用率為25%。 | AA25: 2.「解約費用/部分提領費用」：本商品在正常繳費的情形下，如在前5個保單年度中辦理解約或部分提領，則須扣除解約費用或部分提領費用，例如：只繳一期保險費的解約費用率為25%。 | AB25: 1 | AC25: 3 | AE25: 每個月 | AF25: 1 | AG25: 4 | AH25: 4.「投資相關費用」：如申購投資標的手續費、投資標的經理費(管理費)、帳戶管理費、轉換費用等費用。 | AI25: 0 | AL25: 0 | AO25: Y | AP25: Y | AQ25: ，共3期 | AR25: Y | AS25: 8500 | BQ25: 【銷售人員】： 以下再為您說明商品重要條款內容，
A26: 24 | B26: 保誠人壽三五美金外幣變額壽險 | I26: 本商品保費費用為0 | J26: 本商品每個月會從保單帳戶價值中收取一筆保單管理費。 | K26: 本商品在正常繳費的情形下，如在前5個保單年度中辦理解約或部分提領，需要扣除一定比率的解約費用或部分提領費用，例如：只繳一期保險費的解約費用率為25%，所以投保後解約或不繼續繳費可能對要保人造成不利影響。 | M26: .「投資相關費用」：如申購投資標的手續費、投資標的經理費(管理費)、帳戶管理費、轉換費用等費用。 | N26: .「其它費用」：本商品相關款項之往來，若採用保誠人壽指定銀行之外幣帳戶，無需負擔所產生之匯款相關費用，但若非採用保誠人壽指定銀行之外幣帳戶者，則會收取匯款費用。 | P26: 0 | R26: 本商品保費費用為0 | T26: 1 | U26: 1 | V26: 保單帳戶價值 | W26: 1.「保單管理費」：本商品每個月會從保單帳戶價值中收取一筆保單管理費。 | X26: 1 | Y26: 2 | Z26: 本商品在正常繳費的情形下，如在前5個保單年度中辦理解約或部分提領，需要扣除一定比率的解約費用或部分提領費用，例如：只繳一期保險費的解約費用率為25%，所以投保後解約或不繼續繳費可能對要保人造成不利影響。 | AA26: 2.「解約費用/部分提領費用」：本商品在正常繳費的情形下，如在前5個保單年度中辦理解約或部分提領，需要扣除一定比率的解約費用或部分提領費用，例如：只繳一期保險費的解約費用率為25%，所以投保後解約或不繼續繳費可能對要保人造成不利影響。 | AB26: 1 | AC26: 3 | AE26: 每個月 | AF26: 1 | AG26: 4 | AH26: 4.「投資相關費用」：如申購投資標的手續費、投資標的經理費(管理費)、帳戶管理費、轉換費用等費用。 | AI26: 0 | AL26: 0 | AO26: Y | AP26: Y | AQ26: ，共3期 | AR26: Y | AS26: 10000 | BQ26: 【銷售人員】： 以下再為您說明商品重要條款內容，
A27: 25 | B27: 保誠人壽樂活寶島變額年金保險 | E27: 再次向您說明本商品收取的費用： 1.「保費費用」：第一期保費費用：當次繳交的目標保險費低於新臺幣100萬元，保費費用以目標保險費的4%計算；當次繳交的目標保險費高於或等於新臺幣100萬元，保費費用以目標保險費的3.8%計算。第二~三期無保費費用。 2.「保單管理費」：本商品每個月會從保單帳戶價值中收取一筆保單管理費。 3.「解約費用/部分提領費用」：本商品在正常繳費的情形下，如在前5個保單年度中辦理解約或部分提領，需要扣除一定比率的解約費用或部分提領費用，例如：只繳一期保險費的解約費用率為25%，所以投保後解約或不繼續繳費可能對要保人造成不利影響。 4.「投資相關費用」：如申購投資標的手續費、投資標的經理費(管理費)、帳戶管理費、轉換費用等費用。 【提示：購買附約者，需加錄本題項】 5.「保險成本」：在「年金累積期間」內，按月由保單帳戶價值中收取，提供帳戶型附約保障。 -保險成本原則上隨年齡增長而逐年增加，也就是說如果年紀越大每個月會被扣的保險成本有可能會更多。 -「年金累積期間」屆滿後，不再收取，附約也會終止，不再提供附約的保障。 -如果沒有附加附約，則不適用「保險成本」相關約定。 請問您清楚嗎? 【請客戶回答：清楚/不清楚】 | I27: 第一期保費費用：當次繳交的目標保險費低於新臺幣100萬元，保費費用以目標保險費的4%計算；當次繳交的目標保險費高於或等於新臺幣100萬元，保費費用以目標保險費的3.8%計算。第二~三期無保費費用。 | J27: 本商品每個月會從保單帳戶價值中收取一筆保單管理費。 | K27: 本商品在正常繳費的情形下，如在前5個保單年度中辦理解約或部分提領，需要扣除一定比率的解約費用或部分提領費用，例如：只繳一期保險費的解約費用率為25%，所以投保後解約或不繼續繳費可能對要保人造成不利影響。 | M27: .「投資相關費用」：如申購投資標的手續費、投資標的經理費(管理費)、帳戶管理費、轉換費用等費用。 | P27: 1 | Q27: 1 | R27: 第一期保費費用：當次繳交的目標保險費低於新臺幣100萬元，保費費用以目標保險費的4%計算；當次繳交的目標保險費高於或等於新臺幣100萬元，保費費用以目標保險費的3.8%計算。第二~三期無保費費用。 | S27: 1.「保費費用」：第一期保費費用：當次繳交的目標保險費低於新臺幣100萬元，保費費用以目標保險費的4%計算；當次繳交的目標保險費高於或等於新臺幣100萬元，保費費用以目標保險費的3.8%計算。第二~三期無保費費用。 | T27: 1 | U27: 2 | V27: 保單帳戶價值 | W27: 2.「保單管理費」：本商品每個月會從保單帳戶價值中收取一筆保單管理費。 | X27: 1 | Y27: 3 | Z27: 本商品在正常繳費的情形下，如在前5個保單年度中辦理解約或部分提領，需要扣除一定比率的解約費用或部分提領費用，例如：只繳一期保險費的解約費用率為25%，所以投保後解約或不繼續繳費可能對要保人造成不利影響。 | AA27: 3.「解約費用/部分提領費用」：本商品在正常繳費的情形下，如在前5個保單年度中辦理解約或部分提領，需要扣除一定比率的解約費用或部分提領費用，例如：只繳一期保險費的解約費用率為25%，所以投保後解約或不繼續繳費可能對要保人造成不利影響。 | AB27: 0 | AF27: 1 | AG27: 4 | AH27: 4.「投資相關費用」：如申購投資標的手續費、投資標的經理費(管理費)、帳戶管理費、轉換費用等費用。 | AI27: 0 | AL27: 1 | AN27: 【提示：購買附約者，需加錄本題項】 5.「保險成本」：在「年金累積期間」內，按月由保單帳戶價值中收取，提供帳戶型附約保障。 -保險成本原則上隨年齡增長而逐年增加，也就是說如果年紀越大每個月會被扣的保險成本有可能會更多。 -「年金累積期間」屆滿後，不再收取，附約也會終止，不再提供附約的保障。 -如果沒有附加附約，則不適用「保險成本」相關約定。 | AO27: N | AP27: Y | AQ27: ，共3期 | AR27: Y | AS27: 300000 | AX27: ="【銷售人員】： 如銷售過程中說明， 您所投保的"&B27&"的保單利益，包含： 一、返還保單帳戶價值，返還後保險契約效力終止。 二、年金累積期滿保險金，一次領取後保險契約效力終止。 三、年金給付。 "&錄音序號_確認語_2 ->  | AY27: 以下再為您說明商品重要條款內容， | AZ27: 有關【投資標的轉換】 要保人得申請將投資於某一「投資標的」的款項轉移至其他「投資標的」。 | BA27: 有關【投資標的之關閉與終止】 一、保誠人壽得主動終止某一「投資標的」，且應於終止日前三十日通知要保人。 二、保誠人壽得經所有持有「投資標的價值」之要保人同意後，主動關閉該「投資標的」，並於關閉日前三十日通知要保人。 三、保誠人壽於接獲發行或經理機構之「投資標的」終止或關閉通知時，應於五日內在保誠人壽網站公布，並於三十日內通知要保人。 | BB27: 有關【被保險人身故的通知】 被保險人身故後，要保人或受益人應於知悉被保險人發生身故後通知保誠人壽。 | BC27: 有關【年金的申領】 被保險人於「年金給付開始日」後生存期間每年第一次申領年金給付時，應提出可資證明被保險人生存之文件。但於「保證期間」內不在此限。 | BD27: 有關【保險單借款】 「年金給付開始日」前，要保人得申請保險單借款，其可借金額上限詳保單條款約定。 | BE27: 【提示：購買附約者，則問本段】 有關【寬限期間及契約效力】 「年金累積期間」內，若「保單帳戶價值」扣除保險單借款本息後不足以支付當月「保險成本」及「保單管理費」時，將催告要保人交付「目標保險費」（如要保人無欠繳之「目標保險費」，本公司將催告要保人交付「超額保險費」）， 自催告到達翌日起三十日內為寬限期間，逾寬限期間仍未交付者，將停止效力。要保人得在停效日起二年內，申請復效。但「 年金累積期間」 屆滿後不得申請復效。 【提示：無附約者，則問本段】 有關【寬限期間及契約效力】 「年金累積期間」內，若「保單帳戶價值」扣除保險單借款本息後不足以支付當月「保單管理費」時，將催告要保人交付「目標保險費」，如要保人無欠繳之「目標保險費」，將催告要保人交付「超額保險費」， 自催告到達翌日起三十日內為寬限期間，逾寬限期間仍未交付者，將停止效力。要保人得在停效日起二年內，申請復效。但「 年金累積期間」 屆滿後不得申請復效。 | BJ27: ="以上說明的詳細內容都載明於保單條款中，"&錄音序號_確認語_2 ->  | BK27: ="本商品為投資型保險，非屬存款，故不受存款保險之保障。 本商品不保證保本、不保證獲利，而且解約金有可能小於已繳之保險費。"&錄音序號_確認語_2&"另建議書中已有說明不同投資報酬率試算的保單帳戶價值、解約金、保障內容，"&錄音序號_確認語_2&"人壽保險的死亡給付及年金保險的確定年金給付於被保險人死亡後給付於指定受益人者，依保險法相關規定不能作為被保險人遺產，若有涉及規避遺產稅等稅捐時，稽徵機關可以依據有關稅法或實質課稅原則相關規定辦理。"&錄音序號_確認語_2 ->  | BQ27: 【銷售人員】： 以下再為您說明商品重要條款內容， | BW27: =BD27 -> 有關【保險單借款】 「年金給付開始日」前，要保人得申請保險單借款，其可借金額上限詳保單條款約定。 | BY27: 有關【保險給付】 包含返還保單帳戶價值、年金累積期滿保險金、年金給付。 | BZ27: =BE27 -> 【提示：購買附約者，則問本段】 有關【寬限期間及契約效力】 「年金累積期間」內，若「保單帳戶價值」扣除保險單借款本息後不足以支付當月「保險成本」及「保單管理費」時，將催告要保人交付「目標保險費」（如要保人無欠繳之「目標保險費」，本公司將催告要保人交付「超額保險費」）， 自催告到達翌日起三十日內為寬限期間，逾寬限期間仍未交付者，將停止效力。要保人得在停效日起二年內，申請復效。但「 年金累積期間」 屆滿後不得申請復效。 【提示：無附約者，則問本段】 有關【寬限期間及契約效力】 「年金累積期間」內，若「保單帳戶價值」扣除保險單借款本息後不足以支付當月「保單管理費」時，將催告要保人交付「目標保險費」，如要保人無欠繳之「目標保險費」，將催告要保人交付「超額保險費」， 自催告到達翌日起三十日內為寬限期間，逾寬限期間仍未交付者，將停止效力。要保人得在停效日起二年內，申請復效。但「 年金累積期間」 屆滿後不得申請復效。 | CC27: 以上說明的詳細內容都載明於保單條款中，請問您清楚嗎？【請客戶回答：清楚/不清楚】 | CD27: 本商品為投資型保險，非屬存款，故不受存款保險之保障。 本商品不保證保本、不保證獲利，而且解約金有可能小於已繳之保險費，請問您清楚嗎？ 人壽保險的死亡給付及年金保險的確定年金給付於被保險人死亡後給付於指定受益人者，依保險法相關規定不能作為被保險人遺產，若有涉及規避遺產稅等稅捐時，稽徵機關可以依據有關稅法或實質課稅原則相關規定辦理。【請客戶回答：清楚/不清楚】
A28: 26 | B28: 保誠人壽樂活中國外幣變額年金保險 | E28: 再次向您說明本商品收取的費用： 1.「保費費用」：第一期保費費用：當次繳交的目標保險費低於人民幣24萬元，保費費用以目標保險費的4%計算；當次繳交的目標保險費高於或等於人民幣24萬元，保費費用以目標保險費的3.8%計算。第二~三期無保費費用。 2.「保單管理費」：本商品每個月會從保單帳戶價值中收取一筆保單管理費。 3.「解約費用/部分提領費用」：本商品在正常繳費的情形下，如在前5個保單年度中辦理解約或部分提領，需要扣除保單帳戶價值或部分提領金額一定比率的解約費用或部分提領費用，例如：只繳一期保險費的解約費用率為25%；解約費用率是依實際繳交保費期數為計算基準，所以如果沒有正常繳費，可能造成超過5個保單年度辦理解約或部分提領，仍需支付解約費用或部分提領費用；所以投保後解約或不繼續繳費可能對要保人造成不利影響。 4.「投資相關費用」：如申購投資標的手續費、投資標的經理費(管理費)、帳戶管理費、轉換費用等費用。 請問您清楚嗎? 【請客戶回答：清楚/不清楚】 | I28: 第一期保費費用：當次繳交的目標保險費低於人民幣24萬元，保費費用以目標保險費的4%計算；當次繳交的目標保險費高於或等於人民幣24萬元，保費費用以目標保險費的3.8%計算。第二~三期無保費費用。 | J28: 本商品每個月會從保單帳戶價值中收取一筆保單管理費。 | K28: 本商品在正常繳費的情形下，如在前5個保單年度中辦理解約或部分提領，需要扣除保單帳戶價值或部分提領金額一定比率的解約費用或部分提領費用，例如：只繳一期保險費的解約費用率為25%；解約費用率是依實際繳交保費期數為計算基準，所以如果沒有正常繳費，可能造成超過5個保單年度辦理解約或部分提領，仍需支付解約費用或部分提領費用；所以投保後解約或不繼續繳費可能對要保人造成不利影響。 | M28: .「投資相關費用」：如申購投資標的手續費、投資標的經理費(管理費)、帳戶管理費、轉換費用等費用。 | N28: .「其它費用」：本商品相關款項之往來，若採用保誠人壽指定銀行之外幣帳戶，無需負擔所產生之匯款相關費用，但若非採用保誠人壽指定銀行之外幣帳戶者，則會收取匯款費用。 | P28: 1 | Q28: 1 | R28: 第一期保費費用：當次繳交的目標保險費低於人民幣24萬元，保費費用以目標保險費的4%計算；當次繳交的目標保險費高於或等於人民幣24萬元，保費費用以目標保險費的3.8%計算。第二~三期無保費費用。 | S28: 1.「保費費用」：第一期保費費用：當次繳交的目標保險費低於人民幣24萬元，保費費用以目標保險費的4%計算；當次繳交的目標保險費高於或等於人民幣24萬元，保費費用以目標保險費的3.8%計算。第二~三期無保費費用。 | T28: 1 | U28: 2 | V28: 保單帳戶價值 | W28: 2.「保單管理費」：本商品每個月會從保單帳戶價值中收取一筆保單管理費。 | X28: 1 | Y28: 3 | Z28: 本商品在正常繳費的情形下，如在前5個保單年度中辦理解約或部分提領，需要扣除保單帳戶價值或部分提領金額一定比率的解約費用或部分提領費用，例如：只繳一期保險費的解約費用率為25%；解約費用率是依實際繳交保費期數為計算基準，所以如果沒有正常繳費，可能造成超過5個保單年度辦理解約或部分提領，仍需支付解約費用或部分提領費用；所以投保後解約或不繼續繳費可能對要保人造成不利影響。 | AA28: 3.「解約費用/部分提領費用」：本商品在正常繳費的情形下，如在前5個保單年度中辦理解約或部分提領，需要扣除保單帳戶價值或部分提領金額一定比率的解約費用或部分提領費用，例如：只繳一期保險費的解約費用率為25%；解約費用率是依實際繳交保費期數為計算基準，所以如果沒有正常繳費，可能造成超過5個保單年度辦理解約或部分提領，仍需支付解約費用或部分提領費用；所以投保後解約或不繼續繳費可能對要保人造成不利影響。 | AB28: 0 | AF28: 1 | AG28: 4 | AH28: 4.「投資相關費用」：如申購投資標的手續費、投資標的經理費(管理費)、帳戶管理費、轉換費用等費用。 | AI28: 0 | AK28: =IF(AI28=0,""," "&AJ28&N28) ->  | AL28: 0 | AO28: N | AP28: Y | AQ28: ，共3期 | AR28: Y | AS28: 60000 | AX28: ="【銷售人員】： 如銷售過程中說明， 您所投保的"&B28&"的保單利益，包含： 一、返還保單帳戶價值，返還後保險契約效力終止。 二、年金累積期滿保險金，一次領取後保險契約效力終止。 三、年金給付。 "&錄音序號_確認語_2 ->  | AY28: 以下再為您說明商品重要條款內容， | AZ28: 有關【投資標的轉換】 要保人得申請將投資於某一「投資標的」的款項轉移至其他「投資標的」。 | BA28: 有關【投資標的之關閉與終止】 一、保誠人壽得主動終止某一「投資標的」，且應於終止日前三十日通知要保人。 二、保誠人壽得經所有持有「投資標的價值」之要保人同意後，主動關閉該「投資標的」，並於關閉日前三十日通知要保人。 三、保誠人壽於接獲發行或經理機構之「投資標的」終止或關閉通知時，應於五日內在保誠人壽網站公布，並於三十日內通知要保人。 | BB28: 有關【被保險人身故的通知】 被保險人身故後，要保人或受益人應於知悉被保險人發生身故後通知保誠人壽。 | BC28: 有關【年金的申領】 被保險人於「年金給付開始日」後生存期間每年第一次申領年金給付時，應提出可資證明被保險人生存之文件。但於「保證期間」內不在此限。 | BD28: 有關【保險單借款】 「年金給付開始日」前，要保人得申請保險單借款，其可借金額上限詳保單條款約定。 | BE28: 有關【寬限期間及契約效力】 「年金累積期間」內，若「保單帳戶價值」扣除保險單借款本息後不足以支付當月「保單管理費」時，將催告要保人交付「目標保險費」，如要保人無欠繳之「目標保險費」，將催告要保人交付「超額保險費」， 自催告到達翌日起三十日內為寬限期間，逾寬限期間仍未交付者，將停止效力。要保人得在停效日起二年內，申請復效。但「 年金累積期間」 屆滿後不得申請復效。 | BK28: ="本商品為投資型保險，非屬存款，故不受存款保險之保障。 本商品不保證保本、不保證獲利，而且解約金有可能小於已繳之保險費。"&錄音序號_確認語_2&"另建議書中已有說明不同投資報酬率試算的保單帳戶價值、解約金、保障內容，"&錄音序號_確認語_2&"人壽保險的死亡給付及年金保險的確定年金給付於被保險人死亡後給付於指定受益人者，依保險法相關規定不能作為被保險人遺產，若有涉及規避遺產稅等稅捐時，稽徵機關可以依據有關稅法或實質課稅原則相關規定辦理。"&錄音序號_確認語_2 ->  | BQ28: 【銷售人員】： 以下再為您說明商品重要條款內容， | BW28: =BD28 -> 有關【保險單借款】 「年金給付開始日」前，要保人得申請保險單借款，其可借金額上限詳保單條款約定。 | BX28: =BE28 -> 有關【寬限期間及契約效力】 「年金累積期間」內，若「保單帳戶價值」扣除保險單借款本息後不足以支付當月「保單管理費」時，將催告要保人交付「目標保險費」，如要保人無欠繳之「目標保險費」，將催告要保人交付「超額保險費」， 自催告到達翌日起三十日內為寬限期間，逾寬限期間仍未交付者，將停止效力。要保人得在停效日起二年內，申請復效。但「 年金累積期間」 屆滿後不得申請復效。 | BY28: 有關【保險給付】 包含返還保單帳戶價值、年金累積期滿保險金、年金給付。 | CC28: 以上說明的詳細內容都載明於保單條款中，請問您清楚嗎？【請客戶回答：清楚/不清楚】 | CD28: 本商品為投資型保險，非屬存款，故不受存款保險之保障。 本商品不保證保本、不保證獲利，而且解約金有可能小於已繳之保險費，請問您清楚嗎？ 人壽保險的死亡給付及年金保險的確定年金給付於被保險人死亡後給付於指定受益人者，依保險法相關規定不能作為被保險人遺產，若有涉及規避遺產稅等稅捐時，稽徵機關可以依據有關稅法或實質課稅原則相關規定辦理。【請客戶回答：清楚/不清楚】
A29: 27 | B29: 保誠人壽樂活美金外幣變額年金保險 | E29: 再次向您說明本商品收取的費用： 1.「保費費用」：第一期保費費用:當次繳交的目標保險費低於美元3萬5千元，保費費用以目標保險費的4%計算；當次繳交的目標保險費高於或等於美元3萬5千元，保費費用以目標保險費的3.8%計算。第二~三期無保費費用。 2.「保單管理費」：本商品每個月會從保單帳戶價值中收取一筆保單管理費。 3.「解約費用/部分提領費用」：本商品在正常繳費的情形下，如在前5個保單年度中辦理解約或部分提領，需要扣除保單帳戶價值或部分提領金額一定比率的解約費用或部分提領費用，例如：只繳一期保險費的解約費用率為25%；解約費用率是依實際繳交保費期數為計算基準，所以如果沒有正常繳費，可能造成超過5個保單年度辦理解約或部分提領，仍需支付解約費用或部分提領費用；所以投保後解約或不繼續繳費可能對要保人造成不利影響。 4.「投資相關費用」：如申購投資標的手續費、投資標的經理費(管理費)、帳戶管理費、轉換費用等費用。 請問您清楚嗎? 【請客戶回答：清楚/不清楚】 | I29: 第一期保費費用:當次繳交的目標保險費低於美元3萬5千元，保費費用以目標保險費的4%計算；當次繳交的目標保險費高於或等於美元3萬5千元，保費費用以目標保險費的3.8%計算。第二~三期無保費費用。 | J29: 本商品每個月會從保單帳戶價值中收取一筆保單管理費。 | K29: 本商品在正常繳費的情形下，如在前5個保單年度中辦理解約或部分提領，需要扣除保單帳戶價值或部分提領金額一定比率的解約費用或部分提領費用，例如：只繳一期保險費的解約費用率為25%；解約費用率是依實際繳交保費期數為計算基準，所以如果沒有正常繳費，可能造成超過5個保單年度辦理解約或部分提領，仍需支付解約費用或部分提領費用；所以投保後解約或不繼續繳費可能對要保人造成不利影響。 | M29: .「投資相關費用」：如申購投資標的手續費、投資標的經理費(管理費)、帳戶管理費、轉換費用等費用。 | N29: .「其它費用」：本商品相關款項之往來，若採用保誠人壽指定銀行之外幣帳戶，無需負擔所產生之匯款相關費用，但若非採用保誠人壽指定銀行之外幣帳戶者，則會收取匯款費用。 | P29: 1 | Q29: 1 | R29: 第一期保費費用:當次繳交的目標保險費低於美元3萬5千元，保費費用以目標保險費的4%計算；當次繳交的目標保險費高於或等於美元3萬5千元，保費費用以目標保險費的3.8%計算。第二~三期無保費費用。 | S29: =IF(P29=0,"",Q29&".「保費費用」："&R29&" ") -> 1.「保費費用」：第一期保費費用:當次繳交的目標保險費低於美元3萬5千元，保費費用以目標保險費的4%計算；當次繳交的目標保險費高於或等於美元3萬5千元，保費費用以目標保險費的3.8%計算。第二~三期無保費費用。 | T29: 1 | U29: 2 | V29: 保單帳戶價值 | W29: =IF(T29=0,"",U29&".「保單管理費」："&J29 ) -> 2.「保單管理費」：本商品每個月會從保單帳戶價值中收取一筆保單管理費。 | X29: 1 | Y29: 3 | Z29: 本商品在正常繳費的情形下，如在前5個保單年度中辦理解約或部分提領，需要扣除保單帳戶價值或部分提領金額一定比率的解約費用或部分提領費用，例如：只繳一期保險費的解約費用率為25%；解約費用率是依實際繳交保費期數為計算基準，所以如果沒有正常繳費，可能造成超過5個保單年度辦理解約或部分提領，仍需支付解約費用或部分提領費用；所以投保後解約或不繼續繳費可能對要保人造成不利影響。 | AA29: 3.「解約費用/部分提領費用」：本商品在正常繳費的情形下，如在前5個保單年度中辦理解約或部分提領，需要扣除保單帳戶價值或部分提領金額一定比率的解約費用或部分提領費用，例如：只繳一期保險費的解約費用率為25%；解約費用率是依實際繳交保費期數為計算基準，所以如果沒有正常繳費，可能造成超過5個保單年度辦理解約或部分提領，仍需支付解約費用或部分提領費用；所以投保後解約或不繼續繳費可能對要保人造成不利影響。 | AB29: 0 | AF29: 1 | AG29: 4 | AH29: 4.「投資相關費用」：如申購投資標的手續費、投資標的經理費(管理費)、帳戶管理費、轉換費用等費用。 | AI29: 0 | AL29: 0 | AO29: N | AP29: Y | AQ29: ，共3期 | AR29: Y | AS29: 10000 | AX29: ="【銷售人員】： 如銷售過程中說明， 您所投保的"&B29&"的保單利益，包含： 一、返還保單帳戶價值，返還後保險契約效力終止。 二、年金累積期滿保險金，一次領取後保險契約效力終止。 三、年金給付。 "&錄音序號_確認語_2 ->  | AY29: 以下再為您說明商品重要條款內容， | AZ29: 有關【投資標的轉換】 要保人得申請將投資於某一「投資標的」的款項轉移至其他「投資標的」。 | BA29: 有關【投資標的之關閉與終止】 一、保誠人壽得主動終止某一「投資標的」，且應於終止日前三十日通知要保人。 二、保誠人壽得經所有持有「投資標的價值」之要保人同意後，主動關閉該「投資標的」，並於關閉日前三十日通知要保人。 三、保誠人壽於接獲發行或經理機構之「投資標的」終止或關閉通知時，應於五日內在保誠人壽網站公布，並於三十日內通知要保人。 | BB29: 有關【被保險人身故的通知】 被保險人身故後，要保人或受益人應於知悉被保險人發生身故後通知保誠人壽。 | BC29: 有關【年金的申領】 被保險人於「年金給付開始日」後生存期間每年第一次申領年金給付時，應提出可資證明被保險人生存之文件。但於「保證期間」內不在此限。 | BD29: 有關【保險單借款】 「年金給付開始日」前，要保人得申請保險單借款，其可借金額上限詳保單條款約定。 | BE29: 有關【寬限期間及契約效力】 「年金累積期間」內，若「保單帳戶價值」扣除保險單借款本息後不足以支付當月「保單管理費」時，將催告要保人交付「目標保險費」，如要保人無欠繳之「目標保險費」，將催告要保人交付「超額保險費」， 自催告到達翌日起三十日內為寬限期間，逾寬限期間仍未交付者，將停止效力。要保人得在停效日起二年內，申請復效。但「 年金累積期間」 屆滿後不得申請復效。 | BK29: ="本商品為投資型保險，非屬存款，故不受存款保險之保障。 本商品不保證保本、不保證獲利，而且解約金有可能小於已繳之保險費。"&錄音序號_確認語_2&"另建議書中已有說明不同投資報酬率試算的保單帳戶價值、解約金、保障內容，"&錄音序號_確認語_2&"人壽保險的死亡給付及年金保險的確定年金給付於被保險人死亡後給付於指定受益人者，依保險法相關規定不能作為被保險人遺產，若有涉及規避遺產稅等稅捐時，稽徵機關可以依據有關稅法或實質課稅原則相關規定辦理。"&錄音序號_確認語_2 ->  | BQ29: 【銷售人員】： 以下再為您說明商品重要條款內容， | BW29: 有關【保險單借款】 「年金給付開始日」前，要保人得申請保險單借款，其可借金額上限詳保單條款約定。 | BX29: =BE29 -> 有關【寬限期間及契約效力】 「年金累積期間」內，若「保單帳戶價值」扣除保險單借款本息後不足以支付當月「保單管理費」時，將催告要保人交付「目標保險費」，如要保人無欠繳之「目標保險費」，將催告要保人交付「超額保險費」， 自催告到達翌日起三十日內為寬限期間，逾寬限期間仍未交付者，將停止效力。要保人得在停效日起二年內，申請復效。但「 年金累積期間」 屆滿後不得申請復效。 | BY29: 有關【保險給付】 包含返還保單帳戶價值、年金累積期滿保險金、年金給付。 | CC29: 以上說明的詳細內容都載明於保單條款中，請問您清楚嗎？【請客戶回答：清楚/不清楚】 | CD29: 本商品為投資型保險，非屬存款，故不受存款保險之保障。 本商品不保證保本、不保證獲利，而且解約金有可能小於已繳之保險費，請問您清楚嗎？ 人壽保險的死亡給付及年金保險的確定年金給付於被保險人死亡後給付於指定受益人者，依保險法相關規定不能作為被保險人遺產，若有涉及規避遺產稅等稅捐時，稽徵機關可以依據有關稅法或實質課稅原則相關規定辦理。【請客戶回答：清楚/不清楚】
A30: 28 | B30: 保誠人壽鑫想事成變額壽險 | D30: ="再次向您說明本商品收取的費用： "&S30&W30&AA30&AD30&AH30&AK30&AN30&錄音序號_確認語_2 ->  | I30: 本商品保費費用為0 | J30: 本商品每個月會從保單帳戶價值中收取一筆保單管理費。 | K30: 本商品前面幾年如辦理解約或部分提領，則須扣除解約費用或部分提領費用。第1至第4保單年度分別為保單帳戶價值或部分提領金額的7%、6%、5%、0.98%，第5保單年度以後為0%。 | M30: .「投資相關費用」：如申購投資標的手續費、投資標的經理費(管理費)、帳戶管理費、轉換費用等費用。 | P30: 0 | R30: 本商品保費費用為0 | T30: 1 | U30: 1 | V30: 保單帳戶價值 | W30: =IF(T30=0,"",U30&".「保單管理費」："&J30) -> 1.「保單管理費」：本商品每個月會從保單帳戶價值中收取一筆保單管理費。 | X30: 1 | Y30: 2 | Z30: 本商品前面幾年如辦理解約或部分提領，則須扣除解約費用或部分提領費用。第1至第4保單年度分別為保單帳戶價值或部分提領金額的7%、6%、5%、0.98%，第5保單年度以後為0%。 | AA30: 2.「解約費用/部分提領費用」：本商品前面幾年如辦理解約或部分提領，則須扣除解約費用或部分提領費用。第1至第4保單年度分別為保單帳戶價值或部分提領金額的7%、6%、5%、0.98%，第5保單年度以後為0%。 | AB30: 1 | AC30: 3 | AE30: 每個月 | AF30: 1 | AG30: 4 | AH30: 4.「投資相關費用」：如申購投資標的手續費、投資標的經理費(管理費)、帳戶管理費、轉換費用等費用。 | AI30: 0 | AL30: 0 | AO30: Y | AP30: N | AR30: N | AX30: ="【銷售人員】： 如銷售過程中說明， 您所投保的保誠人壽鑫想事成變額壽險的保單利益，包含： 一、祝壽保險金。 二、身故保險金或喪葬費用保險金 。 三、完全失能保險金。 "&錄音序號_確認語_2 ->  | AY30: 以下再為您說明商品重要條款內容， | AZ30: 有關【投資標的轉換】 要保人得申請將投資於某一「投資標的」的款項轉移至其他「投資標的」。 | BA30: 有關【投資標的之關閉與終止】 一、保誠人壽得主動終止某一「投資標的」，且應於終止日前三十日通知要保人。 二、保誠人壽得經所有持有「投資標的價值」之要保人同意後，主動關閉該「投資標的」，並於關閉日前三十日通知要保人。 三、保誠人壽於接獲發行或經理機構之「投資標的」終止或關閉通知時，應於五日內在保誠人壽網站公布，並於三十日內通知要保人。 | BB30: 有關【保險事故的通知與保險金的申請時間】 要保人或受益人應於知悉保險事故後十日內通知保誠人壽，並於通知後儘速檢具所需文件申請給付保險金。 | BC30: 有關【除外責任】 因除外責任所導致的保險事故發生，保誠人壽不負給付各項保險金之責任。 本商品除外責任包括，要、被保險人故意行為或被保險人犯罪行為等。完整之除外責任請詳保單條款。 | BD30: 有關【保險單借款】 本契約有效期間內，要保人得申請保險單借款，其可借金額上限詳保單條款約定。 | BE30: 有關【寬限期間及契約效力】 「保單帳戶價值」扣除保險單借款本息後不足以支付當月「保險成本」及「保單管理費」時，將催告要保人交付「超額保險費」， 自催告到達翌日起三十日內為寬限期間，逾寬限期間仍未交付者，將停止效力。要保人得在停效日起二年內，申請復效。 | BK30: ="本商品為投資型保險，非屬存款，故不受存款保險之保障。 本商品不保證保本、不保證獲利，而且解約金有可能小於已繳之保險費。"&錄音序號_確認語_2&"另建議書中已有說明不同投資報酬率試算的保單帳戶價值、解約金、保障內容，"&錄音序號_確認語_2&"人壽保險的死亡給付於被保險人死亡後給付於指定受益人者，依保險法相關規定不能作為被保險人遺產，若有涉及規避遺產稅等稅捐時，稽徵機關可以依據有關稅法或實質課稅原則相關規定辦理。"&錄音序號_確認語_2 ->  | BQ30: 【銷售人員】： 以下再為您說明商品重要條款內容， | BV30: 有關【除外責任】 因除外責任所導致的保險事故發生，保誠人壽不負給付各項保險金之責任。 本商品除外責任包括，要、被保險人故意行為或被保險人犯罪行為等。完整之除外責任請詳保單條款。 | BW30: 有關【保險單借款】 本契約有效期間內，要保人得申請保險單借款，可借金額上限詳保單條款約定。 | BX30: 有關【寬限期間及契約效力】 「保單帳戶價值」扣除保險單借款本息後不足以支付當月「保險成本」及「保單管理費」時，將催告要保人交付「超額保險費」，逾寬限期間仍未交付者，將停止效力。 | BY30: 有關【保險給付】 包含祝壽保險金、身故保險金或喪葬費用保險金 、完全失能保險金。 | CC30: 以上說明的詳細內容都載明於保單條款中，請問您清楚嗎？【請客戶回答：清楚/不清楚】 | CD30: 本商品為投資型保險，非屬存款，故不受存款保險之保障。 本商品不保證保本、不保證獲利，而且解約金有可能小於已繳之保險費，請問您清楚嗎？ 人壽保險的死亡給付於被保險人死亡後給付於指定受益人者，依保險法相關規定不能作為被保險人遺產，若有涉及規避遺產稅等稅捐時，稽徵機關可以依據有關稅法或實質課稅原則相關規定辦理。【請客戶回答：清楚/不清楚】
A31: 29 | B31: 保誠人壽鑫想事成變額年金保險 | E31: 再次向您說明本商品收取的費用： 1.「保單管理費」：本商品每個月會從保單帳戶價值中收取一筆保單管理費。 2.「解約費用/部分提領費用」：本商品前面幾年如辦理解約或部分提領，則須扣除解約費用或部分提領費用。本商品解約費用率：第1至第4保單年度分別為保單帳戶價值或部分提領金額的7%、6%、5%、0.98%，第5保單年度以後為0%。 3.「投資相關費用」：如申購投資標的手續費、投資標的經理費(管理費)、帳戶管理費、轉換費用等費用。 請問您清楚嗎? 【請客戶回答：清楚/不清楚】 | I31: 本商品保費費用為0 | J31: 本商品每個月會從保單帳戶價值中收取一筆保單管理費。 | K31: 本商品前面幾年如辦理解約或部分提領，則須扣除解約費用或部分提領費用。本商品解約費用率：第1至第4保單年度分別為保單帳戶價值或部分提領金額的7%、6%、5%、0.98%，第5保單年度以後為0%。 | M31: .「投資相關費用」：如申購投資標的手續費、投資標的經理費(管理費)、帳戶管理費、轉換費用等費用。 | P31: 0 | R31: 本商品保費費用為0 | T31: 1 | U31: 1 | V31: 保單帳戶價值 | W31: =IF(T31=0,"",U31&".「保單管理費」："&J31) -> 1.「保單管理費」：本商品每個月會從保單帳戶價值中收取一筆保單管理費。 | X31: 1 | Y31: 2 | Z31: 本商品前面幾年如辦理解約或部分提領，則須扣除解約費用或部分提領費用。本商品解約費用率：第1至第4保單年度分別為保單帳戶價值或部分提領金額的7%、6%、5%、0.98%，第5保單年度以後為0%。 | AA31: 2.「解約費用/部分提領費用」：本商品前面幾年如辦理解約或部分提領，則須扣除解約費用或部分提領費用。本商品解約費用率：第1至第4保單年度分別為保單帳戶價值或部分提領金額的7%、6%、5%、0.98%，第5保單年度以後為0%。 | AB31: 0 | AF31: 1 | AG31: 3 | AH31: 3.「投資相關費用」：如申購投資標的手續費、投資標的經理費(管理費)、帳戶管理費、轉換費用等費用。 | AI31: 0 | AL31: 0 | AO31: Y | AP31: N | AR31: N | AX31: ="【銷售人員】： 如銷售過程中說明， 您所投保的保誠人壽鑫想事成變額年金保險的保單利益，包含： 一、返還保單帳戶價值，返還後保險契約效力終止。 二、年金累積期滿保險金，一次領取後保險契約效力終止。 三、年金給付。 "&錄音序號_確認語_2 ->  | AY31: 以下再為您說明商品重要條款內容， | AZ31: 有關【投資標的轉換】 要保人得申請將投資於某一「投資標的」的款項轉移至其他「投資標的」。 | BA31: 有關【投資標的之關閉與終止】 一、保誠人壽得主動終止某一「投資標的」，且應於終止日前三十日通知要保人。 二、保誠人壽得經所有持有「投資標的價值」之要保人同意後，主動關閉該「投資標的」，並於關閉日前三十日通知要保人。 三、保誠人壽於接獲發行或經理機構之「投資標的」終止或關閉通知時，應於五日內在保誠人壽網站公布，並於三十日內通知要保人。 | BB31: 有關【被保險人身故的通知】 被保險人身故後，要保人或受益人應於知悉被保險人發生身故後通知保誠人壽。 | BC31: 有關【年金的申領】 被保險人於「年金給付開始日」後生存期間每年第一次申領年金給付時，應提出可資證明被保險人生存之文件。但於「保證期間」內不在此限。 | BD31: 有關【保險單借款】 「年金給付開始日」前，要保人得申請保險單借款，其可借金額上限詳保單條款約定。 | BE31: 有關【寬限期間及契約效力】 「年金累積期間」內，若「保單帳戶價值」扣除保險單借款本息後不足以支付當月「保單管理費」時，將催告要保人交付「超額保險費」， 自催告到達翌日起三十日內為寬限期間，逾寬限期間仍未交付者，將停止效力。要保人得在停效日起二年內，申請復效。但「 年金累積期間」 屆滿後不得申請復效。 | BK31: ="本商品為投資型保險，非屬存款，故不受存款保險之保障。 本商品不保證保本、不保證獲利，而且解約金有可能小於已繳之保險費。"&錄音序號_確認語_2&"另建議書中已有說明不同投資報酬率試算的保單帳戶價值、解約金、保障內容，"&錄音序號_確認語_2&"人壽保險的死亡給付及年金保險的確定年金給付於被保險人死亡後給付於指定受益人者，依保險法相關規定不能作為被保險人遺產，若有涉及規避遺產稅等稅捐時，稽徵機關可以依據有關稅法或實質課稅原則相關規定辦理。"&錄音序號_確認語_2 ->  | BQ31: 【銷售人員】： 以下再為您說明商品重要條款內容， | BW31: 有關【保險單借款】 「年金給付開始日」前，要保人得申請保險單借款，可借金額上限詳保單條款約定。 | BX31: 有關【寬限期間及契約效力】 「年金累積期間」內，若「保單帳戶價值」扣除保險單借款本息後不足以支付當月「保單管理費」時，將催告要保人交付「超額保險費」， 自催告到達翌日起三十日內為寬限期間，逾寬限期間仍未交付者，將停止效力。 | BY31: 有關【保險給付】 包含返還保單帳戶價值、年金累積期滿保險金、年金給付。 | CC31: 以上說明的詳細內容都載明於保單條款中，請問您清楚嗎？【請客戶回答：清楚/不清楚】 | CD31: 本商品為投資型保險，非屬存款，故不受存款保險之保障。 本商品不保證保本、不保證獲利，而且解約金有可能小於已繳之保險費，請問您清楚嗎？ 人壽保險的死亡給付及年金保險的確定年金給付於被保險人死亡後給付於指定受益人者，依保險法相關規定不能作為被保險人遺產，若有涉及規避遺產稅等稅捐時，稽徵機關可以依據有關稅法或實質課稅原則相關規定辦理。【請客戶回答：清楚/不清楚】
A32: 30 | B32: 保誠人壽鑫想事成外幣變額壽險 | I32: 本商品保費費用為0 | J32: 本商品每個月會從保單帳戶價值中收取一筆保單管理費。 | K32: 本商品前面幾年如辦理解約或部分提領，則須扣除解約費用或部分提領費用。本商品解約費用率：第1至第4保單年度分別為保單帳戶價值或部分提領金額的7%、6%、5%、0.98%，第5保單年度以後為0%。 | M32: .「投資相關費用」：如申購投資標的手續費、投資標的經理費(管理費)、帳戶管理費、轉換費用等費用。 | N32: .「其它費用」：本商品相關款項之往來，若採用保誠人壽指定銀行之外幣帳戶，無需負擔所產生之匯款相關費用，但若非採用保誠人壽指定銀行之外幣帳戶者，則會收取匯款費用。 | P32: 0 | R32: 本商品保費費用為0 | T32: 1 | U32: 1 | V32: 保單帳戶價值 | W32: =IF(T32=0,"",U32&".「保單管理費」："&J32) -> 1.「保單管理費」：本商品每個月會從保單帳戶價值中收取一筆保單管理費。 | X32: 1 | Y32: 2 | Z32: 本商品前面幾年如辦理解約或部分提領，則須扣除解約費用或部分提領費用。本商品解約費用率：第1至第4保單年度分別為保單帳戶價值或部分提領金額的7%、6%、5%、0.98%，第5保單年度以後為0%。 | AA32: 2.「解約費用/部分提領費用」：本商品前面幾年如辦理解約或部分提領，則須扣除解約費用或部分提領費用。本商品解約費用率：第1至第4保單年度分別為保單帳戶價值或部分提領金額的7%、6%、5%、0.98%，第5保單年度以後為0%。 | AB32: 1 | AC32: 3 | AE32: 每個月 | AF32: 1 | AG32: 4 | AH32: 4.「投資相關費用」：如申購投資標的手續費、投資標的經理費(管理費)、帳戶管理費、轉換費用等費用。 | AI32: 0 | AK32: =IF(AI32=0,""," "&AJ32&N32) ->  | AL32: 0 | AO32: Y | AP32: N | AR32: N | AX32: ="【銷售人員】： 如銷售過程中說明， 您所投保的保誠人壽鑫想事成外幣變額壽險的保單利益，包含： 一、祝壽保險金。 二、身故保險金或喪葬費用保險金 。 三、完全失能保險金。 "&錄音序號_確認語_2 ->  | AY32: 以下再為您說明商品重要條款內容， | AZ32: 有關【投資標的轉換】 要保人得申請將投資於某一「投資標的」的款項轉移至其他「投資標的」。 | BA32: 有關【投資標的之關閉與終止】 一、保誠人壽得主動終止某一「投資標的」，且應於終止日前三十日通知要保人。 二、保誠人壽得經所有持有「投資標的價值」之要保人同意後，主動關閉該「投資標的」，並於關閉日前三十日通知要保人。 三、保誠人壽於接獲發行或經理機構之「投資標的」終止或關閉通知時，應於五日內在保誠人壽網站公布，並於三十日內通知要保人。 | BB32: 有關【保險事故的通知與保險金的申請時間】 要保人或受益人應於知悉保險事故後十日內通知保誠人壽，並於通知後儘速檢具所需文件申請給付保險金。 | BC32: 有關【除外責任】 因除外責任所導致的保險事故發生，保誠人壽不負給付各項保險金之責任。 本商品除外責任包括，要、被保險人故意行為或被保險人犯罪行為等。完整之除外責任請詳保單條款。 | BD32: 有關【保險單借款】 本契約有效期間內，要保人得申請保險單借款，其可借金額上限詳保單條款約定。 | BE32: 有關【寬限期間及契約效力】 「保單帳戶價值」扣除保險單借款本息後不足以支付當月「保險成本」及「保單管理費」時，將催告要保人交付「超額保險費」， 自催告到達翌日起三十日內為寬限期間，逾寬限期間仍未交付者，將停止效力。要保人得在停效日起二年內，申請復效。 | BK32: ="本商品為投資型保險，非屬存款，故不受存款保險之保障。 本商品不保證保本、不保證獲利，而且解約金有可能小於已繳之保險費。"&錄音序號_確認語_2&"另建議書中已有說明不同投資報酬率試算的保單帳戶價值、解約金、保障內容，"&錄音序號_確認語_2&"人壽保險的死亡給付於被保險人死亡後給付於指定受益人者，依保險法相關規定不能作為被保險人遺產，若有涉及規避遺產稅等稅捐時，稽徵機關可以依據有關稅法或實質課稅原則相關規定辦理。"&錄音序號_確認語_2 ->  | BQ32: 【銷售人員】： 以下再為您說明商品重要條款內容， | BV32: 有關【除外責任】 因除外責任所導致的保險事故發生，保誠人壽不負給付各項保險金之責任。 本商品除外責任包括，要、被保險人故意行為或被保險人犯罪行為等。完整之除外責任請詳保單條款。 | BW32: 有關【保險單借款】 本契約有效期間內，要保人得申請保險單借款，可借金額上限詳保單條款約定。 | BX32: 有關【寬限期間及契約效力】 「保單帳戶價值」扣除保險單借款本息後不足以支付當月「保險成本」及「保單管理費」時，將催告要保人交付「超額保險費」，逾寬限期間仍未交付者，將停止效力。 | BY32: 有關【保險給付】 包含祝壽保險金、身故保險金或喪葬費用保險金 、完全失能保險金。 | CC32: 以上說明的詳細內容都載明於保單條款中，請問您清楚嗎？【請客戶回答：清楚/不清楚】 | CD32: 本商品為投資型保險，非屬存款，故不受存款保險之保障。 本商品不保證保本、不保證獲利，而且解約金有可能小於已繳之保險費，請問您清楚嗎？ 人壽保險的死亡給付於被保險人死亡後給付於指定受益人者，依保險法相關規定不能作為被保險人遺產，若有涉及規避遺產稅等稅捐時，稽徵機關可以依據有關稅法或實質課稅原則相關規定辦理。【請客戶回答：清楚/不清楚】
A33: 31 | B33: 保誠人壽鑫想事成外幣變額年金保險 | E33: 再次向您說明本商品收取的費用： 1.「保單管理費」：本商品每個月會從保單帳戶價值中收取一筆保單管理費。 2.「解約費用/部分提領費用」：本商品前面幾年如辦理解約或部分提領，則須扣除解約費用或部分提領費用。本商品解約費用率：第1至第4保單年度分別為保單帳戶價值或部分提領金額的7%、6%、5%、0.98%，第5保單年度以後為0%。 3.「投資相關費用」：如申購投資標的手續費、投資標的經理費(管理費)、帳戶管理費、轉換費用等費用。 請問您清楚嗎? 【請客戶回答：清楚/不清楚】 | I33: 本商品保費費用為0 | J33: 本商品每個月會從保單帳戶價值中收取一筆保單管理費。 | K33: 本商品前面幾年如辦理解約或部分提領，則須扣除解約費用或部分提領費用。本商品解約費用率：第1至第4保單年度分別為保單帳戶價值或部分提領金額的7%、6%、5%、0.98%，第5保單年度以後為0%。 | M33: .「投資相關費用」：如申購投資標的手續費、投資標的經理費(管理費)、帳戶管理費、轉換費用等費用。 | N33: .「其它費用」：本商品相關款項之往來，若採用保誠人壽指定銀行之外幣帳戶，無需負擔所產生之匯款相關費用，但若非採用保誠人壽指定銀行之外幣帳戶者，則會收取匯款費用。 | P33: 0 | R33: 本商品保費費用為0 | T33: 1 | U33: 1 | V33: 保單帳戶價值 | W33: =IF(T33=0,"",U33&".「保單管理費」："&J33) -> 1.「保單管理費」：本商品每個月會從保單帳戶價值中收取一筆保單管理費。 | X33: 1 | Y33: 2 | Z33: 本商品前面幾年如辦理解約或部分提領，則須扣除解約費用或部分提領費用。本商品解約費用率：第1至第4保單年度分別為保單帳戶價值或部分提領金額的7%、6%、5%、0.98%，第5保單年度以後為0%。 | AA33: 2.「解約費用/部分提領費用」：本商品前面幾年如辦理解約或部分提領，則須扣除解約費用或部分提領費用。本商品解約費用率：第1至第4保單年度分別為保單帳戶價值或部分提領金額的7%、6%、5%、0.98%，第5保單年度以後為0%。 | AB33: 0 | AF33: 1 | AG33: 3 | AH33: 3.「投資相關費用」：如申購投資標的手續費、投資標的經理費(管理費)、帳戶管理費、轉換費用等費用。 | AI33: 0 | AL33: 0 | AO33: Y | AP33: N | AR33: N | AX33: ="【銷售人員】： 如銷售過程中說明， 您所投保的保誠人壽鑫想事成外幣變額年金保險的保單利益，包含： 一、返還保單帳戶價值，返還後保險契約效力終止。 二、年金累積期滿保險金，一次領取後保險契約效力終止。 三、年金給付。 "&錄音序號_確認語_2 ->  | AY33: 以下再為您說明商品重要條款內容， | AZ33: 有關【投資標的轉換】 要保人得申請將投資於某一「投資標的」的款項轉移至其他「投資標的」。 | BA33: 有關【投資標的之關閉與終止】 一、保誠人壽得主動終止某一「投資標的」，且應於終止日前三十日通知要保人。 二、保誠人壽得經所有持有「投資標的價值」之要保人同意後，主動關閉該「投資標的」，並於關閉日前三十日通知要保人。 三、保誠人壽於接獲發行或經理機構之「投資標的」終止或關閉通知時，應於五日內在保誠人壽網站公布，並於三十日內通知要保人。 | BB33: 有關【被保險人身故的通知】 被保險人身故後，要保人或受益人應於知悉被保險人發生身故後通知保誠人壽。 | BC33: 有關【年金的申領】 被保險人於「年金給付開始日」後生存期間每年第一次申領年金給付時，應提出可資證明被保險人生存之文件。但於「保證期間」內不在此限。 | BD33: 有關【保險單借款】 「年金給付開始日」前，要保人得申請保險單借款，其可借金額上限詳保單條款約定。 | BE33: 有關【寬限期間及契約效力】 「年金累積期間」內，若「保單帳戶價值」扣除保險單借款本息後不足以支付當月「保單管理費」時，將催告要保人交付「超額保險費」， 自催告到達翌日起三十日內為寬限期間，逾寬限期間仍未交付者，將停止效力。要保人得在停效日起二年內，申請復效。但「 年金累積期間」 屆滿後不得申請復效。 | BK33: ="本商品為投資型保險，非屬存款，故不受存款保險之保障。 本商品不保證保本、不保證獲利，而且解約金有可能小於已繳之保險費。"&錄音序號_確認語_2&"另建議書中已有說明不同投資報酬率試算的保單帳戶價值、解約金、保障內容，"&錄音序號_確認語_2&"人壽保險的死亡給付及年金保險的確定年金給付於被保險人死亡後給付於指定受益人者，依保險法相關規定不能作為被保險人遺產，若有涉及規避遺產稅等稅捐時，稽徵機關可以依據有關稅法或實質課稅原則相關規定辦理。"&錄音序號_確認語_2 ->  | BQ33: 【銷售人員】： 以下再為您說明商品重要條款內容， | BW33: 有關【保險單借款】 「年金給付開始日」前，要保人得申請保險單借款，可借金額上限詳保單條款約定。 | BX33: 有關【寬限期間及契約效力】 「年金累積期間」內，若「保單帳戶價值」扣除保險單借款本息後不足以支付當月「保單管理費」時，將催告要保人交付「超額保險費」，逾寬限期間仍未交付者，將停止效力。 | BY33: 有關【保險給付】 包含返還保單帳戶價值、年金累積期滿保險金、年金給付。 | CC33: 以上說明的詳細內容都載明於保單條款中，請問您清楚嗎？【請客戶回答：清楚/不清楚】 | CD33: 本商品為投資型保險，非屬存款，故不受存款保險之保障。 本商品不保證保本、不保證獲利，而且解約金有可能小於已繳之保險費，請問您清楚嗎？ 人壽保險的死亡給付及年金保險的確定年金給付於被保險人死亡後給付於指定受益人者，依保險法相關規定不能作為被保險人遺產，若有涉及規避遺產稅等稅捐時，稽徵機關可以依據有關稅法或實質課稅原則相關規定辦理。【請客戶回答：清楚/不清楚】
A34: 32 | B34: 保誠人壽樂享美金外幣變額年金保險 | E34: 再次向您說明本商品收取的費用： 1.「保費費用」：第一期保費費用：繳交的第一期目標保險費若低於美金1萬元，保費費用以第一期目標保險費的5%計算；繳交的第一期目標保險費高於或等於美金1萬元，保費費用以第一期目標保險費的4.8%計算。第二~六期無保費費用。 2.「保單管理費」：本商品每個月會從保單帳戶價值中收取一筆保單管理費。 3.「解約費用/部分提領費用」：本商品在正常繳費的情形下，如在前6個保單年度中辦理解約或部分提領，需要扣除保單帳戶價值或部分提領金額一定比率的解約費用或部分提領費用，例如：只繳一期保險費的解約費用率為25%；解約費用率是依實際繳交保費期數為計算基準，所以如果沒有正常繳費，可能造成超過6個保單年度辦理解約或部分提領，仍需支付解約費用或部分提領費用；故投保後解約或不繼續繳費可能對要保人造成不利影響。 4.「投資相關費用」：如申購投資標的手續費、投資標的經理費(管理費)、帳戶管理費、轉換費用等費用。 請問您清楚嗎? 【請客戶回答：清楚/不清楚】 | I34: 第一期保費費用：繳交的第一期目標保險費若低於美金1萬元，保費費用以第一期目標保險費的5%計算；繳交的第一期目標保險費高於或等於美金1萬元，保費費用以第一期目標保險費的4.8%計算。第二~六期無保費費用。 | J34: 本商品每個月會從保單帳戶價值中收取一筆保單管理費。 | K34: 本商品在正常繳費的情形下，如在前6個保單年度中辦理解約或部分提領，需要扣除保單帳戶價值或部分提領金額一定比率的解約費用或部分提領費用，例如：只繳一期保險費的解約費用率為25%；解約費用率是依實際繳交保費期數為計算基準，所以如果沒有正常繳費，可能造成超過6個保單年度辦理解約或部分提領，仍需支付解約費用或部分提領費用；故投保後解約或不繼續繳費可能對要保人造成不利影響。 | M34: .「投資相關費用」：如申購投資標的手續費、投資標的經理費(管理費)、帳戶管理費、轉換費用等費用。 | N34: .「其它費用」：本商品相關款項之往來，若採用保誠人壽指定銀行之外幣帳戶，無需負擔所產生之匯款相關費用，但若非採用保誠人壽指定銀行之外幣帳戶者，則會收取匯款費用。 | P34: 1 | Q34: 1 | R34: 第一期保費費用：繳交的第一期目標保險費若低於美金1萬元，保費費用以第一期目標保險費的5%計算；繳交的第一期目標保險費高於或等於美金1萬元，保費費用以第一期目標保險費的4.8%計算。第二~六期無保費費用。 | S34: 1.「保費費用」：第一期保費費用：繳交的第一期目標保險費若低於美金1萬元，保費費用以第一期目標保險費的5%計算；繳交的第一期目標保險費高於或等於美金1萬元，保費費用以第一期目標保險費的4.8%計算。第二~六期無保費費用。 | T34: 1 | U34: 2 | V34: 保單帳戶價值 | W34: =IF(T34=0,"",U34&".「保單管理費」："&J34 ) -> 2.「保單管理費」：本商品每個月會從保單帳戶價值中收取一筆保單管理費。 | X34: 1 | Y34: 3 | Z34: 本商品在正常繳費的情形下，如在前6個保單年度中辦理解約或部分提領，需要扣除保單帳戶價值或部分提領金額一定比率的解約費用或部分提領費用，例如：只繳一期保險費的解約費用率為25%；解約費用率是依實際繳交保費期數為計算基準，所以如果沒有正常繳費，可能造成超過6個保單年度辦理解約或部分提領，仍需支付解約費用或部分提領費用；故投保後解約或不繼續繳費可能對要保人造成不利影響。 | AA34: 3.「解約費用/部分提領費用」：本商品在正常繳費的情形下，如在前6個保單年度中辦理解約或部分提領，需要扣除保單帳戶價值或部分提領金額一定比率的解約費用或部分提領費用，例如：只繳一期保險費的解約費用率為25%；解約費用率是依實際繳交保費期數為計算基準，所以如果沒有正常繳費，可能造成超過6個保單年度辦理解約或部分提領，仍需支付解約費用或部分提領費用；故投保後解約或不繼續繳費可能對要保人造成不利影響。 | AB34: 0 | AF34: 1 | AG34: 4 | AH34: 4.「投資相關費用」：如申購投資標的手續費、投資標的經理費(管理費)、帳戶管理費、轉換費用等費用。 | AI34: 0 | AL34: 0 | AO34: N | AP34: Y | AQ34: ，共6期 | AR34: Y | AS34: 5000 | AX34: ="【銷售人員】： 如銷售過程中說明， 您所投保的保誠人壽樂享美金外幣變額年金保險的保單利益，包含： 一、返還保單帳戶價值，返還後保險契約效力終止。 二、年金累積期滿保險金，一次領取後保險契約效力終止。 三、年金給付。 "&錄音序號_確認語_2 ->  | AY34: 以下再為您說明商品重要條款內容， | AZ34: 有關【投資標的轉換】 要保人得申請將投資於某一「投資標的」的款項轉移至其他「投資標的」。 | BA34: 有關【投資標的之關閉與終止】 一、保誠人壽得主動終止某一「投資標的」，且應於終止日前三十日通知要保人。 二、保誠人壽得經所有持有「投資標的價值」之要保人同意後，主動關閉該「投資標的」，並於關閉日前三十日通知要保人。 三、保誠人壽於接獲發行或經理機構之「投資標的」終止或關閉通知時，應於五日內在保誠人壽網站公布，並於三十日內通知要保人。 | BB34: 有關【被保險人身故的通知】 被保險人身故後，要保人或受益人應於知悉被保險人發生身故後通知保誠人壽。 | BC34: 有關【年金的申領】 被保險人於「年金給付開始日」後生存期間每年第一次申領年金給付時，應提出可資證明被保險人生存之文件。但於「保證期間」內不在此限。 | BD34: 有關【特別加值金】 本契約有效期間內，要保人於第八保單年度以前繳交「目標保險費」者，給付特別加值金，以各期「目標保險費」入帳日為基準日，依配置比例投入目標保費保單帳戶。 | BE34: 有關【保險單借款】 「年金給付開始日」前，要保人得申請保險單借款，其可借金額上限詳保單條款約定。 | BF34: 有關【寬限期間及契約效力】 「年金累積期間」內，若「保單帳戶價值」扣除保險單借款本息後不足以支付當月「保單管理費」時，將催告要保人交付「目標保險費」，如要保人無欠繳之「目標保險費」，將催告要保人交付「超額保險費」， 自催告到達翌日起三十日內為寬限期間，逾寬限期間仍未交付者，將停止效力。要保人得在停效日起二年內，申請復效。但「 年金累積期間」 屆滿後不得申請復效。 | BK34: ="本商品為投資型保險，非屬存款，故不受存款保險之保障。 本商品不保證保本、不保證獲利，而且解約金有可能小於已繳之保險費。"&錄音序號_確認語_2&"另建議書中已有說明不同投資報酬率試算的保單帳戶價值、解約金、保障內容，"&錄音序號_確認語_2&"人壽保險的死亡給付及年金保險的確定年金給付於被保險人死亡後給付於指定受益人者，依保險法相關規定不能作為被保險人遺產，若有涉及規避遺產稅等稅捐時，稽徵機關可以依據有關稅法或實質課稅原則相關規定辦理。"&錄音序號_確認語_2 ->  | BQ34: 【銷售人員】： 以下再為您說明商品重要條款內容， | BV34: =BD34 -> 有關【特別加值金】 本契約有效期間內，要保人於第八保單年度以前繳交「目標保險費」者，給付特別加值金，以各期「目標保險費」入帳日為基準日，依配置比例投入目標保費保單帳戶。 | BW34: =BE34 -> 有關【保險單借款】 「年金給付開始日」前，要保人得申請保險單借款，其可借金額上限詳保單條款約定。 | BX34: =BF34 -> 有關【寬限期間及契約效力】 「年金累積期間」內，若「保單帳戶價值」扣除保險單借款本息後不足以支付當月「保單管理費」時，將催告要保人交付「目標保險費」，如要保人無欠繳之「目標保險費」，將催告要保人交付「超額保險費」， 自催告到達翌日起三十日內為寬限期間，逾寬限期間仍未交付者，將停止效力。要保人得在停效日起二年內，申請復效。但「 年金累積期間」 屆滿後不得申請復效。 | BY34: 有關【保險給付】 包含返還保單帳戶價值、年金累積期滿保險金、年金給付。 | CC34: 以上說明的詳細內容都載明於保單條款中，請問您清楚嗎？【請客戶回答：清楚/不清楚】 | CD34: 本商品為投資型保險，非屬存款，故不受存款保險之保障。 本商品不保證保本、不保證獲利，而且解約金有可能小於已繳之保險費，請問您清楚嗎？ 人壽保險的死亡給付及年金保險的確定年金給付於被保險人死亡後給付於指定受益人者，依保險法相關規定不能作為被保險人遺產，若有涉及規避遺產稅等稅捐時，稽徵機關可以依據有關稅法或實質課稅原則相關規定辦理。【請客戶回答：清楚/不清楚】
A35: 38 | B35: 保誠人壽享保障變額萬能壽險 | E35: 再次向您說明本商品收取的費用： 1.「保費費用」： ■目標保險費保費費用：為要保人繳付之目標保險費分別依保險費年度乘以第一保險費年度50%、第二保險費年度30%、第三至五保險費年度20%計算，第六保險費年度以後無目標保險費保費費用。 ■超額保險費保費費用：為要保人繳付之「超額保險費」乘以3%計算。 2.「保單管理費」：本商品每個月會從保單帳戶價值中收取一筆保單管理費。 3.「保險成本」：本商品每個月會從保單帳戶價值中收取一筆保險成本。 -保險成本原則上隨年齡增長而逐年增加，也就是說如果年紀越大每個月會被扣的保險成本有可能顯著增加，導致保單帳戶價值有可能歸零。 4「投資相關費用」：如申購投資標的手續費、投資標的經理費(管理費)、帳戶管理費、轉換費用等費用。 請問您清楚嗎? 【請客戶回答：清楚/不清楚】 | I35: ■目標保險費保費費用：為要保人繳付之目標保險費分別依保險費年度乘以第一保險費年度50%、第二保險費年度30%、第三至五保險費年度20%計算，第六保險費年度以後無目標保險費保費費用。 ■超額保險費保費費用：為要保人繳付之「超額保險費」乘以3%計算。 | J35: 本商品每個月會從保單帳戶價值中收取一筆保單管理費。 | L35: 本商品每個月會從保單帳戶價值中收取一筆保險成本。 -保險成本原則上隨年齡增長而逐年增加，也就是說如果年紀越大每個月會被扣的保險成本有可能顯著增加，導致保單帳戶價值有可能歸零。 | M35: 「投資相關費用」：如申購投資標的手續費、投資標的經理費(管理費)、帳戶管理費、轉換費用等費用。 | P35: 1 | Q35: =IF(P35=0,"","1") -> 1 | R35: =I35 -> ■目標保險費保費費用：為要保人繳付之目標保險費分別依保險費年度乘以第一保險費年度50%、第二保險費年度30%、第三至五保險費年度20%計算，第六保險費年度以後無目標保險費保費費用。 ■超額保險費保費費用：為要保人繳付之「超額保險費」乘以3%計算。 | S35: =IF(P35=0,"",Q35&".「保費費用」："&R35&" ") -> 1.「保費費用」： ■目標保險費保費費用：為要保人繳付之目標保險費分別依保險費年度乘以第一保險費年度50%、第二保險費年度30%、第三至五保險費年度20%計算，第六保險費年度以後無目標保險費保費費用。 ■超額保險費保費費用：為要保人繳付之「超額保險費」乘以3%計算。 | T35: 1 | U35: 2 | W35: =IF(T35=0,"",U35&".「保單管理費」："&J35 ) -> 2.「保單管理費」：本商品每個月會從保單帳戶價值中收取一筆保單管理費。 | X35: 0 | Y35: =IF(P35+T35+X35=0,"",IF(X35=0,"",P35+T35+X35)) ->  | Z35: =K35 -> 0 | AA35: =IF(X35=0,"",Y35&".「解約費用/部分提領費用」："&Z35&" ") ->  | AB35: 1 | AC35: =IF(P35+T35+X35+AB35=0,"",IF(AB35=0,"",P35+T35+X35+AB35)) -> 3 | AD35: =IF(AB35=0,"",IF(AO35="Y",AC35&".「保險成本」：本商品"&AE35&"會從保單帳戶價值中收取一筆保險成本。 -若保單帳戶價值下降會讓淨危險保額提高，而將增加保險成本。建議書所載範例之假設情境下，首年應收保險成本約為"&幣別_投資型&TEXT(保險成本,"#,###")&"元，若實際投資報酬率低於假設情境，則保險成本可能增加，也會影響到您的保單帳戶價值。 -保險成本原則上隨年齡增長而逐年增加，也就是說如果年紀越大每個月會被扣的保險成本有可能會更多。 ",IF(AO35="壽險乙型",AC35&".「保險成本」："&L35,AC35&".「保險成本」：本商品"&AE35&"會從保單帳戶價值中收取一筆保險成本。 "))) -> 3.「保險成本」：本商品每個月會從保單帳戶價值中收取一筆保險成本。 -保險成本原則上隨年齡增長而逐年增加，也就是說如果年紀越大每個月會被扣的保險成本有可能顯著增加，導致保單帳戶價值有可能歸零。 | AF35: 1 | AG35: =IF(P35+T35+X35+AB35+AF35=0,"",IF(AF35=0,"",P35+T35+X35+AB35+AF35)) -> 4 | AH35: =IF(AF35=0,"",AG35&M35) -> 4「投資相關費用」：如申購投資標的手續費、投資標的經理費(管理費)、帳戶管理費、轉換費用等費用。 | AI35: 0 | AJ35: =IF(P35+T35+X35+AB35+AF35+AI35=0,"",IF(AI35=0,"",P35+T35+X35+AB35+AF35+AI35)) ->  | AK35: =IF(AI35=0,""," "&AJ35&N35) ->  | AO35: 壽險乙型 | AP35: N | AX35: ="【銷售人員】： 如銷售過程中說明， 本保單的主要給付項目包含： 一、祝壽保險金。 二、身故保險金或喪葬費用保險金 。 三、完全失能保險金。"&錄音序號_確認語_2 ->  | AY35: 以下再為您說明商品重要條款內容， | AZ35: 本保單月繳化目標保險費有金額限制且承保後不得變更。 有關【投資標的轉換】 要保人可申請將投資於某一「投資標的」的款項轉移至其他「投資標的」。 | BA35: 有關【投資標的之關閉與終止】 一、保誠人壽可主動終止某一「投資標的」，且應在終止日前三十日通知要保人。但若「投資標的」的價值仍有餘額時，保誠人壽不得主動終止該「投資標的」。 二、保誠人壽可經所有持有「投資標的價值」的要保人同意後，主動關閉該「投資標的」，並在關閉日前三十日通知要保人。 三、保誠人壽在接獲發行或經理機構的「投資標的」終止或關閉通知時，應於五日內在保誠人壽網站公布，並於三十日內通知要保人。 | BB35: 有關【保險事故的通知與保險金的申請時間】 要保人或受益人應在知悉保險事故後十日內通知保誠人壽，並在通知後儘速檢具所需文件申請給付保險金。 | BC35: 有關【除外責任】 因除外責任所導致的保險事故發生，保誠人壽不負給付各項保險金之責任。 本商品除外責任包括，要、被保險人故意行為或被保險人犯罪行為等。完整之除外責任請詳保單條款。 | BD35: 有關【保險單借款】 本契約有效期間內，要保人可申請保險單借款，可借金額上限詳保單條款約定。 有關【加值給付】 本保險商品之加值回饋金給付來源為保費費用、保單管理費、投資標的經理費（管理費）及投資標的帳戶管理費。 | BE35: 有關【寬限期間及契約效力】 「保單帳戶價值」扣除保險單借款本息後不足以支付當月「保險成本」及「保單管理費」時，本公司按日數比例扣除至餘額為零，將催告要保人交付保險費，自催告到達翌日起三十日內為寬限期間，逾寬限期間仍未交付者，將停止效力。要保人得在停效日起二年內，申請復效。 | BK35: ="本商品為投資型保險，不是存款，所以不受存款保險的保障。 本商品不保證保本、不保證獲利，而且解約金有可能小於已繳之保險費。"&錄音序號_確認語_2&"另建議書中已有說明不同投資報酬率試算的保單帳戶價值、解約金、保障內容，"&錄音序號_確認語_2&"人壽保險的死亡給付於被保險人死亡後給付於指定受益人者，依保險法相關規定不能作為被保險人遺產，若有涉及規避遺產稅等稅捐時，稽徵機關可以依據有關稅法或實質課稅原則相關規定辦理。"&錄音序號_確認語_2 ->  | BQ35: 【銷售人員】： 以下再為您說明商品重要條款內容， 本保單月繳化目標保險費有金額限制且承保後不得變更。 | BV35: 有關【除外責任】 因除外責任所導致的保險事故發生，保誠人壽不負給付各項保險金之責任。 本商品除外責任包括，要、被保險人故意行為或被保險人犯罪行為等。完整之除外責任請詳保單條款。 | BW35: =BD35 -> 有關【保險單借款】 本契約有效期間內，要保人可申請保險單借款，可借金額上限詳保單條款約定。 有關【加值給付】 本保險商品之加值回饋金給付來源為保費費用、保單管理費、投資標的經理費（管理費）及投資標的帳戶管理費。 | BX35: =BE35 -> 有關【寬限期間及契約效力】 「保單帳戶價值」扣除保險單借款本息後不足以支付當月「保險成本」及「保單管理費」時，本公司按日數比例扣除至餘額為零，將催告要保人交付保險費，自催告到達翌日起三十日內為寬限期間，逾寬限期間仍未交付者，將停止效力。要保人得在停效日起二年內，申請復效。 | BY35: 有關【保險給付】 包含祝壽保險金、身故保險金或喪葬費用保險金 、完全失能保險金。 | CC35: 以上說明的詳細內容都載明於保單條款中，請問您清楚嗎？【請客戶回答：清楚/不清楚】 | CD35: 本商品為投資型保險，不是存款，所以不受存款保險的保障。 本商品不保證保本、不保證獲利，而且解約金有可能小於已繳之保險費，請問您清楚嗎？【請客戶回答：清楚/不清楚】 人壽保險的死亡給付於被保險人死亡後給付於指定受益人者，依保險法相關規定不能作為被保險人遺產，若有涉及規避遺產稅等稅捐時，稽徵機關可以依據有關稅法或實質課稅原則相關規定辦理，請問您清楚嗎?【請客戶回答：清楚/不清楚】
A36: 39 | B36: 保誠人壽享保障外幣變額萬能壽險 | E36: 再次向您說明本商品收取的費用： 1.「保費費用」： ■目標保險費保費費用：為要保人繳付之目標保險費分別依保險費年度乘以第一保險費年度50%、第二保險費年度30%、第三至五保險費年度20%計算，第六保險費年度以後無目標保險費保費費用。 ■超額保險費保費費用：為要保人繳付之「超額保險費」乘以3%計算。 2.「保單管理費」：本商品每個月會從保單帳戶價值中收取一筆保單管理費。 3.「保險成本」：本商品每個月會從保單帳戶價值中收取一筆保險成本。 -保險成本原則上隨年齡增長而逐年增加，也就是說如果年紀越大每個月會被扣的保險成本有可能顯著增加，導致保單帳戶價值有可能歸零。 4「投資相關費用」：如申購投資標的手續費、投資標的經理費(管理費)、帳戶管理費、轉換費用等費用。 請問您清楚嗎? 【請客戶回答：清楚/不清楚】 | I36: ■目標保險費保費費用：為要保人繳付之目標保險費分別依保險費年度乘以第一保險費年度50%、第二保險費年度30%、第三至五保險費年度20%計算，第六保險費年度以後無目標保險費保費費用。 ■超額保險費保費費用：為要保人繳付之「超額保險費」乘以3%計算。 | J36: 本商品每個月會從保單帳戶價值中收取一筆保單管理費。 | L36: 本商品每個月會從保單帳戶價值中收取一筆保險成本。 -保險成本原則上隨年齡增長而逐年增加，也就是說如果年紀越大每個月會被扣的保險成本有可能顯著增加，導致保單帳戶價值有可能歸零。 | M36: 「投資相關費用」：如申購投資標的手續費、投資標的經理費(管理費)、帳戶管理費、轉換費用等費用。 | N36: 「其它費用」：本商品相關款項之往來，若採用保誠人壽指定銀行之外幣帳戶，無需負擔所產生之匯款相關費用，但若非採用保誠人壽指定銀行之外幣帳戶者，則會收取匯款費用。 | P36: 1 | Q36: 1 | R36: ■目標保險費保費費用：為要保人繳付之目標保險費分別依保險費年度乘以第一保險費年度50%、第二保險費年度30%、第三至五保險費年度20%計算，第六保險費年度以後無目標保險費保費費用。 ■超額保險費保費費用：為要保人繳付之「超額保險費」乘以3%計算。 | S36: 1.「保費費用」： ■目標保險費保費費用：為要保人繳付之目標保險費分別依保險費年度乘以第一保險費年度50%、第二保險費年度30%、第三至五保險費年度20%計算，第六保險費年度以後無目標保險費保費費用。 ■超額保險費保費費用：為要保人繳付之「超額保險費」乘以3%計算。 | T36: 1 | U36: 2 | W36: 2.「保單管理費」：本商品每個月會從保單帳戶價值中收取一筆保單管理費。 | X36: 0 | Z36: 0 | AB36: 1 | AC36: 3 | AD36: =IF(AB36=0,"",IF(AO36="Y",AC36&".「保險成本」：本商品"&AE36&"會從保單帳戶價值中收取一筆保險成本。 -若保單帳戶價值下降會讓淨危險保額提高，而將增加保險成本。建議書所載範例之假設情境下，首年應收保險成本約為"&幣別_投資型&TEXT(保險成本,"#,###")&"元，若實際投資報酬率低於假設情境，則保險成本可能增加，也會影響到您的保單帳戶價值。 -保險成本原則上隨年齡增長而逐年增加，也就是說如果年紀越大每個月會被扣的保險成本有可能會更多。 ",IF(AO36="壽險乙型",AC36&".「保險成本」："&L36,AC36&".「保險成本」：本商品"&AE36&"會從保單帳戶價值中收取一筆保險成本。 "))) -> 3.「保險成本」：本商品每個月會從保單帳戶價值中收取一筆保險成本。 -保險成本原則上隨年齡增長而逐年增加，也就是說如果年紀越大每個月會被扣的保險成本有可能顯著增加，導致保單帳戶價值有可能歸零。 | AF36: 1 | AG36: 4 | AH36: 4「投資相關費用」：如申購投資標的手續費、投資標的經理費(管理費)、帳戶管理費、轉換費用等費用。 | AI36: 0 | AO36: 壽險乙型 | AP36: N | AX36: ="【銷售人員】： 如銷售過程中說明， 本保單的主要給付項目包含： 一、祝壽保險金。 二、身故保險金或喪葬費用保險金 。 三、完全失能保險金。"&錄音序號_確認語_2 ->  | AY36: 以下再為您說明商品重要條款內容， | AZ36: 本保單月繳化目標保險費有金額限制且承保後不得變更。 有關【投資標的轉換】 要保人可申請將投資於某一「投資標的」的款項轉移至其他「投資標的」。 | BA36: 有關【投資標的之關閉與終止】 一、保誠人壽可主動終止某一「投資標的」，且應在終止日前三十日通知要保人。但若「投資標的」的價值仍有餘額時，保誠人壽不得主動終止該「投資標的」。 二、保誠人壽可經所有持有「投資標的價值」的要保人同意後，主動關閉該「投資標的」，並在關閉日前三十日通知要保人。 三、保誠人壽在接獲發行或經理機構的「投資標的」終止或關閉通知時，應於五日內在保誠人壽網站公布，並於三十日內通知要保人。 | BB36: 有關【保險事故的通知與保險金的申請時間】 要保人或受益人應在知悉保險事故後十日內通知保誠人壽，並在通知後儘速檢具所需文件申請給付保險金。 | BC36: 有關【除外責任】 因除外責任所導致的保險事故發生，保誠人壽不負給付各項保險金之責任。 本商品除外責任包括，要、被保險人故意行為或被保險人犯罪行為等。完整之除外責任請詳保單條款。 | BD36: 有關【保險單借款】 本契約有效期間內，要保人可申請保險單借款，可借金額上限詳保單條款約定。 有關【加值給付】 本保險商品之加值回饋金給付來源為保費費用、保單管理費、投資標的經理費（管理費）及投資標的帳戶管理費。 | BE36: 有關【寬限期間及契約效力】 「保單帳戶價值」扣除保險單借款本息後不足以支付當月「保險成本」及「保單管理費」時，本公司按日數比例扣除至餘額為零，將催告要保人交付保險費，自催告到達翌日起三十日內為寬限期間，逾寬限期間仍未交付者，將停止效力。要保人得在停效日起二年內，申請復效。 | BK36: ="本商品為投資型保險，不是存款，所以不受存款保險的保障。 本商品不保證保本、不保證獲利，而且解約金有可能小於已繳之保險費。"&錄音序號_確認語_2&"另建議書中已有說明不同投資報酬率試算的保單帳戶價值、解約金、保障內容，"&錄音序號_確認語_2&"人壽保險的死亡給付於被保險人死亡後給付於指定受益人者，依保險法相關規定不能作為被保險人遺產，若有涉及規避遺產稅等稅捐時，稽徵機關可以依據有關稅法或實質課稅原則相關規定辦理。"&錄音序號_確認語_2 ->  | BQ36: 【銷售人員】： 以下再為您說明商品重要條款內容， 本保單月繳化目標保險費有金額限制且承保後不得變更。 | BV36: 有關【除外責任】 因除外責任所導致的保險事故發生，保誠人壽不負給付各項保險金之責任。 本商品除外責任包括，要、被保險人故意行為或被保險人犯罪行為等。完整之除外責任請詳保單條款。 | BW36: =BD36 -> 有關【保險單借款】 本契約有效期間內，要保人可申請保險單借款，可借金額上限詳保單條款約定。 有關【加值給付】 本保險商品之加值回饋金給付來源為保費費用、保單管理費、投資標的經理費（管理費）及投資標的帳戶管理費。 | BX36: =BE36 -> 有關【寬限期間及契約效力】 「保單帳戶價值」扣除保險單借款本息後不足以支付當月「保險成本」及「保單管理費」時，本公司按日數比例扣除至餘額為零，將催告要保人交付保險費，自催告到達翌日起三十日內為寬限期間，逾寬限期間仍未交付者，將停止效力。要保人得在停效日起二年內，申請復效。 | BY36: 有關【保險給付】 包含祝壽保險金、身故保險金或喪葬費用保險金 、完全失能保險金。 | CC36: 以上說明的詳細內容都載明於保單條款中，請問您清楚嗎？【請客戶回答：清楚/不清楚】 | CD36: 本商品為投資型保險，不是存款，所以不受存款保險的保障。 本商品不保證保本、不保證獲利，而且解約金有可能小於已繳之保險費，請問您清楚嗎？【請客戶回答：清楚/不清楚】 人壽保險的死亡給付於被保險人死亡後給付於指定受益人者，依保險法相關規定不能作為被保險人遺產，若有涉及規避遺產稅等稅捐時，稽徵機關可以依據有關稅法或實質課稅原則相關規定辦理，請問您清楚嗎?【請客戶回答：清楚/不清楚】

Sheet C2_投資型_繳費年期&最低保費 (hidden)
A1: 商品名稱 | B1: 幣別 | C1: A&B | D1: 繳費年期 | E1: 最低保費 | F1: 保險型態
A2: 保誠人壽三五寶島變額壽險 | B2: 新臺幣 | C2: =A2&B2 -> 保誠人壽三五寶島變額壽險新臺幣 | D2: 3 | E2: 300000
A3: 保誠人壽三五成金外幣變額壽險 | B3: 美元 | C3: =A3&B3 -> 保誠人壽三五成金外幣變額壽險美元 | D3: 3 | E3: 10000
A4: 保誠人壽三五中國外幣變額壽險 | B4: 人民幣 | C4: =A4&B4 -> 保誠人壽三五中國外幣變額壽險人民幣 | D4: 3 | E4: 60000
A5: 保誠人壽三五美鑫外幣變額壽險 | B5: 美元 | C5: =A5&B5 -> 保誠人壽三五美鑫外幣變額壽險美元 | D5: 3 | E5: 10000
A6: 保誠人壽美澳雙享外幣變額壽險 | B6: 美元 | C6: =A6&B6 -> 保誠人壽美澳雙享外幣變額壽險美元 | D6: 3 | E6: 10000
A7: 保誠人壽美澳雙享外幣變額壽險 | B7: 澳幣 | C7: 保誠人壽美澳雙享外幣變額壽險澳幣 | D7: 3 | E7: 13000
A8: 保誠人壽美澳雙享外幣變額壽險 | B8: 南非幣 | C8: 保誠人壽美澳雙享外幣變額壽險南非幣 | D8: 3 | E8: 130000
A9: 保誠人壽三五優利外幣變額壽險 | B9: 美元 | C9: 保誠人壽三五優利外幣變額壽險美元 | D9: 3 | E9: 10000
A10: 保誠人壽三五歐霸外幣變額壽險 | B10: 歐元 | C10: 保誠人壽三五歐霸外幣變額壽險歐元 | D10: 3 | E10: 8500
A11: 保誠人壽三五開泰外幣變額壽險 | B11: 美元 | C11: 保誠人壽三五開泰外幣變額壽險美元 | D11: 3 | E11: 10000
A12: 保誠人壽新三五寶島變額壽險 | B12: 新臺幣 | C12: 保誠人壽新三五寶島變額壽險新臺幣 | D12: 3 | E12: 300000
A13: 保誠人壽三五美金外幣變額壽險 | B13: 美元 | C13: 保誠人壽三五美金外幣變額壽險美元 | D13: 3 | E13: 10000
A14: 保誠人壽新三五中國外幣變額壽險 | B14: 人民幣 | C14: 保誠人壽新三五中國外幣變額壽險人民幣 | D14: 3 | E14: 60000
A15: 保誠人壽新三五歐霸外幣變額壽險 | B15: 歐元 | C15: 保誠人壽新三五歐霸外幣變額壽險歐元 | D15: 3 | E15: 8500
A16: 保誠人壽新美澳雙享外幣變額壽險 | B16: 美元 | C16: 保誠人壽新美澳雙享外幣變額壽險美元 | D16: 3 | E16: 10000
A17: 保誠人壽新美澳雙享外幣變額壽險 | B17: 澳幣 | C17: 保誠人壽新美澳雙享外幣變額壽險澳幣 | D17: 3 | E17: 13000
A18: 保誠人壽新美澳雙享外幣變額壽險 | B18: 南非幣 | C18: 保誠人壽新美澳雙享外幣變額壽險南非幣 | D18: 3 | E18: 130000
A19: 保誠人壽富利如山變額萬能壽險(10) | B19: 新臺幣 | C19: 保誠人壽富利如山變額萬能壽險(10)新臺幣 | D19: 至被保險人保險年齡達99歲當年之保單週年日
A20: 保誠人壽富利如山變額萬能壽險(20) | B20: 新臺幣 | C20: 保誠人壽富利如山變額萬能壽險(20)新臺幣 | D20: 至被保險人保險年齡達99歲當年之保單週年日
A21: 保誠人壽悠遊人生變額壽險 | B21: 新臺幣 | C21: =A21&B21 -> 保誠人壽悠遊人生變額壽險新臺幣 | D21: 至被保險人保險年齡達99歲當年之保單週年日
A22: 保誠人壽樂活寶島變額年金保險 | B22: 新臺幣 | C22: =A22&B22 -> 保誠人壽樂活寶島變額年金保險新臺幣 | D22: 3 | E22: 300000
A23: 保誠人壽樂活中國外幣變額年金保險 | B23: 人民幣 | C23: =A23&B23 -> 保誠人壽樂活中國外幣變額年金保險人民幣 | D23: 3 | E23: 60000
A24: 保誠人壽樂活美金外幣變額年金保險 | B24: 美元 | C24: =A24&B24 -> 保誠人壽樂活美金外幣變額年金保險美元 | D24: 3 | E24: 10000
A25: 保誠人壽享保障變額萬能壽險 | B25: 新臺幣 | C25: =A25&B25 -> 保誠人壽享保障變額萬能壽險新臺幣 | D25: 至被保險人保險年齡達99歲當年之保單週年日 | F25: 壽險乙型
A26: 保誠人壽享保障外幣變額萬能壽險 | B26: 美元 | C26: 保誠人壽享保障外幣變額萬能壽險美元 | D26: 至被保險人保險年齡達99歲當年之保單週年日 | F26: 壽險乙型

Sheet C3_投資型-投資風險 (hidden)
B1: 要被保險人 | C1: 繳款人 | E1: 要被保險人 | F1: 繳款人
A2: 一般 | B2: ="【銷售人員】： 本保單在配息、資產撥回、部分提領、解約或各項保險金給付時，以投資標的當時的淨值做為計算基礎。淨值波動將會影響保單帳戶價值，可能會有獲利或虧損情形，在最大損失情境下，保單帳戶價值可能歸零；如果您選擇的基金包括非投資等級債券，因非投資等級債券有較高的違約及流動性風險且於債券易受利率之變動而影響其價格，可能因此有獲利或虧損情形，"&錄音序號_確認語_2&"如您選擇具有資產撥回、配息機制的投資標的，其資產撥回、配息可能由投資標的收益或本金中支付。涉及從本金支出的部分，可能導致保單帳戶價值減少。"&錄音序號_確認語_2 ->  | C2: 【銷售人員】： 本保單在配息、資產撥回、部分提領、解約或各項保險金給付時，以投資標的當時的淨值做為計算基礎。淨值波動將會影響保單帳戶價值，可能會有獲利或虧損情形，在最大損失情境下，保單帳戶價值可能歸零；如果您選擇的基金包括非投資等級債券，因非投資等級債券有較高的違約及流動性風險且於債券易受利率之變動而影響其價格，可能因此有獲利或虧損情形，請問您清楚嗎? 【請客戶回答：清楚/不清楚】 如您選擇具有資產撥回、配息機制的投資標的，其資產撥回、配息可能由投資標的收益或本金中支付。涉及從本金支出的部分，可能導致保單帳戶價值減少，請問您清楚嗎? 【請客戶回答：清楚/不清楚】 | D2: 匯率 | E2: ="另本商品收付幣別為"&幣別&"，如選擇其他幣別之投資標的，匯率波動亦會影響保單帳戶價值，在較差情境下會產生較大的投資虧損，您需自行承擔投資風險，"&錄音序號_確認語_2 ->  | F2: ="另本商品收付幣別為"&幣別&"，如選擇其他幣別之投資標的，匯率波動亦會影響保單帳戶價值，在較差情境下會產生較大的投資虧損，您需自行承擔投資風險，請問您清楚嗎? 【請客戶回答：清楚/不清楚】" -> 另本商品收付幣別為新臺幣，如選擇其他幣別之投資標的，匯率波動亦會影響保單帳戶價值，在較差情境下會產生較大的投資虧損，您需自行承擔投資風險，請問您清楚嗎? 【請客戶回答：清楚/不清楚】
A3: 保誠人壽樂活中國外幣變額年金保險 | B3: ="【銷售人員】：本保單在配息、資產撥回、部分提領、解約、年金累積期間身故返還保單帳戶價值或各項保險金給付時，以投資標的當時的淨值做為計算基礎。淨值波動將會影響保單帳戶價值，可能會有獲利或虧損情形，在最大損失情境下，保單帳戶價值可能歸零；如果您選擇的基金包括非投資等級債券，因非投資等級債券有較高的違約及流動性風險且於債券易受利率之變動而影響其價格，可能因此有獲利或虧損情形，"&錄音序號_確認語_2&"如您選擇具有資產撥回、配息機制的投資標的，其資產撥回、配息可能由投資標的收益或本金中支付。涉及從本金支出的部分，可能導致保單帳戶價值減少。"&錄音序號_確認語_2 ->  | C3: 【銷售人員】：本保單在配息、資產撥回、部分提領、解約、年金累積期間身故返還保單帳戶價值或各項保險金給付時，以投資標的當時的淨值做為計算基礎。淨值波動將會影響保單帳戶價值，可能會有獲利或虧損情形，在最大損失情境下，保單帳戶價值可能歸零；如果您選擇的基金包括非投資等級債券，因非投資等級債券有較高的違約及流動性風險且於債券易受利率之變動而影響其價格，可能因此有獲利或虧損情形，請問您清楚嗎? 【請客戶回答：清楚/不清楚】 如您選擇具有資產撥回、配息機制的投資標的，其資產撥回、配息可能由投資標的收益或本金中支付。涉及從本金支出的部分，可能導致保單帳戶價值減少，請問您清楚嗎? 【請客戶回答：清楚/不清楚】
A4: 保誠人壽樂活美金外幣變額年金保險 | B4: ="【銷售人員】：本保單在配息、資產撥回、部分提領、解約、年金累積期間身故返還保單帳戶價值或各項保險金給付時，以投資標的當時的淨值做為計算基礎。淨值波動將會影響保單帳戶價值，可能會有獲利或虧損情形，在最大損失情境下，保單帳戶價值可能歸零；如果您選擇的基金包括非投資等級債券，因非投資等級債券有較高的違約及流動性風險且於債券易受利率之變動而影響其價格，可能因此有獲利或虧損情形，"&錄音序號_確認語_2&"如您選擇具有資產撥回、配息機制的投資標的，其資產撥回、配息可能由投資標的收益或本金中支付。涉及從本金支出的部分，可能導致保單帳戶價值減少。"&錄音序號_確認語_2 ->  | C4: 【銷售人員】：本保單在配息、資產撥回、部分提領、解約、年金累積期間身故返還保單帳戶價值或各項保險金給付時，以投資標的當時的淨值做為計算基礎。淨值波動將會影響保單帳戶價值，可能會有獲利或虧損情形，在最大損失情境下，保單帳戶價值可能歸零；如果您選擇的基金包括非投資等級債券，因非投資等級債券有較高的違約及流動性風險且於債券易受利率之變動而影響其價格，可能因此有獲利或虧損情形，請問您清楚嗎? 【請客戶回答：清楚/不清楚】 如您選擇具有資產撥回、配息機制的投資標的，其資產撥回、配息可能由投資標的收益或本金中支付。涉及從本金支出的部分，可能導致保單帳戶價值減少，請問您清楚嗎? 【請客戶回答：清楚/不清楚】
A5: 保誠人壽鑫想事成變額年金保險 | B5: ="【銷售人員】： 本保單在配息、資產撥回、部分提領、解約、年金累積期間身故返還保單帳戶價值或各項保險金給付時，以投資標的當時的淨值做為計算基礎。淨值波動將會影響保單帳戶價值，可能會有獲利或虧損情形，在最大損失情境下，保單帳戶價值可能歸零；如果您選擇的基金包括非投資等級債券，因非投資等級債券有較高的違約及流動性風險且於債券易受利率之變動而影響其價格，可能因此有獲利或虧損情形，"&錄音序號_確認語_2&"如您選擇具有資產撥回、配息機制的投資標的，其資產撥回、配息可能由投資標的收益或本金中支付。涉及從本金支出的部分，可能導致保單帳戶價值減少。"&錄音序號_確認語_2 ->  | C5: 【銷售人員】： 本保單在配息、資產撥回、部分提領、解約、年金累積期間身故返還保單帳戶價值或各項保險金給付時，以投資標的當時的淨值做為計算基礎。淨值波動將會影響保單帳戶價值，可能會有獲利或虧損情形，在最大損失情境下，保單帳戶價值可能歸零；如果您選擇的基金包括非投資等級債券，因非投資等級債券有較高的違約及流動性風險且於債券易受利率之變動而影響其價格，可能因此有獲利或虧損情形，請問您清楚嗎? 【請客戶回答：清楚/不清楚】 如您選擇具有資產撥回、配息機制的投資標的，其資產撥回、配息可能由投資標的收益或本金中支付。涉及從本金支出的部分，可能導致保單帳戶價值減少，請問您清楚嗎? 【請客戶回答：清楚/不清楚】
A6: 保誠人壽鑫想事成外幣變額年金保險 | B6: ="【銷售人員】： 本保單在配息、資產撥回、部分提領、解約、年金累積期間身故返還保單帳戶價值或各項保險金給付時，以投資標的當時的淨值做為計算基礎。淨值波動將會影響保單帳戶價值，可能會有獲利或虧損情形，在最大損失情境下，保單帳戶價值可能歸零；如果您選擇的基金包括非投資等級債券，因非投資等級債券有較高的違約及流動性風險且於債券易受利率之變動而影響其價格，可能因此有獲利或虧損情形，"&錄音序號_確認語_2&"如您選擇具有資產撥回、配息機制的投資標的，其資產撥回、配息可能由投資標的收益或本金中支付。涉及從本金支出的部分，可能導致保單帳戶價值減少。"&錄音序號_確認語_2 ->  | C6: 【銷售人員】： 本保單在配息、資產撥回、部分提領、解約、年金累積期間身故返還保單帳戶價值或各項保險金給付時，以投資標的當時的淨值做為計算基礎。淨值波動將會影響保單帳戶價值，可能會有獲利或虧損情形，在最大損失情境下，保單帳戶價值可能歸零；如果您選擇的基金包括非投資等級債券，因非投資等級債券有較高的違約及流動性風險且於債券易受利率之變動而影響其價格，可能因此有獲利或虧損情形，請問您清楚嗎? 【請客戶回答：清楚/不清楚】 如您選擇具有資產撥回、配息機制的投資標的，其資產撥回、配息可能由投資標的收益或本金中支付。涉及從本金支出的部分，可能導致保單帳戶價值減少，請問您清楚嗎? 【請客戶回答：清楚/不清楚】
A7: 保誠人壽誠億滿滿變額年金保險 | B7: ="【銷售人員】：本保單在配息、資產撥回、部分提領、解約、年金累積期滿保險金或各項保險金給付時，以投資標的當時的淨值做為計算基礎。淨值波動將會影響保單帳戶價值，可能會有獲利或虧損情形，在最大損失情境下，保單帳戶價值可能歸零；如果您選擇的基金包括非投資等級債券，因非投資等級債券有較高的違約及流動性風險且於債券易受利率之變動而影響其價格，可能因此有獲利或虧損情形，"&錄音序號_確認語_2&"如您選擇具有資產撥回、配息機制的投資標的，其資產撥回、配息可能由投資標的收益或本金中支付。涉及從本金支出的部分，可能導致保單帳戶價值減少。"&錄音序號_確認語_2 ->  | C7: 【銷售人員】：本保單在配息、資產撥回、部分提領、解約、年金累積期滿保險金或各項保險金給付時，以投資標的當時的淨值做為計算基礎。淨值波動將會影響保單帳戶價值，可能會有獲利或虧損情形，在最大損失情境下，保單帳戶價值可能歸零；如果您選擇的基金包括非投資等級債券，因非投資等級債券有較高的違約及流動性風險且於債券易受利率之變動而影響其價格，可能因此有獲利或虧損情形，請問您清楚嗎? 【請客戶回答：清楚/不清楚】 如您選擇具有資產撥回、配息機制的投資標的，其資產撥回、配息可能由投資標的收益或本金中支付。涉及從本金支出的部分，可能導致保單帳戶價值減少，請問您清楚嗎? 【請客戶回答：清楚/不清楚】
A8: 保誠人壽樂活寶島變額年金保險 | B8: ="【銷售人員】：本保單在配息、資產撥回、部分提領、解約、年金累積期間身故返還保單帳戶價值或各項保險金給付時，以投資標的當時的淨值做為計算基礎。淨值波動將會影響保單帳戶價值，可能會有獲利或虧損情形，在最大損失情境下，保單帳戶價值可能歸零；如果您選擇的基金包括非投資等級債券，因非投資等級債券有較高的違約及流動性風險且於債券易受利率之變動而影響其價格，可能因此有獲利或虧損情形，"&錄音序號_確認語_2&"如您選擇具有資產撥回、配息機制的投資標的，其資產撥回、配息可能由投資標的收益或本金中支付。涉及從本金支出的部分，可能導致保單帳戶價值減少。"&錄音序號_確認語_2 ->  | C8: 【銷售人員】：本保單在配息、資產撥回、部分提領、解約、年金累積期間身故返還保單帳戶價值或各項保險金給付時，以投資標的當時的淨值做為計算基礎。淨值波動將會影響保單帳戶價值，可能會有獲利或虧損情形，在最大損失情境下，保單帳戶價值可能歸零；如果您選擇的基金包括非投資等級債券，因非投資等級債券有較高的違約及流動性風險且於債券易受利率之變動而影響其價格，可能因此有獲利或虧損情形，請問您清楚嗎? 【請客戶回答：清楚/不清楚】 如您選擇具有資產撥回、配息機制的投資標的，其資產撥回、配息可能由投資標的收益或本金中支付。涉及從本金支出的部分，可能導致保單帳戶價值減少，請問您清楚嗎? 【請客戶回答：清楚/不清楚】
A9: 保誠人壽樂活美金外幣變額年金保險 | B9: ="【銷售人員】：本保單在配息、資產撥回、部分提領、解約、年金累積期滿保險金或各項保險金給付時，以投資標的當時的淨值做為計算基礎。淨值波動將會影響保單帳戶價值，可能會有獲利或虧損情形，在最大損失情境下，保單帳戶價值可能歸零；如果您選擇的基金包括非投資等級債券，因非投資等級債券有較高的違約及流動性風險且於債券易受利率之變動而影響其價格，可能因此有獲利或虧損情形，"&錄音序號_確認語_2&"如您選擇具有資產撥回、配息機制的投資標的，其資產撥回、配息可能由投資標的收益或本金中支付。涉及從本金支出的部分，可能導致保單帳戶價值減少。"&錄音序號_確認語_2 ->  | C9: 【銷售人員】：本保單在配息、資產撥回、部分提領、解約、年金累積期滿保險金或各項保險金給付時，以投資標的當時的淨值做為計算基礎。淨值波動將會影響保單帳戶價值，可能會有獲利或虧損情形，在最大損失情境下，保單帳戶價值可能歸零；如果您選擇的基金包括非投資等級債券，因非投資等級債券有較高的違約及流動性風險且於債券易受利率之變動而影響其價格，可能因此有獲利或虧損情形，請問您清楚嗎? 【請客戶回答：清楚/不清楚】 如您選擇具有資產撥回、配息機制的投資標的，其資產撥回、配息可能由投資標的收益或本金中支付。涉及從本金支出的部分，可能導致保單帳戶價值減少，請問您清楚嗎? 【請客戶回答：清楚/不清楚】
A10: 保誠人壽新卓越人生外幣變額壽險 | B10: ="【銷售人員】：本保單在配息、部分提領、解約、返還「保單帳戶價值」或各項保險金給付時，以投資標的當時的淨值做為計算基礎。淨值波動將會影響保單帳戶價值，可能會有獲利或虧損情形，在最大損失情境下，保單帳戶價值可能歸零；如果您選擇的基金包括非投資等級債券，因非投資等級債券有較高的違約及流動性風險且於債券易受利率之變動而影響其價格，可能因此有獲利或虧損情形，"&錄音序號_確認語_2& "如您選擇具有配息機制的投資標的，其配息可能由投資標的收益或本金中支付。涉及從本金支出的部分，可能導致保單帳戶價值減少。"&錄音序號_確認語_2 ->  | C10: 【銷售人員】：本保單在配息、部分提領、解約、返還「保單帳戶價值」或各項保險金給付時，以投資標的當時的淨值做為計算基礎。淨值波動將會影響保單帳戶價值，可能會有獲利或虧損情形，在最大損失情境下，保單帳戶價值可能歸零；如果您選擇的基金包括非投資等級債券，因非投資等級債券有較高的違約及流動性風險且於債券易受利率之變動而影響其價格，可能因此有獲利或虧損情形，請問您清楚嗎? 【請客戶回答：清楚/不清楚】 如您選擇具有配息機制的投資標的，其配息可能由投資標的收益或本金中支付。涉及從本金支出的部分，可能導致保單帳戶價值減少，請問您清楚嗎? 【請客戶回答：清楚/不清楚】
A11: 保誠人壽新智富人生變額壽險 | B11: ="【銷售人員】：本保單在配息、部分提領、解約、返還「保單帳戶價值」或各項保險金給付時，以投資標的當時的淨值做為計算基礎。淨值波動將會影響保單帳戶價值，可能會有獲利或虧損情形，在最大損失情境下，保單帳戶價值可能歸零；如果您選擇的基金包括非投資等級債券，因非投資等級債券有較高的違約及流動性風險且於債券易受利率之變動而影響其價格，可能因此有獲利或虧損情形，"&錄音序號_確認語_2& "如您選擇具有配息機制的投資標的，其配息可能由投資標的收益或本金中支付。涉及從本金支出的部分，可能導致保單帳戶價值減少。"&錄音序號_確認語_2 ->  | C11: 【銷售人員】：本保單在配息、部分提領、解約、返還「保單帳戶價值」或各項保險金給付時，以投資標的當時的淨值做為計算基礎。淨值波動將會影響保單帳戶價值，可能會有獲利或虧損情形，在最大損失情境下，保單帳戶價值可能歸零；如果您選擇的基金包括非投資等級債券，因非投資等級債券有較高的違約及流動性風險且於債券易受利率之變動而影響其價格，可能因此有獲利或虧損情形，請問您清楚嗎? 【請客戶回答：清楚/不清楚】 如您選擇具有配息機制的投資標的，其配息可能由投資標的收益或本金中支付。涉及從本金支出的部分，可能導致保單帳戶價值減少，請問您清楚嗎? 【請客戶回答：清楚/不清楚】
A12: 保誠人壽新美澳雙享外幣變額壽險 | B12: ="【銷售人員】：本保單在配息、部分提領、解約、返還「保單帳戶價值」或各項保險金給付時，以投資標的當時的淨值做為計算基礎。淨值波動將會影響保單帳戶價值，可能會有獲利或虧損情形，在最大損失情境下，保單帳戶價值可能歸零；如果您選擇的基金包括非投資等級債券，因非投資等級債券有較高的違約及流動性風險且於債券易受利率之變動而影響其價格，可能因此有獲利或虧損情形，"&錄音序號_確認語_2& "如您選擇具有配息機制的投資標的，其配息可能由投資標的收益或本金中支付。涉及從本金支出的部分，可能導致保單帳戶價值減少。"&錄音序號_確認語_2 ->  | C12: 【銷售人員】：本保單在配息、部分提領、解約、返還「保單帳戶價值」或各項保險金給付時，以投資標的當時的淨值做為計算基礎。淨值波動將會影響保單帳戶價值，可能會有獲利或虧損情形，在最大損失情境下，保單帳戶價值可能歸零；如果您選擇的基金包括非投資等級債券，因非投資等級債券有較高的違約及流動性風險且於債券易受利率之變動而影響其價格，可能因此有獲利或虧損情形，請問您清楚嗎? 【請客戶回答：清楚/不清楚】 如您選擇具有配息機制的投資標的，其配息可能由投資標的收益或本金中支付。涉及從本金支出的部分，可能導致保單帳戶價值減少，請問您清楚嗎? 【請客戶回答：清楚/不清楚】
A13: 保誠人壽新三五歐霸外幣變額壽險 | B13: ="【銷售人員】：本保單在配息、資產撥回、部分提領、解約、返還「保單帳戶價值」或各項保險金給付時，以投資標的當時的淨值做為計算基礎。淨值波動將會影響保單帳戶價值，可能會有獲利或虧損情形，在最大損失情境下，保單帳戶價值可能歸零；如果您選擇的基金包括非投資等級債券，因非投資等級債券有較高的違約及流動性風險且於債券易受利率之變動而影響其價格，可能因此有獲利或虧損情形，"&錄音序號_確認語_2& "如您選擇具有資產撥回、配息機制的投資標的，其資產撥回、配息可能由投資標的收益或本金中支付。涉及從本金支出的部分，可能導致保單帳戶價值減少。"&錄音序號_確認語_2 ->  | C13: 【銷售人員】：本保單在配息、資產撥回、部分提領、解約、返還「保單帳戶價值」或各項保險金給付時，以投資標的當時的淨值做為計算基礎。淨值波動將會影響保單帳戶價值，可能會有獲利或虧損情形，在最大損失情境下，保單帳戶價值可能歸零；如果您選擇的基金包括非投資等級債券，因非投資等級債券有較高的違約及流動性風險且於債券易受利率之變動而影響其價格，可能因此有獲利或虧損情形，請問您清楚嗎? 【請客戶回答：清楚/不清楚】 如您選擇具有資產撥回、配息機制的投資標的，其資產撥回、配息可能由投資標的收益或本金中支付。涉及從本金支出的部分，可能導致保單帳戶價值減少，請問您清楚嗎? 【請客戶回答：清楚/不清楚】
A14: 保誠人壽新三五寶島變額壽險 | B14: ="【銷售人員】：本保單在配息、資產撥回、部分提領、解約、返還「保單帳戶價值」或各項保險金給付時，以投資標的當時的淨值做為計算基礎。淨值波動將會影響保單帳戶價值，可能會有獲利或虧損情形，在最大損失情境下，保單帳戶價值可能歸零；如果您選擇的基金包括非投資等級債券，因非投資等級債券有較高的違約及流動性風險且於債券易受利率之變動而影響其價格，可能因此有獲利或虧損情形，"&錄音序號_確認語_2& "如您選擇具有資產撥回、配息機制的投資標的，其資產撥回、配息可能由投資標的收益或本金中支付。涉及從本金支出的部分，可能導致保單帳戶價值減少。"&錄音序號_確認語_2 ->  | C14: 【銷售人員】：本保單在配息、資產撥回、部分提領、解約、返還「保單帳戶價值」或各項保險金給付時，以投資標的當時的淨值做為計算基礎。淨值波動將會影響保單帳戶價值，可能會有獲利或虧損情形，在最大損失情境下，保單帳戶價值可能歸零；如果您選擇的基金包括非投資等級債券，因非投資等級債券有較高的違約及流動性風險且於債券易受利率之變動而影響其價格，可能因此有獲利或虧損情形，請問您清楚嗎? 【請客戶回答：清楚/不清楚】 如您選擇具有資產撥回、配息機制的投資標的，其資產撥回、配息可能由投資標的收益或本金中支付。涉及從本金支出的部分，可能導致保單帳戶價值減少，請問您清楚嗎? 【請客戶回答：清楚/不清楚】
A15: 保誠人壽三五美金外幣變額壽險 | B15: ="【銷售人員】：本保單在配息、資產撥回、部分提領、解約、返還「保單帳戶價值」或各項保險金給付時，以投資標的當時的淨值做為計算基礎。淨值波動將會影響保單帳戶價值，可能會有獲利或虧損情形，在最大損失情境下，保單帳戶價值可能歸零；如果您選擇的基金包括非投資等級債券，因非投資等級債券有較高的違約及流動性風險且於債券易受利率之變動而影響其價格，可能因此有獲利或虧損情形，"&錄音序號_確認語_2& "如您選擇具有資產撥回、配息機制的投資標的，其資產撥回、配息可能由投資標的收益或本金中支付。涉及從本金支出的部分，可能導致保單帳戶價值減少。"&錄音序號_確認語_2 ->  | C15: 【銷售人員】：本保單在配息、資產撥回、部分提領、解約、返還「保單帳戶價值」或各項保險金給付時，以投資標的當時的淨值做為計算基礎。淨值波動將會影響保單帳戶價值，可能會有獲利或虧損情形，在最大損失情境下，保單帳戶價值可能歸零；如果您選擇的基金包括非投資等級債券，因非投資等級債券有較高的違約及流動性風險且於債券易受利率之變動而影響其價格，可能因此有獲利或虧損情形，請問您清楚嗎? 【提示：請等待客戶回答】 如您選擇具有資產撥回、配息機制的投資標的，其資產撥回、配息可能由投資標的收益或本金中支付。涉及從本金支出的部分，可能導致保單帳戶價值減少，請問您清楚嗎? 【提示：請等待客戶回答】
A16: 保誠人壽新三五中國外幣變額壽險 | B16: ="【銷售人員】：本保單在配息、資產撥回、部分提領、解約、返還「保單帳戶價值」或各項保險金給付時，以投資標的當時的淨值做為計算基礎。淨值波動將會影響保單帳戶價值，可能會有獲利或虧損情形，在最大損失情境下，保單帳戶價值可能歸零；如果您選擇的基金包括非投資等級債券，因非投資等級債券有較高的違約及流動性風險且於債券易受利率之變動而影響其價格，可能因此有獲利或虧損情形，"&錄音序號_確認語_2& "如您選擇具有資產撥回、配息機制的投資標的，其資產撥回、配息可能由投資標的收益或本金中支付。涉及從本金支出的部分，可能導致保單帳戶價值減少。"&錄音序號_確認語_2 ->  | C16: 【銷售人員】：本保單在配息、資產撥回、部分提領、解約、返還「保單帳戶價值」或各項保險金給付時，以投資標的當時的淨值做為計算基礎。淨值波動將會影響保單帳戶價值，可能會有獲利或虧損情形，在最大損失情境下，保單帳戶價值可能歸零；如果您選擇的基金包括非投資等級債券，因非投資等級債券有較高的違約及流動性風險且於債券易受利率之變動而影響其價格，可能因此有獲利或虧損情形，請問您清楚嗎? 【提示：請等待客戶回答】 如您選擇具有資產撥回、配息機制的投資標的，其資產撥回、配息可能由投資標的收益或本金中支付。涉及從本金支出的部分，可能導致保單帳戶價值減少，請問您清楚嗎? 【提示：請等待客戶回答】
A17: 保誠人壽鑫想事成變額壽險 | B17: ="【銷售人員】：本保單在配息、資產撥回、部分提領、解約、返還「保單帳戶價值」或各項保險金給付時，以投資標的當時的淨值做為計算基礎。淨值波動將會影響保單帳戶價值，可能會有獲利或虧損情形，在最大損失情境下，保單帳戶價值可能歸零；如果您選擇的基金包括非投資等級債券，因非投資等級債券有較高的違約及流動性風險且於債券易受利率之變動而影響其價格，可能因此有獲利或虧損情形，"&錄音序號_確認語_2& "如您選擇具有資產撥回、配息機制的投資標的，其資產撥回、配息可能由投資標的收益或本金中支付。涉及從本金支出的部分，可能導致保單帳戶價值減少。"&錄音序號_確認語_2 ->  | C17: 【銷售人員】：本保單在配息、資產撥回、部分提領、解約、返還「保單帳戶價值」或各項保險金給付時，以投資標的當時的淨值做為計算基礎。淨值波動將會影響保單帳戶價值，可能會有獲利或虧損情形，在最大損失情境下，保單帳戶價值可能歸零；如果您選擇的基金包括非投資等級債券，因非投資等級債券有較高的違約及流動性風險且於債券易受利率之變動而影響其價格，可能因此有獲利或虧損情形，請問您清楚嗎? 【提示：請等待客戶回答】 如您選擇具有資產撥回、配息機制的投資標的，其資產撥回、配息可能由投資標的收益或本金中支付。涉及從本金支出的部分，可能導致保單帳戶價值減少，請問您清楚嗎? 【提示：請等待客戶回答】
A18: 保誠人壽誠億滿滿外幣變額壽險 | B18: ="【銷售人員】：本保單在配息、部分提領、解約、返還「保單帳戶價值」或各項保險金給付時，以投資標的當時的淨值做為計算基礎。淨值波動將會影響保單帳戶價值，可能會有獲利或虧損情形，在最大損失情境下，保單帳戶價值可能歸零；如果您選擇的基金包括非投資等級債券，因非投資等級債券有較高的違約及流動性風險且於債券易受利率之變動而影響其價格，可能因此有獲利或虧損情形，"&錄音序號_確認語_2& "如您選擇具有配息機制的投資標的，其配息可能由投資標的收益或本金中支付。涉及從本金支出的部分，可能導致保單帳戶價值減少，"&錄音序號_確認語_2 ->  | C18: 【銷售人員】：本保單在配息、部分提領、解約、返還「保單帳戶價值」或各項保險金給付時，以投資標的當時的淨值做為計算基礎。淨值波動將會影響保單帳戶價值，可能會有獲利或虧損情形，在最大損失情境下，保單帳戶價值可能歸零；如果您選擇的基金包括非投資等級債券，因非投資等級債券有較高的違約及流動性風險且於債券易受利率之變動而影響其價格，可能因此有獲利或虧損情形，請問您清楚嗎? 【請客戶回答：清楚/不清楚】 如您選擇具有配息機制的投資標的，其配息可能由投資標的收益或本金中支付。涉及從本金支出的部分，可能導致保單帳戶價值減少，請問您清楚嗎? 【請客戶回答：清楚/不清楚】
A19: 保誠人壽誠億滿滿外幣變額年金保險 | B19: ="【銷售人員】：本保單在配息、部分提領、解約、年金累積期間身故返還保單帳戶價值或各項保險金給付時，以投資標的當時的淨值做為計算基礎。淨值波動將會影響保單帳戶價值，可能會有獲利或虧損情形，在最大損失情境下，保單帳戶價值可能歸零；如果您選擇的基金包括非投資等級債券，因非投資等級債券有較高的違約及流動性風險且於債券易受利率之變動而影響其價格，可能因此有獲利或虧損情形，"&錄音序號_確認語_2& "如您選擇具有配息機制的投資標的，其配息可能由投資標的收益或本金中支付。涉及從本金支出的部分，可能導致保單帳戶價值減少，"&錄音序號_確認語_2 ->  | C19: 【銷售人員】：本保單在配息、部分提領、解約、年金累積期間身故返還保單帳戶價值或各項保險金給付時，以投資標的當時的淨值做為計算基礎。淨值波動將會影響保單帳戶價值，可能會有獲利或虧損情形，在最大損失情境下，保單帳戶價值可能歸零；如果您選擇的基金包括非投資等級債券，因非投資等級債券有較高的違約及流動性風險且於債券易受利率之變動而影響其價格，可能因此有獲利或虧損情形，請問您清楚嗎? 【請客戶回答：清楚/不清楚】 如您選擇具有配息機制的投資標的，其配息可能由投資標的收益或本金中支付。涉及從本金支出的部分，可能導致保單帳戶價值減少，請問您清楚嗎? 【請客戶回答：清楚/不清楚】
A20: 保誠人壽富利如山變額萬能壽險(10) | B20: ="【銷售人員】：本保單在配息、部分提領、解約、返還「保單帳戶價值」或各項保險金給付時，以投資標的當時的淨值做為計算基礎。淨值波動將會影響保單帳戶價值，可能會有獲利或虧損情形，在最大損失情境下，保單帳戶價值可能歸零；如果您選擇的基金包括非投資等級債券，因非投資等級債券有較高的違約及流動性風險且於債券易受利率之變動而影響其價格，可能因此有獲利或虧損情形，"&錄音序號_確認語_2& "如您選擇具有配息機制的投資標的，其配息可能由投資標的收益或本金中支付。涉及從本金支出的部分，可能導致保單帳戶價值減少，"&錄音序號_確認語_2 ->  | C20: 【銷售人員】：本保單在配息、部分提領、解約、返還「保單帳戶價值」或各項保險金給付時，以投資標的當時的淨值做為計算基礎。淨值波動將會影響保單帳戶價值，可能會有獲利或虧損情形，在最大損失情境下，保單帳戶價值可能歸零；如果您選擇的基金包括非投資等級債券，因非投資等級債券有較高的違約及流動性風險且於債券易受利率之變動而影響其價格，可能因此有獲利或虧損情形，請問您清楚嗎? 【請客戶回答：清楚/不清楚】 如您選擇具有配息機制的投資標的，其配息可能由投資標的收益或本金中支付。涉及從本金支出的部分，可能導致保單帳戶價值減少，請問您清楚嗎? 【請客戶回答：清楚/不清楚】
A21: 保誠人壽樂享美金外幣變額年金保險 | B21: ="【銷售人員】：本保單在配息、資產撥回、部分提領、解約、年金累積期間身故返還保單帳戶價值或各項保險金給付時，以投資標的當時的淨值做為計算基礎。淨值波動將會影響保單帳戶價值，可能會有獲利或虧損情形，在最大損失情境下，保單帳戶價值可能歸零；如果您選擇的基金包括非投資等級債券，因非投資等級債券有較高的違約及流動性風險且於債券易受利率之變動而影響其價格，可能因此有獲利或虧損情形，"&錄音序號_確認語_2& "如您選擇具有資產撥回、配息機制的投資標的，其資產撥回、配息可能由投資標的收益或本金中支付。涉及從本金支出的部分，可能導致保單帳戶價值減少，"&錄音序號_確認語_2 ->  | C21: 【銷售人員】：本保單在配息、資產撥回、部分提領、解約、年金累積期間身故返還保單帳戶價值或各項保險金給付時，以投資標的當時的淨值做為計算基礎。淨值波動將會影響保單帳戶價值，可能會有獲利或虧損情形，在最大損失情境下，保單帳戶價值可能歸零；如果您選擇的基金包括非投資等級債券，因非投資等級債券有較高的違約及流動性風險且於債券易受利率之變動而影響其價格，可能因此有獲利或虧損情形，請問您清楚嗎? 【請客戶回答：清楚/不清楚】 如您選擇具有資產撥回、配息機制的投資標的，其資產撥回、配息可能由投資標的收益或本金中支付。涉及從本金支出的部分，可能導致保單帳戶價值減少，請問您清楚嗎? 【請客戶回答：清楚/不清楚】
A22: 保誠人壽享保障變額萬能壽險 | B22: ="【銷售人員】：本保單在配息、部分提領、解約、返還「保單帳戶價值」或各項保險金給付時，以投資標的當時的淨值做為計算基礎。淨值波動將會影響保單帳戶價值，可能會有獲利或虧損情形，在最大損失情境下，保單帳戶價值可能歸零；如果您選擇的基金有投資於非投資等級債券者，因非投資等級債券有較高的違約及流動性風險且於債券易受利率之變動而影響其價格，可能因此有獲利或虧損情形，"&錄音序號_確認語_2& "如您選擇具有配息機制的投資標的，其配息可能由投資標的收益或本金中支付。涉及從本金支出的部分，可能導致保單帳戶價值減少。"&錄音序號_確認語_2 ->  | C22: 【銷售人員】： 本保單在配息、部分提領、解約、返還「保單帳戶價值」或各項保險金給付時，以投資標的當時的淨值做為計算基礎。淨值波動將會影響保單帳戶價值，可能會有獲利或虧損情形，在最大損失情境下，保單帳戶價值可能歸零；如果您選擇的基金有投資於非投資等級債券者，因非投資等級債券有較高的違約及流動性風險且於債券易受利率之變動而影響其價格，可能因此有獲利或虧損情形，請問您清楚嗎? 【請客戶回答：清楚/不清楚】 如您選擇具有配息機制的投資標的，其配息可能由投資標的收益或本金中支付。涉及從本金支出的部分，可能導致保單帳戶價值減少，請問您清楚嗎? 【請客戶回答：清楚/不清楚】
A23: 保誠人壽享保障外幣變額萬能壽險 | B23: ="【銷售人員】：本保單在配息、部分提領、解約、返還「保單帳戶價值」或各項保險金給付時，以投資標的當時的淨值做為計算基礎。淨值波動將會影響保單帳戶價值，可能會有獲利或虧損情形，在最大損失情境下，保單帳戶價值可能歸零；如果您選擇的基金有投資於非投資等級債券者，因非投資等級債券有較高的違約及流動性風險且於債券易受利率之變動而影響其價格，可能因此有獲利或虧損情形，"&錄音序號_確認語_2& "如您選擇具有配息機制的投資標的，其配息可能由投資標的收益或本金中支付。涉及從本金支出的部分，可能導致保單帳戶價值減少，"&錄音序號_確認語_2 ->  | C23: 【銷售人員】： 本保單在配息、部分提領、解約、返還「保單帳戶價值」或各項保險金給付時，以投資標的當時的淨值做為計算基礎。淨值波動將會影響保單帳戶價值，可能會有獲利或虧損情形，在最大損失情境下，保單帳戶價值可能歸零；如果您選擇的基金有投資於非投資等級債券者，因非投資等級債券有較高的違約及流動性風險且於債券易受利率之變動而影響其價格，可能因此有獲利或虧損情形，請問您清楚嗎? 【請客戶回答：清楚/不清楚】 如您選擇具有配息機制的投資標的，其配息可能由投資標的收益或本金中支付。涉及從本金支出的部分，可能導致保單帳戶價值減少，請問您清楚嗎? 【請客戶回答：清楚/不清楚】

Sheet 資料輸入_主被保人
B1: =商品名稱&"_建議書" -> 保誠人壽享保障變額萬能壽險_建議書 | V1: =IF(高齡話術檢核=TRUE,IF(補充資訊檢核<>1,"錄音話術補充資訊",""),"") ->  | AA1: =IF(補充資訊檢核=1,"填寫完成請點選錄音話術表","") -> 
T4: 保費明細表 | V4: 是否為雙招攬案件 | AA4: =IF(高齡話術檢核=TRUE,"保/經代公司","") -> 
B5: 基本資料 | Q5: 《V1.0版》 | T5: 建議書
T6: 保障明細表 - BNLTRU1附約 | V6: =IF(高齡話術檢核=TRUE,"保/經代公司名稱","") ->  | AA6: =IF(AND(高齡話術檢核=TRUE,服務單位檢核=TRUE),"通路名稱","") -> 
C7: 被保人 | D7: 貴保戶 | F7: 性別 | G7: 男 | H7: 生日 | I7: 740701 | J7: (民國年月日，EX：770101) | M7: 保險年齡 | N7: =IF(ISERROR(被保人生日),"",IF(被保人日月檢核,投保年齡,"")) -> 40 | O7: 歲 | P7: 職業等級 | Q7: 1 | T7: 保障明細表 - ADDNTR2附約
M8: =IF(ISERROR(被保人生日),"","◆被保人保險年齡將在"&TEXT(下一歲日期,"yyyy")-1911&TEXT(下一歲日期,"年M月D日")&"到達下一歲。 ") -> ◆被保人保險年齡將在115年1月2日到達下一歲。 | T8: 保費明細表 | V8: =IF(高齡話術檢核=TRUE,"業務員","") ->  | AA8: =IF(高齡話術檢核=TRUE,IF(雙招攬判斷=TRUE,"第二招攬業務員",""),"") -> 
C9: 要保人身分 | D9: 與被保險人為「同一人」 | T9: 建議書
C10: 要保人 | D10: 貴保戶 | F10: 性別 | G10: 男 | H10: 生日 | I10: 740701 | J10: (民國年月日，EX：770101) | M10: 保險年齡 | N10: =IF(ISERROR(要保人生日),"",IF(要保人日月檢核,要保人投保年齡,"")) -> 40 | O10: 歲 | T10: 保障明細表 - BNLTRN1附約 | V10: =IF(高齡話術檢核=TRUE,"登錄字號","") ->  | AA10: =IF(高齡話術檢核=TRUE,IF(雙招攬判斷=TRUE,"登錄證字號 (第二招攬業務員)",""),"") -> 
T11: 保障明細表 - ACCNTR1附約
C12: 繳款人身分 | D12: 與被保險人為「同一人」 | T12: 保障明細表 - ACCNTR2附約
C13: 繳款人 | D13: 貴保戶 | F13: 性別 | G13: - | H13: 生日 | I13: 740701 | J13: (民國年月日，EX：770101) | M13: 保險年齡 | N13: =IF(ISERROR(繳款人生日),"",IF(繳款人日月檢核,繳款人保險年齡,"")) -> 40 | O13: 歲 | T13: 保障明細表 - ACCNTR3附約 | V13: =IF(高齡話術檢核=TRUE,"要保人身分證字號","") ->  | AA13: =IF(高齡話術檢核=TRUE,"投保目的及需求 (請與業務員報告書一致) ※請下拉選填 ","") ->  | AC13: 保障
T14: 保障明細表 - ADDNTR1附約 | AC14: 子女教育經費
B15: 小提醒 | T15: 保障明細表 - DPAA & ML附約 | V15: =IF(高齡話術檢核=TRUE,"被保人身分證字號","") ->  | AC15: 退休規劃
B16: =IF(高齡話術檢核,資料檢核!D87,"")&INDEX(資料檢核!H7:H10,資料檢核!G7)&IF(資料檢核!G13<>1,資料檢核!H13,"")&IF(資料檢核!G14<>1,資料檢核!H14,"")&INDEX(資料檢核!D7:D10,資料檢核!C7)&IF(資料檢核!C13<>1,資料檢核!D13,"")&IF(資料檢核!C14<>1,資料檢核!D14,"")&IF(資料檢核!C15<>1,資料檢核!D15,"")&INDEX(資料檢核!L7:L10,資料檢核!K7)&IF(資料檢核!K13<>1,資料檢核!L13,"")&IF(資料檢核!K14<>1,資料檢核!L14,"")&INDEX(資料檢核!D18:D21,資料檢核!C18)&INDEX(資料檢核!D22:D24,資料檢核!C22)&IF(資料檢核!C26<>1,資料檢核!D26,"")&IF(資料檢核!G19<>1,資料檢核!H19,"")&IF(資料檢核!G20<>1,資料檢核!H20,"")&IF(資料檢核!G21<>1,資料檢核!H21,"")&IF(資料檢核!G22<>1,資料檢核!H22,"")&IF(資料檢核!G23<>1,資料檢核!H23,"")&IF(資料檢核!G24<>1,資料檢核!H24,"")&IF(資料檢核!G25<>1,資料檢核!H25,"")&IF(資料檢核!G26<>1,資料檢核!H26,"")&IF(資料檢核!G27<>1,資料檢核!H27,"")&IF(資料檢核!G28<>1,資料檢核!H28,"")&INDEX(資料檢核!D32:D35,資料檢核!C32)&IF(資料檢核!C36<>1,資料檢核!D36,"")&IF(資料檢核!C37<>1,資料檢核!D37,"")&IF(資料檢核!G33<>1,資料檢核!H33,"")&INDEX(資料檢核!L32:L36,資料檢核!K32)&INDEX(資料檢核!D40:D44,資料檢核!C40)&INDEX(資料檢核!H40:H44,資料檢核!G40)&INDEX(資料檢核!L40:L45,資料檢核!K40)&INDEX(資料檢核!D48:D51,資料檢核!C48)&INDEX(資料檢核!H48:H51,資料檢核!G48)&IF(資料檢核!G52<>1,資料檢核!H52,"")&IF(資料檢核!G53<>1,資料檢核!H53,"")&INDEX(資料檢核!L48:L52,資料檢核!K48)&INDEX(資料檢核!D73:D84,資料檢核!C73)&IF(資料檢核!K79<>1,資料檢核!L79,"")&IF(資料檢核!K81<>1,資料檢核!L81,"")&IF(資料檢核!K80<>1,資料檢核!L80,"") ->  | AC16: 房屋貸款
V17: =IF(高齡話術檢核=TRUE,"繳款人身分證字號","") ->  | AC17: 其它
V19: =IF(高齡話術檢核,錄音填寫與錄音對象提示訊息,"") -> 
B22: 投保內容
C24: 主約商品 | D24: 保誠人壽享保障變額萬能壽險 | H24: 繳別 | I24: 月繳 | N24: 假設投資報酬率(高) | O24: 0.06
C26: 每期目標保險費 | D26: 10000 | H26: 首/續期繳費方式 | I26: 匯款或自動轉帳 | N26: 假設投資報酬率(中) | O26: 0.03
C28: 定期超額保險費 | H28: 保險費預計投入年期 | I28: 20 | N28: 假設投資報酬率(低) | O28: =O24*-1 -> -0.06
H30: =IF(幣別="新臺幣","","體檢保額估算匯率") ->  | I30: 31.91 | K30: =IF(ISERROR(商品序號),"",IF(商品序號=2,"※ 請確認(體檢保額估算匯率)之匯率為最新公告之數值(每季更新滙率)","")) -> 
J32: 繳費年期 | L32: 投保金額/單位/計劃 | O32: 每期原始保費
C34: 主約商品 | D34: =IF(AND(總檢核,定期超額保險費>0),IF(商品名稱="","",商品名稱&" -【目標保險費】"),IF(商品名稱="","",商品名稱)) -> 保誠人壽享保障變額萬能壽險 | H34: =IF(商品名稱="","",商品代碼) -> ARVL2 | J34: =IF(EPP<>"",EPP&"年期","-") -> 20年期 | L34: =IF(總檢核,投保基本保額,"") -> 6600000 | N34: 元 | O34: =IF(總檢核,IF(ISNA(每期保費),"",每期保費),0) -> 10000 | Q34: 元
C36: =IF(AND(總檢核,定期超額保險費>0),"主約商品","") ->  | D36: =IF(AND(總檢核,定期超額保險費>0),IF(商品名稱="","",商品名稱&" -【超額保險費】"),"") ->  | H36: =IF(AND(總檢核,定期超額保險費>0),IF(商品名稱="","",商品代碼),"") ->  | J36: =IF(AND(總檢核,定期超額保險費>0),IF(EPP<>"",EPP&"年期","-"),"") ->  | L36: =IF(AND(總檢核,定期超額保險費>0),"-","") ->  | O36: =IF(AND(總檢核,分期超額檢核,定期超額保險費>0),IF(ISNA(每期保費),"",定期超額保險費),0) -> 0 | Q36: =IF(AND(總檢核,定期超額保險費>0)," 元","") -> 
C38: =IF(ISERROR(商品序號),"",IF(商品序號<>2,"","附約")) ->  | D38: =IF(ISERROR(商品序號),"",IF(商品序號<>2,"",BNLTRU1_商品名稱)) ->  | H38: =IF(ISERROR(商品序號),"",IF(商品序號<>2,"",BNLTRU1_商品代號)) ->  | K38: =IF(ISERROR(商品序號),"",IF(商品序號<>2,""," 年期")) ->  | N38: =IF(ISERROR(商品序號),"",IF(商品序號<>2,""," 元")) ->  | O38: =IF(ISERROR(商品序號),0,IF(商品序號=2,IF(總檢核,IF(BNLTRU1_檢核,IF(OR(BNLTRU1_保額="",BNLTRU1_保額=0),"0",ROUND(BNLTRU1_首期表定保費,個別險種進位數)),0),0),"")) ->  | Q38: =IF(ISERROR(商品序號),"",IF(商品序號<>2,""," 元")) -> 
C40: =IF(ISERROR(商品序號),"",IF(商品序號<>1,"","附約")) -> 附約 | D40: =IF(ISERROR(商品序號),"",IF(商品序號<>1,"",BNLTRN1_商品名稱)) -> 保誠人壽喜樂定期壽險附約 | H40: =IF(ISERROR(商品序號),"",IF(商品序號<>1,"",BNLTRN1_商品代號)) -> BNLTRN1 | K40: =IF(ISERROR(商品序號),"",IF(商品序號<>1,""," 年期")) -> 年期 | N40: =IF(ISERROR(商品序號),"",IF(商品序號<>1,""," 萬元")) -> 萬元 | O40: =IF(ISERROR(商品序號),0,IF(商品序號=1,IF(總檢核,IF(BNLTRN1_檢核,IF(OR(BNLTRN1_保額="",BNLTRN1_保額=0),"0",ROUND(BNLTRN1_首期表定保費,個別險種進位數)),0),0),"")) -> 0 | Q40: =IF(ISERROR(商品序號),"",IF(商品序號<>1,""," 元")) -> 元
C42: =IF(ISERROR(商品序號),"",IF(商品序號<>2,"","附約")) ->  | D42: =IF(ISERROR(商品序號),"",IF(商品序號<>2,"",ADDNTR2_商品名稱)) ->  | H42: =IF(ISERROR(商品序號),"",IF(商品序號<>2,"",ADDNTR2_商品代號)) ->  | J42: =IF(ISERROR(商品序號),"",IF(商品序號<>2,"",ADDNTR2_年期&"年期")) ->  | N42: =IF(ISERROR(商品序號),"",IF(商品序號<>2,""," 元")) ->  | O42: =IF(ISERROR(商品序號),0,IF(商品序號=2,IF(總檢核,IF(ADDNTR2_檢核,IF(OR(ADDNTR2_保額="",ADDNTR2_保額=0),"0",ROUND(ADDNTR2_首期表定保費,個別險種進位數)),0),0),"")) ->  | Q42: =IF(ISERROR(商品序號),"",IF(商品序號<>2,""," 元")) -> 
C44: =IF(ISERROR(商品序號),"",IF(商品序號<>1,"","附約")) -> 附約 | D44: =IF(ISERROR(商品序號),"",IF(商品序號<>1,"",ACCNTR1_商品名稱)) -> 保誠人壽愛寶貝定期癌症健康保險附約 | H44: =IF(ISERROR(商品序號),"",IF(商品序號<>1,"",ACCNTR1_商品代號)) -> ACCNTR1 | J44: =IF(ISERROR(商品序號),"",IF(商品序號<>1,"",ACCNTR1_年期&"年期")) -> 10年期 | N44: =IF(ISERROR(商品序號),"",IF(商品序號<>1,""," 單位")) -> 單位 | O44: =IF(ISERROR(商品序號),0,IF(商品序號=1,IF(總檢核,IF(ACCNTR1_檢核,IF(OR(ACCNTR1_單位="",ACCNTR1_單位=0),"0",ROUND(ACCNTR1_首期表定保費,個別險種進位數)),0),0),"")) -> 0 | Q44: =IF(ISERROR(商品序號),"",IF(商品序號<>1,""," 元")) -> 元
C46: =IF(ISERROR(商品序號),"",IF(商品序號<>1,"","附約")) -> 附約 | D46: =IF(ISERROR(商品序號),"",IF(商品序號<>1,"",ACCNTR2_商品名稱)) -> 保誠人壽標靶守護防癌健康保險附約 | H46: =IF(ISERROR(商品序號),"",IF(商品序號<>1,"",ACCNTR2_商品代號)) -> ACCNTR2 | J46: =IF(ISERROR(商品序號),"",IF(商品序號<>1,"",ACCNTR2_年期&"年期")) -> 1年期 | N46: =IF(ISERROR(商品序號),"",IF(商品序號<>1,""," 萬元")) -> 萬元 | O46: =IF(ISERROR(商品序號),0,IF(商品序號=1,IF(總檢核,IF(ACCNTR2_檢核,IF(OR(ACCNTR2_保額="",ACCNTR2_保額=0),"0",ROUND(ACCNTR2_首期表定保費,個別險種進位數)),0),0),"")) -> 0 | Q46: =IF(ISERROR(商品序號),"",IF(商品序號<>1,""," 元")) -> 元
C48: =IF(ISERROR(商品序號),"",IF(商品序號<>1,"","附約")) -> 附約 | D48: =IF(ISERROR(商品序號),"",IF(商品序號<>1,"",ACCNTR3_商品名稱)) -> 保誠人壽愛要守護防癌健康保險附約 | H48: =IF(ISERROR(商品序號),"",IF(商品序號<>1,"",ACCNTR3_商品代號)) -> ACCNTR3 | J48: =IF(ISERROR(商品序號),"",IF(商品序號<>1,"",ACCNTR3_年期&"年期")) -> 1年期 | N48: =IF(ISERROR(商品序號),"",IF(商品序號<>1,""," 萬元")) -> 萬元 | O48: =IF(ISERROR(商品序號),0,IF(商品序號=1,IF(總檢核,IF(ACCNTR3_檢核,IF(OR(ACCNTR3_保額="",ACCNTR3_保額=0),"0",ROUND(ACCNTR3_首期表定保費,個別險種進位數)),0),0),"")) -> 0 | Q48: =IF(ISERROR(商品序號),"",IF(商品序號<>1,""," 元")) -> 元
C50: =IF(ISERROR(商品序號),"",IF(商品序號<>1,"","附約")) -> 附約 | D50: =IF(ISERROR(商品序號),"",IF(商品序號<>1,"",ADDNTR1_商品名稱)) -> 保誠人壽一年定期重大疾病健康保險附約(乙型) | H50: =IF(ISERROR(商品序號),"",IF(商品序號<>1,"",ADDNTR1_商品代號)) -> ADDNTR1 | J50: =IF(ISERROR(商品序號),"",IF(商品序號<>1,"",ADDNTR1_年期&"年期")) -> 1年期 | N50: =IF(ISERROR(商品序號),"",IF(商品序號<>1,""," 萬元")) -> 萬元 | O50: =IF(ISERROR(商品序號),0,IF(商品序號=1,IF(總檢核,IF(ADDNTR1_檢核,IF(OR(ADDNTR1_保額="",ADDNTR1_保額=0),"0",ROUND(ADDNTR1_首期表定保費,個別險種進位數)),0),0),"")) -> 0 | Q50: =IF(ISERROR(商品序號),"",IF(商品序號<>1,""," 元")) -> 元
C52: =IF(ISERROR(商品序號),"",IF(商品序號<>1,"","附約")) -> 附約 | D52: =IF(ISERROR(商品序號),"",IF(商品序號<>1,"",DPAA_商品名稱)) -> 保誠人壽人身意外傷害保險附約(111) | H52: =IF(ISERROR(商品序號),"",IF(商品序號<>1,"",DPAA_商品代號)) -> DPAA | J52: =IF(ISERROR(商品序號),"",IF(商品序號<>1,"",DPAA_年期&"年期")) -> 1年期 | N52: =IF(ISERROR(商品序號),"",IF(商品序號<>1,""," 萬元")) -> 萬元 | O52: =IF(ISERROR(商品序號),0,IF(商品序號=1,IF(總檢核,IF(DPAA_檢核,IF(OR(DPAA_保額="",DPAA_保額=0),"0",ROUND(DPAA_首期表定保費,個別險種進位數)),0),0),"")) -> 0 | Q52: =IF(ISERROR(商品序號),"",IF(商品序號<>1,""," 元")) -> 元
C54: =IF(ISERROR(商品序號),"",IF(商品序號<>1,"","附約")) -> 附約 | D54: =IF(ISERROR(商品序號),"",IF(商品序號<>1,"",ML_商品名稱)) -> 保誠人壽人身意外傷害住院醫療定額給付附加條款 | H54: =IF(ISERROR(商品序號),"",IF(商品序號<>1,"",ML_商品代號)) -> ML | J54: =IF(ISERROR(商品序號),"",IF(商品序號<>1,"",ML_年期&"年期")) -> 1年期 | N54: =IF(ISERROR(商品序號),"",IF(商品序號<>1,""," 計劃")) -> 計劃 | O54: =IF(ISERROR(商品序號),0,IF(商品序號=1,IF(總檢核,IF(ML_檢核,IF(OR(ML_計劃="",ML_計劃=0),"0",ROUND(ML_首期表定保費,個別險種進位數)),0),0),"")) -> 0 | Q54: =IF(ISERROR(商品序號),"",IF(商品序號<>1,""," 元")) -> 元
N57: 每期原始總保費 合計 | O57: =IF(ISERROR(商品序號),"",IF(商品序號=1,SUM(O34,O36,O40,O44,O46,O48,O50,O52,O54),SUM(O34,O36,O38,O42))) -> 10000 | Q57: 元
B60: 進階選項輸入
C62: 約定投入或提領計劃 | F62: 單筆超額保險費 | I62: 部分提領
L63: 1. | M63: =IF(ISERROR(商品序號),"","本契約於被保險人「保險年齡」達99歲之保單週年日仍生存且本契約仍有效時滿期。") -> 本契約於被保險人「保險年齡」達99歲之保單週年日仍生存且本契約仍有效時滿期。
C64: 開始年齡 | E64: 歲 | H64: 元 | K64: 元
C66: 結束年齡 | E66: 歲 | L66: 2. | M66: =IF(ISERROR(商品序號),"","要保人須繳足第1保單年度「目標保險費 」並補足「保費緩繳期」內應繳之「目標保險費」後，始得申請繳付不定期「超額保險費」。") -> 要保人須繳足第1保單年度「目標保險費 」並補足「保費緩繳期」內應繳之「目標保險費」後，始得申請繳付不定期「超額保險費」。
C68: 開始年齡 | E68: 歲 | H68: 元 | K68: 元
L69: 3. | M69: =IF(ISERROR(商品序號),"",IF(商品序號=1, "超額保險費每次繳交之金額不得低於新臺幣20,000元，每保單年度累計繳金額以「月繳化目標保險費」的72倍為上限，且不得超過新臺幣1,000,000元。", "超額保險費每次繳交之金額不得低於美金700元，每保單年度累計繳金額以「月繳化目標保險費」的72倍為上限，且不得超過美金35,000元。")) -> 超額保險費每次繳交之金額不得低於新臺幣20,000元，每保單年度累計繳金額以「月繳化目標保險費」的72倍為上限，且不得超過新臺幣1,000,000元。
C70: 結束年齡 | E70: 歲
C72: 開始年齡 | E72: 歲 | H72: 元 | K72: 元 | L72: 4. | M72: =IF(ISERROR(商品序號),"",IF(商品序號=1, "部分提領每次提領之「保單帳戶價值」不得低於新臺幣3,000元，且提領後的「保單帳戶價值」不得低於新臺幣10,000元。", "部分提領每次提領之「保單帳戶價值」不得低於美金100元，且提領後的「保單帳戶價值」不得低於美金350元。")) -> 部分提領每次提領之「保單帳戶價值」不得低於新臺幣3,000元，且提領後的「保單帳戶價值」不得低於新臺幣10,000元。
C74: 結束年齡 | E74: 歲
B76: 小提醒
B77: =IF(資料檢核!G74<>1,資料檢核!H74,"")&IF(資料檢核!G75<>1,資料檢核!H75,"")&IF(資料檢核!G76<>1,資料檢核!H76,"")&IF(資料檢核!G77<>1,資料檢核!H77,"")&IF(資料檢核!G78<>1,資料檢核!H78,"")&IF(資料檢核!G79<>1,資料檢核!H79,"")&IF(資料檢核!K74<>1,資料檢核!L74,"")&IF(資料檢核!K75<>1,資料檢核!L75,"")&IF(資料檢核!K76<>1,資料檢核!L76,"")&IF(資料檢核!K80<>1,資料檢核!L80,"")&IF(資料檢核!K81<>1,資料檢核!L81,"") -> 
B83: 簡易投保規則
B85: =IF(ISERROR(商品序號),"",IF(商品序號=1,商品1_投保規則,商品2_投保規則)) -> 【ARVL2 - 保誠人壽享保障變額萬能壽險】 1. 投保年齡：15足~65歲 2. 「月繳化目標保險費」限制(以新臺幣/百元為單位)： ▪ 15足~25歲：3,000元~25,000元 ▪ 26~35歲：3,000元~35,000元 ▪ 36~45歲：3,000元~55,000元 ▪ 46~60歲：3,000元~100,000元 ▪ 61~65歲：3,000元~125,000元 3.定期「超額保險費」限制：最低每期1,000 元 ※「超額保險費」每保單年度累計繳交之金額，最高不得超過新臺幣300萬元 ※每一被保險人累計目標保險費及超額保險費之總繳交金額不得超過新臺幣3億元 4.不適用高保費折扣及任何保費繳納方式的優惠
B95: =IF(ISERROR(商品序號),"",IF(商品序號=1,商品1_附約投保規則,商品2_附約投保規則)) -> 【BNLTRN1 - 保誠人壽喜樂定期壽險附約】 投保年齡：《6/10/15年期》15足～65歲 /《20年期》15足～60歲 投保限額：《15足～40歲以下》10萬～1,000萬 /《41～50歲》10萬～500萬 /《51～65歲》10萬～350萬 (以新臺幣/萬元為投保單位) 不受理配偶及子女附加投保本附約 【ACCNTR1 - 保誠人壽愛寶貝定期癌症健康保險附約】 投保年齡：1～15歲 投保限額：1單位～3單位 (以「單位」為投保單位；每單位保額以新臺幣1,000元計) 受理被保險人及其子女附加本附約
B102: =商品1_附約投保規則_2 -> 【ACCNTR2 - 保誠人壽標靶守護防癌健康保險附約】 投保年齡：0～70歲 投保限額：15～30萬元 (以新臺幣/萬元為投保單位) 受理被保險人、其配偶及子女附加本附約 【ACCNTR3 - 保誠人壽愛要守護防癌健康保險附約】 投保年齡：0～64歲 投保限額：15～30萬元 (以新臺幣/萬元為投保單位) 受理被保險人、其配偶及子女附加本附約 【ADDNTR1－保誠人壽一年定期重大疾病健康保險附約(乙型)】 投保年齡：0～65歲 投保限額：1萬～30萬 (以新臺幣/萬元為投保單位) 受理被保險人、其配偶及子女附加本附約 【DPAA－保誠人壽人身意外傷害保險附約(111)】 投保年齡：0～70歲 投保限額：《0～未滿15足歲》10萬～60萬 /《15足～65歲》10萬～2,000萬 /《66～70歲》10萬～500萬 (以新臺幣/10萬元為投保單位) 受理被保險人、其配偶及子女附加本附約 【ML－保誠人壽人身意外傷害住院醫療定額給付附加條款】※須投保DPAA始得附加ML 投保年齡：0～70歲 投保限額：5～30計劃 (共分5/10/15/20/25/30六種計劃，以「計劃」為投保單位，每計劃保額以新臺幣100元計) 《傷害保險保額299萬以下》最高20計劃 /《傷害保險保額300萬(含)以上》最高30計劃 受理被保險人、其配偶及子女附加本附約
B151: 被保人群組
B152: 生日檢核 | D152: =資料檢核!G7 -> 1
B153: 姓名檢核 | D153: =資料檢核!G13 -> 1
B154: 性別檢核 | D154: =資料檢核!G14 -> 1
B155: 目標保費檢核 | D155: =資料檢核!C24 -> 1
B156: 職業等級檢核 | D156: =資料檢核!G21 -> 1
B158: 要保人群組
B159: 生日檢核 | D159: =資料檢核!C7 -> 1
B160: 姓名檢核 | D160: =資料檢核!C13 -> 1
B161: 性別檢核 | D161: =資料檢核!C14 -> 1
B162: 身份辨識 | D162: =資料檢核!C15 -> 1
B164: 繳款人群組
B165: 生日檢核 | D165: =資料檢核!K7 -> 1
B166: 姓名檢核 | D166: =資料檢核!K13 -> 1
B167: 身份辨識 | D167: =資料檢核!K14 -> 1
B169: 其他
B170: 商品輸入檢核 | D170: =資料檢核!G19 -> 1
B171: 目標保費檢核 | D171: =資料檢核!C18 -> 1
B172: 超額保費檢核 | D172: =資料檢核!C26 -> 1
B173: 繳別輸入檢核 | D173: =資料檢核!G20 -> 1
B174: 繳費方式檢核 | D174: =資料檢核!G25 -> 1
B175: 幣別繳費方式檢核 | D175: =資料檢核!G27 -> 1
B176: 超額繳費方式檢核 | D176: =資料檢核!G28 -> 1
B177: 投入年期檢核 | D177: =資料檢核!C23 -> 1
B178: 報酬率(高)檢核 | D178: =資料檢核!G22 -> 1
B179: 報酬率(中)檢核 | D179: =資料檢核!G23 -> 1
B180: 報酬率假設檢核 | D180: =資料檢核!G24 -> 1
B181: 預計繳費年期 | D181: =資料檢核!C23 -> 1
B182: 預計繳費年期 | D182: =資料檢核!C24 -> 1
B183: 體檢保額估算匯率 | D183: =資料檢核!G26 -> 1
B185: 錄音話術群組
B186: 錄音話術檢核 | D186: =高齡話術檢核 -> FALSE
B187: 補充資訊檢核 | D187: =補充資訊檢核 -> 5
B188: 投保目的勾選 | D188: =投保目的勾選檢核 -> FALSE
B189: 雙招攬判斷 | D189: =雙招攬判斷 -> FALSE
B191: 進階選項群組
B192: 執行年齡檢核1 | D192: =資料檢核!G74 -> 1
B193: 執行年齡檢核2 | D193: =資料檢核!G75 -> 1
B194: 執行年齡檢核3 | D194: =資料檢核!G76 -> 1
B195: 部提限制檢核1 | D195: =資料檢核!G77 -> 1
B196: 部提限制檢核2 | D196: =資料檢核!G78 -> 1
B197: 部提限制檢核3 | D197: =資料檢核!G79 -> 1
B198: 超額限制檢核 | D198: =資料檢核!G80 -> 1
B199: 單筆超額檢核1 | D199: =資料檢核!K74 -> 1
B200: 單筆超額檢核2 | D200: =資料檢核!K75 -> 1
B201: 單筆超額檢核3 | D201: =資料檢核!K76 -> 1
B202: 單筆超額總檢核 | D202: =資料檢核!K80 -> 1
B203: 分期超額檢核 | D203: =資料檢核!K79 -> 1
B204: 總累計檢核 | D204: =資料檢核!K81 -> 1
B206: BNLTRN1
B207: 保額檢核 | D207: =資料檢核!C32 -> 1
B208: 年期檢核 | D208: =資料檢核!C36 -> 1
B209: 空白檢核 | D209: =資料檢核!C37 -> 1
B211: ACCNTR1
B212: 年齡檢核 | D212: =資料檢核!G33 -> 1
B214: ACCNTR2
B215: 年齡檢核 | D215: =資料檢核!K32 -> 1
B217: ACCNTR3
B218: 年齡檢核 | D218: =資料檢核!C40 -> 1
B220: ADDNTR1
B221: 保額檢核 | D221: =資料檢核!G40 -> 1
B223: DPAA
B224: 保額檢核 | D224: =資料檢核!K40 -> 1
B226: ML
B227: 保額檢核 | D227: =資料檢核!C48 -> 1
B229: BNLTRU1
B230: 保額檢核 | D230: =資料檢核!G48 -> 1
B231: 年期檢核 | D231: =資料檢核!G52 -> 1
B232: 空白檢核 | D232: =資料檢核!G53 -> 1
B234: ADDNTR2
B235: 保額檢核 | D235: =資料檢核!K48 -> 1

Sheet 資料輸入_配偶、子女
B1: 附約商品_建議書
U2: 保費明細表
B3: 基本資料 | Q3: 《V1.0版》 | U3: 建議書
U4: 保障明細表 - BNLTRN1附約
D5: 要保人 | E5: =IF(要保人身分="","",IF(要保人身分="與被保險人為「同一人」",被保人,要保人)) -> 貴保戶 | F5: 性別 | G5: =IF(要保人身分="","",IF(要保人身分="與被保險人為「同一人」",被保人性別,要保人性別)) -> 男 | H5: 生日 | I5: =IF(要保人身分="","",IF(要保人身分="與被保險人為「同一人」",被保人生日6碼,要保人生日6碼)) -> 740701 | J5: (民國年月日，EX：770101) | N5: 保險年齡 | O5: =IF(ISERROR(要保人保險年齡),"",IF(要保人日月檢核,要保人保險年齡,"")) -> 40 | P5: 歲 | U5: 保障明細表 - ACCNTR1附約
U6: 保障明細表 - ACCNTR2附約
D7: 被保人 | E7: =被保人 -> 貴保戶 | F7: 性別 | G7: =被保人性別 -> 男 | H7: 生日 | I7: =被保人生日6碼 -> 740701 | J7: (民國年月日，EX：770101) | N7: 保險年齡 | O7: =IF(ISERROR(被保人保險年齡),"",IF(被保人日月檢核,被保人保險年齡,"")) -> 40 | P7: 歲 | Q7: 職業等級 | R7: =職業等級 -> 1 | U7: 保障明細表 - ACCNTR3附約
U8: 保障明細表 - ADDNTR1附約
C9: 不投保 | D9: 配偶 | E9: 配偶 | F9: 性別 | G9: 女 | H9: 生日 | I9: 740101 | J9: (民國年月日，EX：770101) | N9: 保險年齡 | O9: =IF(ISERROR(配偶保險年齡),"",IF(配偶日月檢核,配偶保險年齡,"")) -> 41 | P9: 歲 | Q9: 職業等級 | R9: 1 | U9: 保障明細表 - DPAA & ML附約
N10: =IF(AND(配偶生日6碼<>"",配偶投保="投保"),IF(配偶保險年齡>DPAA_最大年齡,"◆配偶 保險年齡已逾下列附約投保年齡上限 !",""),"") ->  | U10: 回資料輸入_主被保險人
C11: 不投保 | D11: 子女1 | E11: 子女1 | F11: 性別 | G11: 男 | H11: 生日 | I11: 1130101 | J11: (民國年月日，EX：770101) | N11: 保險年齡 | O11: =IF(ISERROR(子女1保險年齡),"",IF(子女1日月檢核,子女1保險年齡,"")) -> 2 | P11: 歲 | Q11: 職業等級 | R11: 1
N12: =IF(AND(子女1生日6碼<>"",子女1投保="投保"),IF(子女1保險年齡>DPAA_最大年齡,"◆子女1 保險年齡已逾下列附約投保年齡上限 !",""),"") -> 
C13: 不投保 | D13: 子女2 | E13: 子女2 | F13: 性別 | G13: 男 | H13: 生日 | I13: 1130101 | J13: (民國年月日，EX：770101) | N13: 保險年齡 | O13: =IF(ISERROR(子女2保險年齡),"",IF(子女2日月檢核,子女2保險年齡,"")) -> 2 | P13: 歲 | Q13: 職業等級 | R13: 1
N14: =IF(AND(子女2生日6碼<>"",子女2投保="投保"),IF(子女2保險年齡>DPAA_最大年齡,"◆子女2 保險年齡已逾下列附約投保年齡上限 !",""),"") -> 
C15: 不投保 | D15: 子女3 | E15: 子女3 | F15: 性別 | G15: 男 | H15: 生日 | I15: 1130101 | J15: (民國年月日，EX：770101) | N15: 保險年齡 | O15: =IF(ISERROR(子女3保險年齡),"",IF(子女3日月檢核,子女3保險年齡,"")) -> 2 | P15: 歲 | Q15: 職業等級 | R15: 1
N16: =IF(AND(子女3生日6碼<>"",子女3投保="投保"),IF(子女3保險年齡>DPAA_最大年齡,"◆子女3 保險年齡已逾下列附約投保年齡上限 !",""),"") -> 
B18: 主被保人
I20: 繳費年期 | J20: 投保金額/單位/計劃 | N20: 每期原始保費
D22: 主約商品 | E22: =資料輸入_主被保人!D34 -> 保誠人壽享保障變額萬能壽險 | H22: =資料輸入_主被保人!H34 -> ARVL2 | I22: =資料輸入_主被保人!J34 -> 20年期 | K22: =資料輸入_主被保人!L34 -> 6600000 | L22: 元 | N22: =資料輸入_主被保人!O34 -> 10000 | P22: 元
D24: =資料輸入_主被保人!C36 ->  | E24: =資料輸入_主被保人!D36 ->  | H24: =資料輸入_主被保人!H36 ->  | I24: =資料輸入_主被保人!J36 ->  | K24: =資料輸入_主被保人!L36 ->  | N24: =資料輸入_主被保人!O36 -> 0 | P24: =資料輸入_主被保人!Q36 -> 
D26: 附約 | E26: =BNLTRN1_商品名稱 -> 保誠人壽喜樂定期壽險附約 | H26: =BNLTRN1_商品代號 -> BNLTRN1 | I26: =IF(BNLTRN1_繳費年期="","",BNLTRN1_繳費年期) ->  | J26: 年期 | K26: =IF(BNLTRN1_保額="","",BNLTRN1_保額) ->  | L26: 萬元 | N26: =資料輸入_主被保人!O40 -> 0 | P26: 元
D28: 附約 | E28: =ACCNTR1_商品名稱 -> 保誠人壽愛寶貝定期癌症健康保險附約 | H28: =ACCNTR1_商品代號 -> ACCNTR1 | I28: =ACCNTR1_年期&"年期" -> 10年期 | K28: =IF(ACCNTR1_單位="","",ACCNTR1_單位) ->  | L28: 單位 | N28: =資料輸入_主被保人!O44 -> 0 | P28: 元
D30: 附約 | E30: =ACCNTR2_商品名稱 -> 保誠人壽標靶守護防癌健康保險附約 | H30: =ACCNTR2_商品代號 -> ACCNTR2 | I30: =ACCNTR2_年期&"年期" -> 1年期 | K30: =IF(ACCNTR2_保額="","",ACCNTR2_保額) ->  | L30: 萬元 | N30: =資料輸入_主被保人!O46 -> 0 | P30: 元
D32: 附約 | E32: =ACCNTR3_商品名稱 -> 保誠人壽愛要守護防癌健康保險附約 | H32: =ACCNTR3_商品代號 -> ACCNTR3 | I32: =ACCNTR3_年期&"年期" -> 1年期 | K32: =IF(ACCNTR3_保額="","",ACCNTR3_保額) ->  | L32: 萬元 | N32: =資料輸入_主被保人!O48 -> 0 | P32: 元
D34: 附約 | E34: =ADDNTR1_商品名稱 -> 保誠人壽一年定期重大疾病健康保險附約(乙型) | H34: =ADDNTR1_商品代號 -> ADDNTR1 | I34: =ADDNTR1_年期&"年期" -> 1年期 | K34: =IF(ADDNTR1_保額="","",ADDNTR1_保額) ->  | L34: 萬元 | N34: =資料輸入_主被保人!O50 -> 0 | P34: 元
D36: 附約 | E36: =DPAA_商品名稱 -> 保誠人壽人身意外傷害保險附約(111) | H36: =DPAA_商品代號 -> DPAA | I36: =DPAA_年期&"年期" -> 1年期 | K36: =IF(DPAA_保額="","",DPAA_保額) ->  | L36: 萬元 | N36: =資料輸入_主被保人!O52 -> 0 | P36: 元
D38: 附約 | E38: =ML_商品名稱 -> 保誠人壽人身意外傷害住院醫療定額給付附加條款 | H38: =ML_商品代號 -> ML | I38: =ML_年期&"年期" -> 1年期 | K38: =IF(ML_計劃="","",ML_計劃) ->  | L38: 計劃 | N38: =資料輸入_主被保人!O54 -> 0 | P38: 元
M41: 每期原始總保費 合計 | N41: =IF(ISERROR(商品序號),0,IF(商品序號=1,SUM(N22,N24,N26,N28,N30,N32,N34,N36,N38),"")) -> 10000 | P41: 元
B44: 配偶附約 | T44: 小提醒
T45: =IF(配偶投保參數=1,INDEX(資料檢核!D101:D104,資料檢核!C101)&INDEX(資料檢核!D106:D109,資料檢核!C106)&INDEX(資料檢核!D125:D129,資料檢核!C125)&INDEX(資料檢核!H125:H129,資料檢核!G125)&INDEX(資料檢核!L125:L129,資料檢核!K125)&INDEX(資料檢核!D133:D138,資料檢核!C133)&INDEX(資料檢核!H133:H136,資料檢核!G133),"") -> 
D46: 配偶 | E46: =IF(OR(配偶全部檢核<>1,配偶投保參數<>1),"",配偶) ->  | F46: 性別 | G46: =IF(OR(配偶全部檢核<>1,配偶投保參數<>1),"",配偶性別) ->  | H46: 生日 | I46: =IF(OR(配偶全部檢核<>1,配偶投保參數<>1),"",配偶生日6碼) ->  | J46: (民國年月日，EX：770101) | N46: 保險年齡 | O46: =IF(OR(配偶全部檢核<>1,配偶投保參數<>1),"",IF(ISERROR(配偶保險年齡),"",IF(配偶日月檢核,配偶保險年齡,""))) ->  | P46: 歲 | Q46: 職業等級 | R46: =IF(OR(配偶全部檢核<>1,配偶投保參數<>1),"",配偶職業等級) -> 
I48: 繳費年期 | J48: 投保金額/單位/計劃 | N48: 每期原始保費
D50: 附約 | E50: =ACCNTR2_商品名稱 -> 保誠人壽標靶守護防癌健康保險附約 | H50: =ACCNTR2_商品代號 -> ACCNTR2 | I50: =ACCNTR2_年期&"年期" -> 1年期 | L50: 萬元 | N50: =IF(ISERROR(商品序號),0,IF(商品序號=1,IF(總檢核,IF(配偶ACCNTR2_檢核,IF(OR(配偶ACCNTR2_保額="",配偶ACCNTR2_保額=0),"0",ROUND(配偶ACCNTR2_首期表定保費,個別險種進位數)),0),0),"")) -> 0 | P50: 元
D52: 附約 | E52: =ACCNTR3_商品名稱 -> 保誠人壽愛要守護防癌健康保險附約 | H52: =ACCNTR3_商品代號 -> ACCNTR3 | I52: =ACCNTR3_年期&"年期" -> 1年期 | L52: 萬元 | N52: =IF(ISERROR(商品序號),0,IF(商品序號=1,IF(總檢核,IF(配偶ACCNTR3_檢核,IF(OR(配偶ACCNTR3_保額="",配偶ACCNTR3_保額=0),"0",ROUND(配偶ACCNTR3_首期表定保費,個別險種進位數)),0),0),"")) -> 0 | P52: 元
D54: 附約 | E54: =ADDNTR1_商品名稱 -> 保誠人壽一年定期重大疾病健康保險附約(乙型) | H54: =ADDNTR1_商品代號 -> ADDNTR1 | I54: =ADDNTR1_年期&"年期" -> 1年期 | L54: 萬元 | N54: =IF(ISERROR(商品序號),0,IF(商品序號=1,IF(總檢核,IF(配偶ADDNTR1_檢核,IF(OR(配偶ADDNTR1_保額="",配偶ADDNTR1_保額=0),"0",ROUND(配偶ADDNTR1_首期表定保費,個別險種進位數)),0),0),"")) -> 0 | P54: 元
D56: 附約 | E56: =DPAA_商品名稱 -> 保誠人壽人身意外傷害保險附約(111) | H56: =DPAA_商品代號 -> DPAA | I56: =DPAA_年期&"年期" -> 1年期 | L56: 萬元 | N56: =IF(ISERROR(商品序號),0,IF(商品序號=1,IF(總檢核,IF(配偶DPAA_檢核,IF(OR(配偶DPAA_保額="",配偶DPAA_保額=0),"0",ROUND(配偶DPAA_首期表定保費,個別險種進位數)),0),0),"")) -> 0 | P56: 元
D58: 附約 | E58: =ML_商品名稱 -> 保誠人壽人身意外傷害住院醫療定額給付附加條款 | H58: =ML_商品代號 -> ML | I58: =ML_年期&"年期" -> 1年期 | L58: 計劃 | N58: =IF(ISERROR(商品序號),0,IF(商品序號=1,IF(總檢核,IF(配偶ML_檢核,IF(OR(配偶ML_計劃="",配偶ML_計劃=0),"0",ROUND(配偶ML_首期表定保費,個別險種進位數)),0),0),"")) -> 0 | P58: 元
M61: 每期原始總保費 合計 | N61: =IF(ISERROR(商品序號),0,IF(商品序號=1,SUM(N50,N52,N54,N56,N58),"")) -> 0 | P61: 元
B64: 子女附約 | E64: 【每位子女投保計劃均需相同，相關限制依各商品規範辦理】 | AD64: 小提醒
AD65: =IF(子女1投保參數=1,INDEX(資料檢核!D113:D116,資料檢核!C113)&INDEX(資料檢核!D118:D121,資料檢核!C118)&INDEX(資料檢核!D143:D145,資料檢核!C143)&INDEX(資料檢核!H143:H148,資料檢核!G143)&INDEX(資料檢核!L143:L148,資料檢核!K143)&INDEX(資料檢核!D152:D157,資料檢核!C152)&INDEX(資料檢核!H152:H158,資料檢核!G152)&INDEX(資料檢核!L152:L156,資料檢核!K152),"") -> 
D66: 子女1 | E66: =IF(OR(子女1全部檢核<>1,子女1投保參數<>1),"",子女1) ->  | F66: 性別 | G66: =IF(OR(子女1全部檢核<>1,子女1投保參數<>1),"",子女1性別) ->  | H66: 生日 | I66: =IF(OR(子女1全部檢核<>1,子女1投保參數<>1),"",子女1生日6碼) ->  | J66: (民國年月日，EX：770101) | N66: 保險年齡 | O66: =IF(OR(子女1全部檢核<>1,子女1投保參數<>1),"",IF(ISERROR(子女1保險年齡),"",IF(子女1日月檢核,子女1保險年齡,""))) ->  | P66: 歲 | Q66: 職業等級 | R66: =IF(OR(子女1全部檢核<>1,子女1投保參數<>1),"",子女1職業等級) -> 
D68: 子女2 | E68: =IF(OR(子女2全部檢核<>1,子女2投保參數<>1),"",子女2) ->  | F68: 性別 | G68: =IF(OR(子女2全部檢核<>1,子女2投保參數<>1),"",子女2性別) ->  | H68: 生日 | I68: =IF(OR(子女2全部檢核<>1,子女2投保參數<>1),"",子女2生日6碼) ->  | J68: (民國年月日，EX：770101) | N68: 保險年齡 | O68: =IF(OR(子女2全部檢核<>1,子女2投保參數<>1),"",IF(ISERROR(子女2保險年齡),"",IF(子女2日月檢核,子女2保險年齡,""))) ->  | P68: 歲 | Q68: 職業等級 | R68: =IF(OR(子女2全部檢核<>1,子女2投保參數<>1),"",子女2職業等級) -> 
D70: 子女3 | E70: =IF(OR(子女3全部檢核<>1,子女3投保參數<>1),"",子女3) ->  | F70: 性別 | G70: =IF(OR(子女3全部檢核<>1,子女3投保參數<>1),"",子女3性別) ->  | H70: 生日 | I70: =IF(OR(子女3全部檢核<>1,子女3投保參數<>1),"",子女3生日6碼) ->  | J70: (民國年月日，EX：770101) | N70: 保險年齡 | O70: =IF(OR(子女3全部檢核<>1,子女3投保參數<>1),"",IF(ISERROR(子女3保險年齡),"",IF(子女3日月檢核,子女3保險年齡,""))) ->  | P70: 歲 | Q70: 職業等級 | R70: =IF(OR(子女3全部檢核<>1,子女3投保參數<>1),"",子女3職業等級) -> 
K72: 子女1 | N72: 子女2 | Q72: 子女3 | T72: 子女1 | W72: 子女2 | Z72: 子女3 | AD72: =IF(子女2投保參數=1,INDEX(資料檢核!H113:H116,資料檢核!G113)&INDEX(資料檢核!H118:H121,資料檢核!G118)&INDEX(資料檢核!D163:D165,資料檢核!C163)&INDEX(資料檢核!H163:H168,資料檢核!G163)&INDEX(資料檢核!L163:L168,資料檢核!K163)&INDEX(資料檢核!D172:D177,資料檢核!C172)&INDEX(資料檢核!H172:H178,資料檢核!G172)&INDEX(資料檢核!L172:L176,資料檢核!K172),"") -> 
I73: 繳費年期 | J73: 投保金額/單位/計劃 | M73: 投保金額/單位/計劃 | P73: 投保金額/單位/計劃 | T73: 每期原始保費 | W73: 每期原始保費 | Z73: 每期原始保費
D75: 附約 | E75: =ACCNTR1_商品名稱 -> 保誠人壽愛寶貝定期癌症健康保險附約 | H75: =ACCNTR1_商品代號 -> ACCNTR1 | I75: =ACCNTR1_年期&"年期" -> 10年期 | L75: 單位 | O75: 單位 | R75: 單位 | T75: =IF(ISERROR(商品序號),0,IF(商品序號=1,IF(AND(總檢核,子女1全部檢核=1,子女1投保參數=1),IF(子女1ACCNTR1_檢核,IF(OR(子女1ACCNTR1_單位="",子女1ACCNTR1_單位=0),"0",ROUND(子女1ACCNTR1_首期表定保費,個別險種進位數)),0),0),"")) -> 0 | V75: 元 | W75: =IF(ISERROR(商品序號),0,IF(商品序號=1,IF(AND(總檢核,子女2全部檢核=1,子女2投保參數=1),IF(子女2ACCNTR1_檢核,IF(OR(子女2ACCNTR1_單位="",子女2ACCNTR1_單位=0),"0",ROUND(子女2ACCNTR1_首期表定保費,個別險種進位數)),0),0),"")) -> 0 | Y75: 元 | Z75: =IF(ISERROR(商品序號),0,IF(商品序號=1,IF(AND(總檢核,子女3全部檢核=1,子女3投保參數=1),IF(子女3ACCNTR1_檢核,IF(OR(子女3ACCNTR1_單位="",子女3ACCNTR1_單位=0),"0",ROUND(子女3ACCNTR1_首期表定保費,個別險種進位數)),0),0),"")) -> 0 | AB75: 元
D77: 附約 | E77: =ACCNTR2_商品名稱 -> 保誠人壽標靶守護防癌健康保險附約 | H77: =ACCNTR2_商品代號 -> ACCNTR2 | I77: =ACCNTR2_年期&"年期" -> 1年期 | L77: 萬元 | O77: 萬元 | R77: 萬元 | T77: =IF(ISERROR(商品序號),0,IF(商品序號=1,IF(AND(總檢核,子女1全部檢核=1,子女1投保參數=1),IF(子女1ACCNTR2_檢核,IF(OR(子女1ACCNTR2_保額="",子女1ACCNTR2_保額=0),"0",ROUND(子女1ACCNTR2_首期表定保費,個別險種進位數)),0),0),"")) -> 0 | V77: 元 | W77: =IF(ISERROR(商品序號),0,IF(商品序號=1,IF(AND(總檢核,子女2全部檢核=1,子女2投保參數=1),IF(子女2ACCNTR2_檢核,IF(OR(子女2ACCNTR2_保額="",子女2ACCNTR2_保額=0),"0",ROUND(子女2ACCNTR2_首期表定保費,個別險種進位數)),0),0),"")) -> 0 | Y77: 元 | Z77: =IF(ISERROR(商品序號),0,IF(商品序號=1,IF(AND(總檢核,子女3全部檢核=1,子女3投保參數=1),IF(子女3ACCNTR2_檢核,IF(OR(子女3ACCNTR2_保額="",子女3ACCNTR2_保額=0),"0",ROUND(子女3ACCNTR2_首期表定保費,個別險種進位數)),0),0),"")) -> 0 | AB77: 元
D79: 附約 | E79: =ACCNTR3_商品名稱 -> 保誠人壽愛要守護防癌健康保險附約 | H79: =ACCNTR3_商品代號 -> ACCNTR3 | I79: =ACCNTR3_年期&"年期" -> 1年期 | L79: 萬元 | O79: 萬元 | R79: 萬元 | T79: =IF(ISERROR(商品序號),0,IF(商品序號=1,IF(AND(總檢核,子女1全部檢核=1,子女1投保參數=1),IF(子女1ACCNTR3_檢核,IF(OR(子女1ACCNTR3_保額="",子女1ACCNTR3_保額=0),"0",ROUND(子女1ACCNTR3_首期表定保費,個別險種進位數)),0),0),"")) -> 0 | V79: 元 | W79: =IF(ISERROR(商品序號),0,IF(商品序號=1,IF(AND(總檢核,子女2全部檢核=1,子女2投保參數=1),IF(子女2ACCNTR3_檢核,IF(OR(子女2ACCNTR3_保額="",子女2ACCNTR3_保額=0),"0",ROUND(子女2ACCNTR3_首期表定保費,個別險種進位數)),0),0),"")) -> 0 | Y79: 元 | Z79: =IF(ISERROR(商品序號),0,IF(商品序號=1,IF(AND(總檢核,子女3全部檢核=1,子女3投保參數=1),IF(子女3ACCNTR3_檢核,IF(OR(子女3ACCNTR3_保額="",子女3ACCNTR3_保額=0),"0",ROUND(子女3ACCNTR3_首期表定保費,個別險種進位數)),0),0),"")) -> 0 | AB79: 元
D81: 附約 | E81: =ADDNTR1_商品名稱 -> 保誠人壽一年定期重大疾病健康保險附約(乙型) | H81: =ADDNTR1_商品代號 -> ADDNTR1 | I81: =ADDNTR1_年期&"年期" -> 1年期 | L81: 萬元 | O81: 萬元 | R81: 萬元 | T81: =IF(ISERROR(商品序號),0,IF(商品序號=1,IF(AND(總檢核,子女1全部檢核=1,子女1投保參數=1),IF(子女1ADDNTR1_檢核,IF(OR(子女1ADDNTR1_保額="",子女1ADDNTR1_保額=0),"0",ROUND(子女1ADDNTR1_首期表定保費,個別險種進位數)),0),0),"")) -> 0 | V81: 元 | W81: =IF(ISERROR(商品序號),0,IF(商品序號=1,IF(AND(總檢核,子女2全部檢核=1,子女2投保參數=1),IF(子女2ADDNTR1_檢核,IF(OR(子女2ADDNTR1_保額="",子女2ADDNTR1_保額=0),"0",ROUND(子女2ADDNTR1_首期表定保費,個別險種進位數)),0),0),"")) -> 0 | Y81: 元 | Z81: =IF(ISERROR(商品序號),0,IF(商品序號=1,IF(AND(總檢核,子女3全部檢核=1,子女3投保參數=1),IF(子女3ADDNTR1_檢核,IF(OR(子女3ADDNTR1_保額="",子女3ADDNTR1_保額=0),"0",ROUND(子女3ADDNTR1_首期表定保費,個別險種進位數)),0),0),"")) -> 0 | AB81: 元 | AD81: =IF(子女3投保參數=1,INDEX(資料檢核!L113:L116,資料檢核!K113)&INDEX(資料檢核!L118:L121,資料檢核!K118)&INDEX(資料檢核!D183:D185,資料檢核!C183)&INDEX(資料檢核!H183:H188,資料檢核!G183)&INDEX(資料檢核!L183:L188,資料檢核!K183)&INDEX(資料檢核!D192:D197,資料檢核!C192)&INDEX(資料檢核!H192:H198,資料檢核!G192)&INDEX(資料檢核!L192:L196,資料檢核!K192),"") -> 
D83: 附約 | E83: =DPAA_商品名稱 -> 保誠人壽人身意外傷害保險附約(111) | H83: =DPAA_商品代號 -> DPAA | I83: =DPAA_年期&"年期" -> 1年期 | L83: 萬元 | O83: 萬元 | R83: 萬元 | T83: =IF(ISERROR(商品序號),0,IF(商品序號=1,IF(AND(總檢核,子女1全部檢核=1,子女1投保參數=1),IF(子女1DPAA_檢核,IF(OR(子女1DPAA_保額="",子女1DPAA_保額=0),"0",ROUND(子女1DPAA_首期表定保費,個別險種進位數)),0),0),"")) -> 0 | V83: 元 | W83: =IF(ISERROR(商品序號),0,IF(商品序號=1,IF(AND(總檢核,子女2全部檢核=1,子女2投保參數=1),IF(子女2DPAA_檢核,IF(OR(子女2DPAA_保額="",子女2DPAA_保額=0),"0",ROUND(子女2DPAA_首期表定保費,個別險種進位數)),0),0),"")) -> 0 | Y83: 元 | Z83: =IF(ISERROR(商品序號),0,IF(商品序號=1,IF(AND(總檢核,子女3全部檢核=1,子女3投保參數=1),IF(子女3DPAA_檢核,IF(OR(子女3DPAA_保額="",子女3DPAA_保額=0),"0",ROUND(子女3DPAA_首期表定保費,個別險種進位數)),0),0),"")) -> 0 | AB83: 元
D85: 附約 | E85: =ML_商品名稱 -> 保誠人壽人身意外傷害住院醫療定額給付附加條款 | H85: =ML_商品代號 -> ML | I85: =ML_年期&"年期" -> 1年期 | L85: 計劃 | O85: 計劃 | R85: 計劃 | T85: =IF(ISERROR(商品序號),0,IF(商品序號=1,IF(AND(總檢核,子女1全部檢核=1,子女1投保參數=1),IF(子女1ML_檢核,IF(OR(子女1ML_計劃="",子女1ML_計劃=0),"0",ROUND(子女1ML_首期表定保費,個別險種進位數)),0),0),"")) -> 0 | V85: 元 | W85: =IF(ISERROR(商品序號),0,IF(商品序號=1,IF(AND(總檢核,子女2全部檢核=1,子女2投保參數=1),IF(子女2ML_檢核,IF(OR(子女2ML_計劃="",子女2ML_計劃=0),"0",ROUND(子女2ML_首期表定保費,個別險種進位數)),0),0),"")) -> 0 | Y85: 元 | Z85: =IF(ISERROR(商品序號),0,IF(商品序號=1,IF(AND(總檢核,子女3全部檢核=1,子女3投保參數=1),IF(子女3ML_檢核,IF(OR(子女3ML_計劃="",子女3ML_計劃=0),"0",ROUND(子女3ML_首期表定保費,個別險種進位數)),0),0),"")) -> 0 | AB85: 元
S88: 每期原始總保費 合計 | T88: =IF(ISERROR(商品序號),0,IF(商品序號=1,SUM(T75,T77,T79,T81,T83,T85),"")) -> 0 | V88: 元 | W88: =IF(ISERROR(商品序號),0,IF(商品序號=1,SUM(W75,W77,W79,W81,W83,W85),"")) -> 0 | Y88: 元 | Z88: =IF(ISERROR(商品序號),0,IF(商品序號=1,SUM(Z75,Z77,Z79,Z81,Z83,Z85),"")) -> 0 | AB88: 元
R91: 主約每期原始保費 小計 | T91: =IF(ISERROR(商品序號),0,IF(商品序號=1,SUM(N22,N24),"")) -> 10000 | V91: 元
R93: 附約每期原始保費 小計 | T93: =IF(ISERROR(商品序號),0,IF(商品序號=1,SUM(N26,N28,N30,N32,N34,N36,N38,N61,T88,W88,Z88),"")) -> 0 | V93: 元
R95: 每期原始總保費(主附約) 合計 | T95: =IF(ISERROR(商品序號),0,IF(商品序號=1,SUM(T91,T93),"")) -> 10000 | V95: 元
E131: 配偶群組
E132: 投保參數 | F132: =配偶投保參數 -> 2
E133: 生日檢核 | F133: =資料檢核!C101 -> 1
E134: 姓名檢核 | F134: =資料檢核!C107 -> 1
E135: 性別檢核 | F135: =資料檢核!C108 -> 1
E136: 職業等級檢核 | F136: =資料檢核!C109 -> 1
E138: 配偶附約群組
E139: ACCNTR2
E140: 資訊檢核 | F140: =資料檢核!C125 -> 1
E141: 反灰 | F141: =資料檢核!C130 -> 1
E143: ACCNTR3
E144: 資訊檢核 | F144: =資料檢核!G125 -> 1
E145: 反灰 | F145: =資料檢核!G130 -> 1
E147: ADDNTR1
E148: 資訊檢核 | F148: =資料檢核!K125 -> 1
E149: 反灰 | F149: =資料檢核!K130 -> 1
E151: DPAA
E152: 資訊檢核 | F152: =資料檢核!C133 -> 1
E153: 反灰 | F153: =資料檢核!C139 -> 1
E155: ML
E156: 資訊檢核 | F156: =資料檢核!G133 -> 1
E157: 反灰 | F157: =資料檢核!G137 -> 1
E160: 子女1群組 | H160: 全部子女驗證
E161: 投保參數 | F161: =子女1投保參數 -> 2 | H161: 投保參數 | I161: =全部子女投保參數 -> 2
E162: 生日檢核 | F162: =資料檢核!C113 -> 1
E163: 姓名檢核 | F163: =資料檢核!C119 -> 1
E164: 性別檢核 | F164: =資料檢核!C120 -> 1
E165: 職業等級檢核 | F165: =資料檢核!C121 -> 1
E167: ACCNTR1 | H167: 全部子女ACCNTR1
E168: 資訊檢核 | F168: =資料檢核!C143 -> 1 | H168: 資訊檢核 | I168: =MAX(F168,F200,F232) -> 1
E169: 反灰 | F169: =資料檢核!C146 -> 1
E171: ACCNTR2 | H171: 全部子女ACCNTR2
E172: 資訊檢核 | F172: =資料檢核!G143 -> 1 | H172: 資訊檢核 | I172: =MAX(F172,F204,F236) -> 1
E173: 反灰 | F173: =資料檢核!G149 -> 1
E175: ACCNTR3 | H175: 全部子女ACCNTR3
E176: 資訊檢核 | F176: =資料檢核!K143 -> 1 | H176: 資訊檢核 | I176: =MAX(F176,F208,F240) -> 1
E177: 反灰 | F177: =資料檢核!K149 -> 1
E179: ADDNTR1 | H179: 全部子女ADDNTR1
E180: 資訊檢核 | F180: =資料檢核!C152 -> 1 | H180: 資訊檢核 | I180: =MAX(F180,F212,F244) -> 1
E181: 反灰 | F181: =資料檢核!C158 -> 1
E183: DPAA | H183: 全部子女DPAA
E184: 資訊檢核 | F184: =資料檢核!G152 -> 1 | H184: 資訊檢核 | I184: =MAX(F184,F216,F248) -> 1
E185: 反灰 | F185: =資料檢核!G159 -> 1
E187: ML | H187: 全部子女ML
E188: 資訊檢核 | F188: =資料檢核!K152 -> 1 | H188: 資訊檢核 | I188: =MAX(F188,F220,F252) -> 1
E189: 反灰 | F189: =資料檢核!K157 -> 1
E192: 子女2群組
E193: 投保參數 | F193: =子女2投保參數 -> 2
E194: 生日檢核 | F194: =資料檢核!G113 -> 1
E195: 姓名檢核 | F195: =資料檢核!G119 -> 1
E196: 性別檢核 | F196: =資料檢核!G120 -> 1
E197: 職業等級檢核 | F197: =資料檢核!G121 -> 1
E199: ACCNTR1
E200: 資訊檢核 | F200: =資料檢核!C163 -> 1
E201: 反灰 | F201: =資料檢核!C166 -> 1
E203: ACCNTR2
E204: 資訊檢核 | F204: =資料檢核!G163 -> 1
E205: 反灰 | F205: =資料檢核!G169 -> 1
E207: ACCNTR3
E208: 資訊檢核 | F208: =資料檢核!K163 -> 1
E209: 反灰 | F209: =資料檢核!K169 -> 1
E211: ADDNTR1
E212: 資訊檢核 | F212: =資料檢核!C172 -> 1
E213: 反灰 | F213: =資料檢核!C178 -> 1
E215: DPAA
E216: 資訊檢核 | F216: =資料檢核!G172 -> 1
E217: 反灰 | F217: =資料檢核!G179 -> 1
E219: ML
E220: 資訊檢核 | F220: =資料檢核!K172 -> 1
E221: 反灰 | F221: =資料檢核!K177 -> 1
E224: 子女3群組
E225: 投保參數 | F225: =子女3投保參數 -> 2
E226: 生日檢核 | F226: =資料檢核!K113 -> 1
E227: 姓名檢核 | F227: =資料檢核!K119 -> 1
E228: 性別檢核 | F228: =資料檢核!K120 -> 1
E229: 職業等級檢核 | F229: =資料檢核!K121 -> 1
E231: ACCNTR1
E232: 資訊檢核 | F232: =資料檢核!C183 -> 1
E233: 反灰 | F233: =資料檢核!C186 -> 1
E235: ACCNTR2
E236: 資訊檢核 | F236: =資料檢核!G183 -> 1
E237: 反灰 | F237: =資料檢核!G189 -> 1
E239: ACCNTR3
E240: 資訊檢核 | F240: =資料檢核!K183 -> 1
E241: 反灰 | F241: =資料檢核!K189 -> 1
E243: ADDNTR1
E244: 資訊檢核 | F244: =資料檢核!C192 -> 1
E245: 反灰 | F245: =資料檢核!C198 -> 1
E247: DPAA
E248: 資訊檢核 | F248: =資料檢核!G192 -> 1
E249: 反灰 | F249: =資料檢核!G199 -> 1
E251: ML
E252: 資訊檢核 | F252: =資料檢核!K192 -> 1
E253: 反灰 | F253: =資料檢核!K197 -> 1

Sheet 錄音對象切換 (hidden)
A1: 錄音對象為一人高齡，所有客戶皆需錄音 | B1: N

Sheet 錄音話術範本 (hidden)
B1: 保誠人壽銷售錄音範本20250101版
B2: ='B2_錄音程序&共同文字(ILP)'!B2 -> 準備錄音話術 | C2: ð | D2: ='B2_錄音程序&共同文字(ILP)'!B3 -> 撥打錄音專線0809-070-898 | E2: ð | F2: ='B2_錄音程序&共同文字(ILP)'!B4 -> 輸入要保人或錄音客戶ID後9碼或居留證後8碼加「#」 | G2: ð | H2: ='B2_錄音程序&共同文字(ILP)'!B5 -> 嘟一聲後，開始宣讀錄音內容 | I2: ð | J2: ='B2_錄音程序&共同文字(ILP)'!B6 -> 錄音完成，按#字鍵 | K2: ð | L2: ='B2_錄音程序&共同文字(ILP)'!B7 -> 重聽留言按1，結束按3。
B3: =IF(AND(高齡錄音檢核,補充資訊檢核=1),IFERROR(IF(FIND("兆豐",服務公司),錄音前作業提醒_開頭語_兆豐版,錄音前作業提醒_開頭語),錄音前作業提醒_開頭語),"") -> 
B6: 回到繳款人錄音話術範本 | F6: 回到資料輸入頁面
B7: =IF(AND(高齡錄音檢核,補充資訊檢核=1),"要保人/被保險人高齡錄音話術範本","") -> 
B8: =IF(AND(高齡錄音檢核,補充資訊檢核=1),"序號","") ->  | C8: =IF(AND(高齡錄音檢核,補充資訊檢核=1),"項目","") ->  | D8: =IF(AND(高齡錄音檢核,補充資訊檢核=1),"銷售人員與要保人/被保險人錄音說明內容","") -> 
B9: =IF(AND(高齡錄音檢核,補充資訊檢核=1),1,"") ->  | C9: =IF(AND(高齡錄音檢核,補充資訊檢核=1),"取得要保人/被保險人同意錄音及說明係購買保險商品","") ->  | D9: =IF(AND(高齡錄音檢核,補充資訊檢核=1),IF(D1_高齡錄音資料檢核!C16=4,D1_高齡錄音資料檢核!D16,錄音序號1_開頭語),"") -> 
D10: =IF(AND(高齡錄音檢核,補充資訊檢核=1),IF(D1_高齡錄音資料檢核!C16=4,"",'B2_錄音程序&共同文字(ILP)'!C10),"") -> 
B11: =IF(AND(高齡錄音檢核,補充資訊檢核=1),2,"") ->  | C11: =IF(AND(高齡錄音檢核,補充資訊檢核=1),"告知繳費年期與繳費金額","") ->  | D11: =IF(AND(高齡錄音檢核,補充資訊檢核=1),IF(D1_高齡錄音資料檢核!C16=4,D1_高齡錄音資料檢核!D16,"【銷售人員】： 您投保本商品的目的及需求為為"&投保目的及需求&"【提示：請與業務員報告書一致】"&"，您已完成且了解風險屬性評估結果，並確認本商品符合您的需求，同時也了解並願意承擔投資風險。"&錄音序號_確認語_1),"") -> 
D13: =IF(AND(高齡話術檢核,補充資訊檢核=1),IF(D1_高齡錄音資料檢核!C16=4,"",IF(ISERROR(FIND("年金",商品名稱)>0),IF(繳別="躉繳","您選擇投保本商品的繳別為"&繳別&"，目標保險費為"&幣別&TEXT(Premium,"#,###")&"元"&"，首年基本保額為"&幣別&TEXT(保額,"#,###")&"元。您已確認可負擔此保費，"&錄音序號_確認語_1,IF(繳費年期顯示<>3,"您選擇投保本商品為分期繳；繳別為"&繳別&"，繳費年期"&VLOOKUP(商品名稱&幣別,'C2_投資型_繳費年期&最低保費'!C:E,2,0),"您選擇投保本商品為分期繳；繳別為"&繳別&"，一年一期，共"&VLOOKUP(商品名稱&幣別,'C2_投資型_繳費年期&最低保費'!C:E,2,0)&"期")&"，每期目標保險費為"&幣別&TEXT(Premium,"#,###")&"元，"&IF(VLOOKUP(商品名稱,'C2_投資型_繳費年期&最低保費'!A:F,6,FALSE)="壽險乙型","基本保額為","首年基本保額為")&幣別&TEXT(投保基本保額,"#,###")&"元。您已確認可負擔此保費，"&錄音序號_確認語_1),IF(OR(繳別="躉繳",繳別="彈性繳"),"您選擇投保本商品的繳別為"&繳別&"，目標保險費為"&幣別&TEXT(Premium,"#,###")&"元。"&錄音序號_確認語_2,"您選擇投保本商品為分期繳；繳別為"&繳別&"，一年一期，共"&VLOOKUP(商品名稱&幣別,'C2_投資型_繳費年期&最低保費'!C:E,2,0)&"期，每期目標保險費為"&幣別&TEXT(Premium,"#,###")&"元。您已確認可負擔此保費，"&錄音序號_確認語_1))),"") -> 
B14: =IF(AND(高齡錄音檢核,補充資訊檢核=1),3,"") ->  | C14: =IF(AND(高齡錄音檢核,補充資訊檢核=1),"告知保單相關費用","") ->  | D14: =IF(AND(高齡錄音檢核,補充資訊檢核=1),IF(D1_高齡錄音資料檢核!C16=4,D1_高齡錄音資料檢核!D16,IFERROR("【銷售人員】： "&VLOOKUP(商品名稱,'C1_投資型_各商品話術&相關費用'!B:H,3,0)," ")),"") -> 
B15: =IF(AND(高齡錄音檢核,補充資訊檢核=1),4,"") ->  | C15: =IF(AND(高齡錄音檢核,補充資訊檢核=1),"說明商品重要條款內容、除外責任、保險商品說明書重要內容、建議書內容","") ->  | D15: =IF(AND(高齡錄音檢核,補充資訊檢核=1),IF(D1_高齡錄音資料檢核!C16=4,D1_高齡錄音資料檢核!D16,VLOOKUP(商品名稱,'C1_投資型_各商品話術&相關費用'!B:AX,49,0))& IF(D1_高齡錄音資料檢核!C16=4,"",VLOOKUP(商品名稱,'C1_投資型_各商品話術&相關費用'!B:BK,50,0)&VLOOKUP(商品名稱,'C1_投資型_各商品話術&相關費用'!B:BK,51,0)&VLOOKUP(商品名稱,'C1_投資型_各商品話術&相關費用'!B:BK,52,0)&VLOOKUP(商品名稱,'C1_投資型_各商品話術&相關費用'!B:BK,53,0))& IF(D1_高齡錄音資料檢核!C16=4,"",VLOOKUP(商品名稱,'C1_投資型_各商品話術&相關費用'!B:BK,54,0)&VLOOKUP(商品名稱,'C1_投資型_各商品話術&相關費用'!B:BK,55,0)&VLOOKUP(商品名稱,'C1_投資型_各商品話術&相關費用'!B:BK,56,0)&VLOOKUP(商品名稱,'C1_投資型_各商品話術&相關費用'!B:BK,57,0)&VLOOKUP(商品名稱,'C1_投資型_各商品話術&相關費用'!B:BK,58,0)&VLOOKUP(商品名稱,'C1_投資型_各商品話術&相關費用'!B:BK,59,0)&VLOOKUP(商品名稱,'C1_投資型_各商品話術&相關費用'!B:BK,60,0)&VLOOKUP(商品名稱,'C1_投資型_各商品話術&相關費用'!B:BK,61,0))& IF(D1_高齡錄音資料檢核!C16=4,"",VLOOKUP(商品名稱,'C1_投資型_各商品話術&相關費用'!B:BK,62,0)),"") -> 
B18: =IF(AND(高齡話術檢核,補充資訊檢核=1),IF(C18="","",5),"") ->  | C18: =IF(AND(高齡話術檢核,補充資訊檢核=1),B6_解約金附約ePOS調整!B22,"") ->  | D18: =IF(AND(高齡話術檢核,補充資訊檢核=1),IF(D1_高齡錄音資料檢核!C16=4,"",B6_解約金附約ePOS調整!C22),"") -> 
B19: =IF(AND(高齡話術檢核,補充資訊檢核=1),IF(C19="","",6),"") ->  | C19: =IF(AND(高齡話術檢核,補充資訊檢核=1),B6_解約金附約ePOS調整!B23,"") ->  | D19: =IF(AND(高齡話術檢核,補充資訊檢核=1),IF(D1_高齡錄音資料檢核!C16=4,"",B6_解約金附約ePOS調整!C23),"") -> 
B20: =IF(C20="","",B19+1) ->  | C20: =IF(AND(高齡話術檢核,補充資訊檢核=1),B6_解約金附約ePOS調整!B24,"") ->  | D20: =IF(AND(高齡話術檢核,補充資訊檢核=1),IF(D1_高齡錄音資料檢核!C16=4,"",B6_解約金附約ePOS調整!C24),"") -> 
B21: =IF(AND(高齡錄音檢核,補充資訊檢核=1),MAX(B9:B20)+1,"") ->  | C21: =IF(AND(高齡話術檢核,補充資訊檢核=1),"說明保單相關風險_投資型商品","") ->  | D21: =IF(AND(高齡錄音檢核,補充資訊檢核=1),IF(D1_高齡錄音資料檢核!C16=4,D1_高齡錄音資料檢核!D16,_xlfn.IFNA(VLOOKUP(商品名稱,'C3_投資型-投資風險'!$A:$B,2,FALSE),'C3_投資型-投資風險'!B2)&'C3_投資型-投資風險'!E2),"") -> 
B22: =IF(AND(高齡錄音檢核,補充資訊檢核=1),MAX(B9:B21)+1,"") ->  | C22: =IF(AND(高齡話術檢核,補充資訊檢核=1),"契撤期說明","") ->  | D22: =IF(AND(高齡錄音檢核,補充資訊檢核=1),IF(D1_高齡錄音資料檢核!C16=4,D1_高齡錄音資料檢核!D16,"【銷售人員】： 自簽收保單隔日起算，要保人有10日撤銷契約的權益，"&錄音序號_確認語_2),"") -> 
B23: =IF(AND(高齡錄音檢核,補充資訊檢核=1),MAX(B9:B22)+1,"") ->  | C23: =IF(AND(高齡錄音檢核,補充資訊檢核=1),"要保人/被保險人聲明","") ->  | D23: =IF(AND(高齡錄音檢核,補充資訊檢核=1),IF(D1_高齡錄音資料檢核!C16=4,D1_高齡錄音資料檢核!D16,'B2_錄音程序&共同文字(ILP)'!B15),"") -> 
D24: =IF(AND(高齡錄音檢核,補充資訊檢核=1),IF(D1_高齡錄音資料檢核!C16=4,"",錄音序號6_結尾語),"") -> 
B25: =IF(AND(高齡錄音檢核,補充資訊檢核=1),錄音後作業提醒&瘖啞人士注意事項,"") -> 

Sheet 錄音話術範本-繳款人 (hidden)
B1: 保誠人壽銷售錄音範本20250101版
B2: ='B2_錄音程序&共同文字(ILP)'!B2 -> 準備錄音話術 | C2: ð | D2: ='B2_錄音程序&共同文字(ILP)'!B3 -> 撥打錄音專線0809-070-898 | E2: ð | F2: ='B2_錄音程序&共同文字(ILP)'!B4 -> 輸入要保人或錄音客戶ID後9碼或居留證後8碼加「#」 | G2: ð | H2: ='B2_錄音程序&共同文字(ILP)'!B5 -> 嘟一聲後，開始宣讀錄音內容 | I2: ð | J2: ='B2_錄音程序&共同文字(ILP)'!B6 -> 錄音完成，按#字鍵 | K2: ð | L2: ='B2_錄音程序&共同文字(ILP)'!B7 -> 重聽留言按1，結束按3。
B3: =IF(AND(高齡錄音檢核,補充資訊檢核=1),IFERROR(IF(FIND("兆豐",服務公司),錄音前作業提醒_開頭語_兆豐版_繳款人,錄音前作業提醒_開頭語_繳款人),錄音前作業提醒_開頭語_繳款人),"") -> 
B6: 回到要/被保人錄音話術範本 | F6: 回到資料輸入頁面
B7: =IF(AND(高齡錄音檢核,補充資訊檢核=1),"繳款人高齡錄音話術範本","") -> 
B8: =IF(AND(高齡錄音檢核,補充資訊檢核=1),"序號","") ->  | C8: =IF(AND(高齡錄音檢核,補充資訊檢核=1),"項目","") ->  | D8: =IF(AND(高齡錄音檢核,補充資訊檢核=1),"銷售人員與繳款人錄音說明內容","") -> 
B9: =IF(AND(高齡錄音檢核,補充資訊檢核=1),1,"") ->  | C9: =IF(AND(高齡錄音檢核,補充資訊檢核=1),"取得繳款人同意錄音及說明係購買保險商品","") ->  | D9: =IF(AND(高齡錄音檢核,補充資訊檢核=1),IF(D1_高齡錄音資料檢核!C17=2,D1_高齡錄音資料檢核!D18,錄音序號1_開頭語_繳款人),"") -> 
D10: =IF(AND(高齡錄音檢核,補充資訊檢核=1),IF(D1_高齡錄音資料檢核!C17=2,"",錄音序號1_結尾語_繳款人),"") -> 
B11: =IF(AND(高齡錄音檢核,補充資訊檢核=1),2,"") ->  | C11: =IF(AND(高齡錄音檢核,補充資訊檢核=1),"告知繳費年期與繳費金額","") ->  | D11: =IF(AND(高齡話術檢核,補充資訊檢核=1),IF(D1_高齡錄音資料檢核!C17=2,D1_高齡錄音資料檢核!D18,"【銷售人員】： "&IF(ISERROR(FIND("年金",商品名稱)>0),IF(繳別="躉繳","本保單保險費為"&繳別&"，目標保險費為"&幣別&TEXT(Premium,"#,###")&"元"&"，首年基本保額為"&幣別&TEXT(保額,"#,###")&"元。您已確認可負擔此保費，"&"請問是否正確?【請客戶回答：正確/不正確】",IF(繳費年期顯示<>3,"本保單保險費為分期繳；繳別為"&繳別&"，繳費年期"&VLOOKUP(商品名稱&幣別,'C2_投資型_繳費年期&最低保費'!C:E,2,0),"您選擇投保本商品為分期繳；繳別為"&繳別&"，一年一期，共"&VLOOKUP(商品名稱&幣別,'C2_投資型_繳費年期&最低保費'!C:E,2,0)&"期")&"，每期目標保險費為"&幣別&TEXT(Premium,"#,###")&"元，"&IF(VLOOKUP(商品名稱,'C2_投資型_繳費年期&最低保費'!A:F,6,FALSE)="壽險乙型","基本保額為","首年基本保額為")&幣別&TEXT(投保基本保額,"#,###")&"元。您已確認可負擔此保費，"&"請問是否正確?【請客戶回答：正確/不正確】"),IF(OR(繳別="躉繳",繳別="彈性繳"),"本保單保險費為"&繳別&"，目標保險費為"&幣別&TEXT(Premium,"#,###")&"元。"&"，請問是否正確?【請客戶回答：正確/不正確】","本保單保險費為分期繳；繳別為"&繳別&"，一年一期，共"&VLOOKUP(商品名稱&幣別,'C2_投資型_繳費年期&最低保費'!C:E,2,0)&"期，每期目標保險費為"&幣別&TEXT(Premium,"#,###")&"元。您已確認可負擔此保費，請問是否正確?【請客戶回答：正確/不正確】"))),"") -> 
B13: =IF(AND(高齡錄音檢核,補充資訊檢核=1),3,"") ->  | C13: =IF(AND(高齡錄音檢核,補充資訊檢核=1),"告知保單相關費用","") ->  | D13: =IF(AND(高齡錄音檢核,補充資訊檢核=1),IF(D1_高齡錄音資料檢核!C17=2,D1_高齡錄音資料檢核!D18,IFERROR("【銷售人員】： "&VLOOKUP(商品名稱,'C1_投資型_各商品話術&相關費用'!B:BP,4,0),"")),"") -> 
B14: =IF(AND(高齡錄音檢核,補充資訊檢核=1),4,"") ->  | C14: =IF(AND(高齡錄音檢核,補充資訊檢核=1),"說明商品重要條款內容、除外責任、保險商品說明書重要內容、建議書內容","") ->  | D14: =IF(AND(高齡錄音檢核,補充資訊檢核=1),IF(D1_高齡錄音資料檢核!C17=2,D1_高齡錄音資料檢核!D18,VLOOKUP(商品名稱,'C1_投資型_各商品話術&相關費用'!B:CD,68,0)&" "& VLOOKUP(商品名稱,'C1_投資型_各商品話術&相關費用'!B:CD,73,0)&VLOOKUP(商品名稱,'C1_投資型_各商品話術&相關費用'!B:CD,74,0)& VLOOKUP(商品名稱,'C1_投資型_各商品話術&相關費用'!B:CD,75,0)&" "&VLOOKUP(商品名稱,'C1_投資型_各商品話術&相關費用'!B:CD,76,0)&VLOOKUP(商品名稱,'C1_投資型_各商品話術&相關費用'!B:CD,77,0)),"") -> 
D15: =IF(AND(高齡錄音檢核,補充資訊檢核=1),IF(D1_高齡錄音資料檢核!C17=2,"",VLOOKUP(商品名稱,'C1_投資型_各商品話術&相關費用'!B:CD,80,0)&" "&VLOOKUP(商品名稱,'C1_投資型_各商品話術&相關費用'!B:CD,81,0)),"") -> 
B16: =IF(AND(高齡話術檢核,補充資訊檢核=1),IF(C16="","",5),"") ->  | C16: =IF(AND(高齡話術檢核,補充資訊檢核=1),IF(繳款人話術稿判斷=2,"",B6_解約金附約ePOS調整!J22),"") ->  | D16: =IF(AND(高齡話術檢核,補充資訊檢核=1),IF(D1_高齡錄音資料檢核!C17=2,"",B6_解約金附約ePOS調整!K22),"") -> 
B17: =IF(AND(高齡話術檢核,補充資訊檢核=1),IF(C17="","",6),"") ->  | C17: =IF(AND(高齡話術檢核,補充資訊檢核=1),IF(繳款人話術稿判斷=2,"",B6_解約金附約ePOS調整!J23),"") ->  | D17: =IF(AND(高齡話術檢核,補充資訊檢核=1),IF(D1_高齡錄音資料檢核!C17=2,"",B6_解約金附約ePOS調整!K23),"") -> 
B18: =IF(C18="","",B17+1) ->  | C18: =IF(AND(高齡話術檢核,補充資訊檢核=1),IF(繳款人話術稿判斷=2,"",B6_解約金附約ePOS調整!J24),"") ->  | D18: =IF(AND(高齡話術檢核,補充資訊檢核=1),IF(D1_高齡錄音資料檢核!C17=2,"",B6_解約金附約ePOS調整!K24),"") -> 
B19: =IF(AND(高齡錄音檢核,補充資訊檢核=1),MAX(B9:B18)+1,"") ->  | C19: =IF(AND(高齡話術檢核,補充資訊檢核=1),"說明保單相關風險_投資型商品","") ->  | D19: =IF(AND(高齡錄音檢核,補充資訊檢核=1),IF(D1_高齡錄音資料檢核!C17=2,D1_高齡錄音資料檢核!D18,_xlfn.IFNA(VLOOKUP(商品名稱,'C3_投資型-投資風險'!$A:$C,3,FALSE),'C3_投資型-投資風險'!C2)&'C3_投資型-投資風險'!F2),"") -> 
B20: =IF(AND(高齡錄音檢核,補充資訊檢核=1),MAX(B9:B19)+1,"") ->  | C20: =IF(AND(高齡話術檢核,補充資訊檢核=1),"契撤期說明","") ->  | D20: =IF(AND(高齡錄音檢核,補充資訊檢核=1),IF(D1_高齡錄音資料檢核!C17=2,D1_高齡錄音資料檢核!D18,"【銷售人員】： 自簽收保單隔日起算，要保人有10日撤銷契約的權益，請問您清楚嗎? 【請客戶回答：清楚/不清楚】 "),"") -> 
B21: =IF(AND(高齡錄音檢核,補充資訊檢核=1),MAX(B9:B20)+1,"") ->  | C21: =IF(AND(高齡錄音檢核,補充資訊檢核=1),"繳款人聲明","") ->  | D21: =IF(AND(高齡錄音檢核,補充資訊檢核=1),IF(D1_高齡錄音資料檢核!C17=2,D1_高齡錄音資料檢核!D18,"【銷售人員】： 最後請您念出以下聲明文字以確認您瞭解本商品及相關風險與確認繳費意願。"),"") -> 
D22: =IF(AND(高齡錄音檢核,補充資訊檢核=1),IF(D1_高齡錄音資料檢核!C17=2,"",錄音序號6_結尾語_繳款人),"") -> 
B23: =IF(AND(高齡錄音檢核,補充資訊檢核=1),錄音後作業提醒&瘖啞人士注意事項_繳款人,"") -> 

Sheet 保費明細表
A1: 保費明細表 | K1: ="列印日期："&YEAR(TODAY())-1911&"/"&RIGHT("0"&MONTH(TODAY()),2)&"/"&RIGHT("0"&DAY(TODAY()),2) -> 列印日期：114/07/30
B4: 姓名 | D4: 關係 | F4: 性別 | H4: 出生年月日 | J4: 起保年齡 | M4: 回資料輸入_主被保人
B5: =IF(總檢核,要保人姓名,"") -> 貴保戶 | D5: =IF(總檢核,"要保人","") -> 要保人 | F5: =IF(總檢核,IF(要保人身分="與被保險人為「同一人」",被保人性別,要保人性別),"") -> 男 | H5: =IF(總檢核,IF(要保人身分="與被保險人為「同一人」",H6,IF(AND(ISNUMBER(要保人保險年齡),要保人日月檢核),LEFT(要保人生日6碼,LEN(要保人生日6碼)-4) & "/" & MID(要保人生日6碼,LEN(LEFT(要保人生日6碼,LEN(要保人生日6碼)-4))+1,2) & "/" & RIGHT(要保人生日6碼,2),"")),"") -> 74/07/01 | J5: =IF(總檢核,IF(要保人身分="與被保險人為「同一人」",J6,IF(AND(ISNUMBER(要保人保險年齡),要保人日月檢核),要保人保險年齡,"")),"") -> 40 | M5: 回資料輸入_配偶子女
B6: =IF(總檢核,被保人,"") -> 貴保戶 | D6: =IF(總檢核,"被保險人","") -> 被保險人 | F6: =IF(總檢核,被保人性別,"") -> 男 | H6: =IF(總檢核,IF(ISERROR(被保人保險年齡),"",IF(被保人日月檢核,LEFT(被保人生日6碼,LEN(被保人生日6碼)-4) & "/" & MID(被保人生日6碼,LEN(LEFT(被保人生日6碼,LEN(被保人生日6碼)-4))+1,2) & "/" & RIGHT(被保人生日6碼,2),"")),"") -> 74/07/01 | J6: =IF(總檢核,IF(ISERROR(被保人保險年齡),"",IF(被保人日月檢核,被保人保險年齡,"")),"") -> 40
B7: =IF(AND(總檢核,配偶全部檢核=1,配偶投保參數=1),配偶&" 君","") ->  | D7: =IF(AND(總檢核,配偶全部檢核=1,配偶投保參數=1),"配偶","") ->  | F7: =IF(AND(總檢核,配偶全部檢核=1,配偶投保參數=1),配偶性別,"") ->  | H7: =IF(AND(總檢核,配偶全部檢核=1,配偶投保參數=1),IF(ISERROR(配偶保險年齡),"",IF(配偶日月檢核,LEFT(配偶生日6碼,LEN(配偶生日6碼)-4) & "/" & MID(配偶生日6碼,LEN(LEFT(配偶生日6碼,LEN(配偶生日6碼)-4))+1,2) & "/" & RIGHT(配偶生日6碼,2),"")),"") ->  | J7: =IF(AND(總檢核,配偶全部檢核=1,配偶投保參數=1),IF(ISERROR(配偶保險年齡),"",IF(配偶日月檢核,配偶保險年齡,"")),"") -> 
B8: =IF(AND(總檢核,子女1全部檢核=1,子女1投保參數=1),子女1&" 君","") ->  | D8: =IF(AND(總檢核,子女1全部檢核=1,子女1投保參數=1),"子女1","") ->  | F8: =IF(AND(總檢核,子女1全部檢核=1,子女1投保參數=1),子女1性別,"") ->  | H8: =IF(AND(總檢核,子女1全部檢核=1,子女1投保參數=1),IF(ISERROR(子女1保險年齡),"",IF(子女1日月檢核,LEFT(子女1生日6碼,LEN(子女1生日6碼)-4) & "/" & MID(子女1生日6碼,LEN(LEFT(子女1生日6碼,LEN(子女1生日6碼)-4))+1,2) & "/" & RIGHT(子女1生日6碼,2),"")),"") ->  | J8: =IF(AND(總檢核,子女1全部檢核=1,子女1投保參數=1),IF(ISERROR(子女1保險年齡),"",IF(子女1日月檢核,子女1保險年齡,"")),"") -> 
B9: =IF(AND(總檢核,子女2全部檢核=1,子女2投保參數=1),子女2&" 君","") ->  | D9: =IF(AND(總檢核,子女2全部檢核=1,子女2投保參數=1),"子女2","") ->  | F9: =IF(AND(總檢核,子女2全部檢核=1,子女2投保參數=1),子女2性別,"") ->  | H9: =IF(AND(總檢核,子女2全部檢核=1,子女2投保參數=1),IF(ISERROR(子女2保險年齡),"",IF(子女2日月檢核,LEFT(子女2生日6碼,LEN(子女2生日6碼)-4) & "/" & MID(子女2生日6碼,LEN(LEFT(子女2生日6碼,LEN(子女2生日6碼)-4))+1,2) & "/" & RIGHT(子女2生日6碼,2),"")),"") ->  | J9: =IF(AND(總檢核,子女2全部檢核=1,子女2投保參數=1),IF(ISERROR(子女2保險年齡),"",IF(子女2日月檢核,子女2保險年齡,"")),"") -> 
B10: =IF(AND(總檢核,子女3全部檢核=1,子女3投保參數=1),子女3&" 君","") ->  | D10: =IF(AND(總檢核,子女3全部檢核=1,子女3投保參數=1),"子女3","") ->  | F10: =IF(AND(總檢核,子女3全部檢核=1,子女3投保參數=1),子女3性別,"") ->  | H10: =IF(AND(總檢核,子女3全部檢核=1,子女3投保參數=1),IF(ISERROR(子女3保險年齡),"",IF(子女3日月檢核,LEFT(子女3生日6碼,LEN(子女3生日6碼)-4) & "/" & MID(子女3生日6碼,LEN(LEFT(子女3生日6碼,LEN(子女3生日6碼)-4))+1,2) & "/" & RIGHT(子女3生日6碼,2),"")),"") ->  | J10: =IF(AND(總檢核,子女3全部檢核=1,子女3投保參數=1),IF(ISERROR(子女3保險年齡),"",IF(子女3日月檢核,子女3保險年齡,"")),"") -> 
K12: ="("&幣別&"/元)" -> (新臺幣/元)
A13: 險種名稱(代號) | D13: 關係 | E13: 姓名 | F13: 保額(計劃) | H13: 繳別 | J13: 原始保費 | M13: `
A14: =IF(AND(總檢核,定期超額保險費>0),商品代碼&" - 【目標保險費】",商品代碼) -> ARVL2 | D14: =IF(AND(總檢核,商品序號=1),"被保險人","被保險人") -> 被保險人 | E14: =IF(總檢核,被保人,"-") -> 貴保戶 | F14: =IF(總檢核,TEXT(投保基本保額,"#,##0")&"元","-") -> 6,600,000元 | H14: =IF(總檢核,繳別,"-") -> 月繳 | J14: =IF(總檢核,Premium,"-") -> 10000
A15: =IF(AND(總檢核,商品序號=1),商品名稱,商品名稱) -> 保誠人壽享保障變額萬能壽險
A16: =IF(AND(總檢核,分期超額檢核,定期超額保險費>0),商品代碼&" - 【超額保險費】","") ->  | D16: =IF(AND(總檢核,分期超額檢核,定期超額保險費>0),IF(AND(總檢核,商品序號=1),"被保險人","被保險人"),"") ->  | E16: =IF(AND(總檢核,分期超額檢核,定期超額保險費>0),IF(總檢核,被保人,"-"),"") ->  | F16: =IF(AND(總檢核,分期超額檢核,定期超額保險費>0),"-","") ->  | H16: =IF(AND(總檢核,分期超額檢核,定期超額保險費>0),繳別,"") ->  | J16: =IF(AND(總檢核,分期超額檢核,定期超額保險費<>""),定期超額保險費,"") -> 
A17: =IF(AND(總檢核,分期超額檢核,定期超額保險費>0),IF(AND(總檢核,商品序號=1),商品名稱,商品名稱),"") -> 
A18: =ACCNTR1_年期&ACCNTR1_商品代號 -> 10ACCNTR1 | D18: =IF(AND(總檢核,商品序號=1),"被保險人","被保險人") -> 被保險人 | E18: =IF(AND(總檢核,商品序號=1),IF(OR(ACCNTR1_單位=0,ACCNTR1_單位="",ACCNTR1_檢核=FALSE),"-",被保人),"-") -> - | F18: =IF(AND(總檢核,商品序號=1),IF(OR(ACCNTR1_單位=0,ACCNTR1_單位="",ACCNTR1_檢核=FALSE),"-",ACCNTR1_單位&"單位"),"-") -> - | H18: =IF(AND(總檢核,商品序號=1),IF(OR(ACCNTR1_單位=0,ACCNTR1_單位="",ACCNTR1_檢核=FALSE),"-",繳別),"-") -> - | J18: =IF(AND(總檢核,商品序號=1),IF(OR(ACCNTR1_單位=0,ACCNTR1_單位="",ACCNTR1_檢核=FALSE),"-",ROUND(ACCNTR1_首期表定保費,個別險種進位數)),"-") -> -
A19: =IF(AND(總檢核,商品序號=1),ACCNTR1_商品名稱,ACCNTR1_商品名稱) -> 保誠人壽愛寶貝定期癌症健康保險附約
A20: =ACCNTR2_商品代號 -> ACCNTR2 | D20: =IF(AND(總檢核,商品序號=1),"被保險人","被保險人") -> 被保險人 | E20: =IF(AND(總檢核,商品序號=1),IF(OR(ACCNTR2_保額=0,ACCNTR2_保額="",ACCNTR2_檢核=FALSE),"-",被保人),"-") -> - | F20: =IF(AND(總檢核,商品序號=1),IF(OR(ACCNTR2_保額=0,ACCNTR2_保額="",ACCNTR2_檢核=FALSE),"-",ACCNTR2_保額&"萬元"),"-") -> - | H20: =IF(AND(總檢核,商品序號=1),IF(OR(ACCNTR2_保額=0,ACCNTR2_保額="",ACCNTR2_檢核=FALSE),"-",繳別),"-") -> - | J20: =IF(AND(總檢核,商品序號=1),IF(OR(ACCNTR2_保額=0,ACCNTR2_保額="",ACCNTR2_檢核=FALSE),"-",ROUND(ACCNTR2_首期表定保費,個別險種進位數)),"-") -> -
A21: =IF(AND(總檢核,商品序號=1),ACCNTR2_商品名稱,ACCNTR2_商品名稱) -> 保誠人壽標靶守護防癌健康保險附約
A22: =ACCNTR3_商品代號 -> ACCNTR3 | D22: =IF(AND(總檢核,商品序號=1),"被保險人","被保險人") -> 被保險人 | E22: =IF(AND(總檢核,商品序號=1),IF(OR(ACCNTR2_保額=0,ACCNTR2_保額="",ACCNTR2_檢核=FALSE),"-",被保人),"-") -> - | F22: =IF(AND(總檢核,商品序號=1),IF(OR(ACCNTR3_保額=0,ACCNTR3_保額="",ACCNTR3_檢核=FALSE),"-",ACCNTR3_保額&"萬元"),"-") -> - | H22: =IF(AND(總檢核,商品序號=1),IF(OR(ACCNTR3_保額=0,ACCNTR3_保額="",ACCNTR3_檢核=FALSE),"-",繳別),"-") -> - | J22: =IF(AND(總檢核,商品序號=1),IF(OR(ACCNTR3_保額=0,ACCNTR3_保額="",ACCNTR3_檢核=FALSE),"-",ROUND(ACCNTR3_首期表定保費,個別險種進位數)),"-") -> -
A23: =IF(AND(總檢核,商品序號=1),ACCNTR3_商品名稱,ACCNTR3_商品名稱) -> 保誠人壽愛要守護防癌健康保險附約
A24: =ADDNTR1_商品代號 -> ADDNTR1 | D24: =IF(AND(總檢核,商品序號=1),"被保險人","被保險人") -> 被保險人 | E24: =IF(AND(總檢核,商品序號=1),IF(OR(ADDNTR1_保額=0,ADDNTR1_保額="",ADDNTR1_檢核=FALSE),"-",被保人),"-") -> - | F24: =IF(AND(總檢核,商品序號=1),IF(OR(ADDNTR1_保額=0,ADDNTR1_保額="",ADDNTR1_檢核=FALSE),"-",ADDNTR1_保額&"萬元"),"-") -> - | H24: =IF(AND(總檢核,商品序號=1),IF(OR(ADDNTR1_保額=0,ADDNTR1_保額="",ADDNTR1_檢核=FALSE),"-",繳別),"-") -> - | J24: =IF(AND(總檢核,商品序號=1),IF(OR(ADDNTR1_保額=0,ADDNTR1_保額="",ADDNTR1_檢核=FALSE),"-",ROUND(ADDNTR1_首期表定保費,個別險種進位數)),"-") -> -
A25: =IF(AND(總檢核,商品序號=1),ADDNTR1_商品名稱,ADDNTR1_商品名稱) -> 保誠人壽一年定期重大疾病健康保險附約(乙型)
A26: =ADDNTR2_商品代號 -> ADDNTR2 | D26: =IF(AND(總檢核,商品序號=2),"被保險人","被保險人") -> 被保險人 | E26: =IF(AND(總檢核,商品序號=2),IF(OR(ADDNTR2_保額=0,ADDNTR2_保額="",ADDNTR2_檢核=FALSE),"-",被保人),"-") -> - | F26: =IF(AND(總檢核,商品序號=2),IF(OR(ADDNTR2_保額=0,ADDNTR2_保額="",ADDNTR2_檢核=FALSE),"-",TEXT(ADDNTR2_保額,"#,##0")&"元"),"-") -> - | H26: =IF(AND(總檢核,商品序號=2),IF(OR(ADDNTR2_保額=0,ADDNTR2_保額="",ADDNTR2_檢核=FALSE),"-",繳別),"-") -> - | K26: =IF(AND(AND(總檢核,商品序號=2),商品序號=2),IF(OR(ADDNTR2_保額=0,ADDNTR2_保額="",ADDNTR2_檢核=FALSE),"-",ROUND(ADDNTR2_首期表定保費,個別險種進位數)),"-") -> -
A27: =IF(AND(總檢核,商品序號=2),ADDNTR2_商品名稱,ADDNTR2_商品名稱) -> 保誠人壽特安心一年期特定傷病美元健康保險附約
A28: =REPT("0",2-LEN(BNLTRN1_繳費年期))&BNLTRN1_繳費年期&BNLTRN1_商品代號 -> 00BNLTRN1 | D28: =IF(AND(總檢核,商品序號=1),"被保險人","被保險人") -> 被保險人 | E28: =IF(AND(總檢核,商品序號=1),IF(OR(BNLTRN1_保額=0,BNLTRN1_保額="",BNLTRN1_檢核=FALSE),"-",被保人),"-") -> - | F28: =IF(AND(總檢核,商品序號=1),IF(OR(BNLTRN1_保額=0,BNLTRN1_保額="",BNLTRN1_檢核=FALSE),"-",TEXT(BNLTRN1_保額,"#,##0")&"萬元"),"-") -> - | H28: =IF(AND(總檢核,商品序號=1),IF(OR(BNLTRN1_保額=0,BNLTRN1_保額="",BNLTRN1_檢核=FALSE),"-",繳別),"-") -> - | J28: =IF(AND(總檢核,商品序號=1),IF(OR(BNLTRN1_保額=0,BNLTRN1_保額="",BNLTRN1_檢核=FALSE),"-",ROUND(BNLTRN1_首期表定保費,個別險種進位數)),"-") -> -
A29: =IF(AND(總檢核,商品序號=1),BNLTRN1_商品名稱,BNLTRN1_商品名稱) -> 保誠人壽喜樂定期壽險附約
A30: =REPT("0",2-LEN(BNLTRU1_繳費年期))&BNLTRU1_繳費年期&BNLTRU1_商品代號 -> 00BNLTRU1 | D30: =IF(AND(總檢核,商品序號=2),"被保險人","被保險人") -> 被保險人 | E30: =IF(AND(總檢核,商品序號=2),IF(OR(BNLTRU1_保額=0,BNLTRU1_保額="",BNLTRU1_檢核=FALSE),"-",被保人),"-") -> - | F30: =IF(AND(總檢核,商品序號=2),IF(OR(BNLTRU1_保額=0,BNLTRU1_保額="",BNLTRU1_檢核=FALSE),"-",TEXT(BNLTRU1_保額,"#,##0")&"元"),"-") -> - | H30: =IF(AND(總檢核,商品序號=2),IF(OR(BNLTRU1_保額=0,BNLTRU1_保額="",BNLTRU1_檢核=FALSE),"-",繳別),"-") -> - | K30: =IF(AND(AND(總檢核,商品序號=2),商品序號=2),IF(OR(BNLTRU1_保額=0,BNLTRU1_保額="",BNLTRU1_檢核=FALSE),"-",ROUND(BNLTRU1_首期表定保費,個別險種進位數)),"-") -> -
A31: =IF(AND(總檢核,商品序號=2),BNLTRU1_商品名稱,BNLTRU1_商品名稱) -> 保誠人壽美滿人生美元定期壽險附約
A32: =DPAA_商品代號 -> DPAA | D32: =IF(AND(總檢核,商品序號=1),"被保險人","被保險人") -> 被保險人 | E32: =IF(AND(總檢核,商品序號=1),IF(OR(DPAA_保額=0,DPAA_保額="",DPAA_檢核=FALSE),"-",被保人),"-") -> - | F32: =IF(AND(總檢核,商品序號=1),IF(OR(DPAA_保額=0,DPAA_保額="",DPAA_檢核=FALSE),"-",TEXT(DPAA_保額,"#,##0")&"萬元"),"-") -> - | H32: =IF(AND(總檢核,商品序號=1),IF(OR(DPAA_保額=0,DPAA_保額="",DPAA_檢核=FALSE),"-",繳別),"-") -> - | J32: =IF(AND(總檢核,商品序號=1),IF(OR(DPAA_保額=0,DPAA_保額="",DPAA_檢核=FALSE),"-",ROUND(DPAA_首期表定保費,個別險種進位數)),"-") -> -
A33: =IF(AND(總檢核,商品序號=1),DPAA_商品名稱,DPAA_商品名稱) -> 保誠人壽人身意外傷害保險附約(111)
A34: =ML_商品代號 -> ML | D34: =IF(AND(總檢核,商品序號=1),"被保險人","被保險人") -> 被保險人 | E34: =IF(AND(總檢核,商品序號=1),IF(OR(ML_計劃=0,ML_計劃="",ML_檢核=FALSE),"-",被保人),"-") -> - | F34: =IF(AND(總檢核,商品序號=1),IF(OR(ML_計劃=0,ML_計劃="",ML_檢核=FALSE),"-",ML_計劃&"計劃"),"-") -> - | H34: =IF(AND(總檢核,商品序號=1),IF(OR(ML_計劃=0,ML_計劃="",ML_檢核=FALSE),"-",繳別),"-") -> - | J34: =IF(AND(總檢核,商品序號=1),IF(OR(ML_計劃=0,ML_計劃="",ML_檢核=FALSE),"-",ROUND(ML_首期表定保費,個別險種進位數)),"-") -> -
A35: =IF(AND(總檢核,商品序號=1),ML_商品名稱,ML_商品名稱) -> 保誠人壽人身意外傷害住院醫療定額給付附加條款
A37: =ACCNTR2_商品代號 -> ACCNTR2 | D37: =IF(AND(AND(總檢核,商品序號=1),配偶全部檢核=1,配偶投保參數=1),"配偶","配偶") -> 配偶 | E37: =IF(AND(AND(總檢核,商品序號=1),配偶全部檢核=1,配偶投保參數=1),IF(OR(配偶ACCNTR2_保額=0,配偶ACCNTR2_保額="",配偶ACCNTR2_檢核=FALSE),"-",配偶),"-") -> - | F37: =IF(AND(AND(總檢核,商品序號=1),配偶全部檢核=1,配偶投保參數=1),IF(OR(配偶ACCNTR2_保額=0,配偶ACCNTR2_保額="",配偶ACCNTR2_檢核=FALSE),"-",配偶ACCNTR2_保額&"萬元"),"-") -> - | H37: =IF(AND(AND(總檢核,商品序號=1),配偶全部檢核=1,配偶投保參數=1),IF(OR(配偶ACCNTR2_保額=0,配偶ACCNTR2_保額="",配偶ACCNTR2_檢核=FALSE),"-",繳別),"-") -> - | J37: =IF(AND(AND(總檢核,商品序號=1),配偶全部檢核=1,配偶投保參數=1),IF(OR(配偶ACCNTR2_保額=0,配偶ACCNTR2_保額="",配偶ACCNTR2_檢核=FALSE),"-",ROUND(配偶ACCNTR2_首期表定保費,個別險種進位數)),"-") -> -
A38: =ACCNTR2_商品名稱 -> 保誠人壽標靶守護防癌健康保險附約
A39: =ACCNTR3_商品代號 -> ACCNTR3 | D39: =IF(AND(AND(總檢核,商品序號=1),配偶全部檢核=1,配偶投保參數=1),"配偶","配偶") -> 配偶 | E39: =IF(AND(AND(總檢核,商品序號=1),配偶全部檢核=1,配偶投保參數=1),IF(OR(配偶ACCNTR3_保額=0,配偶ACCNTR3_保額="",配偶ACCNTR3_檢核=FALSE),"-",配偶),"-") -> - | F39: =IF(AND(AND(總檢核,商品序號=1),配偶全部檢核=1,配偶投保參數=1),IF(OR(配偶ACCNTR3_保額=0,配偶ACCNTR3_保額="",配偶ACCNTR3_檢核=FALSE),"-",配偶ACCNTR3_保額&"萬元"),"-") -> - | H39: =IF(AND(AND(總檢核,商品序號=1),配偶全部檢核=1,配偶投保參數=1),IF(OR(配偶ACCNTR3_保額=0,配偶ACCNTR3_保額="",配偶ACCNTR3_檢核=FALSE),"-",繳別),"-") -> - | J39: =IF(AND(AND(總檢核,商品序號=1),配偶全部檢核=1,配偶投保參數=1),IF(OR(配偶ACCNTR3_保額=0,配偶ACCNTR3_保額="",配偶ACCNTR3_檢核=FALSE),"-",ROUND(配偶ACCNTR3_首期表定保費,個別險種進位數)),"-") -> -
A40: =ACCNTR3_商品名稱 -> 保誠人壽愛要守護防癌健康保險附約
A41: =ADDNTR1_商品代號 -> ADDNTR1 | D41: =IF(AND(配偶全部檢核=1,配偶投保參數=1),"配偶","配偶") -> 配偶 | E41: =IF(AND(AND(總檢核,商品序號=1),配偶全部檢核=1,配偶投保參數=1),IF(OR(配偶ADDNTR1_保額=0,配偶ADDNTR1_保額="",配偶ADDNTR1_檢核=FALSE),"-",配偶),"-") -> - | F41: =IF(AND(AND(總檢核,商品序號=1),配偶全部檢核=1,配偶投保參數=1),IF(OR(配偶ADDNTR1_保額=0,配偶ADDNTR1_保額="",配偶ADDNTR1_檢核=FALSE),"-",配偶ADDNTR1_保額&"萬元"),"-") -> - | H41: =IF(AND(AND(總檢核,商品序號=1),配偶全部檢核=1,配偶投保參數=1),IF(OR(配偶ADDNTR1_保額=0,配偶ADDNTR1_保額="",配偶ADDNTR1_檢核=FALSE),"-",繳別),"-") -> - | J41: =IF(AND(AND(總檢核,商品序號=1),配偶全部檢核=1,配偶投保參數=1),IF(OR(配偶ADDNTR1_保額=0,配偶ADDNTR1_保額="",配偶ADDNTR1_檢核=FALSE),"-",ROUND(配偶ADDNTR1_首期表定保費,個別險種進位數)),"-") -> -
A42: =ADDNTR1_商品名稱 -> 保誠人壽一年定期重大疾病健康保險附約(乙型)
A43: =DPAA_商品代號 -> DPAA | D43: =IF(AND(配偶全部檢核=1,配偶投保參數=1),"配偶","配偶") -> 配偶 | E43: =IF(AND(AND(總檢核,商品序號=1),配偶全部檢核=1,配偶投保參數=1),IF(OR(配偶DPAA_保額=0,配偶DPAA_保額="",配偶DPAA_檢核=FALSE),"-",配偶),"-") -> - | F43: =IF(AND(AND(總檢核,商品序號=1),配偶全部檢核=1,配偶投保參數=1),IF(OR(配偶DPAA_保額=0,配偶DPAA_保額="",配偶DPAA_檢核=FALSE),"-",TEXT(配偶DPAA_保額,"#,##0")&"萬元"),"-") -> - | H43: =IF(AND(AND(總檢核,商品序號=1),配偶全部檢核=1,配偶投保參數=1),IF(OR(配偶DPAA_保額=0,配偶DPAA_保額="",配偶DPAA_檢核=FALSE),"-",繳別),"-") -> - | J43: =IF(AND(AND(總檢核,商品序號=1),配偶全部檢核=1,配偶投保參數=1),IF(OR(配偶DPAA_保額=0,配偶DPAA_保額="",配偶DPAA_檢核=FALSE),"-",ROUND(配偶DPAA_首期表定保費,個別險種進位數)),"-") -> -
A44: =DPAA_商品名稱 -> 保誠人壽人身意外傷害保險附約(111)
A45: =ML_商品代號 -> ML | D45: =IF(AND(配偶全部檢核=1,配偶投保參數=1),"配偶","配偶") -> 配偶 | E45: =IF(AND(AND(總檢核,商品序號=1),配偶全部檢核=1,配偶投保參數=1),IF(OR(配偶ML_計劃=0,配偶ML_計劃="",配偶ML_檢核=FALSE),"-",配偶),"-") -> - | F45: =IF(AND(AND(總檢核,商品序號=1),配偶全部檢核=1,配偶投保參數=1),IF(OR(配偶ML_計劃=0,配偶ML_計劃="",配偶ML_檢核=FALSE),"-",配偶ML_計劃&"計劃"),"-") -> - | H45: =IF(AND(AND(總檢核,商品序號=1),配偶全部檢核=1,配偶投保參數=1),IF(OR(配偶ML_計劃=0,配偶ML_計劃="",配偶ML_檢核=FALSE),"-",繳別),"-") -> - | J45: =IF(AND(AND(總檢核,商品序號=1),配偶全部檢核=1,配偶投保參數=1),IF(OR(配偶ML_計劃=0,配偶ML_計劃="",配偶ML_檢核=FALSE),"-",ROUND(配偶ML_首期表定保費,個別險種進位數)),"-") -> -
A46: =ML_商品名稱 -> 保誠人壽人身意外傷害住院醫療定額給付附加條款
A48: =ACCNTR1_年期&ACCNTR1_商品代號 -> 10ACCNTR1 | D48: =IF(AND(子女1全部檢核=1,子女1投保參數=1),"子女1","子女1") -> 子女1 | E48: =IF(AND(AND(總檢核,商品序號=1),子女1全部檢核=1,子女1投保參數=1),IF(OR(子女1ACCNTR1_單位="",子女1ACCNTR1_單位=0,子女1ACCNTR1_檢核=FALSE),"-",子女1),"-") -> - | F48: =IF(AND(AND(總檢核,商品序號=1),子女1全部檢核=1,子女1投保參數=1),IF(OR(子女1ACCNTR1_單位="",子女1ACCNTR1_單位=0,子女1ACCNTR1_檢核=FALSE),"-",子女1ACCNTR1_單位&"單位"),"-") -> - | H48: =IF(AND(AND(總檢核,商品序號=1),子女1全部檢核=1,子女1投保參數=1),IF(OR(子女1ACCNTR1_單位="",子女1ACCNTR1_單位=0,子女1ACCNTR1_檢核=FALSE),"-",繳別),"-") -> - | J48: =IF(AND(AND(總檢核,商品序號=1),子女1全部檢核=1,子女1投保參數=1),IF(OR(子女1ACCNTR1_單位="",子女1ACCNTR1_單位=0,子女1ACCNTR1_檢核=FALSE),"-",ROUND(子女1ACCNTR1_首期表定保費,個別險種進位數)),"-") -> -
A49: =ACCNTR1_商品名稱 -> 保誠人壽愛寶貝定期癌症健康保險附約
A50: =ACCNTR2_商品代號 -> ACCNTR2 | D50: =IF(AND(子女1全部檢核=1,子女1投保參數=1),"子女1","子女1") -> 子女1 | E50: =IF(AND(AND(總檢核,商品序號=1),子女1全部檢核=1,子女1投保參數=1),IF(OR(子女1ACCNTR2_保額=0,子女1ACCNTR2_保額="",子女1ACCNTR2_檢核=FALSE),"-",子女1),"-") -> - | F50: =IF(AND(AND(總檢核,商品序號=1),子女1全部檢核=1,子女1投保參數=1),IF(OR(子女1ACCNTR2_保額=0,子女1ACCNTR2_保額="",子女1ACCNTR2_檢核=FALSE),"-",子女1ACCNTR2_保額&"萬元"),"-") -> - | H50: =IF(AND(AND(總檢核,商品序號=1),子女1全部檢核=1,子女1投保參數=1),IF(OR(子女1ACCNTR2_保額=0,子女1ACCNTR2_保額="",子女1ACCNTR2_檢核=FALSE),"-",繳別),"-") -> - | J50: =IF(AND(AND(總檢核,商品序號=1),子女1全部檢核=1,子女1投保參數=1),IF(OR(子女1ACCNTR2_保額=0,子女1ACCNTR2_保額="",子女1ACCNTR2_檢核=FALSE),"-",ROUND(子女1ACCNTR2_首期表定保費,個別險種進位數)),"-") -> -
A51: =ACCNTR2_商品名稱 -> 保誠人壽標靶守護防癌健康保險附約
A52: =ACCNTR3_商品代號 -> ACCNTR3 | D52: =IF(AND(子女1全部檢核=1,子女1投保參數=1),"子女1","子女1") -> 子女1 | E52: =IF(AND(AND(總檢核,商品序號=1),子女1全部檢核=1,子女1投保參數=1),IF(OR(子女1ACCNTR3_保額=0,子女1ACCNTR3_保額="",子女1ACCNTR3_檢核=FALSE),"-",子女1),"-") -> - | F52: =IF(AND(AND(總檢核,商品序號=1),子女1全部檢核=1,子女1投保參數=1),IF(OR(子女1ACCNTR3_保額=0,子女1ACCNTR3_保額="",子女1ACCNTR3_檢核=FALSE),"-",子女1ACCNTR3_保額&"萬元"),"-") -> - | H52: =IF(AND(AND(總檢核,商品序號=1),子女1全部檢核=1,子女1投保參數=1),IF(OR(子女1ACCNTR3_保額=0,子女1ACCNTR3_保額="",子女1ACCNTR3_檢核=FALSE),"-",繳別),"-") -> - | J52: =IF(AND(AND(總檢核,商品序號=1),子女1全部檢核=1,子女1投保參數=1),IF(OR(子女1ACCNTR3_保額=0,子女1ACCNTR3_保額="",子女1ACCNTR3_檢核=FALSE),"-",ROUND(子女1ACCNTR3_首期表定保費,個別險種進位數)),"-") -> -
A53: =ACCNTR3_商品名稱 -> 保誠人壽愛要守護防癌健康保險附約
A54: =ADDNTR1_商品代號 -> ADDNTR1 | D54: =IF(AND(子女1全部檢核=1,子女1投保參數=1),"子女1","子女1") -> 子女1 | E54: =IF(AND(AND(總檢核,商品序號=1),子女1全部檢核=1,子女1投保參數=1),IF(OR(子女1ADDNTR1_保額=0,子女1ADDNTR1_保額="",子女1ADDNTR1_檢核=FALSE),"-",子女1),"-") -> - | F54: =IF(AND(AND(總檢核,商品序號=1),子女1全部檢核=1,子女1投保參數=1),IF(OR(子女1ADDNTR1_保額=0,子女1ADDNTR1_保額="",子女1ADDNTR1_檢核=FALSE),"-",子女1ADDNTR1_保額&"萬元"),"-") -> - | H54: =IF(AND(AND(總檢核,商品序號=1),子女1全部檢核=1,子女1投保參數=1),IF(OR(子女1ADDNTR1_保額=0,子女1ADDNTR1_保額="",子女1ADDNTR1_檢核=FALSE),"-",繳別),"-") -> - | J54: =IF(AND(AND(總檢核,商品序號=1),子女1全部檢核=1,子女1投保參數=1),IF(OR(子女1ADDNTR1_保額=0,子女1ADDNTR1_保額="",子女1ADDNTR1_檢核=FALSE),"-",ROUND(子女1ADDNTR1_首期表定保費,個別險種進位數)),"-") -> -
A55: =ADDNTR1_商品名稱 -> 保誠人壽一年定期重大疾病健康保險附約(乙型)
A56: =DPAA_商品代號 -> DPAA | D56: =IF(AND(子女1全部檢核=1,子女1投保參數=1),"子女1","子女1") -> 子女1 | E56: =IF(AND(AND(總檢核,商品序號=1),子女1全部檢核=1,子女1投保參數=1),IF(OR(子女1DPAA_保額=0,子女1DPAA_保額="",子女1DPAA_檢核=FALSE),"-",子女1),"-") -> - | F56: =IF(AND(AND(總檢核,商品序號=1),子女1全部檢核=1,子女1投保參數=1),IF(OR(子女1DPAA_保額=0,子女1DPAA_保額="",子女1DPAA_檢核=FALSE),"-",TEXT(子女1DPAA_保額,"#,##0")&"萬元"),"-") -> - | H56: =IF(AND(AND(總檢核,商品序號=1),子女1全部檢核=1,子女1投保參數=1),IF(OR(子女1DPAA_保額=0,子女1DPAA_保額="",子女1DPAA_檢核=FALSE),"-",繳別),"-") -> - | J56: =IF(AND(AND(總檢核,商品序號=1),子女1全部檢核=1,子女1投保參數=1),IF(OR(子女1DPAA_保額=0,子女1DPAA_保額="",子女1DPAA_檢核=FALSE),"-",ROUND(子女1DPAA_首期表定保費,個別險種進位數)),"-") -> -
A57: =DPAA_商品名稱 -> 保誠人壽人身意外傷害保險附約(111)
A58: =ML_商品代號 -> ML | D58: =IF(AND(子女1全部檢核=1,子女1投保參數=1),"子女1","子女1") -> 子女1 | E58: =IF(AND(AND(總檢核,商品序號=1),子女1全部檢核=1,子女1投保參數=1),IF(OR(子女1ML_計劃=0,子女1ML_計劃="",子女1ML_檢核=FALSE),"-",子女1),"-") -> - | F58: =IF(AND(AND(總檢核,商品序號=1),子女1全部檢核=1,子女1投保參數=1),IF(OR(子女1ML_計劃=0,子女1ML_計劃="",子女1ML_檢核=FALSE),"-",子女1ML_計劃&"計劃"),"-") -> - | H58: =IF(AND(AND(總檢核,商品序號=1),子女1全部檢核=1,子女1投保參數=1),IF(OR(子女1ML_計劃=0,子女1ML_計劃="",子女1ML_檢核=FALSE),"-",繳別),"-") -> - | J58: =IF(AND(AND(總檢核,商品序號=1),子女1全部檢核=1,子女1投保參數=1),IF(OR(子女1ML_計劃=0,子女1ML_計劃="",子女1ML_檢核=FALSE),"-",ROUND(子女1ML_首期表定保費,個別險種進位數)),"-") -> -
A59: =ML_商品名稱 -> 保誠人壽人身意外傷害住院醫療定額給付附加條款
A61: =ACCNTR1_年期&ACCNTR1_商品代號 -> 10ACCNTR1 | D61: =IF(AND(子女2全部檢核=1,子女2投保參數=1),"子女2","子女2") -> 子女2 | E61: =IF(AND(AND(總檢核,商品序號=1),子女2全部檢核=1,子女2投保參數=1),IF(OR(子女2ACCNTR1_單位=0,子女2ACCNTR1_單位="",子女2ACCNTR1_檢核=FALSE),"-",子女2),"-") -> - | F61: =IF(AND(AND(總檢核,商品序號=1),子女2全部檢核=1,子女2投保參數=1),IF(子女2ACCNTR1_檢核,IF(OR(子女2ACCNTR1_單位="",子女2ACCNTR1_單位=0,子女2ACCNTR1_檢核=FALSE),"-",子女2ACCNTR1_單位&"單位"),"-"),"-") -> - | H61: =IF(AND(AND(總檢核,商品序號=1),子女2全部檢核=1,子女2投保參數=1),IF(OR(子女2ACCNTR1_單位=0,子女2ACCNTR1_單位="",子女2ACCNTR1_檢核=FALSE),"-",繳別),"-") -> - | J61: =IF(AND(AND(總檢核,商品序號=1),子女2全部檢核=1,子女2投保參數=1),IF(OR(子女2ACCNTR1_單位=0,子女2ACCNTR1_單位="",子女2ACCNTR1_檢核=FALSE),"-",ROUND(子女2ACCNTR1_首期表定保費,個別險種進位數)),"-") -> -
A62: =ACCNTR1_商品名稱 -> 保誠人壽愛寶貝定期癌症健康保險附約
A63: =ACCNTR2_商品代號 -> ACCNTR2 | D63: =IF(AND(子女2全部檢核=1,子女2投保參數=1),"子女2","子女2") -> 子女2 | E63: =IF(AND(AND(總檢核,商品序號=1),子女2全部檢核=1,子女2投保參數=1),IF(OR(子女2ACCNTR2_保額=0,子女2ACCNTR2_保額="",子女2ACCNTR2_檢核=FALSE),"-",子女2),"-") -> - | F63: =IF(AND(AND(總檢核,商品序號=1),子女2全部檢核=1,子女2投保參數=1),IF(OR(子女2ACCNTR2_保額=0,子女2ACCNTR2_保額="",子女2ACCNTR2_檢核=FALSE),"-",子女2ACCNTR2_保額&"萬元"),"-") -> - | H63: =IF(AND(AND(總檢核,商品序號=1),子女2全部檢核=1,子女2投保參數=1),IF(OR(子女2ACCNTR2_保額=0,子女2ACCNTR2_保額="",子女2ACCNTR2_檢核=FALSE),"-",繳別),"-") -> - | J63: =IF(AND(AND(總檢核,商品序號=1),子女2全部檢核=1,子女2投保參數=1),IF(OR(子女2ACCNTR2_保額=0,子女2ACCNTR2_保額="",子女2ACCNTR2_檢核=FALSE),"-",ROUND(子女2ACCNTR2_首期表定保費,個別險種進位數)),"-") -> -
A64: =ACCNTR2_商品名稱 -> 保誠人壽標靶守護防癌健康保險附約
A65: =ACCNTR3_商品代號 -> ACCNTR3 | D65: =IF(AND(子女2全部檢核=1,子女2投保參數=1),"子女2","子女2") -> 子女2 | E65: =IF(AND(AND(總檢核,商品序號=1),子女2全部檢核=1,子女2投保參數=1),IF(OR(子女2ACCNTR3_保額=0,子女2ACCNTR3_保額="",子女2ACCNTR3_檢核=FALSE),"-",子女2),"-") -> - | F65: =IF(AND(AND(總檢核,商品序號=1),子女2全部檢核=1,子女2投保參數=1),IF(OR(子女2ACCNTR3_保額=0,子女2ACCNTR3_保額="",子女2ACCNTR3_檢核=FALSE),"-",子女2ACCNTR3_保額&"萬元"),"-") -> - | H65: =IF(AND(AND(總檢核,商品序號=1),子女2全部檢核=1,子女2投保參數=1),IF(OR(子女2ACCNTR3_保額=0,子女2ACCNTR3_保額="",子女2ACCNTR3_檢核=FALSE),"-",繳別),"-") -> - | J65: =IF(AND(AND(總檢核,商品序號=1),子女2全部檢核=1,子女2投保參數=1),IF(OR(子女2ACCNTR3_保額=0,子女2ACCNTR3_保額="",子女2ACCNTR3_檢核=FALSE),"-",ROUND(子女2ACCNTR3_首期表定保費,個別險種進位數)),"-") -> -
A66: =ACCNTR3_商品名稱 -> 保誠人壽愛要守護防癌健康保險附約
A67: =ADDNTR1_商品代號 -> ADDNTR1 | D67: =IF(AND(子女2全部檢核=1,子女2投保參數=1),"子女2","子女2") -> 子女2 | E67: =IF(AND(AND(總檢核,商品序號=1),子女2全部檢核=1,子女2投保參數=1),IF(OR(子女2ADDNTR1_保額=0,子女2ADDNTR1_保額="",子女2ADDNTR1_檢核=FALSE),"-",子女2),"-") -> - | F67: =IF(AND(AND(總檢核,商品序號=1),子女2全部檢核=1,子女2投保參數=1),IF(OR(子女2ADDNTR1_保額=0,子女2ADDNTR1_保額="",子女2ADDNTR1_檢核=FALSE),"-",子女2ADDNTR1_保額&"萬元"),"-") -> - | H67: =IF(AND(AND(總檢核,商品序號=1),子女2全部檢核=1,子女2投保參數=1),IF(OR(子女2ADDNTR1_保額=0,子女2ADDNTR1_保額="",子女2ADDNTR1_檢核=FALSE),"-",繳別),"-") -> - | J67: =IF(AND(AND(總檢核,商品序號=1),子女2全部檢核=1,子女2投保參數=1),IF(OR(子女2ADDNTR1_保額=0,子女2ADDNTR1_保額="",子女2ADDNTR1_檢核=FALSE),"-",ROUND(子女2ADDNTR1_首期表定保費,個別險種進位數)),"-") -> -
A68: =ADDNTR1_商品名稱 -> 保誠人壽一年定期重大疾病健康保險附約(乙型)
A69: =DPAA_商品代號 -> DPAA | D69: =IF(AND(子女2全部檢核=1,子女2投保參數=1),"子女2","子女2") -> 子女2 | E69: =IF(AND(AND(總檢核,商品序號=1),子女2全部檢核=1,子女2投保參數=1),IF(OR(子女2DPAA_保額=0,子女2DPAA_保額="",子女2DPAA_檢核=FALSE),"-",子女2),"-") -> - | F69: =IF(AND(AND(總檢核,商品序號=1),子女2全部檢核=1,子女2投保參數=1),IF(OR(子女2DPAA_保額=0,子女2DPAA_保額="",子女2DPAA_檢核=FALSE),"-",TEXT(子女2DPAA_保額,"#,##0")&"萬元"),"-") -> - | H69: =IF(AND(AND(總檢核,商品序號=1),子女2全部檢核=1,子女2投保參數=1),IF(OR(子女2DPAA_保額=0,子女2DPAA_保額="",子女2DPAA_檢核=FALSE),"-",繳別),"-") -> - | J69: =IF(AND(AND(總檢核,商品序號=1),子女2全部檢核=1,子女2投保參數=1),IF(OR(子女2DPAA_保額=0,子女2DPAA_保額="",子女2DPAA_檢核=FALSE),"-",ROUND(子女2DPAA_首期表定保費,個別險種進位數)),"-") -> -
A70: =DPAA_商品名稱 -> 保誠人壽人身意外傷害保險附約(111)
A71: =ML_商品代號 -> ML | D71: =IF(AND(子女2全部檢核=1,子女2投保參數=1),"子女2","子女2") -> 子女2 | E71: =IF(AND(AND(總檢核,商品序號=1),子女2全部檢核=1,子女2投保參數=1),IF(OR(子女2ML_計劃=0,子女2ML_計劃="",子女2ML_檢核=FALSE),"-",子女2),"-") -> - | F71: =IF(AND(AND(總檢核,商品序號=1),子女2全部檢核=1,子女2投保參數=1),IF(OR(子女2ML_計劃=0,子女2ML_計劃="",子女2ML_檢核=FALSE),"-",子女2ML_計劃&"計劃"),"-") -> - | H71: =IF(AND(AND(總檢核,商品序號=1),子女2全部檢核=1,子女2投保參數=1),IF(OR(子女2ML_計劃=0,子女2ML_計劃="",子女2ML_檢核=FALSE),"-",繳別),"-") -> - | J71: =IF(AND(AND(總檢核,商品序號=1),子女2全部檢核=1,子女2投保參數=1),IF(OR(子女2ML_計劃=0,子女2ML_計劃="",子女2ML_檢核=FALSE),"-",ROUND(子女2ML_首期表定保費,個別險種進位數)),"-") -> -
A72: =ML_商品名稱 -> 保誠人壽人身意外傷害住院醫療定額給付附加條款
A74: =ACCNTR1_年期&ACCNTR1_商品代號 -> 10ACCNTR1 | D74: =IF(AND(子女3全部檢核=1,子女3投保參數=1),"子女3","子女3") -> 子女3 | E74: =IF(AND(AND(總檢核,商品序號=1),子女3全部檢核=1,子女3投保參數=1),IF(OR(子女3ACCNTR1_單位="",子女3ACCNTR1_單位=0,子女3ACCNTR1_檢核=FALSE),"-",子女3),"-") -> - | F74: =IF(AND(AND(總檢核,商品序號=1),子女3全部檢核=1,子女3投保參數=1),IF(OR(子女3ACCNTR1_單位="",子女3ACCNTR1_單位=0,子女3ACCNTR1_檢核=FALSE),"-",子女3ACCNTR1_單位&"單位"),"-") -> - | H74: =IF(AND(AND(總檢核,商品序號=1),子女3全部檢核=1,子女3投保參數=1),IF(OR(子女3ACCNTR1_單位="",子女3ACCNTR1_單位=0,子女3ACCNTR1_檢核=FALSE),"-",繳別),"-") -> - | J74: =IF(AND(AND(總檢核,商品序號=1),子女3全部檢核=1,子女3投保參數=1),IF(OR(子女3ACCNTR1_單位="",子女3ACCNTR1_單位=0,子女3ACCNTR1_檢核=FALSE),"-",ROUND(子女3ACCNTR1_首期表定保費,個別險種進位數)),"-") -> -
A75: =ACCNTR1_商品名稱 -> 保誠人壽愛寶貝定期癌症健康保險附約
A76: =ACCNTR2_商品代號 -> ACCNTR2 | D76: =IF(AND(子女3全部檢核=1,子女3投保參數=1),"子女3","子女3") -> 子女3 | E76: =IF(AND(AND(總檢核,商品序號=1),子女3全部檢核=1,子女3投保參數=1),IF(OR(子女3ACCNTR2_保額=0,子女3ACCNTR2_保額="",子女3ACCNTR2_檢核=FALSE),"-",子女3),"-") -> - | F76: =IF(AND(AND(總檢核,商品序號=1),子女3全部檢核=1,子女3投保參數=1),IF(OR(子女3ACCNTR2_保額=0,子女3ACCNTR2_保額="",子女3ACCNTR2_檢核=FALSE),"-",子女3ACCNTR2_保額&"萬元"),"-") -> - | H76: =IF(AND(AND(總檢核,商品序號=1),子女3全部檢核=1,子女3投保參數=1),IF(OR(子女3ACCNTR2_保額=0,子女3ACCNTR2_保額="",子女3ACCNTR2_檢核=FALSE),"-",繳別),"-") -> - | J76: =IF(AND(AND(總檢核,商品序號=1),子女3全部檢核=1,子女3投保參數=1),IF(OR(子女3ACCNTR2_保額=0,子女3ACCNTR2_保額="",子女3ACCNTR2_檢核=FALSE),"-",ROUND(子女3ACCNTR2_首期表定保費,個別險種進位數)),"-") -> -
A77: =ACCNTR2_商品名稱 -> 保誠人壽標靶守護防癌健康保險附約
A78: =ACCNTR3_商品代號 -> ACCNTR3 | D78: =IF(AND(子女3全部檢核=1,子女3投保參數=1),"子女3","子女3") -> 子女3 | E78: =IF(AND(AND(總檢核,商品序號=1),子女3全部檢核=1,子女3投保參數=1),IF(OR(子女3ACCNTR3_保額=0,子女3ACCNTR3_保額="",子女3ACCNTR3_檢核=FALSE),"-",子女3),"-") -> - | F78: =IF(AND(AND(總檢核,商品序號=1),子女3全部檢核=1,子女3投保參數=1),IF(OR(子女3ACCNTR3_保額=0,子女3ACCNTR3_保額="",子女3ACCNTR3_檢核=FALSE),"-",子女3ACCNTR3_保額&"萬元"),"-") -> - | H78: =IF(AND(AND(總檢核,商品序號=1),子女3全部檢核=1,子女3投保參數=1),IF(OR(子女3ACCNTR3_保額=0,子女3ACCNTR3_保額="",子女3ACCNTR3_檢核=FALSE),"-",繳別),"-") -> - | J78: =IF(AND(AND(總檢核,商品序號=1),子女3全部檢核=1,子女3投保參數=1),IF(OR(子女3ACCNTR3_保額=0,子女3ACCNTR3_保額="",子女3ACCNTR3_檢核=FALSE),"-",ROUND(子女3ACCNTR3_首期表定保費,個別險種進位數)),"-") -> -
A79: =ACCNTR3_商品名稱 -> 保誠人壽愛要守護防癌健康保險附約
A80: =ADDNTR1_商品代號 -> ADDNTR1 | D80: =IF(AND(子女3全部檢核=1,子女3投保參數=1),"子女3","子女3") -> 子女3 | E80: =IF(AND(AND(總檢核,商品序號=1),子女3全部檢核=1,子女3投保參數=1),IF(OR(子女3ADDNTR1_保額=0,子女3ADDNTR1_保額="",子女3ADDNTR1_檢核=FALSE),"-",子女3),"-") -> - | F80: =IF(AND(AND(總檢核,商品序號=1),子女3全部檢核=1,子女3投保參數=1),IF(OR(子女3ADDNTR1_保額=0,子女3ADDNTR1_保額="",子女3ADDNTR1_檢核=FALSE),"-",子女3ADDNTR1_保額&"萬元"),"-") -> - | H80: =IF(AND(AND(總檢核,商品序號=1),子女3全部檢核=1,子女3投保參數=1),IF(OR(子女3ADDNTR1_保額=0,子女3ADDNTR1_保額="",子女3ADDNTR1_檢核=FALSE),"-",繳別),"-") -> - | J80: =IF(AND(AND(總檢核,商品序號=1),子女3全部檢核=1,子女3投保參數=1),IF(OR(子女3ADDNTR1_保額=0,子女3ADDNTR1_保額="",子女3ADDNTR1_檢核=FALSE),"-",ROUND(子女3ADDNTR1_首期表定保費,個別險種進位數)),"-") -> -
A81: =ADDNTR1_商品名稱 -> 保誠人壽一年定期重大疾病健康保險附約(乙型)
A82: =DPAA_商品代號 -> DPAA | D82: =IF(AND(子女3全部檢核=1,子女3投保參數=1),"子女3","子女3") -> 子女3 | E82: =IF(AND(AND(總檢核,商品序號=1),子女3全部檢核=1,子女3投保參數=1),IF(OR(子女3DPAA_保額=0,子女3DPAA_保額="",子女3DPAA_檢核=FALSE),"-",子女3),"-") -> - | F82: =IF(AND(AND(總檢核,商品序號=1),子女3全部檢核=1,子女3投保參數=1),IF(OR(子女3DPAA_保額=0,子女3DPAA_保額="",子女3DPAA_檢核=FALSE),"-",TEXT(子女3DPAA_保額,"#,##0")&"萬元"),"-") -> - | H82: =IF(AND(AND(總檢核,商品序號=1),子女3全部檢核=1,子女3投保參數=1),IF(OR(子女3DPAA_保額=0,子女3DPAA_保額="",子女3DPAA_檢核=FALSE),"-",繳別),"-") -> - | J82: =IF(AND(AND(總檢核,商品序號=1),子女3全部檢核=1,子女3投保參數=1),IF(OR(子女3DPAA_保額=0,子女3DPAA_保額="",子女3DPAA_檢核=FALSE),"-",ROUND(子女3DPAA_首期表定保費,個別險種進位數)),"-") -> -
A83: =DPAA_商品名稱 -> 保誠人壽人身意外傷害保險附約(111)
A84: =ML_商品代號 -> ML | D84: =IF(AND(子女3全部檢核=1,子女3投保參數=1),"子女3","子女3") -> 子女3 | E84: =IF(AND(AND(總檢核,商品序號=1),子女3全部檢核=1,子女3投保參數=1),IF(OR(子女3ML_計劃=0,子女3ML_計劃="",子女3ML_檢核=FALSE),"-",子女3),"-") -> - | F84: =IF(AND(AND(總檢核,商品序號=1),子女3全部檢核=1,子女3投保參數=1),IF(OR(子女3ML_計劃=0,子女3ML_計劃="",子女3ML_檢核=FALSE),"-",子女3ML_計劃&"計劃"),"-") -> - | H84: =IF(AND(AND(總檢核,商品序號=1),子女3全部檢核=1,子女3投保參數=1),IF(OR(子女3ML_計劃=0,子女3ML_計劃="",子女3ML_檢核=FALSE),"-",繳別),"-") -> - | J84: =IF(AND(AND(總檢核,商品序號=1),子女3全部檢核=1,子女3投保參數=1),IF(OR(子女3ML_計劃=0,子女3ML_計劃="",子女3ML_檢核=FALSE),"-",ROUND(子女3ML_首期表定保費,個別險種進位數)),"-") -> -
A85: =ML_商品名稱 -> 保誠人壽人身意外傷害住院醫療定額給付附加條款
A87: ="合計："&COUNTIF($H14:$I86,"*繳")&"筆" -> 合計：1筆 | I87: 上列主契約及附約每期原始保險費合計 | J87: =SUM(J14:K86) -> 10000
I88: 上列主契約及附約每期折扣後保險費合計 | J88: =IF(總檢核,J87,0) -> 10000
A90: ※ | B90: 若選擇繳別為「月繳」者，主契約(目標保險費)及附約(保險費)首期應繳2期。
A91: ※ | B91: 主約繳費期滿後，附約如欲持續有效，仍需繳交附約保險費。若保險期間另有約定者不適用。

Sheet 建議書
N1: ="列印日期："&YEAR(TODAY())-1911&"/"&RIGHT("0"&MONTH(TODAY()),2)&"/"&RIGHT("0"&DAY(TODAY()),2) -> 列印日期：114/07/30
A3: =IF(ISERROR(商品序號),"",最初商品文號) -> 商品備查文號：民國114年03月03日保誠總字第1140064號
A4: =最新商品文號 -> 0
A5: =商品資料庫文號 -> 0
A6: =IF(ISERROR(商品序號),"",商品全名&"建議書") -> 保誠人壽享保障變額萬能壽險建議書
A8: =IF(總檢核,"要保人："&要保人顯示,"要保人：") -> 要保人：貴保戶 君 | E8: =IF(總檢核,"被保險人：" &被保人顯示,"被保險人：") -> 被保險人：貴保戶 君 | I8: =IF(總檢核,"被保險人性別/年齡：" & 被保人年齡性別顯示,"被保險人性別/年齡：") -> 被保險人性別/年齡：男/40歲 | L8: =IF(總檢核,"保險費預計投入年期："&EPP&"年","保險費預計投入年期：") -> 保險費預計投入年期：20年 | P8: 回資料輸入_主被保人
A9: =IF(總檢核,"繳別："&繳別顯示,"繳別：") -> 繳別：月繳 | E9: =IF(總檢核,"每期目標保險費："&TEXT(每期保費,"#,##0")&"元","每期目標保險費：") -> 每期目標保險費：10,000元 | I9: =IF(總檢核,IF(AND(分期超額檢核,定期超額保險費<>"",定期超額保險費<>0),"每期超額保險費："&TEXT(定期超額保險費,"#,##0")&"元",""),"每期超額保險費：") ->  | L9: =IF(總檢核,"基本保額：" & TEXT(投保基本保額,"#,##0")&"元","基本保額：") -> 基本保額：6,600,000元 | P9: 回資料輸入_配偶子女
A11: ＊ | B11: 本保險為不分紅保單，不參加紅利分配，並無紅利給付項目。
A12: ＊ | B12: 本保險商品之加值回饋金給付來源為保費費用、保單管理費、投資標的經理費(管理費)及投資標的帳戶管理費。
A13: ＊ | B13: 本建議書係銷售人員於銷售過程提供予要保人參考，當建議書所列投保資料與要保書填寫不同時，試算金額也會隨之異動，詳細金額仍須以要保書/保單首頁填寫內容為準。
A15: 保單利益及費用明細試算表 | N15: =IF(ISERROR(商品序號),"","(單位："&幣別&"/"&單位&")") -> (單位：新臺幣/元)
A17: 年 度 | B17: 年 齡 | C17: ="假設投資報酬率"&TEXT(IRR_2,"0.00%") -> 假設投資報酬率6.00%
C18: 每年 目標保險費 | D18: 每年 超額保險費 | E18: 年度末 累積保險費 (目標+超額) | F18: 每年 保費費用 (目標+超額) | H18: 每年 實際用於投資 之保費金額 | I18: 每年 保單管理費 | J18: 每年 應收保險成本 | K18: 加值回饋金 | L18: 年度末 保單帳戶價值 /解約金 | N18: 年度末 壽險保障
A19: 1 | B19: =IF(所有檢核,IF(A19>BPP,"",Age_Insured+A19-1),"") -> 40 | C19: =IF(所有檢核,IF(A19>BPP,IF(A19=BPP+1,"***以下空白***",""),IF(L19="---",0,IF(L19="*****","*****",VLOOKUP(A19,AV_year_H!$A$5:$Y$103,3,FALSE)))),"") -> 120000 | D19: =IF(所有檢核,IF(A19>BPP,"",IF(L19="---",0,IF(L19="*****","*****",VLOOKUP(A19,AV_year_H!$A$5:$Y$103,5,FALSE)+VLOOKUP(A19,AV_year_H!$A$5:$Y$103,7,FALSE)-VLOOKUP(A19,AV_year_H!$A$5:$Y$103,10,FALSE)))),"") -> 0 | E19: =IF(所有檢核,IF(A19>BPP,"",IF(L19="---","---",IF(L19="*****","*****",VLOOKUP(A19,AV_year_H!$A$5:$Y$103,4,FALSE)+VLOOKUP(A19,AV_year_H!$A$5:$Y$103,6,FALSE)))),"") -> 120000 | F19: =IF(所有檢核,IF(A19>BPP,"",IF(L19="---",0,IF(L19="*****","*****",VLOOKUP(A19,AV_year_H!$A$5:$Y$103,11,FALSE)))),"") -> 60000 | H19: =IF(所有檢核,IF(A19>BPP,"",IF(L19="---",0,IF(L19="*****","*****",VLOOKUP(A19,AV_year_H!$A$5:$Y$103,19,FALSE)))),"") -> 60000 | I19: =IF(所有檢核,IF(A19>BPP,"",IF(L19="---","---",IF(L19="*****","*****",VLOOKUP(A19,AV_year_H!$A$5:$Y$103,20,FALSE)))),"") -> 1200 | J19: =IF(所有檢核,IF(A19>BPP,"",IF(L19="---","---",IF(L19="*****","*****",VLOOKUP(A19,AV_year_H!$A$5:$Y$103,17,FALSE)))),"") -> 18216 | K19: =IF(所有檢核,IF(A19>BPP,"",IF(L19="---",0,IF(L19="*****","*****",VLOOKUP(A19,AV_year_H!$A$5:$Y$103,14,FALSE)))),"") -> 0 | L19: =IF(所有檢核,IF(A19>BPP,"",IF(IFERROR(VLOOKUP(A19,AV_year_H!$A$5:$Y$103,22,FALSE),0)=" ","---",IFERROR(VLOOKUP(A19,AV_year_H!$A$5:$Y$103,23,FALSE),"*****"))),"") -> 41891 | N19: =IF(所有檢核,IF(A19>BPP,"",IF(L19="---","---",IF(L19="*****","*****",VLOOKUP(A19,AV_year_H!$A$5:$Y$103,25,FALSE)))),"") -> 6641891
A20: 2 | B20: 41 | C20: =IF(所有檢核,IF(A20>BPP,IF(A20=BPP+1,"***以下空白***",""),IF(L20="---",0,IF(L20="*****","*****",VLOOKUP(A20,AV_year_H!$A$5:$Y$103,3,FALSE)))),"") -> 120000 | D20: =IF(所有檢核,IF(A20>BPP,"",IF(L20="---",0,IF(L20="*****","*****",VLOOKUP(A20,AV_year_H!$A$5:$Y$103,5,FALSE)+VLOOKUP(A20,AV_year_H!$A$5:$Y$103,7,FALSE)-VLOOKUP(A20,AV_year_H!$A$5:$Y$103,10,FALSE)))),"") -> 0 | E20: =IF(所有檢核,IF(A20>BPP,"",IF(L20="---","---",IF(L20="*****","*****",VLOOKUP(A20,AV_year_H!$A$5:$Y$103,4,FALSE)+VLOOKUP(A20,AV_year_H!$A$5:$Y$103,6,FALSE)))),"") -> 240000 | F20: =IF(所有檢核,IF(A20>BPP,"",IF(L20="---",0,IF(L20="*****","*****",VLOOKUP(A20,AV_year_H!$A$5:$Y$103,11,FALSE)))),"") -> 36000 | H20: =IF(所有檢核,IF(A20>BPP,"",IF(L20="---",0,IF(L20="*****","*****",VLOOKUP(A20,AV_year_H!$A$5:$Y$103,19,FALSE)))),"") -> 84000 | I20: =IF(所有檢核,IF(A20>BPP,"",IF(L20="---","---",IF(L20="*****","*****",VLOOKUP(A20,AV_year_H!$A$5:$Y$103,20,FALSE)))),"") -> 1200 | J20: =IF(所有檢核,IF(A20>BPP,"",IF(L20="---","---",IF(L20="*****","*****",VLOOKUP(A20,AV_year_H!$A$5:$Y$103,17,FALSE)))),"") -> 19800 | K20: =IF(所有檢核,IF(A20>BPP,"",IF(L20="---",0,IF(L20="*****","*****",VLOOKUP(A20,AV_year_H!$A$5:$Y$103,14,FALSE)))),"") -> 0 | L20: =IF(所有檢核,IF(A20>BPP,"",IF(IFERROR(VLOOKUP(A20,AV_year_H!$A$5:$Y$103,22,FALSE),0)=" ","---",IFERROR(VLOOKUP(A20,AV_year_H!$A$5:$Y$103,23,FALSE),"*****"))),"") -> 109434 | N20: =IF(所有檢核,IF(A20>BPP,"",IF(L20="---","---",IF(L20="*****","*****",VLOOKUP(A20,AV_year_H!$A$5:$Y$103,25,FALSE)))),"") -> 6709434
A21: 3 | B21: 42 | C21: =IF(所有檢核,IF(A21>BPP,IF(A21=BPP+1,"***以下空白***",""),IF(L21="---",0,IF(L21="*****","*****",VLOOKUP(A21,AV_year_H!$A$5:$Y$103,3,FALSE)))),"") -> 120000 | D21: =IF(所有檢核,IF(A21>BPP,"",IF(L21="---",0,IF(L21="*****","*****",VLOOKUP(A21,AV_year_H!$A$5:$Y$103,5,FALSE)+VLOOKUP(A21,AV_year_H!$A$5:$Y$103,7,FALSE)-VLOOKUP(A21,AV_year_H!$A$5:$Y$103,10,FALSE)))),"") -> 0 | E21: =IF(所有檢核,IF(A21>BPP,"",IF(L21="---","---",IF(L21="*****","*****",VLOOKUP(A21,AV_year_H!$A$5:$Y$103,4,FALSE)+VLOOKUP(A21,AV_year_H!$A$5:$Y$103,6,FALSE)))),"") -> 360000 | F21: =IF(所有檢核,IF(A21>BPP,"",IF(L21="---",0,IF(L21="*****","*****",VLOOKUP(A21,AV_year_H!$A$5:$Y$103,11,FALSE)))),"") -> 24000 | H21: =IF(所有檢核,IF(A21>BPP,"",IF(L21="---",0,IF(L21="*****","*****",VLOOKUP(A21,AV_year_H!$A$5:$Y$103,19,FALSE)))),"") -> 96000 | I21: =IF(所有檢核,IF(A21>BPP,"",IF(L21="---","---",IF(L21="*****","*****",VLOOKUP(A21,AV_year_H!$A$5:$Y$103,20,FALSE)))),"") -> 1200 | J21: =IF(所有檢核,IF(A21>BPP,"",IF(L21="---","---",IF(L21="*****","*****",VLOOKUP(A21,AV_year_H!$A$5:$Y$103,17,FALSE)))),"") -> 21384 | K21: =IF(所有檢核,IF(A21>BPP,"",IF(L21="---",0,IF(L21="*****","*****",VLOOKUP(A21,AV_year_H!$A$5:$Y$103,14,FALSE)))),"") -> 0 | L21: =IF(所有檢核,IF(A21>BPP,"",IF(IFERROR(VLOOKUP(A21,AV_year_H!$A$5:$Y$103,22,FALSE),0)=" ","---",IFERROR(VLOOKUP(A21,AV_year_H!$A$5:$Y$103,23,FALSE),"*****"))),"") -> 191781 | N21: =IF(所有檢核,IF(A21>BPP,"",IF(L21="---","---",IF(L21="*****","*****",VLOOKUP(A21,AV_year_H!$A$5:$Y$103,25,FALSE)))),"") -> 6791781
A22: 4 | B22: 43 | C22: =IF(所有檢核,IF(A22>BPP,IF(A22=BPP+1,"***以下空白***",""),IF(L22="---",0,IF(L22="*****","*****",VLOOKUP(A22,AV_year_H!$A$5:$Y$103,3,FALSE)))),"") -> 120000 | D22: =IF(所有檢核,IF(A22>BPP,"",IF(L22="---",0,IF(L22="*****","*****",VLOOKUP(A22,AV_year_H!$A$5:$Y$103,5,FALSE)+VLOOKUP(A22,AV_year_H!$A$5:$Y$103,7,FALSE)-VLOOKUP(A22,AV_year_H!$A$5:$Y$103,10,FALSE)))),"") -> 0 | E22: =IF(所有檢核,IF(A22>BPP,"",IF(L22="---","---",IF(L22="*****","*****",VLOOKUP(A22,AV_year_H!$A$5:$Y$103,4,FALSE)+VLOOKUP(A22,AV_year_H!$A$5:$Y$103,6,FALSE)))),"") -> 480000 | F22: =IF(所有檢核,IF(A22>BPP,"",IF(L22="---",0,IF(L22="*****","*****",VLOOKUP(A22,AV_year_H!$A$5:$Y$103,11,FALSE)))),"") -> 24000 | H22: =IF(所有檢核,IF(A22>BPP,"",IF(L22="---",0,IF(L22="*****","*****",VLOOKUP(A22,AV_year_H!$A$5:$Y$103,19,FALSE)))),"") -> 96000 | I22: =IF(所有檢核,IF(A22>BPP,"",IF(L22="---","---",IF(L22="*****","*****",VLOOKUP(A22,AV_year_H!$A$5:$Y$103,20,FALSE)))),"") -> 1200 | J22: =IF(所有檢核,IF(A22>BPP,"",IF(L22="---","---",IF(L22="*****","*****",VLOOKUP(A22,AV_year_H!$A$5:$Y$103,17,FALSE)))),"") -> 22968 | K22: =IF(所有檢核,IF(A22>BPP,"",IF(L22="---",0,IF(L22="*****","*****",VLOOKUP(A22,AV_year_H!$A$5:$Y$103,14,FALSE)))),"") -> 0 | L22: =IF(所有檢核,IF(A22>BPP,"",IF(IFERROR(VLOOKUP(A22,AV_year_H!$A$5:$Y$103,22,FALSE),0)=" ","---",IFERROR(VLOOKUP(A22,AV_year_H!$A$5:$Y$103,23,FALSE),"*****"))),"") -> 277433 | N22: =IF(所有檢核,IF(A22>BPP,"",IF(L22="---","---",IF(L22="*****","*****",VLOOKUP(A22,AV_year_H!$A$5:$Y$103,25,FALSE)))),"") -> 6877433
A23: 5 | B23: 44 | C23: =IF(所有檢核,IF(A23>BPP,IF(A23=BPP+1,"***以下空白***",""),IF(L23="---",0,IF(L23="*****","*****",VLOOKUP(A23,AV_year_H!$A$5:$Y$103,3,FALSE)))),"") -> 120000 | D23: =IF(所有檢核,IF(A23>BPP,"",IF(L23="---",0,IF(L23="*****","*****",VLOOKUP(A23,AV_year_H!$A$5:$Y$103,5,FALSE)+VLOOKUP(A23,AV_year_H!$A$5:$Y$103,7,FALSE)-VLOOKUP(A23,AV_year_H!$A$5:$Y$103,10,FALSE)))),"") -> 0 | E23: =IF(所有檢核,IF(A23>BPP,"",IF(L23="---","---",IF(L23="*****","*****",VLOOKUP(A23,AV_year_H!$A$5:$Y$103,4,FALSE)+VLOOKUP(A23,AV_year_H!$A$5:$Y$103,6,FALSE)))),"") -> 600000 | F23: =IF(所有檢核,IF(A23>BPP,"",IF(L23="---",0,IF(L23="*****","*****",VLOOKUP(A23,AV_year_H!$A$5:$Y$103,11,FALSE)))),"") -> 24000 | H23: =IF(所有檢核,IF(A23>BPP,"",IF(L23="---",0,IF(L23="*****","*****",VLOOKUP(A23,AV_year_H!$A$5:$Y$103,19,FALSE)))),"") -> 96000 | I23: =IF(所有檢核,IF(A23>BPP,"",IF(L23="---","---",IF(L23="*****","*****",VLOOKUP(A23,AV_year_H!$A$5:$Y$103,20,FALSE)))),"") -> 1200 | J23: =IF(所有檢核,IF(A23>BPP,"",IF(L23="---","---",IF(L23="*****","*****",VLOOKUP(A23,AV_year_H!$A$5:$Y$103,17,FALSE)))),"") -> 24552 | K23: =IF(所有檢核,IF(A23>BPP,"",IF(L23="---",0,IF(L23="*****","*****",VLOOKUP(A23,AV_year_H!$A$5:$Y$103,14,FALSE)))),"") -> 0 | L23: =IF(所有檢核,IF(A23>BPP,"",IF(IFERROR(VLOOKUP(A23,AV_year_H!$A$5:$Y$103,22,FALSE),0)=" ","---",IFERROR(VLOOKUP(A23,AV_year_H!$A$5:$Y$103,23,FALSE),"*****"))),"") -> 366590 | N23: =IF(所有檢核,IF(A23>BPP,"",IF(L23="---","---",IF(L23="*****","*****",VLOOKUP(A23,AV_year_H!$A$5:$Y$103,25,FALSE)))),"") -> 6966590
A24: 6 | B24: 45 | C24: =IF(所有檢核,IF(A24>BPP,IF(A24=BPP+1,"***以下空白***",""),IF(L24="---",0,IF(L24="*****","*****",VLOOKUP(A24,AV_year_H!$A$5:$Y$103,3,FALSE)))),"") -> 120000 | D24: =IF(所有檢核,IF(A24>BPP,"",IF(L24="---",0,IF(L24="*****","*****",VLOOKUP(A24,AV_year_H!$A$5:$Y$103,5,FALSE)+VLOOKUP(A24,AV_year_H!$A$5:$Y$103,7,FALSE)-VLOOKUP(A24,AV_year_H!$A$5:$Y$103,10,FALSE)))),"") -> 0 | E24: =IF(所有檢核,IF(A24>BPP,"",IF(L24="---","---",IF(L24="*****","*****",VLOOKUP(A24,AV_year_H!$A$5:$Y$103,4,FALSE)+VLOOKUP(A24,AV_year_H!$A$5:$Y$103,6,FALSE)))),"") -> 720000 | F24: =IF(所有檢核,IF(A24>BPP,"",IF(L24="---",0,IF(L24="*****","*****",VLOOKUP(A24,AV_year_H!$A$5:$Y$103,11,FALSE)))),"") -> 0 | H24: =IF(所有檢核,IF(A24>BPP,"",IF(L24="---",0,IF(L24="*****","*****",VLOOKUP(A24,AV_year_H!$A$5:$Y$103,19,FALSE)))),"") -> 120000 | I24: =IF(所有檢核,IF(A24>BPP,"",IF(L24="---","---",IF(L24="*****","*****",VLOOKUP(A24,AV_year_H!$A$5:$Y$103,20,FALSE)))),"") -> 1200 | J24: =IF(所有檢核,IF(A24>BPP,"",IF(L24="---","---",IF(L24="*****","*****",VLOOKUP(A24,AV_year_H!$A$5:$Y$103,17,FALSE)))),"") -> 26928 | K24: =IF(所有檢核,IF(A24>BPP,"",IF(L24="---",0,IF(L24="*****","*****",VLOOKUP(A24,AV_year_H!$A$5:$Y$103,14,FALSE)))),"") -> 24000 | L24: =IF(所有檢核,IF(A24>BPP,"",IF(IFERROR(VLOOKUP(A24,AV_year_H!$A$5:$Y$103,22,FALSE),0)=" ","---",IFERROR(VLOOKUP(A24,AV_year_H!$A$5:$Y$103,23,FALSE),"*****"))),"") -> 508190 | N24: =IF(所有檢核,IF(A24>BPP,"",IF(L24="---","---",IF(L24="*****","*****",VLOOKUP(A24,AV_year_H!$A$5:$Y$103,25,FALSE)))),"") -> 7108190
A25: 7 | B25: 46 | C25: =IF(所有檢核,IF(A25>BPP,IF(A25=BPP+1,"***以下空白***",""),IF(L25="---",0,IF(L25="*****","*****",VLOOKUP(A25,AV_year_H!$A$5:$Y$103,3,FALSE)))),"") -> 120000 | D25: =IF(所有檢核,IF(A25>BPP,"",IF(L25="---",0,IF(L25="*****","*****",VLOOKUP(A25,AV_year_H!$A$5:$Y$103,5,FALSE)+VLOOKUP(A25,AV_year_H!$A$5:$Y$103,7,FALSE)-VLOOKUP(A25,AV_year_H!$A$5:$Y$103,10,FALSE)))),"") -> 0 | E25: =IF(所有檢核,IF(A25>BPP,"",IF(L25="---","---",IF(L25="*****","*****",VLOOKUP(A25,AV_year_H!$A$5:$Y$103,4,FALSE)+VLOOKUP(A25,AV_year_H!$A$5:$Y$103,6,FALSE)))),"") -> 840000 | F25: =IF(所有檢核,IF(A25>BPP,"",IF(L25="---",0,IF(L25="*****","*****",VLOOKUP(A25,AV_year_H!$A$5:$Y$103,11,FALSE)))),"") -> 0 | H25: =IF(所有檢核,IF(A25>BPP,"",IF(L25="---",0,IF(L25="*****","*****",VLOOKUP(A25,AV_year_H!$A$5:$Y$103,19,FALSE)))),"") -> 120000 | I25: =IF(所有檢核,IF(A25>BPP,"",IF(L25="---","---",IF(L25="*****","*****",VLOOKUP(A25,AV_year_H!$A$5:$Y$103,20,FALSE)))),"") -> 1200 | J25: =IF(所有檢核,IF(A25>BPP,"",IF(L25="---","---",IF(L25="*****","*****",VLOOKUP(A25,AV_year_H!$A$5:$Y$103,17,FALSE)))),"") -> 29304 | K25: =IF(所有檢核,IF(A25>BPP,"",IF(L25="---",0,IF(L25="*****","*****",VLOOKUP(A25,AV_year_H!$A$5:$Y$103,14,FALSE)))),"") -> 24000 | L25: =IF(所有檢核,IF(A25>BPP,"",IF(IFERROR(VLOOKUP(A25,AV_year_H!$A$5:$Y$103,22,FALSE),0)=" ","---",IFERROR(VLOOKUP(A25,AV_year_H!$A$5:$Y$103,23,FALSE),"*****"))),"") -> 655833 | N25: =IF(所有檢核,IF(A25>BPP,"",IF(L25="---","---",IF(L25="*****","*****",VLOOKUP(A25,AV_year_H!$A$5:$Y$103,25,FALSE)))),"") -> 7255833
A26: 8 | B26: 47 | C26: =IF(所有檢核,IF(A26>BPP,IF(A26=BPP+1,"***以下空白***",""),IF(L26="---",0,IF(L26="*****","*****",VLOOKUP(A26,AV_year_H!$A$5:$Y$103,3,FALSE)))),"") -> 120000 | D26: =IF(所有檢核,IF(A26>BPP,"",IF(L26="---",0,IF(L26="*****","*****",VLOOKUP(A26,AV_year_H!$A$5:$Y$103,5,FALSE)+VLOOKUP(A26,AV_year_H!$A$5:$Y$103,7,FALSE)-VLOOKUP(A26,AV_year_H!$A$5:$Y$103,10,FALSE)))),"") -> 0 | E26: =IF(所有檢核,IF(A26>BPP,"",IF(L26="---","---",IF(L26="*****","*****",VLOOKUP(A26,AV_year_H!$A$5:$Y$103,4,FALSE)+VLOOKUP(A26,AV_year_H!$A$5:$Y$103,6,FALSE)))),"") -> 960000 | F26: =IF(所有檢核,IF(A26>BPP,"",IF(L26="---",0,IF(L26="*****","*****",VLOOKUP(A26,AV_year_H!$A$5:$Y$103,11,FALSE)))),"") -> 0 | H26: =IF(所有檢核,IF(A26>BPP,"",IF(L26="---",0,IF(L26="*****","*****",VLOOKUP(A26,AV_year_H!$A$5:$Y$103,19,FALSE)))),"") -> 120000 | I26: =IF(所有檢核,IF(A26>BPP,"",IF(L26="---","---",IF(L26="*****","*****",VLOOKUP(A26,AV_year_H!$A$5:$Y$103,20,FALSE)))),"") -> 1200 | J26: =IF(所有檢核,IF(A26>BPP,"",IF(L26="---","---",IF(L26="*****","*****",VLOOKUP(A26,AV_year_H!$A$5:$Y$103,17,FALSE)))),"") -> 31680 | K26: =IF(所有檢核,IF(A26>BPP,"",IF(L26="---",0,IF(L26="*****","*****",VLOOKUP(A26,AV_year_H!$A$5:$Y$103,14,FALSE)))),"") -> 24000 | L26: =IF(所有檢核,IF(A26>BPP,"",IF(IFERROR(VLOOKUP(A26,AV_year_H!$A$5:$Y$103,22,FALSE),0)=" ","---",IFERROR(VLOOKUP(A26,AV_year_H!$A$5:$Y$103,23,FALSE),"*****"))),"") -> 809882 | N26: =IF(所有檢核,IF(A26>BPP,"",IF(L26="---","---",IF(L26="*****","*****",VLOOKUP(A26,AV_year_H!$A$5:$Y$103,25,FALSE)))),"") -> 7409882
A27: 9 | B27: 48 | C27: =IF(所有檢核,IF(A27>BPP,IF(A27=BPP+1,"***以下空白***",""),IF(L27="---",0,IF(L27="*****","*****",VLOOKUP(A27,AV_year_H!$A$5:$Y$103,3,FALSE)))),"") -> 120000 | D27: =IF(所有檢核,IF(A27>BPP,"",IF(L27="---",0,IF(L27="*****","*****",VLOOKUP(A27,AV_year_H!$A$5:$Y$103,5,FALSE)+VLOOKUP(A27,AV_year_H!$A$5:$Y$103,7,FALSE)-VLOOKUP(A27,AV_year_H!$A$5:$Y$103,10,FALSE)))),"") -> 0 | E27: =IF(所有檢核,IF(A27>BPP,"",IF(L27="---","---",IF(L27="*****","*****",VLOOKUP(A27,AV_year_H!$A$5:$Y$103,4,FALSE)+VLOOKUP(A27,AV_year_H!$A$5:$Y$103,6,FALSE)))),"") -> 1080000 | F27: =IF(所有檢核,IF(A27>BPP,"",IF(L27="---",0,IF(L27="*****","*****",VLOOKUP(A27,AV_year_H!$A$5:$Y$103,11,FALSE)))),"") -> 0 | H27: =IF(所有檢核,IF(A27>BPP,"",IF(L27="---",0,IF(L27="*****","*****",VLOOKUP(A27,AV_year_H!$A$5:$Y$103,19,FALSE)))),"") -> 120000 | I27: =IF(所有檢核,IF(A27>BPP,"",IF(L27="---","---",IF(L27="*****","*****",VLOOKUP(A27,AV_year_H!$A$5:$Y$103,20,FALSE)))),"") -> 1200 | J27: =IF(所有檢核,IF(A27>BPP,"",IF(L27="---","---",IF(L27="*****","*****",VLOOKUP(A27,AV_year_H!$A$5:$Y$103,17,FALSE)))),"") -> 34056 | K27: =IF(所有檢核,IF(A27>BPP,"",IF(L27="---",0,IF(L27="*****","*****",VLOOKUP(A27,AV_year_H!$A$5:$Y$103,14,FALSE)))),"") -> 36000 | L27: =IF(所有檢核,IF(A27>BPP,"",IF(IFERROR(VLOOKUP(A27,AV_year_H!$A$5:$Y$103,22,FALSE),0)=" ","---",IFERROR(VLOOKUP(A27,AV_year_H!$A$5:$Y$103,23,FALSE),"*****"))),"") -> 983108 | N27: =IF(所有檢核,IF(A27>BPP,"",IF(L27="---","---",IF(L27="*****","*****",VLOOKUP(A27,AV_year_H!$A$5:$Y$103,25,FALSE)))),"") -> 7583108
A28: 10 | B28: 49 | C28: =IF(所有檢核,IF(A28>BPP,IF(A28=BPP+1,"***以下空白***",""),IF(L28="---",0,IF(L28="*****","*****",VLOOKUP(A28,AV_year_H!$A$5:$Y$103,3,FALSE)))),"") -> 120000 | D28: =IF(所有檢核,IF(A28>BPP,"",IF(L28="---",0,IF(L28="*****","*****",VLOOKUP(A28,AV_year_H!$A$5:$Y$103,5,FALSE)+VLOOKUP(A28,AV_year_H!$A$5:$Y$103,7,FALSE)-VLOOKUP(A28,AV_year_H!$A$5:$Y$103,10,FALSE)))),"") -> 0 | E28: =IF(所有檢核,IF(A28>BPP,"",IF(L28="---","---",IF(L28="*****","*****",VLOOKUP(A28,AV_year_H!$A$5:$Y$103,4,FALSE)+VLOOKUP(A28,AV_year_H!$A$5:$Y$103,6,FALSE)))),"") -> 1200000 | F28: =IF(所有檢核,IF(A28>BPP,"",IF(L28="---",0,IF(L28="*****","*****",VLOOKUP(A28,AV_year_H!$A$5:$Y$103,11,FALSE)))),"") -> 0 | H28: =IF(所有檢核,IF(A28>BPP,"",IF(L28="---",0,IF(L28="*****","*****",VLOOKUP(A28,AV_year_H!$A$5:$Y$103,19,FALSE)))),"") -> 120000 | I28: =IF(所有檢核,IF(A28>BPP,"",IF(L28="---","---",IF(L28="*****","*****",VLOOKUP(A28,AV_year_H!$A$5:$Y$103,20,FALSE)))),"") -> 1200 | J28: =IF(所有檢核,IF(A28>BPP,"",IF(L28="---","---",IF(L28="*****","*****",VLOOKUP(A28,AV_year_H!$A$5:$Y$103,17,FALSE)))),"") -> 37224 | K28: =IF(所有檢核,IF(A28>BPP,"",IF(L28="---",0,IF(L28="*****","*****",VLOOKUP(A28,AV_year_H!$A$5:$Y$103,14,FALSE)))),"") -> 60000 | L28: =IF(所有檢核,IF(A28>BPP,"",IF(IFERROR(VLOOKUP(A28,AV_year_H!$A$5:$Y$103,22,FALSE),0)=" ","---",IFERROR(VLOOKUP(A28,AV_year_H!$A$5:$Y$103,23,FALSE),"*****"))),"") -> 1188231 | N28: =IF(所有檢核,IF(A28>BPP,"",IF(L28="---","---",IF(L28="*****","*****",VLOOKUP(A28,AV_year_H!$A$5:$Y$103,25,FALSE)))),"") -> 7788231
A29: 11 | B29: =IF(所有檢核,IF(A29>BPP,"",Age_Insured+A29-1),"") -> 50 | C29: =IF(所有檢核,IF(A29>BPP,IF(A29=BPP+1,"***以下空白***",""),IF(L29="---",0,IF(L29="*****","*****",VLOOKUP(A29,AV_year_H!$A$5:$Y$103,3,FALSE)))),"") -> 120000 | D29: =IF(所有檢核,IF(A29>BPP,"",IF(L29="---",0,IF(L29="*****","*****",VLOOKUP(A29,AV_year_H!$A$5:$Y$103,5,FALSE)+VLOOKUP(A29,AV_year_H!$A$5:$Y$103,7,FALSE)-VLOOKUP(A29,AV_year_H!$A$5:$Y$103,10,FALSE)))),"") -> 0 | E29: =IF(所有檢核,IF(A29>BPP,"",IF(L29="---","---",IF(L29="*****","*****",VLOOKUP(A29,AV_year_H!$A$5:$Y$103,4,FALSE)+VLOOKUP(A29,AV_year_H!$A$5:$Y$103,6,FALSE)))),"") -> 1320000 | F29: =IF(所有檢核,IF(A29>BPP,"",IF(L29="---",0,IF(L29="*****","*****",VLOOKUP(A29,AV_year_H!$A$5:$Y$103,11,FALSE)))),"") -> 0 | H29: =IF(所有檢核,IF(A29>BPP,"",IF(L29="---",0,IF(L29="*****","*****",VLOOKUP(A29,AV_year_H!$A$5:$Y$103,19,FALSE)))),"") -> 120000 | I29: =IF(所有檢核,IF(A29>BPP,"",IF(L29="---","---",IF(L29="*****","*****",VLOOKUP(A29,AV_year_H!$A$5:$Y$103,20,FALSE)))),"") -> 1200 | J29: =IF(所有檢核,IF(A29>BPP,"",IF(L29="---","---",IF(L29="*****","*****",VLOOKUP(A29,AV_year_H!$A$5:$Y$103,17,FALSE)))),"") -> 39600 | K29: =IF(所有檢核,IF(A29>BPP,"",IF(L29="---",0,IF(L29="*****","*****",VLOOKUP(A29,AV_year_H!$A$5:$Y$103,14,FALSE)))),"") -> 0 | L29: =IF(所有檢核,IF(A29>BPP,"",IF(IFERROR(VLOOKUP(A29,AV_year_H!$A$5:$Y$103,22,FALSE),0)=" ","---",IFERROR(VLOOKUP(A29,AV_year_H!$A$5:$Y$103,23,FALSE),"*****"))),"") -> 1341276 | N29: =IF(所有檢核,IF(A29>BPP,"",IF(L29="---","---",IF(L29="*****","*****",VLOOKUP(A29,AV_year_H!$A$5:$Y$103,25,FALSE)))),"") -> 7941276
A30: 12 | B30: 51 | C30: =IF(所有檢核,IF(A30>BPP,IF(A30=BPP+1,"***以下空白***",""),IF(L30="---",0,IF(L30="*****","*****",VLOOKUP(A30,AV_year_H!$A$5:$Y$103,3,FALSE)))),"") -> 120000 | D30: =IF(所有檢核,IF(A30>BPP,"",IF(L30="---",0,IF(L30="*****","*****",VLOOKUP(A30,AV_year_H!$A$5:$Y$103,5,FALSE)+VLOOKUP(A30,AV_year_H!$A$5:$Y$103,7,FALSE)-VLOOKUP(A30,AV_year_H!$A$5:$Y$103,10,FALSE)))),"") -> 0 | E30: =IF(所有檢核,IF(A30>BPP,"",IF(L30="---","---",IF(L30="*****","*****",VLOOKUP(A30,AV_year_H!$A$5:$Y$103,4,FALSE)+VLOOKUP(A30,AV_year_H!$A$5:$Y$103,6,FALSE)))),"") -> 1440000 | F30: =IF(所有檢核,IF(A30>BPP,"",IF(L30="---",0,IF(L30="*****","*****",VLOOKUP(A30,AV_year_H!$A$5:$Y$103,11,FALSE)))),"") -> 0 | H30: =IF(所有檢核,IF(A30>BPP,"",IF(L30="---",0,IF(L30="*****","*****",VLOOKUP(A30,AV_year_H!$A$5:$Y$103,19,FALSE)))),"") -> 120000 | I30: =IF(所有檢核,IF(A30>BPP,"",IF(L30="---","---",IF(L30="*****","*****",VLOOKUP(A30,AV_year_H!$A$5:$Y$103,20,FALSE)))),"") -> 1200 | J30: =IF(所有檢核,IF(A30>BPP,"",IF(L30="---","---",IF(L30="*****","*****",VLOOKUP(A30,AV_year_H!$A$5:$Y$103,17,FALSE)))),"") -> 43560 | K30: =IF(所有檢核,IF(A30>BPP,"",IF(L30="---",0,IF(L30="*****","*****",VLOOKUP(A30,AV_year_H!$A$5:$Y$103,14,FALSE)))),"") -> 0 | L30: =IF(所有檢核,IF(A30>BPP,"",IF(IFERROR(VLOOKUP(A30,AV_year_H!$A$5:$Y$103,22,FALSE),0)=" ","---",IFERROR(VLOOKUP(A30,AV_year_H!$A$5:$Y$103,23,FALSE),"*****"))),"") -> 1499416 | N30: =IF(所有檢核,IF(A30>BPP,"",IF(L30="---","---",IF(L30="*****","*****",VLOOKUP(A30,AV_year_H!$A$5:$Y$103,25,FALSE)))),"") -> 8099416
A31: 13 | B31: =IF(所有檢核,IF(A31>BPP,"",Age_Insured+A31-1),"") -> 52 | C31: =IF(所有檢核,IF(A31>BPP,IF(A31=BPP+1,"***以下空白***",""),IF(L31="---",0,IF(L31="*****","*****",VLOOKUP(A31,AV_year_H!$A$5:$Y$103,3,FALSE)))),"") -> 120000 | D31: =IF(所有檢核,IF(A31>BPP,"",IF(L31="---",0,IF(L31="*****","*****",VLOOKUP(A31,AV_year_H!$A$5:$Y$103,5,FALSE)+VLOOKUP(A31,AV_year_H!$A$5:$Y$103,7,FALSE)-VLOOKUP(A31,AV_year_H!$A$5:$Y$103,10,FALSE)))),"") -> 0 | E31: =IF(所有檢核,IF(A31>BPP,"",IF(L31="---","---",IF(L31="*****","*****",VLOOKUP(A31,AV_year_H!$A$5:$Y$103,4,FALSE)+VLOOKUP(A31,AV_year_H!$A$5:$Y$103,6,FALSE)))),"") -> 1560000 | F31: =IF(所有檢核,IF(A31>BPP,"",IF(L31="---",0,IF(L31="*****","*****",VLOOKUP(A31,AV_year_H!$A$5:$Y$103,11,FALSE)))),"") -> 0 | H31: =IF(所有檢核,IF(A31>BPP,"",IF(L31="---",0,IF(L31="*****","*****",VLOOKUP(A31,AV_year_H!$A$5:$Y$103,19,FALSE)))),"") -> 120000 | I31: =IF(所有檢核,IF(A31>BPP,"",IF(L31="---","---",IF(L31="*****","*****",VLOOKUP(A31,AV_year_H!$A$5:$Y$103,20,FALSE)))),"") -> 1200 | J31: =IF(所有檢核,IF(A31>BPP,"",IF(L31="---","---",IF(L31="*****","*****",VLOOKUP(A31,AV_year_H!$A$5:$Y$103,17,FALSE)))),"") -> 46728 | K31: =IF(所有檢核,IF(A31>BPP,"",IF(L31="---",0,IF(L31="*****","*****",VLOOKUP(A31,AV_year_H!$A$5:$Y$103,14,FALSE)))),"") -> 0 | L31: =IF(所有檢核,IF(A31>BPP,"",IF(IFERROR(VLOOKUP(A31,AV_year_H!$A$5:$Y$103,22,FALSE),0)=" ","---",IFERROR(VLOOKUP(A31,AV_year_H!$A$5:$Y$103,23,FALSE),"*****"))),"") -> 1663775 | N31: =IF(所有檢核,IF(A31>BPP,"",IF(L31="---","---",IF(L31="*****","*****",VLOOKUP(A31,AV_year_H!$A$5:$Y$103,25,FALSE)))),"") -> 8263775
A33: ＊ | B33: 本保險為不分紅保單，不參加紅利分配，並無紅利給付項目。
A34: ＊ | B34: 本保險商品之加值回饋金給付來源為保費費用、保單管理費、投資標的經理費(管理費)及投資標的帳戶管理費。
A35: ＊ | B35: 本建議書係銷售人員於銷售過程提供予要保人參考，當建議書所列投保資料與要保書填寫不同時，試算金額也會隨之異動，詳細金額仍須以要保書/保單首頁填寫內容為準。
A37: 保單利益及費用明細試算表 | N37: =IF(ISERROR(商品序號),"","(單位："&幣別&"/"&單位&")") -> (單位：新臺幣/元)
A39: 年 度 | B39: 年 齡 | C39: ="假設投資報酬率"&TEXT(IRR_2,"0.00%") -> 假設投資報酬率6.00%
C40: 每年 目標保險費 | D40: 每年 超額保險費 | E40: 年度末 累積保險費 (目標+超額) | F40: 每年 保費費用 (目標+超額) | H40: 每年 實際用於投資 之保費金額 | I40: 每年 保單管理費 | J40: 每年 應收保險成本 | K40: 加值回饋金 | L40: 年度末 保單帳戶價值 /解約金 | N40: 年度末 壽險保障
A41: 14 | B41: =IF(所有檢核,IF(A41>BPP,"",Age_Insured+A41-1),"") -> 53 | C41: =IF(所有檢核,IF(A41>BPP,IF(A41=BPP+1,"***以下空白***",""),IF(L41="---",0,IF(L41="*****","*****",VLOOKUP(A41,AV_year_H!$A$5:$Y$103,3,FALSE)))),"") -> 120000 | D41: =IF(所有檢核,IF(A41>BPP,"",IF(L41="---",0,IF(L41="*****","*****",VLOOKUP(A41,AV_year_H!$A$5:$Y$103,5,FALSE)+VLOOKUP(A41,AV_year_H!$A$5:$Y$103,7,FALSE)-VLOOKUP(A41,AV_year_H!$A$5:$Y$103,10,FALSE)))),"") -> 0 | E41: =IF(所有檢核,IF(A41>BPP,"",IF(L41="---","---",IF(L41="*****","*****",VLOOKUP(A41,AV_year_H!$A$5:$Y$103,4,FALSE)+VLOOKUP(A41,AV_year_H!$A$5:$Y$103,6,FALSE)))),"") -> 1680000 | F41: =IF(所有檢核,IF(A41>BPP,"",IF(L41="---",0,IF(L41="*****","*****",VLOOKUP(A41,AV_year_H!$A$5:$Y$103,11,FALSE)))),"") -> 0 | H41: =IF(所有檢核,IF(A41>BPP,"",IF(L41="---",0,IF(L41="*****","*****",VLOOKUP(A41,AV_year_H!$A$5:$Y$103,19,FALSE)))),"") -> 120000 | I41: =IF(所有檢核,IF(A41>BPP,"",IF(L41="---","---",IF(L41="*****","*****",VLOOKUP(A41,AV_year_H!$A$5:$Y$103,20,FALSE)))),"") -> 1200 | J41: =IF(所有檢核,IF(A41>BPP,"",IF(L41="---","---",IF(L41="*****","*****",VLOOKUP(A41,AV_year_H!$A$5:$Y$103,17,FALSE)))),"") -> 50688 | K41: =IF(所有檢核,IF(A41>BPP,"",IF(L41="---",0,IF(L41="*****","*****",VLOOKUP(A41,AV_year_H!$A$5:$Y$103,14,FALSE)))),"") -> 0 | L41: =IF(所有檢核,IF(A41>BPP,"",IF(IFERROR(VLOOKUP(A41,AV_year_H!$A$5:$Y$103,22,FALSE),0)=" ","---",IFERROR(VLOOKUP(A41,AV_year_H!$A$5:$Y$103,23,FALSE),"*****"))),"") -> 1833907 | N41: =IF(所有檢核,IF(A41>BPP,"",IF(L41="---","---",IF(L41="*****","*****",VLOOKUP(A41,AV_year_H!$A$5:$Y$103,25,FALSE)))),"") -> 8433907
A42: 15 | B42: 54 | C42: =IF(所有檢核,IF(A42>BPP,IF(A42=BPP+1,"***以下空白***",""),IF(L42="---",0,IF(L42="*****","*****",VLOOKUP(A42,AV_year_H!$A$5:$Y$103,3,FALSE)))),"") -> 120000 | D42: =IF(所有檢核,IF(A42>BPP,"",IF(L42="---",0,IF(L42="*****","*****",VLOOKUP(A42,AV_year_H!$A$5:$Y$103,5,FALSE)+VLOOKUP(A42,AV_year_H!$A$5:$Y$103,7,FALSE)-VLOOKUP(A42,AV_year_H!$A$5:$Y$103,10,FALSE)))),"") -> 0 | E42: =IF(所有檢核,IF(A42>BPP,"",IF(L42="---","---",IF(L42="*****","*****",VLOOKUP(A42,AV_year_H!$A$5:$Y$103,4,FALSE)+VLOOKUP(A42,AV_year_H!$A$5:$Y$103,6,FALSE)))),"") -> 1800000 | F42: =IF(所有檢核,IF(A42>BPP,"",IF(L42="---",0,IF(L42="*****","*****",VLOOKUP(A42,AV_year_H!$A$5:$Y$103,11,FALSE)))),"") -> 0 | H42: =IF(所有檢核,IF(A42>BPP,"",IF(L42="---",0,IF(L42="*****","*****",VLOOKUP(A42,AV_year_H!$A$5:$Y$103,19,FALSE)))),"") -> 120000 | I42: =IF(所有檢核,IF(A42>BPP,"",IF(L42="---","---",IF(L42="*****","*****",VLOOKUP(A42,AV_year_H!$A$5:$Y$103,20,FALSE)))),"") -> 1200 | J42: =IF(所有檢核,IF(A42>BPP,"",IF(L42="---","---",IF(L42="*****","*****",VLOOKUP(A42,AV_year_H!$A$5:$Y$103,17,FALSE)))),"") -> 55440 | K42: =IF(所有檢核,IF(A42>BPP,"",IF(L42="---",0,IF(L42="*****","*****",VLOOKUP(A42,AV_year_H!$A$5:$Y$103,14,FALSE)))),"") -> 0 | L42: =IF(所有檢核,IF(A42>BPP,"",IF(IFERROR(VLOOKUP(A42,AV_year_H!$A$5:$Y$103,22,FALSE),0)=" ","---",IFERROR(VLOOKUP(A42,AV_year_H!$A$5:$Y$103,23,FALSE),"*****"))),"") -> 2009343 | N42: =IF(所有檢核,IF(A42>BPP,"",IF(L42="---","---",IF(L42="*****","*****",VLOOKUP(A42,AV_year_H!$A$5:$Y$103,25,FALSE)))),"") -> 8609343
A43: 16 | B43: 55 | C43: =IF(所有檢核,IF(A43>BPP,IF(A43=BPP+1,"***以下空白***",""),IF(L43="---",0,IF(L43="*****","*****",VLOOKUP(A43,AV_year_H!$A$5:$Y$103,3,FALSE)))),"") -> 120000 | D43: =IF(所有檢核,IF(A43>BPP,"",IF(L43="---",0,IF(L43="*****","*****",VLOOKUP(A43,AV_year_H!$A$5:$Y$103,5,FALSE)+VLOOKUP(A43,AV_year_H!$A$5:$Y$103,7,FALSE)-VLOOKUP(A43,AV_year_H!$A$5:$Y$103,10,FALSE)))),"") -> 0 | E43: =IF(所有檢核,IF(A43>BPP,"",IF(L43="---","---",IF(L43="*****","*****",VLOOKUP(A43,AV_year_H!$A$5:$Y$103,4,FALSE)+VLOOKUP(A43,AV_year_H!$A$5:$Y$103,6,FALSE)))),"") -> 1920000 | F43: =IF(所有檢核,IF(A43>BPP,"",IF(L43="---",0,IF(L43="*****","*****",VLOOKUP(A43,AV_year_H!$A$5:$Y$103,11,FALSE)))),"") -> 0 | H43: =IF(所有檢核,IF(A43>BPP,"",IF(L43="---",0,IF(L43="*****","*****",VLOOKUP(A43,AV_year_H!$A$5:$Y$103,19,FALSE)))),"") -> 120000 | I43: =IF(所有檢核,IF(A43>BPP,"",IF(L43="---","---",IF(L43="*****","*****",VLOOKUP(A43,AV_year_H!$A$5:$Y$103,20,FALSE)))),"") -> 1200 | J43: =IF(所有檢核,IF(A43>BPP,"",IF(L43="---","---",IF(L43="*****","*****",VLOOKUP(A43,AV_year_H!$A$5:$Y$103,17,FALSE)))),"") -> 60192 | K43: =IF(所有檢核,IF(A43>BPP,"",IF(L43="---",0,IF(L43="*****","*****",VLOOKUP(A43,AV_year_H!$A$5:$Y$103,14,FALSE)))),"") -> 0 | L43: =IF(所有檢核,IF(A43>BPP,"",IF(IFERROR(VLOOKUP(A43,AV_year_H!$A$5:$Y$103,22,FALSE),0)=" ","---",IFERROR(VLOOKUP(A43,AV_year_H!$A$5:$Y$103,23,FALSE),"*****"))),"") -> 2190399 | N43: =IF(所有檢核,IF(A43>BPP,"",IF(L43="---","---",IF(L43="*****","*****",VLOOKUP(A43,AV_year_H!$A$5:$Y$103,25,FALSE)))),"") -> 8790399
A44: 17 | B44: 56 | C44: =IF(所有檢核,IF(A44>BPP,IF(A44=BPP+1,"***以下空白***",""),IF(L44="---",0,IF(L44="*****","*****",VLOOKUP(A44,AV_year_H!$A$5:$Y$103,3,FALSE)))),"") -> 120000 | D44: =IF(所有檢核,IF(A44>BPP,"",IF(L44="---",0,IF(L44="*****","*****",VLOOKUP(A44,AV_year_H!$A$5:$Y$103,5,FALSE)+VLOOKUP(A44,AV_year_H!$A$5:$Y$103,7,FALSE)-VLOOKUP(A44,AV_year_H!$A$5:$Y$103,10,FALSE)))),"") -> 0 | E44: =IF(所有檢核,IF(A44>BPP,"",IF(L44="---","---",IF(L44="*****","*****",VLOOKUP(A44,AV_year_H!$A$5:$Y$103,4,FALSE)+VLOOKUP(A44,AV_year_H!$A$5:$Y$103,6,FALSE)))),"") -> 2040000 | F44: =IF(所有檢核,IF(A44>BPP,"",IF(L44="---",0,IF(L44="*****","*****",VLOOKUP(A44,AV_year_H!$A$5:$Y$103,11,FALSE)))),"") -> 0 | H44: =IF(所有檢核,IF(A44>BPP,"",IF(L44="---",0,IF(L44="*****","*****",VLOOKUP(A44,AV_year_H!$A$5:$Y$103,19,FALSE)))),"") -> 120000 | I44: =IF(所有檢核,IF(A44>BPP,"",IF(L44="---","---",IF(L44="*****","*****",VLOOKUP(A44,AV_year_H!$A$5:$Y$103,20,FALSE)))),"") -> 1200 | J44: =IF(所有檢核,IF(A44>BPP,"",IF(L44="---","---",IF(L44="*****","*****",VLOOKUP(A44,AV_year_H!$A$5:$Y$103,17,FALSE)))),"") -> 65736 | K44: =IF(所有檢核,IF(A44>BPP,"",IF(L44="---",0,IF(L44="*****","*****",VLOOKUP(A44,AV_year_H!$A$5:$Y$103,14,FALSE)))),"") -> 0 | L44: =IF(所有檢核,IF(A44>BPP,"",IF(IFERROR(VLOOKUP(A44,AV_year_H!$A$5:$Y$103,22,FALSE),0)=" ","---",IFERROR(VLOOKUP(A44,AV_year_H!$A$5:$Y$103,23,FALSE),"*****"))),"") -> 2376596 | N44: =IF(所有檢核,IF(A44>BPP,"",IF(L44="---","---",IF(L44="*****","*****",VLOOKUP(A44,AV_year_H!$A$5:$Y$103,25,FALSE)))),"") -> 8976596
A45: 18 | B45: 57 | C45: =IF(所有檢核,IF(A45>BPP,IF(A45=BPP+1,"***以下空白***",""),IF(L45="---",0,IF(L45="*****","*****",VLOOKUP(A45,AV_year_H!$A$5:$Y$103,3,FALSE)))),"") -> 120000 | D45: =IF(所有檢核,IF(A45>BPP,"",IF(L45="---",0,IF(L45="*****","*****",VLOOKUP(A45,AV_year_H!$A$5:$Y$103,5,FALSE)+VLOOKUP(A45,AV_year_H!$A$5:$Y$103,7,FALSE)-VLOOKUP(A45,AV_year_H!$A$5:$Y$103,10,FALSE)))),"") -> 0 | E45: =IF(所有檢核,IF(A45>BPP,"",IF(L45="---","---",IF(L45="*****","*****",VLOOKUP(A45,AV_year_H!$A$5:$Y$103,4,FALSE)+VLOOKUP(A45,AV_year_H!$A$5:$Y$103,6,FALSE)))),"") -> 2160000 | F45: =IF(所有檢核,IF(A45>BPP,"",IF(L45="---",0,IF(L45="*****","*****",VLOOKUP(A45,AV_year_H!$A$5:$Y$103,11,FALSE)))),"") -> 0 | H45: =IF(所有檢核,IF(A45>BPP,"",IF(L45="---",0,IF(L45="*****","*****",VLOOKUP(A45,AV_year_H!$A$5:$Y$103,19,FALSE)))),"") -> 120000 | I45: =IF(所有檢核,IF(A45>BPP,"",IF(L45="---","---",IF(L45="*****","*****",VLOOKUP(A45,AV_year_H!$A$5:$Y$103,20,FALSE)))),"") -> 1200 | J45: =IF(所有檢核,IF(A45>BPP,"",IF(L45="---","---",IF(L45="*****","*****",VLOOKUP(A45,AV_year_H!$A$5:$Y$103,17,FALSE)))),"") -> 71280 | K45: =IF(所有檢核,IF(A45>BPP,"",IF(L45="---",0,IF(L45="*****","*****",VLOOKUP(A45,AV_year_H!$A$5:$Y$103,14,FALSE)))),"") -> 0 | L45: =IF(所有檢核,IF(A45>BPP,"",IF(IFERROR(VLOOKUP(A45,AV_year_H!$A$5:$Y$103,22,FALSE),0)=" ","---",IFERROR(VLOOKUP(A45,AV_year_H!$A$5:$Y$103,23,FALSE),"*****"))),"") -> 2568242 | N45: =IF(所有檢核,IF(A45>BPP,"",IF(L45="---","---",IF(L45="*****","*****",VLOOKUP(A45,AV_year_H!$A$5:$Y$103,25,FALSE)))),"") -> 9168242
A46: 19 | B46: 58 | C46: =IF(所有檢核,IF(A46>BPP,IF(A46=BPP+1,"***以下空白***",""),IF(L46="---",0,IF(L46="*****","*****",VLOOKUP(A46,AV_year_H!$A$5:$Y$103,3,FALSE)))),"") -> 120000 | D46: =IF(所有檢核,IF(A46>BPP,"",IF(L46="---",0,IF(L46="*****","*****",VLOOKUP(A46,AV_year_H!$A$5:$Y$103,5,FALSE)+VLOOKUP(A46,AV_year_H!$A$5:$Y$103,7,FALSE)-VLOOKUP(A46,AV_year_H!$A$5:$Y$103,10,FALSE)))),"") -> 0 | E46: =IF(所有檢核,IF(A46>BPP,"",IF(L46="---","---",IF(L46="*****","*****",VLOOKUP(A46,AV_year_H!$A$5:$Y$103,4,FALSE)+VLOOKUP(A46,AV_year_H!$A$5:$Y$103,6,FALSE)))),"") -> 2280000 | F46: =IF(所有檢核,IF(A46>BPP,"",IF(L46="---",0,IF(L46="*****","*****",VLOOKUP(A46,AV_year_H!$A$5:$Y$103,11,FALSE)))),"") -> 0 | H46: =IF(所有檢核,IF(A46>BPP,"",IF(L46="---",0,IF(L46="*****","*****",VLOOKUP(A46,AV_year_H!$A$5:$Y$103,19,FALSE)))),"") -> 120000 | I46: =IF(所有檢核,IF(A46>BPP,"",IF(L46="---","---",IF(L46="*****","*****",VLOOKUP(A46,AV_year_H!$A$5:$Y$103,20,FALSE)))),"") -> 1200 | J46: =IF(所有檢核,IF(A46>BPP,"",IF(L46="---","---",IF(L46="*****","*****",VLOOKUP(A46,AV_year_H!$A$5:$Y$103,17,FALSE)))),"") -> 78408 | K46: =IF(所有檢核,IF(A46>BPP,"",IF(L46="---",0,IF(L46="*****","*****",VLOOKUP(A46,AV_year_H!$A$5:$Y$103,14,FALSE)))),"") -> 0 | L46: =IF(所有檢核,IF(A46>BPP,"",IF(IFERROR(VLOOKUP(A46,AV_year_H!$A$5:$Y$103,22,FALSE),0)=" ","---",IFERROR(VLOOKUP(A46,AV_year_H!$A$5:$Y$103,23,FALSE),"*****"))),"") -> 2764030 | N46: =IF(所有檢核,IF(A46>BPP,"",IF(L46="---","---",IF(L46="*****","*****",VLOOKUP(A46,AV_year_H!$A$5:$Y$103,25,FALSE)))),"") -> 9364030
A47: 20 | B47: 59 | C47: =IF(所有檢核,IF(A47>BPP,IF(A47=BPP+1,"***以下空白***",""),IF(L47="---",0,IF(L47="*****","*****",VLOOKUP(A47,AV_year_H!$A$5:$Y$103,3,FALSE)))),"") -> 120000 | D47: =IF(所有檢核,IF(A47>BPP,"",IF(L47="---",0,IF(L47="*****","*****",VLOOKUP(A47,AV_year_H!$A$5:$Y$103,5,FALSE)+VLOOKUP(A47,AV_year_H!$A$5:$Y$103,7,FALSE)-VLOOKUP(A47,AV_year_H!$A$5:$Y$103,10,FALSE)))),"") -> 0 | E47: =IF(所有檢核,IF(A47>BPP,"",IF(L47="---","---",IF(L47="*****","*****",VLOOKUP(A47,AV_year_H!$A$5:$Y$103,4,FALSE)+VLOOKUP(A47,AV_year_H!$A$5:$Y$103,6,FALSE)))),"") -> 2400000 | F47: =IF(所有檢核,IF(A47>BPP,"",IF(L47="---",0,IF(L47="*****","*****",VLOOKUP(A47,AV_year_H!$A$5:$Y$103,11,FALSE)))),"") -> 0 | H47: =IF(所有檢核,IF(A47>BPP,"",IF(L47="---",0,IF(L47="*****","*****",VLOOKUP(A47,AV_year_H!$A$5:$Y$103,19,FALSE)))),"") -> 120000 | I47: =IF(所有檢核,IF(A47>BPP,"",IF(L47="---","---",IF(L47="*****","*****",VLOOKUP(A47,AV_year_H!$A$5:$Y$103,20,FALSE)))),"") -> 1200 | J47: =IF(所有檢核,IF(A47>BPP,"",IF(L47="---","---",IF(L47="*****","*****",VLOOKUP(A47,AV_year_H!$A$5:$Y$103,17,FALSE)))),"") -> 85536 | K47: =IF(所有檢核,IF(A47>BPP,"",IF(L47="---",0,IF(L47="*****","*****",VLOOKUP(A47,AV_year_H!$A$5:$Y$103,14,FALSE)))),"") -> 0 | L47: =IF(所有檢核,IF(A47>BPP,"",IF(IFERROR(VLOOKUP(A47,AV_year_H!$A$5:$Y$103,22,FALSE),0)=" ","---",IFERROR(VLOOKUP(A47,AV_year_H!$A$5:$Y$103,23,FALSE),"*****"))),"") -> 2964207 | N47: =IF(所有檢核,IF(A47>BPP,"",IF(L47="---","---",IF(L47="*****","*****",VLOOKUP(A47,AV_year_H!$A$5:$Y$103,25,FALSE)))),"") -> 9564207
A48: 21 | B48: 60 | C48: =IF(所有檢核,IF(A48>BPP,IF(A48=BPP+1,"***以下空白***",""),IF(L48="---",0,IF(L48="*****","*****",VLOOKUP(A48,AV_year_H!$A$5:$Y$103,3,FALSE)))),"") -> 0 | D48: =IF(所有檢核,IF(A48>BPP,"",IF(L48="---",0,IF(L48="*****","*****",VLOOKUP(A48,AV_year_H!$A$5:$Y$103,5,FALSE)+VLOOKUP(A48,AV_year_H!$A$5:$Y$103,7,FALSE)-VLOOKUP(A48,AV_year_H!$A$5:$Y$103,10,FALSE)))),"") -> 0 | E48: =IF(所有檢核,IF(A48>BPP,"",IF(L48="---","---",IF(L48="*****","*****",VLOOKUP(A48,AV_year_H!$A$5:$Y$103,4,FALSE)+VLOOKUP(A48,AV_year_H!$A$5:$Y$103,6,FALSE)))),"") -> 2400000 | F48: =IF(所有檢核,IF(A48>BPP,"",IF(L48="---",0,IF(L48="*****","*****",VLOOKUP(A48,AV_year_H!$A$5:$Y$103,11,FALSE)))),"") -> 0 | H48: =IF(所有檢核,IF(A48>BPP,"",IF(L48="---",0,IF(L48="*****","*****",VLOOKUP(A48,AV_year_H!$A$5:$Y$103,19,FALSE)))),"") -> 0 | I48: =IF(所有檢核,IF(A48>BPP,"",IF(L48="---","---",IF(L48="*****","*****",VLOOKUP(A48,AV_year_H!$A$5:$Y$103,20,FALSE)))),"") -> 1200 | J48: =IF(所有檢核,IF(A48>BPP,"",IF(L48="---","---",IF(L48="*****","*****",VLOOKUP(A48,AV_year_H!$A$5:$Y$103,17,FALSE)))),"") -> 93456 | K48: =IF(所有檢核,IF(A48>BPP,"",IF(L48="---",0,IF(L48="*****","*****",VLOOKUP(A48,AV_year_H!$A$5:$Y$103,14,FALSE)))),"") -> 0 | L48: =IF(所有檢核,IF(A48>BPP,"",IF(IFERROR(VLOOKUP(A48,AV_year_H!$A$5:$Y$103,22,FALSE),0)=" ","---",IFERROR(VLOOKUP(A48,AV_year_H!$A$5:$Y$103,23,FALSE),"*****"))),"") -> 3044355 | N48: =IF(所有檢核,IF(A48>BPP,"",IF(L48="---","---",IF(L48="*****","*****",VLOOKUP(A48,AV_year_H!$A$5:$Y$103,25,FALSE)))),"") -> 9644355
A49: 22 | B49: 61 | C49: =IF(所有檢核,IF(A49>BPP,IF(A49=BPP+1,"***以下空白***",""),IF(L49="---",0,IF(L49="*****","*****",VLOOKUP(A49,AV_year_H!$A$5:$Y$103,3,FALSE)))),"") -> 0 | D49: =IF(所有檢核,IF(A49>BPP,"",IF(L49="---",0,IF(L49="*****","*****",VLOOKUP(A49,AV_year_H!$A$5:$Y$103,5,FALSE)+VLOOKUP(A49,AV_year_H!$A$5:$Y$103,7,FALSE)-VLOOKUP(A49,AV_year_H!$A$5:$Y$103,10,FALSE)))),"") -> 0 | E49: =IF(所有檢核,IF(A49>BPP,"",IF(L49="---","---",IF(L49="*****","*****",VLOOKUP(A49,AV_year_H!$A$5:$Y$103,4,FALSE)+VLOOKUP(A49,AV_year_H!$A$5:$Y$103,6,FALSE)))),"") -> 2400000 | F49: =IF(所有檢核,IF(A49>BPP,"",IF(L49="---",0,IF(L49="*****","*****",VLOOKUP(A49,AV_year_H!$A$5:$Y$103,11,FALSE)))),"") -> 0 | H49: =IF(所有檢核,IF(A49>BPP,"",IF(L49="---",0,IF(L49="*****","*****",VLOOKUP(A49,AV_year_H!$A$5:$Y$103,19,FALSE)))),"") -> 0 | I49: =IF(所有檢核,IF(A49>BPP,"",IF(L49="---","---",IF(L49="*****","*****",VLOOKUP(A49,AV_year_H!$A$5:$Y$103,20,FALSE)))),"") -> 1200 | J49: =IF(所有檢核,IF(A49>BPP,"",IF(L49="---","---",IF(L49="*****","*****",VLOOKUP(A49,AV_year_H!$A$5:$Y$103,17,FALSE)))),"") -> 102168 | K49: =IF(所有檢核,IF(A49>BPP,"",IF(L49="---",0,IF(L49="*****","*****",VLOOKUP(A49,AV_year_H!$A$5:$Y$103,14,FALSE)))),"") -> 0 | L49: =IF(所有檢核,IF(A49>BPP,"",IF(IFERROR(VLOOKUP(A49,AV_year_H!$A$5:$Y$103,22,FALSE),0)=" ","---",IFERROR(VLOOKUP(A49,AV_year_H!$A$5:$Y$103,23,FALSE),"*****"))),"") -> 3120319 | N49: =IF(所有檢核,IF(A49>BPP,"",IF(L49="---","---",IF(L49="*****","*****",VLOOKUP(A49,AV_year_H!$A$5:$Y$103,25,FALSE)))),"") -> 9720319
A50: 23 | B50: 62 | C50: =IF(所有檢核,IF(A50>BPP,IF(A50=BPP+1,"***以下空白***",""),IF(L50="---",0,IF(L50="*****","*****",VLOOKUP(A50,AV_year_H!$A$5:$Y$103,3,FALSE)))),"") -> 0 | D50: =IF(所有檢核,IF(A50>BPP,"",IF(L50="---",0,IF(L50="*****","*****",VLOOKUP(A50,AV_year_H!$A$5:$Y$103,5,FALSE)+VLOOKUP(A50,AV_year_H!$A$5:$Y$103,7,FALSE)-VLOOKUP(A50,AV_year_H!$A$5:$Y$103,10,FALSE)))),"") -> 0 | E50: =IF(所有檢核,IF(A50>BPP,"",IF(L50="---","---",IF(L50="*****","*****",VLOOKUP(A50,AV_year_H!$A$5:$Y$103,4,FALSE)+VLOOKUP(A50,AV_year_H!$A$5:$Y$103,6,FALSE)))),"") -> 2400000 | F50: =IF(所有檢核,IF(A50>BPP,"",IF(L50="---",0,IF(L50="*****","*****",VLOOKUP(A50,AV_year_H!$A$5:$Y$103,11,FALSE)))),"") -> 0 | H50: =IF(所有檢核,IF(A50>BPP,"",IF(L50="---",0,IF(L50="*****","*****",VLOOKUP(A50,AV_year_H!$A$5:$Y$103,19,FALSE)))),"") -> 0 | I50: =IF(所有檢核,IF(A50>BPP,"",IF(L50="---","---",IF(L50="*****","*****",VLOOKUP(A50,AV_year_H!$A$5:$Y$103,20,FALSE)))),"") -> 1200 | J50: =IF(所有檢核,IF(A50>BPP,"",IF(L50="---","---",IF(L50="*****","*****",VLOOKUP(A50,AV_year_H!$A$5:$Y$103,17,FALSE)))),"") -> 111672 | K50: =IF(所有檢核,IF(A50>BPP,"",IF(L50="---",0,IF(L50="*****","*****",VLOOKUP(A50,AV_year_H!$A$5:$Y$103,14,FALSE)))),"") -> 0 | L50: =IF(所有檢核,IF(A50>BPP,"",IF(IFERROR(VLOOKUP(A50,AV_year_H!$A$5:$Y$103,22,FALSE),0)=" ","---",IFERROR(VLOOKUP(A50,AV_year_H!$A$5:$Y$103,23,FALSE),"*****"))),"") -> 3191030 | N50: =IF(所有檢核,IF(A50>BPP,"",IF(L50="---","---",IF(L50="*****","*****",VLOOKUP(A50,AV_year_H!$A$5:$Y$103,25,FALSE)))),"") -> 9791030
A51: 24 | B51: 63 | C51: =IF(所有檢核,IF(A51>BPP,IF(A51=BPP+1,"***以下空白***",""),IF(L51="---",0,IF(L51="*****","*****",VLOOKUP(A51,AV_year_H!$A$5:$Y$103,3,FALSE)))),"") -> 0 | D51: =IF(所有檢核,IF(A51>BPP,"",IF(L51="---",0,IF(L51="*****","*****",VLOOKUP(A51,AV_year_H!$A$5:$Y$103,5,FALSE)+VLOOKUP(A51,AV_year_H!$A$5:$Y$103,7,FALSE)-VLOOKUP(A51,AV_year_H!$A$5:$Y$103,10,FALSE)))),"") -> 0 | E51: =IF(所有檢核,IF(A51>BPP,"",IF(L51="---","---",IF(L51="*****","*****",VLOOKUP(A51,AV_year_H!$A$5:$Y$103,4,FALSE)+VLOOKUP(A51,AV_year_H!$A$5:$Y$103,6,FALSE)))),"") -> 2400000 | F51: =IF(所有檢核,IF(A51>BPP,"",IF(L51="---",0,IF(L51="*****","*****",VLOOKUP(A51,AV_year_H!$A$5:$Y$103,11,FALSE)))),"") -> 0 | H51: =IF(所有檢核,IF(A51>BPP,"",IF(L51="---",0,IF(L51="*****","*****",VLOOKUP(A51,AV_year_H!$A$5:$Y$103,19,FALSE)))),"") -> 0 | I51: =IF(所有檢核,IF(A51>BPP,"",IF(L51="---","---",IF(L51="*****","*****",VLOOKUP(A51,AV_year_H!$A$5:$Y$103,20,FALSE)))),"") -> 1200 | J51: =IF(所有檢核,IF(A51>BPP,"",IF(L51="---","---",IF(L51="*****","*****",VLOOKUP(A51,AV_year_H!$A$5:$Y$103,17,FALSE)))),"") -> 121968 | K51: =IF(所有檢核,IF(A51>BPP,"",IF(L51="---",0,IF(L51="*****","*****",VLOOKUP(A51,AV_year_H!$A$5:$Y$103,14,FALSE)))),"") -> 0 | L51: =IF(所有檢核,IF(A51>BPP,"",IF(IFERROR(VLOOKUP(A51,AV_year_H!$A$5:$Y$103,22,FALSE),0)=" ","---",IFERROR(VLOOKUP(A51,AV_year_H!$A$5:$Y$103,23,FALSE),"*****"))),"") -> 3255356 | N51: =IF(所有檢核,IF(A51>BPP,"",IF(L51="---","---",IF(L51="*****","*****",VLOOKUP(A51,AV_year_H!$A$5:$Y$103,25,FALSE)))),"") -> 9855356
A52: 25 | B52: 64 | C52: =IF(所有檢核,IF(A52>BPP,IF(A52=BPP+1,"***以下空白***",""),IF(L52="---",0,IF(L52="*****","*****",VLOOKUP(A52,AV_year_H!$A$5:$Y$103,3,FALSE)))),"") -> 0 | D52: =IF(所有檢核,IF(A52>BPP,"",IF(L52="---",0,IF(L52="*****","*****",VLOOKUP(A52,AV_year_H!$A$5:$Y$103,5,FALSE)+VLOOKUP(A52,AV_year_H!$A$5:$Y$103,7,FALSE)-VLOOKUP(A52,AV_year_H!$A$5:$Y$103,10,FALSE)))),"") -> 0 | E52: =IF(所有檢核,IF(A52>BPP,"",IF(L52="---","---",IF(L52="*****","*****",VLOOKUP(A52,AV_year_H!$A$5:$Y$103,4,FALSE)+VLOOKUP(A52,AV_year_H!$A$5:$Y$103,6,FALSE)))),"") -> 2400000 | F52: =IF(所有檢核,IF(A52>BPP,"",IF(L52="---",0,IF(L52="*****","*****",VLOOKUP(A52,AV_year_H!$A$5:$Y$103,11,FALSE)))),"") -> 0 | H52: =IF(所有檢核,IF(A52>BPP,"",IF(L52="---",0,IF(L52="*****","*****",VLOOKUP(A52,AV_year_H!$A$5:$Y$103,19,FALSE)))),"") -> 0 | I52: =IF(所有檢核,IF(A52>BPP,"",IF(L52="---","---",IF(L52="*****","*****",VLOOKUP(A52,AV_year_H!$A$5:$Y$103,20,FALSE)))),"") -> 1200 | J52: =IF(所有檢核,IF(A52>BPP,"",IF(L52="---","---",IF(L52="*****","*****",VLOOKUP(A52,AV_year_H!$A$5:$Y$103,17,FALSE)))),"") -> 133848 | K52: =IF(所有檢核,IF(A52>BPP,"",IF(L52="---",0,IF(L52="*****","*****",VLOOKUP(A52,AV_year_H!$A$5:$Y$103,14,FALSE)))),"") -> 0 | L52: =IF(所有檢核,IF(A52>BPP,"",IF(IFERROR(VLOOKUP(A52,AV_year_H!$A$5:$Y$103,22,FALSE),0)=" ","---",IFERROR(VLOOKUP(A52,AV_year_H!$A$5:$Y$103,23,FALSE),"*****"))),"") -> 3311280 | N52: =IF(所有檢核,IF(A52>BPP,"",IF(L52="---","---",IF(L52="*****","*****",VLOOKUP(A52,AV_year_H!$A$5:$Y$103,25,FALSE)))),"") -> 9911280
A53: 26 | B53: 65 | C53: =IF(所有檢核,IF(A53>BPP,IF(A53=BPP+1,"***以下空白***",""),IF(L53="---",0,IF(L53="*****","*****",VLOOKUP(A53,AV_year_H!$A$5:$Y$103,3,FALSE)))),"") -> 0 | D53: =IF(所有檢核,IF(A53>BPP,"",IF(L53="---",0,IF(L53="*****","*****",VLOOKUP(A53,AV_year_H!$A$5:$Y$103,5,FALSE)+VLOOKUP(A53,AV_year_H!$A$5:$Y$103,7,FALSE)-VLOOKUP(A53,AV_year_H!$A$5:$Y$103,10,FALSE)))),"") -> 0 | E53: =IF(所有檢核,IF(A53>BPP,"",IF(L53="---","---",IF(L53="*****","*****",VLOOKUP(A53,AV_year_H!$A$5:$Y$103,4,FALSE)+VLOOKUP(A53,AV_year_H!$A$5:$Y$103,6,FALSE)))),"") -> 2400000 | F53: =IF(所有檢核,IF(A53>BPP,"",IF(L53="---",0,IF(L53="*****","*****",VLOOKUP(A53,AV_year_H!$A$5:$Y$103,11,FALSE)))),"") -> 0 | H53: =IF(所有檢核,IF(A53>BPP,"",IF(L53="---",0,IF(L53="*****","*****",VLOOKUP(A53,AV_year_H!$A$5:$Y$103,19,FALSE)))),"") -> 0 | I53: =IF(所有檢核,IF(A53>BPP,"",IF(L53="---","---",IF(L53="*****","*****",VLOOKUP(A53,AV_year_H!$A$5:$Y$103,20,FALSE)))),"") -> 1200 | J53: =IF(所有檢核,IF(A53>BPP,"",IF(L53="---","---",IF(L53="*****","*****",VLOOKUP(A53,AV_year_H!$A$5:$Y$103,17,FALSE)))),"") -> 146520 | K53: =IF(所有檢核,IF(A53>BPP,"",IF(L53="---",0,IF(L53="*****","*****",VLOOKUP(A53,AV_year_H!$A$5:$Y$103,14,FALSE)))),"") -> 0 | L53: =IF(所有檢核,IF(A53>BPP,"",IF(IFERROR(VLOOKUP(A53,AV_year_H!$A$5:$Y$103,22,FALSE),0)=" ","---",IFERROR(VLOOKUP(A53,AV_year_H!$A$5:$Y$103,23,FALSE),"*****"))),"") -> 3357478 | N53: =IF(所有檢核,IF(A53>BPP,"",IF(L53="---","---",IF(L53="*****","*****",VLOOKUP(A53,AV_year_H!$A$5:$Y$103,25,FALSE)))),"") -> 9957478
A54: 27 | B54: 66 | C54: =IF(所有檢核,IF(A54>BPP,IF(A54=BPP+1,"***以下空白***",""),IF(L54="---",0,IF(L54="*****","*****",VLOOKUP(A54,AV_year_H!$A$5:$Y$103,3,FALSE)))),"") -> 0 | D54: =IF(所有檢核,IF(A54>BPP,"",IF(L54="---",0,IF(L54="*****","*****",VLOOKUP(A54,AV_year_H!$A$5:$Y$103,5,FALSE)+VLOOKUP(A54,AV_year_H!$A$5:$Y$103,7,FALSE)-VLOOKUP(A54,AV_year_H!$A$5:$Y$103,10,FALSE)))),"") -> 0 | E54: =IF(所有檢核,IF(A54>BPP,"",IF(L54="---","---",IF(L54="*****","*****",VLOOKUP(A54,AV_year_H!$A$5:$Y$103,4,FALSE)+VLOOKUP(A54,AV_year_H!$A$5:$Y$103,6,FALSE)))),"") -> 2400000 | F54: =IF(所有檢核,IF(A54>BPP,"",IF(L54="---",0,IF(L54="*****","*****",VLOOKUP(A54,AV_year_H!$A$5:$Y$103,11,FALSE)))),"") -> 0 | H54: =IF(所有檢核,IF(A54>BPP,"",IF(L54="---",0,IF(L54="*****","*****",VLOOKUP(A54,AV_year_H!$A$5:$Y$103,19,FALSE)))),"") -> 0 | I54: =IF(所有檢核,IF(A54>BPP,"",IF(L54="---","---",IF(L54="*****","*****",VLOOKUP(A54,AV_year_H!$A$5:$Y$103,20,FALSE)))),"") -> 1200 | J54: =IF(所有檢核,IF(A54>BPP,"",IF(L54="---","---",IF(L54="*****","*****",VLOOKUP(A54,AV_year_H!$A$5:$Y$103,17,FALSE)))),"") -> 159984 | K54: =IF(所有檢核,IF(A54>BPP,"",IF(L54="---",0,IF(L54="*****","*****",VLOOKUP(A54,AV_year_H!$A$5:$Y$103,14,FALSE)))),"") -> 0 | L54: =IF(所有檢核,IF(A54>BPP,"",IF(IFERROR(VLOOKUP(A54,AV_year_H!$A$5:$Y$103,22,FALSE),0)=" ","---",IFERROR(VLOOKUP(A54,AV_year_H!$A$5:$Y$103,23,FALSE),"*****"))),"") -> 3392551 | N54: =IF(所有檢核,IF(A54>BPP,"",IF(L54="---","---",IF(L54="*****","*****",VLOOKUP(A54,AV_year_H!$A$5:$Y$103,25,FALSE)))),"") -> 9992551
A55: 28 | B55: 67 | C55: =IF(所有檢核,IF(A55>BPP,IF(A55=BPP+1,"***以下空白***",""),IF(L55="---",0,IF(L55="*****","*****",VLOOKUP(A55,AV_year_H!$A$5:$Y$103,3,FALSE)))),"") -> 0 | D55: =IF(所有檢核,IF(A55>BPP,"",IF(L55="---",0,IF(L55="*****","*****",VLOOKUP(A55,AV_year_H!$A$5:$Y$103,5,FALSE)+VLOOKUP(A55,AV_year_H!$A$5:$Y$103,7,FALSE)-VLOOKUP(A55,AV_year_H!$A$5:$Y$103,10,FALSE)))),"") -> 0 | E55: =IF(所有檢核,IF(A55>BPP,"",IF(L55="---","---",IF(L55="*****","*****",VLOOKUP(A55,AV_year_H!$A$5:$Y$103,4,FALSE)+VLOOKUP(A55,AV_year_H!$A$5:$Y$103,6,FALSE)))),"") -> 2400000 | F55: =IF(所有檢核,IF(A55>BPP,"",IF(L55="---",0,IF(L55="*****","*****",VLOOKUP(A55,AV_year_H!$A$5:$Y$103,11,FALSE)))),"") -> 0 | H55: =IF(所有檢核,IF(A55>BPP,"",IF(L55="---",0,IF(L55="*****","*****",VLOOKUP(A55,AV_year_H!$A$5:$Y$103,19,FALSE)))),"") -> 0 | I55: =IF(所有檢核,IF(A55>BPP,"",IF(L55="---","---",IF(L55="*****","*****",VLOOKUP(A55,AV_year_H!$A$5:$Y$103,20,FALSE)))),"") -> 1200 | J55: =IF(所有檢核,IF(A55>BPP,"",IF(L55="---","---",IF(L55="*****","*****",VLOOKUP(A55,AV_year_H!$A$5:$Y$103,17,FALSE)))),"") -> 175032 | K55: =IF(所有檢核,IF(A55>BPP,"",IF(L55="---",0,IF(L55="*****","*****",VLOOKUP(A55,AV_year_H!$A$5:$Y$103,14,FALSE)))),"") -> 0 | L55: =IF(所有檢核,IF(A55>BPP,"",IF(IFERROR(VLOOKUP(A55,AV_year_H!$A$5:$Y$103,22,FALSE),0)=" ","---",IFERROR(VLOOKUP(A55,AV_year_H!$A$5:$Y$103,23,FALSE),"*****"))),"") -> 3414196 | N55: =IF(所有檢核,IF(A55>BPP,"",IF(L55="---","---",IF(L55="*****","*****",VLOOKUP(A55,AV_year_H!$A$5:$Y$103,25,FALSE)))),"") -> 10014196
A56: 29 | B56: 68 | C56: =IF(所有檢核,IF(A56>BPP,IF(A56=BPP+1,"***以下空白***",""),IF(L56="---",0,IF(L56="*****","*****",VLOOKUP(A56,AV_year_H!$A$5:$Y$103,3,FALSE)))),"") -> 0 | D56: =IF(所有檢核,IF(A56>BPP,"",IF(L56="---",0,IF(L56="*****","*****",VLOOKUP(A56,AV_year_H!$A$5:$Y$103,5,FALSE)+VLOOKUP(A56,AV_year_H!$A$5:$Y$103,7,FALSE)-VLOOKUP(A56,AV_year_H!$A$5:$Y$103,10,FALSE)))),"") -> 0 | E56: =IF(所有檢核,IF(A56>BPP,"",IF(L56="---","---",IF(L56="*****","*****",VLOOKUP(A56,AV_year_H!$A$5:$Y$103,4,FALSE)+VLOOKUP(A56,AV_year_H!$A$5:$Y$103,6,FALSE)))),"") -> 2400000 | F56: =IF(所有檢核,IF(A56>BPP,"",IF(L56="---",0,IF(L56="*****","*****",VLOOKUP(A56,AV_year_H!$A$5:$Y$103,11,FALSE)))),"") -> 0 | H56: =IF(所有檢核,IF(A56>BPP,"",IF(L56="---",0,IF(L56="*****","*****",VLOOKUP(A56,AV_year_H!$A$5:$Y$103,19,FALSE)))),"") -> 0 | I56: =IF(所有檢核,IF(A56>BPP,"",IF(L56="---","---",IF(L56="*****","*****",VLOOKUP(A56,AV_year_H!$A$5:$Y$103,20,FALSE)))),"") -> 1200 | J56: =IF(所有檢核,IF(A56>BPP,"",IF(L56="---","---",IF(L56="*****","*****",VLOOKUP(A56,AV_year_H!$A$5:$Y$103,17,FALSE)))),"") -> 191664 | K56: =IF(所有檢核,IF(A56>BPP,"",IF(L56="---",0,IF(L56="*****","*****",VLOOKUP(A56,AV_year_H!$A$5:$Y$103,14,FALSE)))),"") -> 0 | L56: =IF(所有檢核,IF(A56>BPP,"",IF(IFERROR(VLOOKUP(A56,AV_year_H!$A$5:$Y$103,22,FALSE),0)=" ","---",IFERROR(VLOOKUP(A56,AV_year_H!$A$5:$Y$103,23,FALSE),"*****"))),"") -> 3419971 | N56: =IF(所有檢核,IF(A56>BPP,"",IF(L56="---","---",IF(L56="*****","*****",VLOOKUP(A56,AV_year_H!$A$5:$Y$103,25,FALSE)))),"") -> 10019971
A57: 30 | B57: 69 | C57: =IF(所有檢核,IF(A57>BPP,IF(A57=BPP+1,"***以下空白***",""),IF(L57="---",0,IF(L57="*****","*****",VLOOKUP(A57,AV_year_H!$A$5:$Y$103,3,FALSE)))),"") -> 0 | D57: =IF(所有檢核,IF(A57>BPP,"",IF(L57="---",0,IF(L57="*****","*****",VLOOKUP(A57,AV_year_H!$A$5:$Y$103,5,FALSE)+VLOOKUP(A57,AV_year_H!$A$5:$Y$103,7,FALSE)-VLOOKUP(A57,AV_year_H!$A$5:$Y$103,10,FALSE)))),"") -> 0 | E57: =IF(所有檢核,IF(A57>BPP,"",IF(L57="---","---",IF(L57="*****","*****",VLOOKUP(A57,AV_year_H!$A$5:$Y$103,4,FALSE)+VLOOKUP(A57,AV_year_H!$A$5:$Y$103,6,FALSE)))),"") -> 2400000 | F57: =IF(所有檢核,IF(A57>BPP,"",IF(L57="---",0,IF(L57="*****","*****",VLOOKUP(A57,AV_year_H!$A$5:$Y$103,11,FALSE)))),"") -> 0 | H57: =IF(所有檢核,IF(A57>BPP,"",IF(L57="---",0,IF(L57="*****","*****",VLOOKUP(A57,AV_year_H!$A$5:$Y$103,19,FALSE)))),"") -> 0 | I57: =IF(所有檢核,IF(A57>BPP,"",IF(L57="---","---",IF(L57="*****","*****",VLOOKUP(A57,AV_year_H!$A$5:$Y$103,20,FALSE)))),"") -> 1200 | J57: =IF(所有檢核,IF(A57>BPP,"",IF(L57="---","---",IF(L57="*****","*****",VLOOKUP(A57,AV_year_H!$A$5:$Y$103,17,FALSE)))),"") -> 209088 | K57: =IF(所有檢核,IF(A57>BPP,"",IF(L57="---",0,IF(L57="*****","*****",VLOOKUP(A57,AV_year_H!$A$5:$Y$103,14,FALSE)))),"") -> 0 | L57: =IF(所有檢核,IF(A57>BPP,"",IF(IFERROR(VLOOKUP(A57,AV_year_H!$A$5:$Y$103,22,FALSE),0)=" ","---",IFERROR(VLOOKUP(A57,AV_year_H!$A$5:$Y$103,23,FALSE),"*****"))),"") -> 3408108 | N57: =IF(所有檢核,IF(A57>BPP,"",IF(L57="---","---",IF(L57="*****","*****",VLOOKUP(A57,AV_year_H!$A$5:$Y$103,25,FALSE)))),"") -> 10008108
A58: 31 | B58: =IF(所有檢核,IF(A58>BPP,"",Age_Insured+A58-1),"") -> 70 | C58: =IF(所有檢核,IF(A58>BPP,IF(A58=BPP+1,"***以下空白***",""),IF(L58="---",0,IF(L58="*****","*****",VLOOKUP(A58,AV_year_H!$A$5:$Y$103,3,FALSE)))),"") -> 0 | D58: =IF(所有檢核,IF(A58>BPP,"",IF(L58="---",0,IF(L58="*****","*****",VLOOKUP(A58,AV_year_H!$A$5:$Y$103,5,FALSE)+VLOOKUP(A58,AV_year_H!$A$5:$Y$103,7,FALSE)-VLOOKUP(A58,AV_year_H!$A$5:$Y$103,10,FALSE)))),"") -> 0 | E58: =IF(所有檢核,IF(A58>BPP,"",IF(L58="---","---",IF(L58="*****","*****",VLOOKUP(A58,AV_year_H!$A$5:$Y$103,4,FALSE)+VLOOKUP(A58,AV_year_H!$A$5:$Y$103,6,FALSE)))),"") -> 2400000 | F58: =IF(所有檢核,IF(A58>BPP,"",IF(L58="---",0,IF(L58="*****","*****",VLOOKUP(A58,AV_year_H!$A$5:$Y$103,11,FALSE)))),"") -> 0 | H58: =IF(所有檢核,IF(A58>BPP,"",IF(L58="---",0,IF(L58="*****","*****",VLOOKUP(A58,AV_year_H!$A$5:$Y$103,19,FALSE)))),"") -> 0 | I58: =IF(所有檢核,IF(A58>BPP,"",IF(L58="---","---",IF(L58="*****","*****",VLOOKUP(A58,AV_year_H!$A$5:$Y$103,20,FALSE)))),"") -> 1200 | J58: =IF(所有檢核,IF(A58>BPP,"",IF(L58="---","---",IF(L58="*****","*****",VLOOKUP(A58,AV_year_H!$A$5:$Y$103,17,FALSE)))),"") -> 228888 | K58: =IF(所有檢核,IF(A58>BPP,"",IF(L58="---",0,IF(L58="*****","*****",VLOOKUP(A58,AV_year_H!$A$5:$Y$103,14,FALSE)))),"") -> 0 | L58: =IF(所有檢核,IF(A58>BPP,"",IF(IFERROR(VLOOKUP(A58,AV_year_H!$A$5:$Y$103,22,FALSE),0)=" ","---",IFERROR(VLOOKUP(A58,AV_year_H!$A$5:$Y$103,23,FALSE),"*****"))),"") -> 3375095 | N58: =IF(所有檢核,IF(A58>BPP,"",IF(L58="---","---",IF(L58="*****","*****",VLOOKUP(A58,AV_year_H!$A$5:$Y$103,25,FALSE)))),"") -> 9975095
A59: 32 | B59: 71 | C59: =IF(所有檢核,IF(A59>BPP,IF(A59=BPP+1,"***以下空白***",""),IF(L59="---",0,IF(L59="*****","*****",VLOOKUP(A59,AV_year_H!$A$5:$Y$103,3,FALSE)))),"") -> 0 | D59: =IF(所有檢核,IF(A59>BPP,"",IF(L59="---",0,IF(L59="*****","*****",VLOOKUP(A59,AV_year_H!$A$5:$Y$103,5,FALSE)+VLOOKUP(A59,AV_year_H!$A$5:$Y$103,7,FALSE)-VLOOKUP(A59,AV_year_H!$A$5:$Y$103,10,FALSE)))),"") -> 0 | E59: =IF(所有檢核,IF(A59>BPP,"",IF(L59="---","---",IF(L59="*****","*****",VLOOKUP(A59,AV_year_H!$A$5:$Y$103,4,FALSE)+VLOOKUP(A59,AV_year_H!$A$5:$Y$103,6,FALSE)))),"") -> 2400000 | F59: =IF(所有檢核,IF(A59>BPP,"",IF(L59="---",0,IF(L59="*****","*****",VLOOKUP(A59,AV_year_H!$A$5:$Y$103,11,FALSE)))),"") -> 0 | H59: =IF(所有檢核,IF(A59>BPP,"",IF(L59="---",0,IF(L59="*****","*****",VLOOKUP(A59,AV_year_H!$A$5:$Y$103,19,FALSE)))),"") -> 0 | I59: =IF(所有檢核,IF(A59>BPP,"",IF(L59="---","---",IF(L59="*****","*****",VLOOKUP(A59,AV_year_H!$A$5:$Y$103,20,FALSE)))),"") -> 1200 | J59: =IF(所有檢核,IF(A59>BPP,"",IF(L59="---","---",IF(L59="*****","*****",VLOOKUP(A59,AV_year_H!$A$5:$Y$103,17,FALSE)))),"") -> 250272 | K59: =IF(所有檢核,IF(A59>BPP,"",IF(L59="---",0,IF(L59="*****","*****",VLOOKUP(A59,AV_year_H!$A$5:$Y$103,14,FALSE)))),"") -> 0 | L59: =IF(所有檢核,IF(A59>BPP,"",IF(IFERROR(VLOOKUP(A59,AV_year_H!$A$5:$Y$103,22,FALSE),0)=" ","---",IFERROR(VLOOKUP(A59,AV_year_H!$A$5:$Y$103,23,FALSE),"*****"))),"") -> 3318029 | N59: =IF(所有檢核,IF(A59>BPP,"",IF(L59="---","---",IF(L59="*****","*****",VLOOKUP(A59,AV_year_H!$A$5:$Y$103,25,FALSE)))),"") -> 9918029
A60: 33 | B60: 72 | C60: =IF(所有檢核,IF(A60>BPP,IF(A60=BPP+1,"***以下空白***",""),IF(L60="---",0,IF(L60="*****","*****",VLOOKUP(A60,AV_year_H!$A$5:$Y$103,3,FALSE)))),"") -> 0 | D60: =IF(所有檢核,IF(A60>BPP,"",IF(L60="---",0,IF(L60="*****","*****",VLOOKUP(A60,AV_year_H!$A$5:$Y$103,5,FALSE)+VLOOKUP(A60,AV_year_H!$A$5:$Y$103,7,FALSE)-VLOOKUP(A60,AV_year_H!$A$5:$Y$103,10,FALSE)))),"") -> 0 | E60: =IF(所有檢核,IF(A60>BPP,"",IF(L60="---","---",IF(L60="*****","*****",VLOOKUP(A60,AV_year_H!$A$5:$Y$103,4,FALSE)+VLOOKUP(A60,AV_year_H!$A$5:$Y$103,6,FALSE)))),"") -> 2400000 | F60: =IF(所有檢核,IF(A60>BPP,"",IF(L60="---",0,IF(L60="*****","*****",VLOOKUP(A60,AV_year_H!$A$5:$Y$103,11,FALSE)))),"") -> 0 | H60: =IF(所有檢核,IF(A60>BPP,"",IF(L60="---",0,IF(L60="*****","*****",VLOOKUP(A60,AV_year_H!$A$5:$Y$103,19,FALSE)))),"") -> 0 | I60: =IF(所有檢核,IF(A60>BPP,"",IF(L60="---","---",IF(L60="*****","*****",VLOOKUP(A60,AV_year_H!$A$5:$Y$103,20,FALSE)))),"") -> 1200 | J60: =IF(所有檢核,IF(A60>BPP,"",IF(L60="---","---",IF(L60="*****","*****",VLOOKUP(A60,AV_year_H!$A$5:$Y$103,17,FALSE)))),"") -> 274032 | K60: =IF(所有檢核,IF(A60>BPP,"",IF(L60="---",0,IF(L60="*****","*****",VLOOKUP(A60,AV_year_H!$A$5:$Y$103,14,FALSE)))),"") -> 0 | L60: =IF(所有檢核,IF(A60>BPP,"",IF(IFERROR(VLOOKUP(A60,AV_year_H!$A$5:$Y$103,22,FALSE),0)=" ","---",IFERROR(VLOOKUP(A60,AV_year_H!$A$5:$Y$103,23,FALSE),"*****"))),"") -> 3233013 | N60: =IF(所有檢核,IF(A60>BPP,"",IF(L60="---","---",IF(L60="*****","*****",VLOOKUP(A60,AV_year_H!$A$5:$Y$103,25,FALSE)))),"") -> 9833013
A61: 34 | B61: 73 | C61: =IF(所有檢核,IF(A61>BPP,IF(A61=BPP+1,"***以下空白***",""),IF(L61="---",0,IF(L61="*****","*****",VLOOKUP(A61,AV_year_H!$A$5:$Y$103,3,FALSE)))),"") -> 0 | D61: =IF(所有檢核,IF(A61>BPP,"",IF(L61="---",0,IF(L61="*****","*****",VLOOKUP(A61,AV_year_H!$A$5:$Y$103,5,FALSE)+VLOOKUP(A61,AV_year_H!$A$5:$Y$103,7,FALSE)-VLOOKUP(A61,AV_year_H!$A$5:$Y$103,10,FALSE)))),"") -> 0 | E61: =IF(所有檢核,IF(A61>BPP,"",IF(L61="---","---",IF(L61="*****","*****",VLOOKUP(A61,AV_year_H!$A$5:$Y$103,4,FALSE)+VLOOKUP(A61,AV_year_H!$A$5:$Y$103,6,FALSE)))),"") -> 2400000 | F61: =IF(所有檢核,IF(A61>BPP,"",IF(L61="---",0,IF(L61="*****","*****",VLOOKUP(A61,AV_year_H!$A$5:$Y$103,11,FALSE)))),"") -> 0 | H61: =IF(所有檢核,IF(A61>BPP,"",IF(L61="---",0,IF(L61="*****","*****",VLOOKUP(A61,AV_year_H!$A$5:$Y$103,19,FALSE)))),"") -> 0 | I61: =IF(所有檢核,IF(A61>BPP,"",IF(L61="---","---",IF(L61="*****","*****",VLOOKUP(A61,AV_year_H!$A$5:$Y$103,20,FALSE)))),"") -> 1200 | J61: =IF(所有檢核,IF(A61>BPP,"",IF(L61="---","---",IF(L61="*****","*****",VLOOKUP(A61,AV_year_H!$A$5:$Y$103,17,FALSE)))),"") -> 300168 | K61: =IF(所有檢核,IF(A61>BPP,"",IF(L61="---",0,IF(L61="*****","*****",VLOOKUP(A61,AV_year_H!$A$5:$Y$103,14,FALSE)))),"") -> 0 | L61: =IF(所有檢核,IF(A61>BPP,"",IF(IFERROR(VLOOKUP(A61,AV_year_H!$A$5:$Y$103,22,FALSE),0)=" ","---",IFERROR(VLOOKUP(A61,AV_year_H!$A$5:$Y$103,23,FALSE),"*****"))),"") -> 3115919 | N61: =IF(所有檢核,IF(A61>BPP,"",IF(L61="---","---",IF(L61="*****","*****",VLOOKUP(A61,AV_year_H!$A$5:$Y$103,25,FALSE)))),"") -> 9715919
A63: ＊ | B63: 本保險為不分紅保單，不參加紅利分配，並無紅利給付項目。
A64: ＊ | B64: 本保險商品之加值回饋金給付來源為保費費用、保單管理費、投資標的經理費(管理費)及投資標的帳戶管理費。
A65: ＊ | B65: 本建議書係銷售人員於銷售過程提供予要保人參考，當建議書所列投保資料與要保書填寫不同時，試算金額也會隨之異動，詳細金額仍須以要保書/保單首頁填寫內容為準。
A67: 保單利益及費用明細試算表 | N67: =IF(ISERROR(商品序號),"","(單位："&幣別&"/"&單位&")") -> (單位：新臺幣/元)
A69: 年 度 | B69: 年 齡 | C69: ="假設投資報酬率"&TEXT(IRR_2,"0.00%") -> 假設投資報酬率6.00%
C70: 每年 目標保險費 | D70: 每年 超額保險費 | E70: 年度末 累積保險費 (目標+超額) | F70: 每年 保費費用 (目標+超額) | H70: 每年 實際用於投資 之保費金額 | I70: 每年 保單管理費 | J70: 每年 應收保險成本 | K70: 加值回饋金 | L70: 年度末 保單帳戶價值 /解約金 | N70: 年度末 壽險保障
A71: 35 | B71: =IF(所有檢核,IF(A71>BPP,"",Age_Insured+A71-1),"") -> 74 | C71: =IF(所有檢核,IF(A71>BPP,IF(A71=BPP+1,"***以下空白***",""),IF(L71="---",0,IF(L71="*****","*****",VLOOKUP(A71,AV_year_H!$A$5:$Y$103,3,FALSE)))),"") -> 0 | D71: =IF(所有檢核,IF(A71>BPP,"",IF(L71="---",0,IF(L71="*****","*****",VLOOKUP(A71,AV_year_H!$A$5:$Y$103,5,FALSE)+VLOOKUP(A71,AV_year_H!$A$5:$Y$103,7,FALSE)-VLOOKUP(A71,AV_year_H!$A$5:$Y$103,10,FALSE)))),"") -> 0 | E71: =IF(所有檢核,IF(A71>BPP,"",IF(L71="---","---",IF(L71="*****","*****",VLOOKUP(A71,AV_year_H!$A$5:$Y$103,4,FALSE)+VLOOKUP(A71,AV_year_H!$A$5:$Y$103,6,FALSE)))),"") -> 2400000 | F71: =IF(所有檢核,IF(A71>BPP,"",IF(L71="---",0,IF(L71="*****","*****",VLOOKUP(A71,AV_year_H!$A$5:$Y$103,11,FALSE)))),"") -> 0 | H71: =IF(所有檢核,IF(A71>BPP,"",IF(L71="---",0,IF(L71="*****","*****",VLOOKUP(A71,AV_year_H!$A$5:$Y$103,19,FALSE)))),"") -> 0 | I71: =IF(所有檢核,IF(A71>BPP,"",IF(L71="---","---",IF(L71="*****","*****",VLOOKUP(A71,AV_year_H!$A$5:$Y$103,20,FALSE)))),"") -> 1200 | J71: =IF(所有檢核,IF(A71>BPP,"",IF(L71="---","---",IF(L71="*****","*****",VLOOKUP(A71,AV_year_H!$A$5:$Y$103,17,FALSE)))),"") -> 327888 | K71: =IF(所有檢核,IF(A71>BPP,"",IF(L71="---",0,IF(L71="*****","*****",VLOOKUP(A71,AV_year_H!$A$5:$Y$103,14,FALSE)))),"") -> 0 | L71: =IF(所有檢核,IF(A71>BPP,"",IF(IFERROR(VLOOKUP(A71,AV_year_H!$A$5:$Y$103,22,FALSE),0)=" ","---",IFERROR(VLOOKUP(A71,AV_year_H!$A$5:$Y$103,23,FALSE),"*****"))),"") -> 2963186 | N71: =IF(所有檢核,IF(A71>BPP,"",IF(L71="---","---",IF(L71="*****","*****",VLOOKUP(A71,AV_year_H!$A$5:$Y$103,25,FALSE)))),"") -> 9563186
A72: 36 | B72: 75 | C72: =IF(所有檢核,IF(A72>BPP,IF(A72=BPP+1,"***以下空白***",""),IF(L72="---",0,IF(L72="*****","*****",VLOOKUP(A72,AV_year_H!$A$5:$Y$103,3,FALSE)))),"") -> 0 | D72: =IF(所有檢核,IF(A72>BPP,"",IF(L72="---",0,IF(L72="*****","*****",VLOOKUP(A72,AV_year_H!$A$5:$Y$103,5,FALSE)+VLOOKUP(A72,AV_year_H!$A$5:$Y$103,7,FALSE)-VLOOKUP(A72,AV_year_H!$A$5:$Y$103,10,FALSE)))),"") -> 0 | E72: =IF(所有檢核,IF(A72>BPP,"",IF(L72="---","---",IF(L72="*****","*****",VLOOKUP(A72,AV_year_H!$A$5:$Y$103,4,FALSE)+VLOOKUP(A72,AV_year_H!$A$5:$Y$103,6,FALSE)))),"") -> 2400000 | F72: =IF(所有檢核,IF(A72>BPP,"",IF(L72="---",0,IF(L72="*****","*****",VLOOKUP(A72,AV_year_H!$A$5:$Y$103,11,FALSE)))),"") -> 0 | H72: =IF(所有檢核,IF(A72>BPP,"",IF(L72="---",0,IF(L72="*****","*****",VLOOKUP(A72,AV_year_H!$A$5:$Y$103,19,FALSE)))),"") -> 0 | I72: =IF(所有檢核,IF(A72>BPP,"",IF(L72="---","---",IF(L72="*****","*****",VLOOKUP(A72,AV_year_H!$A$5:$Y$103,20,FALSE)))),"") -> 1200 | J72: =IF(所有檢核,IF(A72>BPP,"",IF(L72="---","---",IF(L72="*****","*****",VLOOKUP(A72,AV_year_H!$A$5:$Y$103,17,FALSE)))),"") -> 358776 | K72: =IF(所有檢核,IF(A72>BPP,"",IF(L72="---",0,IF(L72="*****","*****",VLOOKUP(A72,AV_year_H!$A$5:$Y$103,14,FALSE)))),"") -> 0 | L72: =IF(所有檢核,IF(A72>BPP,"",IF(IFERROR(VLOOKUP(A72,AV_year_H!$A$5:$Y$103,22,FALSE),0)=" ","---",IFERROR(VLOOKUP(A72,AV_year_H!$A$5:$Y$103,23,FALSE),"*****"))),"") -> 2769406 | N72: =IF(所有檢核,IF(A72>BPP,"",IF(L72="---","---",IF(L72="*****","*****",VLOOKUP(A72,AV_year_H!$A$5:$Y$103,25,FALSE)))),"") -> 9369406
A73: 37 | B73: 76 | C73: =IF(所有檢核,IF(A73>BPP,IF(A73=BPP+1,"***以下空白***",""),IF(L73="---",0,IF(L73="*****","*****",VLOOKUP(A73,AV_year_H!$A$5:$Y$103,3,FALSE)))),"") -> 0 | D73: =IF(所有檢核,IF(A73>BPP,"",IF(L73="---",0,IF(L73="*****","*****",VLOOKUP(A73,AV_year_H!$A$5:$Y$103,5,FALSE)+VLOOKUP(A73,AV_year_H!$A$5:$Y$103,7,FALSE)-VLOOKUP(A73,AV_year_H!$A$5:$Y$103,10,FALSE)))),"") -> 0 | E73: =IF(所有檢核,IF(A73>BPP,"",IF(L73="---","---",IF(L73="*****","*****",VLOOKUP(A73,AV_year_H!$A$5:$Y$103,4,FALSE)+VLOOKUP(A73,AV_year_H!$A$5:$Y$103,6,FALSE)))),"") -> 2400000 | F73: =IF(所有檢核,IF(A73>BPP,"",IF(L73="---",0,IF(L73="*****","*****",VLOOKUP(A73,AV_year_H!$A$5:$Y$103,11,FALSE)))),"") -> 0 | H73: =IF(所有檢核,IF(A73>BPP,"",IF(L73="---",0,IF(L73="*****","*****",VLOOKUP(A73,AV_year_H!$A$5:$Y$103,19,FALSE)))),"") -> 0 | I73: =IF(所有檢核,IF(A73>BPP,"",IF(L73="---","---",IF(L73="*****","*****",VLOOKUP(A73,AV_year_H!$A$5:$Y$103,20,FALSE)))),"") -> 1200 | J73: =IF(所有檢核,IF(A73>BPP,"",IF(L73="---","---",IF(L73="*****","*****",VLOOKUP(A73,AV_year_H!$A$5:$Y$103,17,FALSE)))),"") -> 392040 | K73: =IF(所有檢核,IF(A73>BPP,"",IF(L73="---",0,IF(L73="*****","*****",VLOOKUP(A73,AV_year_H!$A$5:$Y$103,14,FALSE)))),"") -> 0 | L73: =IF(所有檢核,IF(A73>BPP,"",IF(IFERROR(VLOOKUP(A73,AV_year_H!$A$5:$Y$103,22,FALSE),0)=" ","---",IFERROR(VLOOKUP(A73,AV_year_H!$A$5:$Y$103,23,FALSE),"*****"))),"") -> 2529664 | N73: =IF(所有檢核,IF(A73>BPP,"",IF(L73="---","---",IF(L73="*****","*****",VLOOKUP(A73,AV_year_H!$A$5:$Y$103,25,FALSE)))),"") -> 9129664
A74: 38 | B74: 77 | C74: =IF(所有檢核,IF(A74>BPP,IF(A74=BPP+1,"***以下空白***",""),IF(L74="---",0,IF(L74="*****","*****",VLOOKUP(A74,AV_year_H!$A$5:$Y$103,3,FALSE)))),"") -> 0 | D74: =IF(所有檢核,IF(A74>BPP,"",IF(L74="---",0,IF(L74="*****","*****",VLOOKUP(A74,AV_year_H!$A$5:$Y$103,5,FALSE)+VLOOKUP(A74,AV_year_H!$A$5:$Y$103,7,FALSE)-VLOOKUP(A74,AV_year_H!$A$5:$Y$103,10,FALSE)))),"") -> 0 | E74: =IF(所有檢核,IF(A74>BPP,"",IF(L74="---","---",IF(L74="*****","*****",VLOOKUP(A74,AV_year_H!$A$5:$Y$103,4,FALSE)+VLOOKUP(A74,AV_year_H!$A$5:$Y$103,6,FALSE)))),"") -> 2400000 | F74: =IF(所有檢核,IF(A74>BPP,"",IF(L74="---",0,IF(L74="*****","*****",VLOOKUP(A74,AV_year_H!$A$5:$Y$103,11,FALSE)))),"") -> 0 | H74: =IF(所有檢核,IF(A74>BPP,"",IF(L74="---",0,IF(L74="*****","*****",VLOOKUP(A74,AV_year_H!$A$5:$Y$103,19,FALSE)))),"") -> 0 | I74: =IF(所有檢核,IF(A74>BPP,"",IF(L74="---","---",IF(L74="*****","*****",VLOOKUP(A74,AV_year_H!$A$5:$Y$103,20,FALSE)))),"") -> 1200 | J74: =IF(所有檢核,IF(A74>BPP,"",IF(L74="---","---",IF(L74="*****","*****",VLOOKUP(A74,AV_year_H!$A$5:$Y$103,17,FALSE)))),"") -> 429264 | K74: =IF(所有檢核,IF(A74>BPP,"",IF(L74="---",0,IF(L74="*****","*****",VLOOKUP(A74,AV_year_H!$A$5:$Y$103,14,FALSE)))),"") -> 0 | L74: =IF(所有檢核,IF(A74>BPP,"",IF(IFERROR(VLOOKUP(A74,AV_year_H!$A$5:$Y$103,22,FALSE),0)=" ","---",IFERROR(VLOOKUP(A74,AV_year_H!$A$5:$Y$103,23,FALSE),"*****"))),"") -> 2237114 | N74: =IF(所有檢核,IF(A74>BPP,"",IF(L74="---","---",IF(L74="*****","*****",VLOOKUP(A74,AV_year_H!$A$5:$Y$103,25,FALSE)))),"") -> 8837114
A75: 39 | B75: 78 | C75: =IF(所有檢核,IF(A75>BPP,IF(A75=BPP+1,"***以下空白***",""),IF(L75="---",0,IF(L75="*****","*****",VLOOKUP(A75,AV_year_H!$A$5:$Y$103,3,FALSE)))),"") -> 0 | D75: =IF(所有檢核,IF(A75>BPP,"",IF(L75="---",0,IF(L75="*****","*****",VLOOKUP(A75,AV_year_H!$A$5:$Y$103,5,FALSE)+VLOOKUP(A75,AV_year_H!$A$5:$Y$103,7,FALSE)-VLOOKUP(A75,AV_year_H!$A$5:$Y$103,10,FALSE)))),"") -> 0 | E75: =IF(所有檢核,IF(A75>BPP,"",IF(L75="---","---",IF(L75="*****","*****",VLOOKUP(A75,AV_year_H!$A$5:$Y$103,4,FALSE)+VLOOKUP(A75,AV_year_H!$A$5:$Y$103,6,FALSE)))),"") -> 2400000 | F75: =IF(所有檢核,IF(A75>BPP,"",IF(L75="---",0,IF(L75="*****","*****",VLOOKUP(A75,AV_year_H!$A$5:$Y$103,11,FALSE)))),"") -> 0 | H75: =IF(所有檢核,IF(A75>BPP,"",IF(L75="---",0,IF(L75="*****","*****",VLOOKUP(A75,AV_year_H!$A$5:$Y$103,19,FALSE)))),"") -> 0 | I75: =IF(所有檢核,IF(A75>BPP,"",IF(L75="---","---",IF(L75="*****","*****",VLOOKUP(A75,AV_year_H!$A$5:$Y$103,20,FALSE)))),"") -> 1200 | J75: =IF(所有檢核,IF(A75>BPP,"",IF(L75="---","---",IF(L75="*****","*****",VLOOKUP(A75,AV_year_H!$A$5:$Y$103,17,FALSE)))),"") -> 468864 | K75: =IF(所有檢核,IF(A75>BPP,"",IF(L75="---",0,IF(L75="*****","*****",VLOOKUP(A75,AV_year_H!$A$5:$Y$103,14,FALSE)))),"") -> 0 | L75: =IF(所有檢核,IF(A75>BPP,"",IF(IFERROR(VLOOKUP(A75,AV_year_H!$A$5:$Y$103,22,FALSE),0)=" ","---",IFERROR(VLOOKUP(A75,AV_year_H!$A$5:$Y$103,23,FALSE),"*****"))),"") -> 1886136 | N75: =IF(所有檢核,IF(A75>BPP,"",IF(L75="---","---",IF(L75="*****","*****",VLOOKUP(A75,AV_year_H!$A$5:$Y$103,25,FALSE)))),"") -> 8486136
A76: 40 | B76: 79 | C76: =IF(所有檢核,IF(A76>BPP,IF(A76=BPP+1,"***以下空白***",""),IF(L76="---",0,IF(L76="*****","*****",VLOOKUP(A76,AV_year_H!$A$5:$Y$103,3,FALSE)))),"") -> 0 | D76: =IF(所有檢核,IF(A76>BPP,"",IF(L76="---",0,IF(L76="*****","*****",VLOOKUP(A76,AV_year_H!$A$5:$Y$103,5,FALSE)+VLOOKUP(A76,AV_year_H!$A$5:$Y$103,7,FALSE)-VLOOKUP(A76,AV_year_H!$A$5:$Y$103,10,FALSE)))),"") -> 0 | E76: =IF(所有檢核,IF(A76>BPP,"",IF(L76="---","---",IF(L76="*****","*****",VLOOKUP(A76,AV_year_H!$A$5:$Y$103,4,FALSE)+VLOOKUP(A76,AV_year_H!$A$5:$Y$103,6,FALSE)))),"") -> 2400000 | F76: =IF(所有檢核,IF(A76>BPP,"",IF(L76="---",0,IF(L76="*****","*****",VLOOKUP(A76,AV_year_H!$A$5:$Y$103,11,FALSE)))),"") -> 0 | H76: =IF(所有檢核,IF(A76>BPP,"",IF(L76="---",0,IF(L76="*****","*****",VLOOKUP(A76,AV_year_H!$A$5:$Y$103,19,FALSE)))),"") -> 0 | I76: =IF(所有檢核,IF(A76>BPP,"",IF(L76="---","---",IF(L76="*****","*****",VLOOKUP(A76,AV_year_H!$A$5:$Y$103,20,FALSE)))),"") -> 1200 | J76: =IF(所有檢核,IF(A76>BPP,"",IF(L76="---","---",IF(L76="*****","*****",VLOOKUP(A76,AV_year_H!$A$5:$Y$103,17,FALSE)))),"") -> 512424 | K76: =IF(所有檢核,IF(A76>BPP,"",IF(L76="---",0,IF(L76="*****","*****",VLOOKUP(A76,AV_year_H!$A$5:$Y$103,14,FALSE)))),"") -> 0 | L76: =IF(所有檢核,IF(A76>BPP,"",IF(IFERROR(VLOOKUP(A76,AV_year_H!$A$5:$Y$103,22,FALSE),0)=" ","---",IFERROR(VLOOKUP(A76,AV_year_H!$A$5:$Y$103,23,FALSE),"*****"))),"") -> 1469136 | N76: =IF(所有檢核,IF(A76>BPP,"",IF(L76="---","---",IF(L76="*****","*****",VLOOKUP(A76,AV_year_H!$A$5:$Y$103,25,FALSE)))),"") -> 8069136
A77: 41 | B77: 80 | C77: =IF(所有檢核,IF(A77>BPP,IF(A77=BPP+1,"***以下空白***",""),IF(L77="---",0,IF(L77="*****","*****",VLOOKUP(A77,AV_year_H!$A$5:$Y$103,3,FALSE)))),"") -> 0 | D77: =IF(所有檢核,IF(A77>BPP,"",IF(L77="---",0,IF(L77="*****","*****",VLOOKUP(A77,AV_year_H!$A$5:$Y$103,5,FALSE)+VLOOKUP(A77,AV_year_H!$A$5:$Y$103,7,FALSE)-VLOOKUP(A77,AV_year_H!$A$5:$Y$103,10,FALSE)))),"") -> 0 | E77: =IF(所有檢核,IF(A77>BPP,"",IF(L77="---","---",IF(L77="*****","*****",VLOOKUP(A77,AV_year_H!$A$5:$Y$103,4,FALSE)+VLOOKUP(A77,AV_year_H!$A$5:$Y$103,6,FALSE)))),"") -> 2400000 | F77: =IF(所有檢核,IF(A77>BPP,"",IF(L77="---",0,IF(L77="*****","*****",VLOOKUP(A77,AV_year_H!$A$5:$Y$103,11,FALSE)))),"") -> 0 | H77: =IF(所有檢核,IF(A77>BPP,"",IF(L77="---",0,IF(L77="*****","*****",VLOOKUP(A77,AV_year_H!$A$5:$Y$103,19,FALSE)))),"") -> 0 | I77: =IF(所有檢核,IF(A77>BPP,"",IF(L77="---","---",IF(L77="*****","*****",VLOOKUP(A77,AV_year_H!$A$5:$Y$103,20,FALSE)))),"") -> 1200 | J77: =IF(所有檢核,IF(A77>BPP,"",IF(L77="---","---",IF(L77="*****","*****",VLOOKUP(A77,AV_year_H!$A$5:$Y$103,17,FALSE)))),"") -> 559944 | K77: =IF(所有檢核,IF(A77>BPP,"",IF(L77="---",0,IF(L77="*****","*****",VLOOKUP(A77,AV_year_H!$A$5:$Y$103,14,FALSE)))),"") -> 0 | L77: =IF(所有檢核,IF(A77>BPP,"",IF(IFERROR(VLOOKUP(A77,AV_year_H!$A$5:$Y$103,22,FALSE),0)=" ","---",IFERROR(VLOOKUP(A77,AV_year_H!$A$5:$Y$103,23,FALSE),"*****"))),"") -> 978065 | N77: =IF(所有檢核,IF(A77>BPP,"",IF(L77="---","---",IF(L77="*****","*****",VLOOKUP(A77,AV_year_H!$A$5:$Y$103,25,FALSE)))),"") -> 7578065
A78: 42 | B78: 81 | C78: =IF(所有檢核,IF(A78>BPP,IF(A78=BPP+1,"***以下空白***",""),IF(L78="---",0,IF(L78="*****","*****",VLOOKUP(A78,AV_year_H!$A$5:$Y$103,3,FALSE)))),"") -> 0 | D78: =IF(所有檢核,IF(A78>BPP,"",IF(L78="---",0,IF(L78="*****","*****",VLOOKUP(A78,AV_year_H!$A$5:$Y$103,5,FALSE)+VLOOKUP(A78,AV_year_H!$A$5:$Y$103,7,FALSE)-VLOOKUP(A78,AV_year_H!$A$5:$Y$103,10,FALSE)))),"") -> 0 | E78: =IF(所有檢核,IF(A78>BPP,"",IF(L78="---","---",IF(L78="*****","*****",VLOOKUP(A78,AV_year_H!$A$5:$Y$103,4,FALSE)+VLOOKUP(A78,AV_year_H!$A$5:$Y$103,6,FALSE)))),"") -> 2400000 | F78: =IF(所有檢核,IF(A78>BPP,"",IF(L78="---",0,IF(L78="*****","*****",VLOOKUP(A78,AV_year_H!$A$5:$Y$103,11,FALSE)))),"") -> 0 | H78: =IF(所有檢核,IF(A78>BPP,"",IF(L78="---",0,IF(L78="*****","*****",VLOOKUP(A78,AV_year_H!$A$5:$Y$103,19,FALSE)))),"") -> 0 | I78: =IF(所有檢核,IF(A78>BPP,"",IF(L78="---","---",IF(L78="*****","*****",VLOOKUP(A78,AV_year_H!$A$5:$Y$103,20,FALSE)))),"") -> 1200 | J78: =IF(所有檢核,IF(A78>BPP,"",IF(L78="---","---",IF(L78="*****","*****",VLOOKUP(A78,AV_year_H!$A$5:$Y$103,17,FALSE)))),"") -> 612216 | K78: =IF(所有檢核,IF(A78>BPP,"",IF(L78="---",0,IF(L78="*****","*****",VLOOKUP(A78,AV_year_H!$A$5:$Y$103,14,FALSE)))),"") -> 0 | L78: =IF(所有檢核,IF(A78>BPP,"",IF(IFERROR(VLOOKUP(A78,AV_year_H!$A$5:$Y$103,22,FALSE),0)=" ","---",IFERROR(VLOOKUP(A78,AV_year_H!$A$5:$Y$103,23,FALSE),"*****"))),"") -> 403574 | N78: =IF(所有檢核,IF(A78>BPP,"",IF(L78="---","---",IF(L78="*****","*****",VLOOKUP(A78,AV_year_H!$A$5:$Y$103,25,FALSE)))),"") -> 7003574
A79: 43 | B79: 82 | C79: =IF(所有檢核,IF(A79>BPP,IF(A79=BPP+1,"***以下空白***",""),IF(L79="---",0,IF(L79="*****","*****",VLOOKUP(A79,AV_year_H!$A$5:$Y$103,3,FALSE)))),"") -> 0 | D79: =IF(所有檢核,IF(A79>BPP,"",IF(L79="---",0,IF(L79="*****","*****",VLOOKUP(A79,AV_year_H!$A$5:$Y$103,5,FALSE)+VLOOKUP(A79,AV_year_H!$A$5:$Y$103,7,FALSE)-VLOOKUP(A79,AV_year_H!$A$5:$Y$103,10,FALSE)))),"") -> 0 | E79: =IF(所有檢核,IF(A79>BPP,"",IF(L79="---","---",IF(L79="*****","*****",VLOOKUP(A79,AV_year_H!$A$5:$Y$103,4,FALSE)+VLOOKUP(A79,AV_year_H!$A$5:$Y$103,6,FALSE)))),"") -> --- | F79: =IF(所有檢核,IF(A79>BPP,"",IF(L79="---",0,IF(L79="*****","*****",VLOOKUP(A79,AV_year_H!$A$5:$Y$103,11,FALSE)))),"") -> 0 | H79: =IF(所有檢核,IF(A79>BPP,"",IF(L79="---",0,IF(L79="*****","*****",VLOOKUP(A79,AV_year_H!$A$5:$Y$103,19,FALSE)))),"") -> 0 | I79: =IF(所有檢核,IF(A79>BPP,"",IF(L79="---","---",IF(L79="*****","*****",VLOOKUP(A79,AV_year_H!$A$5:$Y$103,20,FALSE)))),"") -> --- | J79: =IF(所有檢核,IF(A79>BPP,"",IF(L79="---","---",IF(L79="*****","*****",VLOOKUP(A79,AV_year_H!$A$5:$Y$103,17,FALSE)))),"") -> --- | K79: =IF(所有檢核,IF(A79>BPP,"",IF(L79="---",0,IF(L79="*****","*****",VLOOKUP(A79,AV_year_H!$A$5:$Y$103,14,FALSE)))),"") -> 0 | L79: =IF(所有檢核,IF(A79>BPP,"",IF(IFERROR(VLOOKUP(A79,AV_year_H!$A$5:$Y$103,22,FALSE),0)=" ","---",IFERROR(VLOOKUP(A79,AV_year_H!$A$5:$Y$103,23,FALSE),"*****"))),"") -> --- | N79: =IF(所有檢核,IF(A79>BPP,"",IF(L79="---","---",IF(L79="*****","*****",VLOOKUP(A79,AV_year_H!$A$5:$Y$103,25,FALSE)))),"") -> ---
A80: 44 | B80: 83 | C80: =IF(所有檢核,IF(A80>BPP,IF(A80=BPP+1,"***以下空白***",""),IF(L80="---",0,IF(L80="*****","*****",VLOOKUP(A80,AV_year_H!$A$5:$Y$103,3,FALSE)))),"") -> 0 | D80: =IF(所有檢核,IF(A80>BPP,"",IF(L80="---",0,IF(L80="*****","*****",VLOOKUP(A80,AV_year_H!$A$5:$Y$103,5,FALSE)+VLOOKUP(A80,AV_year_H!$A$5:$Y$103,7,FALSE)-VLOOKUP(A80,AV_year_H!$A$5:$Y$103,10,FALSE)))),"") -> 0 | E80: =IF(所有檢核,IF(A80>BPP,"",IF(L80="---","---",IF(L80="*****","*****",VLOOKUP(A80,AV_year_H!$A$5:$Y$103,4,FALSE)+VLOOKUP(A80,AV_year_H!$A$5:$Y$103,6,FALSE)))),"") -> --- | F80: =IF(所有檢核,IF(A80>BPP,"",IF(L80="---",0,IF(L80="*****","*****",VLOOKUP(A80,AV_year_H!$A$5:$Y$103,11,FALSE)))),"") -> 0 | H80: =IF(所有檢核,IF(A80>BPP,"",IF(L80="---",0,IF(L80="*****","*****",VLOOKUP(A80,AV_year_H!$A$5:$Y$103,19,FALSE)))),"") -> 0 | I80: =IF(所有檢核,IF(A80>BPP,"",IF(L80="---","---",IF(L80="*****","*****",VLOOKUP(A80,AV_year_H!$A$5:$Y$103,20,FALSE)))),"") -> --- | J80: =IF(所有檢核,IF(A80>BPP,"",IF(L80="---","---",IF(L80="*****","*****",VLOOKUP(A80,AV_year_H!$A$5:$Y$103,17,FALSE)))),"") -> --- | K80: =IF(所有檢核,IF(A80>BPP,"",IF(L80="---",0,IF(L80="*****","*****",VLOOKUP(A80,AV_year_H!$A$5:$Y$103,14,FALSE)))),"") -> 0 | L80: =IF(所有檢核,IF(A80>BPP,"",IF(IFERROR(VLOOKUP(A80,AV_year_H!$A$5:$Y$103,22,FALSE),0)=" ","---",IFERROR(VLOOKUP(A80,AV_year_H!$A$5:$Y$103,23,FALSE),"*****"))),"") -> --- | N80: =IF(所有檢核,IF(A80>BPP,"",IF(L80="---","---",IF(L80="*****","*****",VLOOKUP(A80,AV_year_H!$A$5:$Y$103,25,FALSE)))),"") -> ---
A81: 45 | B81: 84 | C81: =IF(所有檢核,IF(A81>BPP,IF(A81=BPP+1,"***以下空白***",""),IF(L81="---",0,IF(L81="*****","*****",VLOOKUP(A81,AV_year_H!$A$5:$Y$103,3,FALSE)))),"") -> 0 | D81: =IF(所有檢核,IF(A81>BPP,"",IF(L81="---",0,IF(L81="*****","*****",VLOOKUP(A81,AV_year_H!$A$5:$Y$103,5,FALSE)+VLOOKUP(A81,AV_year_H!$A$5:$Y$103,7,FALSE)-VLOOKUP(A81,AV_year_H!$A$5:$Y$103,10,FALSE)))),"") -> 0 | E81: =IF(所有檢核,IF(A81>BPP,"",IF(L81="---","---",IF(L81="*****","*****",VLOOKUP(A81,AV_year_H!$A$5:$Y$103,4,FALSE)+VLOOKUP(A81,AV_year_H!$A$5:$Y$103,6,FALSE)))),"") -> --- | F81: =IF(所有檢核,IF(A81>BPP,"",IF(L81="---",0,IF(L81="*****","*****",VLOOKUP(A81,AV_year_H!$A$5:$Y$103,11,FALSE)))),"") -> 0 | H81: =IF(所有檢核,IF(A81>BPP,"",IF(L81="---",0,IF(L81="*****","*****",VLOOKUP(A81,AV_year_H!$A$5:$Y$103,19,FALSE)))),"") -> 0 | I81: =IF(所有檢核,IF(A81>BPP,"",IF(L81="---","---",IF(L81="*****","*****",VLOOKUP(A81,AV_year_H!$A$5:$Y$103,20,FALSE)))),"") -> --- | J81: =IF(所有檢核,IF(A81>BPP,"",IF(L81="---","---",IF(L81="*****","*****",VLOOKUP(A81,AV_year_H!$A$5:$Y$103,17,FALSE)))),"") -> --- | K81: =IF(所有檢核,IF(A81>BPP,"",IF(L81="---",0,IF(L81="*****","*****",VLOOKUP(A81,AV_year_H!$A$5:$Y$103,14,FALSE)))),"") -> 0 | L81: =IF(所有檢核,IF(A81>BPP,"",IF(IFERROR(VLOOKUP(A81,AV_year_H!$A$5:$Y$103,22,FALSE),0)=" ","---",IFERROR(VLOOKUP(A81,AV_year_H!$A$5:$Y$103,23,FALSE),"*****"))),"") -> --- | N81: =IF(所有檢核,IF(A81>BPP,"",IF(L81="---","---",IF(L81="*****","*****",VLOOKUP(A81,AV_year_H!$A$5:$Y$103,25,FALSE)))),"") -> ---
A82: 46 | B82: 85 | C82: =IF(所有檢核,IF(A82>BPP,IF(A82=BPP+1,"***以下空白***",""),IF(L82="---",0,IF(L82="*****","*****",VLOOKUP(A82,AV_year_H!$A$5:$Y$103,3,FALSE)))),"") -> 0 | D82: =IF(所有檢核,IF(A82>BPP,"",IF(L82="---",0,IF(L82="*****","*****",VLOOKUP(A82,AV_year_H!$A$5:$Y$103,5,FALSE)+VLOOKUP(A82,AV_year_H!$A$5:$Y$103,7,FALSE)-VLOOKUP(A82,AV_year_H!$A$5:$Y$103,10,FALSE)))),"") -> 0 | E82: =IF(所有檢核,IF(A82>BPP,"",IF(L82="---","---",IF(L82="*****","*****",VLOOKUP(A82,AV_year_H!$A$5:$Y$103,4,FALSE)+VLOOKUP(A82,AV_year_H!$A$5:$Y$103,6,FALSE)))),"") -> --- | F82: =IF(所有檢核,IF(A82>BPP,"",IF(L82="---",0,IF(L82="*****","*****",VLOOKUP(A82,AV_year_H!$A$5:$Y$103,11,FALSE)))),"") -> 0 | H82: =IF(所有檢核,IF(A82>BPP,"",IF(L82="---",0,IF(L82="*****","*****",VLOOKUP(A82,AV_year_H!$A$5:$Y$103,19,FALSE)))),"") -> 0 | I82: =IF(所有檢核,IF(A82>BPP,"",IF(L82="---","---",IF(L82="*****","*****",VLOOKUP(A82,AV_year_H!$A$5:$Y$103,20,FALSE)))),"") -> --- | J82: =IF(所有檢核,IF(A82>BPP,"",IF(L82="---","---",IF(L82="*****","*****",VLOOKUP(A82,AV_year_H!$A$5:$Y$103,17,FALSE)))),"") -> --- | K82: =IF(所有檢核,IF(A82>BPP,"",IF(L82="---",0,IF(L82="*****","*****",VLOOKUP(A82,AV_year_H!$A$5:$Y$103,14,FALSE)))),"") -> 0 | L82: =IF(所有檢核,IF(A82>BPP,"",IF(IFERROR(VLOOKUP(A82,AV_year_H!$A$5:$Y$103,22,FALSE),0)=" ","---",IFERROR(VLOOKUP(A82,AV_year_H!$A$5:$Y$103,23,FALSE),"*****"))),"") -> --- | N82: =IF(所有檢核,IF(A82>BPP,"",IF(L82="---","---",IF(L82="*****","*****",VLOOKUP(A82,AV_year_H!$A$5:$Y$103,25,FALSE)))),"") -> ---
A83: 47 | B83: 86 | C83: =IF(所有檢核,IF(A83>BPP,IF(A83=BPP+1,"***以下空白***",""),IF(L83="---",0,IF(L83="*****","*****",VLOOKUP(A83,AV_year_H!$A$5:$Y$103,3,FALSE)))),"") -> 0 | D83: =IF(所有檢核,IF(A83>BPP,"",IF(L83="---",0,IF(L83="*****","*****",VLOOKUP(A83,AV_year_H!$A$5:$Y$103,5,FALSE)+VLOOKUP(A83,AV_year_H!$A$5:$Y$103,7,FALSE)-VLOOKUP(A83,AV_year_H!$A$5:$Y$103,10,FALSE)))),"") -> 0 | E83: =IF(所有檢核,IF(A83>BPP,"",IF(L83="---","---",IF(L83="*****","*****",VLOOKUP(A83,AV_year_H!$A$5:$Y$103,4,FALSE)+VLOOKUP(A83,AV_year_H!$A$5:$Y$103,6,FALSE)))),"") -> --- | F83: =IF(所有檢核,IF(A83>BPP,"",IF(L83="---",0,IF(L83="*****","*****",VLOOKUP(A83,AV_year_H!$A$5:$Y$103,11,FALSE)))),"") -> 0 | H83: =IF(所有檢核,IF(A83>BPP,"",IF(L83="---",0,IF(L83="*****","*****",VLOOKUP(A83,AV_year_H!$A$5:$Y$103,19,FALSE)))),"") -> 0 | I83: =IF(所有檢核,IF(A83>BPP,"",IF(L83="---","---",IF(L83="*****","*****",VLOOKUP(A83,AV_year_H!$A$5:$Y$103,20,FALSE)))),"") -> --- | J83: =IF(所有檢核,IF(A83>BPP,"",IF(L83="---","---",IF(L83="*****","*****",VLOOKUP(A83,AV_year_H!$A$5:$Y$103,17,FALSE)))),"") -> --- | K83: =IF(所有檢核,IF(A83>BPP,"",IF(L83="---",0,IF(L83="*****","*****",VLOOKUP(A83,AV_year_H!$A$5:$Y$103,14,FALSE)))),"") -> 0 | L83: =IF(所有檢核,IF(A83>BPP,"",IF(IFERROR(VLOOKUP(A83,AV_year_H!$A$5:$Y$103,22,FALSE),0)=" ","---",IFERROR(VLOOKUP(A83,AV_year_H!$A$5:$Y$103,23,FALSE),"*****"))),"") -> --- | N83: =IF(所有檢核,IF(A83>BPP,"",IF(L83="---","---",IF(L83="*****","*****",VLOOKUP(A83,AV_year_H!$A$5:$Y$103,25,FALSE)))),"") -> ---
A84: 48 | B84: 87 | C84: =IF(所有檢核,IF(A84>BPP,IF(A84=BPP+1,"***以下空白***",""),IF(L84="---",0,IF(L84="*****","*****",VLOOKUP(A84,AV_year_H!$A$5:$Y$103,3,FALSE)))),"") -> 0 | D84: =IF(所有檢核,IF(A84>BPP,"",IF(L84="---",0,IF(L84="*****","*****",VLOOKUP(A84,AV_year_H!$A$5:$Y$103,5,FALSE)+VLOOKUP(A84,AV_year_H!$A$5:$Y$103,7,FALSE)-VLOOKUP(A84,AV_year_H!$A$5:$Y$103,10,FALSE)))),"") -> 0 | E84: =IF(所有檢核,IF(A84>BPP,"",IF(L84="---","---",IF(L84="*****","*****",VLOOKUP(A84,AV_year_H!$A$5:$Y$103,4,FALSE)+VLOOKUP(A84,AV_year_H!$A$5:$Y$103,6,FALSE)))),"") -> --- | F84: =IF(所有檢核,IF(A84>BPP,"",IF(L84="---",0,IF(L84="*****","*****",VLOOKUP(A84,AV_year_H!$A$5:$Y$103,11,FALSE)))),"") -> 0 | H84: =IF(所有檢核,IF(A84>BPP,"",IF(L84="---",0,IF(L84="*****","*****",VLOOKUP(A84,AV_year_H!$A$5:$Y$103,19,FALSE)))),"") -> 0 | I84: =IF(所有檢核,IF(A84>BPP,"",IF(L84="---","---",IF(L84="*****","*****",VLOOKUP(A84,AV_year_H!$A$5:$Y$103,20,FALSE)))),"") -> --- | J84: =IF(所有檢核,IF(A84>BPP,"",IF(L84="---","---",IF(L84="*****","*****",VLOOKUP(A84,AV_year_H!$A$5:$Y$103,17,FALSE)))),"") -> --- | K84: =IF(所有檢核,IF(A84>BPP,"",IF(L84="---",0,IF(L84="*****","*****",VLOOKUP(A84,AV_year_H!$A$5:$Y$103,14,FALSE)))),"") -> 0 | L84: =IF(所有檢核,IF(A84>BPP,"",IF(IFERROR(VLOOKUP(A84,AV_year_H!$A$5:$Y$103,22,FALSE),0)=" ","---",IFERROR(VLOOKUP(A84,AV_year_H!$A$5:$Y$103,23,FALSE),"*****"))),"") -> --- | N84: =IF(所有檢核,IF(A84>BPP,"",IF(L84="---","---",IF(L84="*****","*****",VLOOKUP(A84,AV_year_H!$A$5:$Y$103,25,FALSE)))),"") -> ---
A85: 49 | B85: 88 | C85: =IF(所有檢核,IF(A85>BPP,IF(A85=BPP+1,"***以下空白***",""),IF(L85="---",0,IF(L85="*****","*****",VLOOKUP(A85,AV_year_H!$A$5:$Y$103,3,FALSE)))),"") -> 0 | D85: =IF(所有檢核,IF(A85>BPP,"",IF(L85="---",0,IF(L85="*****","*****",VLOOKUP(A85,AV_year_H!$A$5:$Y$103,5,FALSE)+VLOOKUP(A85,AV_year_H!$A$5:$Y$103,7,FALSE)-VLOOKUP(A85,AV_year_H!$A$5:$Y$103,10,FALSE)))),"") -> 0 | E85: =IF(所有檢核,IF(A85>BPP,"",IF(L85="---","---",IF(L85="*****","*****",VLOOKUP(A85,AV_year_H!$A$5:$Y$103,4,FALSE)+VLOOKUP(A85,AV_year_H!$A$5:$Y$103,6,FALSE)))),"") -> --- | F85: =IF(所有檢核,IF(A85>BPP,"",IF(L85="---",0,IF(L85="*****","*****",VLOOKUP(A85,AV_year_H!$A$5:$Y$103,11,FALSE)))),"") -> 0 | H85: =IF(所有檢核,IF(A85>BPP,"",IF(L85="---",0,IF(L85="*****","*****",VLOOKUP(A85,AV_year_H!$A$5:$Y$103,19,FALSE)))),"") -> 0 | I85: =IF(所有檢核,IF(A85>BPP,"",IF(L85="---","---",IF(L85="*****","*****",VLOOKUP(A85,AV_year_H!$A$5:$Y$103,20,FALSE)))),"") -> --- | J85: =IF(所有檢核,IF(A85>BPP,"",IF(L85="---","---",IF(L85="*****","*****",VLOOKUP(A85,AV_year_H!$A$5:$Y$103,17,FALSE)))),"") -> --- | K85: =IF(所有檢核,IF(A85>BPP,"",IF(L85="---",0,IF(L85="*****","*****",VLOOKUP(A85,AV_year_H!$A$5:$Y$103,14,FALSE)))),"") -> 0 | L85: =IF(所有檢核,IF(A85>BPP,"",IF(IFERROR(VLOOKUP(A85,AV_year_H!$A$5:$Y$103,22,FALSE),0)=" ","---",IFERROR(VLOOKUP(A85,AV_year_H!$A$5:$Y$103,23,FALSE),"*****"))),"") -> --- | N85: =IF(所有檢核,IF(A85>BPP,"",IF(L85="---","---",IF(L85="*****","*****",VLOOKUP(A85,AV_year_H!$A$5:$Y$103,25,FALSE)))),"") -> ---
A86: 50 | B86: 89 | C86: =IF(所有檢核,IF(A86>BPP,IF(A86=BPP+1,"***以下空白***",""),IF(L86="---",0,IF(L86="*****","*****",VLOOKUP(A86,AV_year_H!$A$5:$Y$103,3,FALSE)))),"") -> 0 | D86: =IF(所有檢核,IF(A86>BPP,"",IF(L86="---",0,IF(L86="*****","*****",VLOOKUP(A86,AV_year_H!$A$5:$Y$103,5,FALSE)+VLOOKUP(A86,AV_year_H!$A$5:$Y$103,7,FALSE)-VLOOKUP(A86,AV_year_H!$A$5:$Y$103,10,FALSE)))),"") -> 0 | E86: =IF(所有檢核,IF(A86>BPP,"",IF(L86="---","---",IF(L86="*****","*****",VLOOKUP(A86,AV_year_H!$A$5:$Y$103,4,FALSE)+VLOOKUP(A86,AV_year_H!$A$5:$Y$103,6,FALSE)))),"") -> --- | F86: =IF(所有檢核,IF(A86>BPP,"",IF(L86="---",0,IF(L86="*****","*****",VLOOKUP(A86,AV_year_H!$A$5:$Y$103,11,FALSE)))),"") -> 0 | H86: =IF(所有檢核,IF(A86>BPP,"",IF(L86="---",0,IF(L86="*****","*****",VLOOKUP(A86,AV_year_H!$A$5:$Y$103,19,FALSE)))),"") -> 0 | I86: =IF(所有檢核,IF(A86>BPP,"",IF(L86="---","---",IF(L86="*****","*****",VLOOKUP(A86,AV_year_H!$A$5:$Y$103,20,FALSE)))),"") -> --- | J86: =IF(所有檢核,IF(A86>BPP,"",IF(L86="---","---",IF(L86="*****","*****",VLOOKUP(A86,AV_year_H!$A$5:$Y$103,17,FALSE)))),"") -> --- | K86: =IF(所有檢核,IF(A86>BPP,"",IF(L86="---",0,IF(L86="*****","*****",VLOOKUP(A86,AV_year_H!$A$5:$Y$103,14,FALSE)))),"") -> 0 | L86: =IF(所有檢核,IF(A86>BPP,"",IF(IFERROR(VLOOKUP(A86,AV_year_H!$A$5:$Y$103,22,FALSE),0)=" ","---",IFERROR(VLOOKUP(A86,AV_year_H!$A$5:$Y$103,23,FALSE),"*****"))),"") -> --- | N86: =IF(所有檢核,IF(A86>BPP,"",IF(L86="---","---",IF(L86="*****","*****",VLOOKUP(A86,AV_year_H!$A$5:$Y$103,25,FALSE)))),"") -> ---
A87: 51 | B87: =IF(所有檢核,IF(A87>BPP,"",Age_Insured+A87-1),"") -> 90 | C87: =IF(所有檢核,IF(A87>BPP,IF(A87=BPP+1,"***以下空白***",""),IF(L87="---",0,IF(L87="*****","*****",VLOOKUP(A87,AV_year_H!$A$5:$Y$103,3,FALSE)))),"") -> 0 | D87: =IF(所有檢核,IF(A87>BPP,"",IF(L87="---",0,IF(L87="*****","*****",VLOOKUP(A87,AV_year_H!$A$5:$Y$103,5,FALSE)+VLOOKUP(A87,AV_year_H!$A$5:$Y$103,7,FALSE)-VLOOKUP(A87,AV_year_H!$A$5:$Y$103,10,FALSE)))),"") -> 0 | E87: =IF(所有檢核,IF(A87>BPP,"",IF(L87="---","---",IF(L87="*****","*****",VLOOKUP(A87,AV_year_H!$A$5:$Y$103,4,FALSE)+VLOOKUP(A87,AV_year_H!$A$5:$Y$103,6,FALSE)))),"") -> --- | F87: =IF(所有檢核,IF(A87>BPP,"",IF(L87="---",0,IF(L87="*****","*****",VLOOKUP(A87,AV_year_H!$A$5:$Y$103,11,FALSE)))),"") -> 0 | H87: =IF(所有檢核,IF(A87>BPP,"",IF(L87="---",0,IF(L87="*****","*****",VLOOKUP(A87,AV_year_H!$A$5:$Y$103,19,FALSE)))),"") -> 0 | I87: =IF(所有檢核,IF(A87>BPP,"",IF(L87="---","---",IF(L87="*****","*****",VLOOKUP(A87,AV_year_H!$A$5:$Y$103,20,FALSE)))),"") -> --- | J87: =IF(所有檢核,IF(A87>BPP,"",IF(L87="---","---",IF(L87="*****","*****",VLOOKUP(A87,AV_year_H!$A$5:$Y$103,17,FALSE)))),"") -> --- | K87: =IF(所有檢核,IF(A87>BPP,"",IF(L87="---",0,IF(L87="*****","*****",VLOOKUP(A87,AV_year_H!$A$5:$Y$103,14,FALSE)))),"") -> 0 | L87: =IF(所有檢核,IF(A87>BPP,"",IF(IFERROR(VLOOKUP(A87,AV_year_H!$A$5:$Y$103,22,FALSE),0)=" ","---",IFERROR(VLOOKUP(A87,AV_year_H!$A$5:$Y$103,23,FALSE),"*****"))),"") -> --- | N87: =IF(所有檢核,IF(A87>BPP,"",IF(L87="---","---",IF(L87="*****","*****",VLOOKUP(A87,AV_year_H!$A$5:$Y$103,25,FALSE)))),"") -> ---
A88: 52 | B88: 91 | C88: =IF(所有檢核,IF(A88>BPP,IF(A88=BPP+1,"***以下空白***",""),IF(L88="---",0,IF(L88="*****","*****",VLOOKUP(A88,AV_year_H!$A$5:$Y$103,3,FALSE)))),"") -> 0 | D88: =IF(所有檢核,IF(A88>BPP,"",IF(L88="---",0,IF(L88="*****","*****",VLOOKUP(A88,AV_year_H!$A$5:$Y$103,5,FALSE)+VLOOKUP(A88,AV_year_H!$A$5:$Y$103,7,FALSE)-VLOOKUP(A88,AV_year_H!$A$5:$Y$103,10,FALSE)))),"") -> 0 | E88: =IF(所有檢核,IF(A88>BPP,"",IF(L88="---","---",IF(L88="*****","*****",VLOOKUP(A88,AV_year_H!$A$5:$Y$103,4,FALSE)+VLOOKUP(A88,AV_year_H!$A$5:$Y$103,6,FALSE)))),"") -> --- | F88: =IF(所有檢核,IF(A88>BPP,"",IF(L88="---",0,IF(L88="*****","*****",VLOOKUP(A88,AV_year_H!$A$5:$Y$103,11,FALSE)))),"") -> 0 | H88: =IF(所有檢核,IF(A88>BPP,"",IF(L88="---",0,IF(L88="*****","*****",VLOOKUP(A88,AV_year_H!$A$5:$Y$103,19,FALSE)))),"") -> 0 | I88: =IF(所有檢核,IF(A88>BPP,"",IF(L88="---","---",IF(L88="*****","*****",VLOOKUP(A88,AV_year_H!$A$5:$Y$103,20,FALSE)))),"") -> --- | J88: =IF(所有檢核,IF(A88>BPP,"",IF(L88="---","---",IF(L88="*****","*****",VLOOKUP(A88,AV_year_H!$A$5:$Y$103,17,FALSE)))),"") -> --- | K88: =IF(所有檢核,IF(A88>BPP,"",IF(L88="---",0,IF(L88="*****","*****",VLOOKUP(A88,AV_year_H!$A$5:$Y$103,14,FALSE)))),"") -> 0 | L88: =IF(所有檢核,IF(A88>BPP,"",IF(IFERROR(VLOOKUP(A88,AV_year_H!$A$5:$Y$103,22,FALSE),0)=" ","---",IFERROR(VLOOKUP(A88,AV_year_H!$A$5:$Y$103,23,FALSE),"*****"))),"") -> --- | N88: =IF(所有檢核,IF(A88>BPP,"",IF(L88="---","---",IF(L88="*****","*****",VLOOKUP(A88,AV_year_H!$A$5:$Y$103,25,FALSE)))),"") -> ---
A89: 53 | B89: 92 | C89: =IF(所有檢核,IF(A89>BPP,IF(A89=BPP+1,"***以下空白***",""),IF(L89="---",0,IF(L89="*****","*****",VLOOKUP(A89,AV_year_H!$A$5:$Y$103,3,FALSE)))),"") -> 0 | D89: =IF(所有檢核,IF(A89>BPP,"",IF(L89="---",0,IF(L89="*****","*****",VLOOKUP(A89,AV_year_H!$A$5:$Y$103,5,FALSE)+VLOOKUP(A89,AV_year_H!$A$5:$Y$103,7,FALSE)-VLOOKUP(A89,AV_year_H!$A$5:$Y$103,10,FALSE)))),"") -> 0 | E89: =IF(所有檢核,IF(A89>BPP,"",IF(L89="---","---",IF(L89="*****","*****",VLOOKUP(A89,AV_year_H!$A$5:$Y$103,4,FALSE)+VLOOKUP(A89,AV_year_H!$A$5:$Y$103,6,FALSE)))),"") -> --- | F89: =IF(所有檢核,IF(A89>BPP,"",IF(L89="---",0,IF(L89="*****","*****",VLOOKUP(A89,AV_year_H!$A$5:$Y$103,11,FALSE)))),"") -> 0 | H89: =IF(所有檢核,IF(A89>BPP,"",IF(L89="---",0,IF(L89="*****","*****",VLOOKUP(A89,AV_year_H!$A$5:$Y$103,19,FALSE)))),"") -> 0 | I89: =IF(所有檢核,IF(A89>BPP,"",IF(L89="---","---",IF(L89="*****","*****",VLOOKUP(A89,AV_year_H!$A$5:$Y$103,20,FALSE)))),"") -> --- | J89: =IF(所有檢核,IF(A89>BPP,"",IF(L89="---","---",IF(L89="*****","*****",VLOOKUP(A89,AV_year_H!$A$5:$Y$103,17,FALSE)))),"") -> --- | K89: =IF(所有檢核,IF(A89>BPP,"",IF(L89="---",0,IF(L89="*****","*****",VLOOKUP(A89,AV_year_H!$A$5:$Y$103,14,FALSE)))),"") -> 0 | L89: =IF(所有檢核,IF(A89>BPP,"",IF(IFERROR(VLOOKUP(A89,AV_year_H!$A$5:$Y$103,22,FALSE),0)=" ","---",IFERROR(VLOOKUP(A89,AV_year_H!$A$5:$Y$103,23,FALSE),"*****"))),"") -> --- | N89: =IF(所有檢核,IF(A89>BPP,"",IF(L89="---","---",IF(L89="*****","*****",VLOOKUP(A89,AV_year_H!$A$5:$Y$103,25,FALSE)))),"") -> ---
A90: 54 | B90: 93 | C90: =IF(所有檢核,IF(A90>BPP,IF(A90=BPP+1,"***以下空白***",""),IF(L90="---",0,IF(L90="*****","*****",VLOOKUP(A90,AV_year_H!$A$5:$Y$103,3,FALSE)))),"") -> 0 | D90: =IF(所有檢核,IF(A90>BPP,"",IF(L90="---",0,IF(L90="*****","*****",VLOOKUP(A90,AV_year_H!$A$5:$Y$103,5,FALSE)+VLOOKUP(A90,AV_year_H!$A$5:$Y$103,7,FALSE)-VLOOKUP(A90,AV_year_H!$A$5:$Y$103,10,FALSE)))),"") -> 0 | E90: =IF(所有檢核,IF(A90>BPP,"",IF(L90="---","---",IF(L90="*****","*****",VLOOKUP(A90,AV_year_H!$A$5:$Y$103,4,FALSE)+VLOOKUP(A90,AV_year_H!$A$5:$Y$103,6,FALSE)))),"") -> --- | F90: =IF(所有檢核,IF(A90>BPP,"",IF(L90="---",0,IF(L90="*****","*****",VLOOKUP(A90,AV_year_H!$A$5:$Y$103,11,FALSE)))),"") -> 0 | H90: =IF(所有檢核,IF(A90>BPP,"",IF(L90="---",0,IF(L90="*****","*****",VLOOKUP(A90,AV_year_H!$A$5:$Y$103,19,FALSE)))),"") -> 0 | I90: =IF(所有檢核,IF(A90>BPP,"",IF(L90="---","---",IF(L90="*****","*****",VLOOKUP(A90,AV_year_H!$A$5:$Y$103,20,FALSE)))),"") -> --- | J90: =IF(所有檢核,IF(A90>BPP,"",IF(L90="---","---",IF(L90="*****","*****",VLOOKUP(A90,AV_year_H!$A$5:$Y$103,17,FALSE)))),"") -> --- | K90: =IF(所有檢核,IF(A90>BPP,"",IF(L90="---",0,IF(L90="*****","*****",VLOOKUP(A90,AV_year_H!$A$5:$Y$103,14,FALSE)))),"") -> 0 | L90: =IF(所有檢核,IF(A90>BPP,"",IF(IFERROR(VLOOKUP(A90,AV_year_H!$A$5:$Y$103,22,FALSE),0)=" ","---",IFERROR(VLOOKUP(A90,AV_year_H!$A$5:$Y$103,23,FALSE),"*****"))),"") -> --- | N90: =IF(所有檢核,IF(A90>BPP,"",IF(L90="---","---",IF(L90="*****","*****",VLOOKUP(A90,AV_year_H!$A$5:$Y$103,25,FALSE)))),"") -> ---
A91: 55 | B91: 94 | C91: =IF(所有檢核,IF(A91>BPP,IF(A91=BPP+1,"***以下空白***",""),IF(L91="---",0,IF(L91="*****","*****",VLOOKUP(A91,AV_year_H!$A$5:$Y$103,3,FALSE)))),"") -> 0 | D91: =IF(所有檢核,IF(A91>BPP,"",IF(L91="---",0,IF(L91="*****","*****",VLOOKUP(A91,AV_year_H!$A$5:$Y$103,5,FALSE)+VLOOKUP(A91,AV_year_H!$A$5:$Y$103,7,FALSE)-VLOOKUP(A91,AV_year_H!$A$5:$Y$103,10,FALSE)))),"") -> 0 | E91: =IF(所有檢核,IF(A91>BPP,"",IF(L91="---","---",IF(L91="*****","*****",VLOOKUP(A91,AV_year_H!$A$5:$Y$103,4,FALSE)+VLOOKUP(A91,AV_year_H!$A$5:$Y$103,6,FALSE)))),"") -> --- | F91: =IF(所有檢核,IF(A91>BPP,"",IF(L91="---",0,IF(L91="*****","*****",VLOOKUP(A91,AV_year_H!$A$5:$Y$103,11,FALSE)))),"") -> 0 | H91: =IF(所有檢核,IF(A91>BPP,"",IF(L91="---",0,IF(L91="*****","*****",VLOOKUP(A91,AV_year_H!$A$5:$Y$103,19,FALSE)))),"") -> 0 | I91: =IF(所有檢核,IF(A91>BPP,"",IF(L91="---","---",IF(L91="*****","*****",VLOOKUP(A91,AV_year_H!$A$5:$Y$103,20,FALSE)))),"") -> --- | J91: =IF(所有檢核,IF(A91>BPP,"",IF(L91="---","---",IF(L91="*****","*****",VLOOKUP(A91,AV_year_H!$A$5:$Y$103,17,FALSE)))),"") -> --- | K91: =IF(所有檢核,IF(A91>BPP,"",IF(L91="---",0,IF(L91="*****","*****",VLOOKUP(A91,AV_year_H!$A$5:$Y$103,14,FALSE)))),"") -> 0 | L91: =IF(所有檢核,IF(A91>BPP,"",IF(IFERROR(VLOOKUP(A91,AV_year_H!$A$5:$Y$103,22,FALSE),0)=" ","---",IFERROR(VLOOKUP(A91,AV_year_H!$A$5:$Y$103,23,FALSE),"*****"))),"") -> --- | N91: =IF(所有檢核,IF(A91>BPP,"",IF(L91="---","---",IF(L91="*****","*****",VLOOKUP(A91,AV_year_H!$A$5:$Y$103,25,FALSE)))),"") -> ---
A93: ＊ | B93: 本保險為不分紅保單，不參加紅利分配，並無紅利給付項目。
A94: ＊ | B94: 本保險商品之加值回饋金給付來源為保費費用、保單管理費、投資標的經理費(管理費)及投資標的帳戶管理費。
A95: ＊ | B95: 本建議書係銷售人員於銷售過程提供予要保人參考，當建議書所列投保資料與要保書填寫不同時，試算金額也會隨之異動，詳細金額仍須以要保書/保單首頁填寫內容為準。
A97: 保單利益及費用明細試算表 | N97: =IF(ISERROR(商品序號),"","(單位："&幣別&"/"&單位&")") -> (單位：新臺幣/元)
A99: 年 度 | B99: 年 齡 | C99: ="假設投資報酬率"&TEXT(IRR_2,"0.00%") -> 假設投資報酬率6.00%
C100: 每年 目標保險費 | D100: 每年 超額保險費 | E100: 年度末 累積保險費 (目標+超額) | F100: 每年 保費費用 (目標+超額) | H100: 每年 實際用於投資 之保費金額 | I100: 每年 保單管理費 | J100: 每年 應收保險成本 | K100: 加值回饋金 | L100: 年度末 保單帳戶價值 /解約金 | N100: 年度末 壽險保障
A101: 56 | B101: =IF(所有檢核,IF(A101>BPP,"",Age_Insured+A101-1),"") -> 95 | C101: =IF(所有檢核,IF(A101>BPP,IF(A101=BPP+1,"***以下空白***",""),IF(L101="---",0,IF(L101="*****","*****",VLOOKUP(A101,AV_year_H!$A$5:$Y$103,3,FALSE)))),"") -> 0 | D101: =IF(所有檢核,IF(A101>BPP,"",IF(L101="---",0,IF(L101="*****","*****",VLOOKUP(A101,AV_year_H!$A$5:$Y$103,5,FALSE)+VLOOKUP(A101,AV_year_H!$A$5:$Y$103,7,FALSE)-VLOOKUP(A101,AV_year_H!$A$5:$Y$103,10,FALSE)))),"") -> 0 | E101: =IF(所有檢核,IF(A101>BPP,"",IF(L101="---","---",IF(L101="*****","*****",VLOOKUP(A101,AV_year_H!$A$5:$Y$103,4,FALSE)+VLOOKUP(A101,AV_year_H!$A$5:$Y$103,6,FALSE)))),"") -> --- | F101: =IF(所有檢核,IF(A101>BPP,"",IF(L101="---",0,IF(L101="*****","*****",VLOOKUP(A101,AV_year_H!$A$5:$Y$103,11,FALSE)))),"") -> 0 | H101: =IF(所有檢核,IF(A101>BPP,"",IF(L101="---",0,IF(L101="*****","*****",VLOOKUP(A101,AV_year_H!$A$5:$Y$103,19,FALSE)))),"") -> 0 | I101: =IF(所有檢核,IF(A101>BPP,"",IF(L101="---","---",IF(L101="*****","*****",VLOOKUP(A101,AV_year_H!$A$5:$Y$103,20,FALSE)))),"") -> --- | J101: =IF(所有檢核,IF(A101>BPP,"",IF(L101="---","---",IF(L101="*****","*****",VLOOKUP(A101,AV_year_H!$A$5:$Y$103,17,FALSE)))),"") -> --- | K101: =IF(所有檢核,IF(A101>BPP,"",IF(L101="---",0,IF(L101="*****","*****",VLOOKUP(A101,AV_year_H!$A$5:$Y$103,14,FALSE)))),"") -> 0 | L101: =IF(所有檢核,IF(A101>BPP,"",IF(IFERROR(VLOOKUP(A101,AV_year_H!$A$5:$Y$103,22,FALSE),0)=" ","---",IFERROR(VLOOKUP(A101,AV_year_H!$A$5:$Y$103,23,FALSE),"*****"))),"") -> --- | N101: =IF(所有檢核,IF(A101>BPP,"",IF(L101="---","---",IF(L101="*****","*****",VLOOKUP(A101,AV_year_H!$A$5:$Y$103,25,FALSE)))),"") -> ---
A102: 57 | B102: 96 | C102: =IF(所有檢核,IF(A102>BPP,IF(A102=BPP+1,"***以下空白***",""),IF(L102="---",0,IF(L102="*****","*****",VLOOKUP(A102,AV_year_H!$A$5:$Y$103,3,FALSE)))),"") -> 0 | D102: =IF(所有檢核,IF(A102>BPP,"",IF(L102="---",0,IF(L102="*****","*****",VLOOKUP(A102,AV_year_H!$A$5:$Y$103,5,FALSE)+VLOOKUP(A102,AV_year_H!$A$5:$Y$103,7,FALSE)-VLOOKUP(A102,AV_year_H!$A$5:$Y$103,10,FALSE)))),"") -> 0 | E102: =IF(所有檢核,IF(A102>BPP,"",IF(L102="---","---",IF(L102="*****","*****",VLOOKUP(A102,AV_year_H!$A$5:$Y$103,4,FALSE)+VLOOKUP(A102,AV_year_H!$A$5:$Y$103,6,FALSE)))),"") -> --- | F102: =IF(所有檢核,IF(A102>BPP,"",IF(L102="---",0,IF(L102="*****","*****",VLOOKUP(A102,AV_year_H!$A$5:$Y$103,11,FALSE)))),"") -> 0 | H102: =IF(所有檢核,IF(A102>BPP,"",IF(L102="---",0,IF(L102="*****","*****",VLOOKUP(A102,AV_year_H!$A$5:$Y$103,19,FALSE)))),"") -> 0 | I102: =IF(所有檢核,IF(A102>BPP,"",IF(L102="---","---",IF(L102="*****","*****",VLOOKUP(A102,AV_year_H!$A$5:$Y$103,20,FALSE)))),"") -> --- | J102: =IF(所有檢核,IF(A102>BPP,"",IF(L102="---","---",IF(L102="*****","*****",VLOOKUP(A102,AV_year_H!$A$5:$Y$103,17,FALSE)))),"") -> --- | K102: =IF(所有檢核,IF(A102>BPP,"",IF(L102="---",0,IF(L102="*****","*****",VLOOKUP(A102,AV_year_H!$A$5:$Y$103,14,FALSE)))),"") -> 0 | L102: =IF(所有檢核,IF(A102>BPP,"",IF(IFERROR(VLOOKUP(A102,AV_year_H!$A$5:$Y$103,22,FALSE),0)=" ","---",IFERROR(VLOOKUP(A102,AV_year_H!$A$5:$Y$103,23,FALSE),"*****"))),"") -> --- | N102: =IF(所有檢核,IF(A102>BPP,"",IF(L102="---","---",IF(L102="*****","*****",VLOOKUP(A102,AV_year_H!$A$5:$Y$103,25,FALSE)))),"") -> ---
A103: 58 | B103: 97 | C103: =IF(所有檢核,IF(A103>BPP,IF(A103=BPP+1,"***以下空白***",""),IF(L103="---",0,IF(L103="*****","*****",VLOOKUP(A103,AV_year_H!$A$5:$Y$103,3,FALSE)))),"") -> 0 | D103: =IF(所有檢核,IF(A103>BPP,"",IF(L103="---",0,IF(L103="*****","*****",VLOOKUP(A103,AV_year_H!$A$5:$Y$103,5,FALSE)+VLOOKUP(A103,AV_year_H!$A$5:$Y$103,7,FALSE)-VLOOKUP(A103,AV_year_H!$A$5:$Y$103,10,FALSE)))),"") -> 0 | E103: =IF(所有檢核,IF(A103>BPP,"",IF(L103="---","---",IF(L103="*****","*****",VLOOKUP(A103,AV_year_H!$A$5:$Y$103,4,FALSE)+VLOOKUP(A103,AV_year_H!$A$5:$Y$103,6,FALSE)))),"") -> --- | F103: =IF(所有檢核,IF(A103>BPP,"",IF(L103="---",0,IF(L103="*****","*****",VLOOKUP(A103,AV_year_H!$A$5:$Y$103,11,FALSE)))),"") -> 0 | H103: =IF(所有檢核,IF(A103>BPP,"",IF(L103="---",0,IF(L103="*****","*****",VLOOKUP(A103,AV_year_H!$A$5:$Y$103,19,FALSE)))),"") -> 0 | I103: =IF(所有檢核,IF(A103>BPP,"",IF(L103="---","---",IF(L103="*****","*****",VLOOKUP(A103,AV_year_H!$A$5:$Y$103,20,FALSE)))),"") -> --- | J103: =IF(所有檢核,IF(A103>BPP,"",IF(L103="---","---",IF(L103="*****","*****",VLOOKUP(A103,AV_year_H!$A$5:$Y$103,17,FALSE)))),"") -> --- | K103: =IF(所有檢核,IF(A103>BPP,"",IF(L103="---",0,IF(L103="*****","*****",VLOOKUP(A103,AV_year_H!$A$5:$Y$103,14,FALSE)))),"") -> 0 | L103: =IF(所有檢核,IF(A103>BPP,"",IF(IFERROR(VLOOKUP(A103,AV_year_H!$A$5:$Y$103,22,FALSE),0)=" ","---",IFERROR(VLOOKUP(A103,AV_year_H!$A$5:$Y$103,23,FALSE),"*****"))),"") -> --- | N103: =IF(所有檢核,IF(A103>BPP,"",IF(L103="---","---",IF(L103="*****","*****",VLOOKUP(A103,AV_year_H!$A$5:$Y$103,25,FALSE)))),"") -> ---
A104: 59 | B104: 98 | C104: =IF(所有檢核,IF(A104>BPP,IF(A104=BPP+1,"***以下空白***",""),IF(L104="---",0,IF(L104="*****","*****",VLOOKUP(A104,AV_year_H!$A$5:$Y$103,3,FALSE)))),"") -> 0 | D104: =IF(所有檢核,IF(A104>BPP,"",IF(L104="---",0,IF(L104="*****","*****",VLOOKUP(A104,AV_year_H!$A$5:$Y$103,5,FALSE)+VLOOKUP(A104,AV_year_H!$A$5:$Y$103,7,FALSE)-VLOOKUP(A104,AV_year_H!$A$5:$Y$103,10,FALSE)))),"") -> 0 | E104: =IF(所有檢核,IF(A104>BPP,"",IF(L104="---","---",IF(L104="*****","*****",VLOOKUP(A104,AV_year_H!$A$5:$Y$103,4,FALSE)+VLOOKUP(A104,AV_year_H!$A$5:$Y$103,6,FALSE)))),"") -> --- | F104: =IF(所有檢核,IF(A104>BPP,"",IF(L104="---",0,IF(L104="*****","*****",VLOOKUP(A104,AV_year_H!$A$5:$Y$103,11,FALSE)))),"") -> 0 | H104: =IF(所有檢核,IF(A104>BPP,"",IF(L104="---",0,IF(L104="*****","*****",VLOOKUP(A104,AV_year_H!$A$5:$Y$103,19,FALSE)))),"") -> 0 | I104: =IF(所有檢核,IF(A104>BPP,"",IF(L104="---","---",IF(L104="*****","*****",VLOOKUP(A104,AV_year_H!$A$5:$Y$103,20,FALSE)))),"") -> --- | J104: =IF(所有檢核,IF(A104>BPP,"",IF(L104="---","---",IF(L104="*****","*****",VLOOKUP(A104,AV_year_H!$A$5:$Y$103,17,FALSE)))),"") -> --- | K104: =IF(所有檢核,IF(A104>BPP,"",IF(L104="---",0,IF(L104="*****","*****",VLOOKUP(A104,AV_year_H!$A$5:$Y$103,14,FALSE)))),"") -> 0 | L104: =IF(所有檢核,IF(A104>BPP,"",IF(IFERROR(VLOOKUP(A104,AV_year_H!$A$5:$Y$103,22,FALSE),0)=" ","---",IFERROR(VLOOKUP(A104,AV_year_H!$A$5:$Y$103,23,FALSE),"*****"))),"") -> --- | N104: =IF(所有檢核,IF(A104>BPP,"",IF(L104="---","---",IF(L104="*****","*****",VLOOKUP(A104,AV_year_H!$A$5:$Y$103,25,FALSE)))),"") -> ---
A105: 60 | C105: =IF(所有檢核,IF(A105>BPP,IF(A105=BPP+1,"***以下空白***",""),IF(L105="---",0,IF(L105="*****","*****",VLOOKUP(A105,AV_year_H!$A$5:$Y$103,3,FALSE)))),"") -> ***以下空白*** | D105: =IF(所有檢核,IF(A105>BPP,"",IF(L105="---",0,IF(L105="*****","*****",VLOOKUP(A105,AV_year_H!$A$5:$Y$103,5,FALSE)+VLOOKUP(A105,AV_year_H!$A$5:$Y$103,7,FALSE)-VLOOKUP(A105,AV_year_H!$A$5:$Y$103,10,FALSE)))),"") ->  | E105: =IF(所有檢核,IF(A105>BPP,"",IF(L105="---","---",IF(L105="*****","*****",VLOOKUP(A105,AV_year_H!$A$5:$Y$103,4,FALSE)+VLOOKUP(A105,AV_year_H!$A$5:$Y$103,6,FALSE)))),"") ->  | F105: =IF(所有檢核,IF(A105>BPP,"",IF(L105="---",0,IF(L105="*****","*****",VLOOKUP(A105,AV_year_H!$A$5:$Y$103,11,FALSE)))),"") ->  | H105: =IF(所有檢核,IF(A105>BPP,"",IF(L105="---",0,IF(L105="*****","*****",VLOOKUP(A105,AV_year_H!$A$5:$Y$103,19,FALSE)))),"") ->  | I105: =IF(所有檢核,IF(A105>BPP,"",IF(L105="---","---",IF(L105="*****","*****",VLOOKUP(A105,AV_year_H!$A$5:$Y$103,20,FALSE)))),"") ->  | J105: =IF(所有檢核,IF(A105>BPP,"",IF(L105="---","---",IF(L105="*****","*****",VLOOKUP(A105,AV_year_H!$A$5:$Y$103,17,FALSE)))),"") ->  | K105: =IF(所有檢核,IF(A105>BPP,"",IF(L105="---",0,IF(L105="*****","*****",VLOOKUP(A105,AV_year_H!$A$5:$Y$103,14,FALSE)))),"") ->  | L105: =IF(所有檢核,IF(A105>BPP,"",IF(IFERROR(VLOOKUP(A105,AV_year_H!$A$5:$Y$103,22,FALSE),0)=" ","---",IFERROR(VLOOKUP(A105,AV_year_H!$A$5:$Y$103,23,FALSE),"*****"))),"") ->  | N105: =IF(所有檢核,IF(A105>BPP,"",IF(L105="---","---",IF(L105="*****","*****",VLOOKUP(A105,AV_year_H!$A$5:$Y$103,25,FALSE)))),"") -> 
A106: 61 | C106: =IF(所有檢核,IF(A106>BPP,IF(A106=BPP+1,"***以下空白***",""),IF(L106="---",0,IF(L106="*****","*****",VLOOKUP(A106,AV_year_H!$A$5:$Y$103,3,FALSE)))),"") ->  | D106: =IF(所有檢核,IF(A106>BPP,"",IF(L106="---",0,IF(L106="*****","*****",VLOOKUP(A106,AV_year_H!$A$5:$Y$103,5,FALSE)+VLOOKUP(A106,AV_year_H!$A$5:$Y$103,7,FALSE)-VLOOKUP(A106,AV_year_H!$A$5:$Y$103,10,FALSE)))),"") ->  | E106: =IF(所有檢核,IF(A106>BPP,"",IF(L106="---","---",IF(L106="*****","*****",VLOOKUP(A106,AV_year_H!$A$5:$Y$103,4,FALSE)+VLOOKUP(A106,AV_year_H!$A$5:$Y$103,6,FALSE)))),"") ->  | F106: =IF(所有檢核,IF(A106>BPP,"",IF(L106="---",0,IF(L106="*****","*****",VLOOKUP(A106,AV_year_H!$A$5:$Y$103,11,FALSE)))),"") ->  | H106: =IF(所有檢核,IF(A106>BPP,"",IF(L106="---",0,IF(L106="*****","*****",VLOOKUP(A106,AV_year_H!$A$5:$Y$103,19,FALSE)))),"") ->  | I106: =IF(所有檢核,IF(A106>BPP,"",IF(L106="---","---",IF(L106="*****","*****",VLOOKUP(A106,AV_year_H!$A$5:$Y$103,20,FALSE)))),"") ->  | J106: =IF(所有檢核,IF(A106>BPP,"",IF(L106="---","---",IF(L106="*****","*****",VLOOKUP(A106,AV_year_H!$A$5:$Y$103,17,FALSE)))),"") ->  | K106: =IF(所有檢核,IF(A106>BPP,"",IF(L106="---",0,IF(L106="*****","*****",VLOOKUP(A106,AV_year_H!$A$5:$Y$103,14,FALSE)))),"") ->  | L106: =IF(所有檢核,IF(A106>BPP,"",IF(IFERROR(VLOOKUP(A106,AV_year_H!$A$5:$Y$103,22,FALSE),0)=" ","---",IFERROR(VLOOKUP(A106,AV_year_H!$A$5:$Y$103,23,FALSE),"*****"))),"") ->  | N106: =IF(所有檢核,IF(A106>BPP,"",IF(L106="---","---",IF(L106="*****","*****",VLOOKUP(A106,AV_year_H!$A$5:$Y$103,25,FALSE)))),"") -> 
A107: 62 | C107: =IF(所有檢核,IF(A107>BPP,IF(A107=BPP+1,"***以下空白***",""),IF(L107="---",0,IF(L107="*****","*****",VLOOKUP(A107,AV_year_H!$A$5:$Y$103,3,FALSE)))),"") ->  | D107: =IF(所有檢核,IF(A107>BPP,"",IF(L107="---",0,IF(L107="*****","*****",VLOOKUP(A107,AV_year_H!$A$5:$Y$103,5,FALSE)+VLOOKUP(A107,AV_year_H!$A$5:$Y$103,7,FALSE)-VLOOKUP(A107,AV_year_H!$A$5:$Y$103,10,FALSE)))),"") ->  | E107: =IF(所有檢核,IF(A107>BPP,"",IF(L107="---","---",IF(L107="*****","*****",VLOOKUP(A107,AV_year_H!$A$5:$Y$103,4,FALSE)+VLOOKUP(A107,AV_year_H!$A$5:$Y$103,6,FALSE)))),"") ->  | F107: =IF(所有檢核,IF(A107>BPP,"",IF(L107="---",0,IF(L107="*****","*****",VLOOKUP(A107,AV_year_H!$A$5:$Y$103,11,FALSE)))),"") ->  | H107: =IF(所有檢核,IF(A107>BPP,"",IF(L107="---",0,IF(L107="*****","*****",VLOOKUP(A107,AV_year_H!$A$5:$Y$103,19,FALSE)))),"") ->  | I107: =IF(所有檢核,IF(A107>BPP,"",IF(L107="---","---",IF(L107="*****","*****",VLOOKUP(A107,AV_year_H!$A$5:$Y$103,20,FALSE)))),"") ->  | J107: =IF(所有檢核,IF(A107>BPP,"",IF(L107="---","---",IF(L107="*****","*****",VLOOKUP(A107,AV_year_H!$A$5:$Y$103,17,FALSE)))),"") ->  | K107: =IF(所有檢核,IF(A107>BPP,"",IF(L107="---",0,IF(L107="*****","*****",VLOOKUP(A107,AV_year_H!$A$5:$Y$103,14,FALSE)))),"") ->  | L107: =IF(所有檢核,IF(A107>BPP,"",IF(IFERROR(VLOOKUP(A107,AV_year_H!$A$5:$Y$103,22,FALSE),0)=" ","---",IFERROR(VLOOKUP(A107,AV_year_H!$A$5:$Y$103,23,FALSE),"*****"))),"") ->  | N107: =IF(所有檢核,IF(A107>BPP,"",IF(L107="---","---",IF(L107="*****","*****",VLOOKUP(A107,AV_year_H!$A$5:$Y$103,25,FALSE)))),"") -> 
A108: 63 | C108: =IF(所有檢核,IF(A108>BPP,IF(A108=BPP+1,"***以下空白***",""),IF(L108="---",0,IF(L108="*****","*****",VLOOKUP(A108,AV_year_H!$A$5:$Y$103,3,FALSE)))),"") ->  | D108: =IF(所有檢核,IF(A108>BPP,"",IF(L108="---",0,IF(L108="*****","*****",VLOOKUP(A108,AV_year_H!$A$5:$Y$103,5,FALSE)+VLOOKUP(A108,AV_year_H!$A$5:$Y$103,7,FALSE)-VLOOKUP(A108,AV_year_H!$A$5:$Y$103,10,FALSE)))),"") ->  | E108: =IF(所有檢核,IF(A108>BPP,"",IF(L108="---","---",IF(L108="*****","*****",VLOOKUP(A108,AV_year_H!$A$5:$Y$103,4,FALSE)+VLOOKUP(A108,AV_year_H!$A$5:$Y$103,6,FALSE)))),"") ->  | F108: =IF(所有檢核,IF(A108>BPP,"",IF(L108="---",0,IF(L108="*****","*****",VLOOKUP(A108,AV_year_H!$A$5:$Y$103,11,FALSE)))),"") ->  | H108: =IF(所有檢核,IF(A108>BPP,"",IF(L108="---",0,IF(L108="*****","*****",VLOOKUP(A108,AV_year_H!$A$5:$Y$103,19,FALSE)))),"") ->  | I108: =IF(所有檢核,IF(A108>BPP,"",IF(L108="---","---",IF(L108="*****","*****",VLOOKUP(A108,AV_year_H!$A$5:$Y$103,20,FALSE)))),"") ->  | J108: =IF(所有檢核,IF(A108>BPP,"",IF(L108="---","---",IF(L108="*****","*****",VLOOKUP(A108,AV_year_H!$A$5:$Y$103,17,FALSE)))),"") ->  | K108: =IF(所有檢核,IF(A108>BPP,"",IF(L108="---",0,IF(L108="*****","*****",VLOOKUP(A108,AV_year_H!$A$5:$Y$103,14,FALSE)))),"") ->  | L108: =IF(所有檢核,IF(A108>BPP,"",IF(IFERROR(VLOOKUP(A108,AV_year_H!$A$5:$Y$103,22,FALSE),0)=" ","---",IFERROR(VLOOKUP(A108,AV_year_H!$A$5:$Y$103,23,FALSE),"*****"))),"") ->  | N108: =IF(所有檢核,IF(A108>BPP,"",IF(L108="---","---",IF(L108="*****","*****",VLOOKUP(A108,AV_year_H!$A$5:$Y$103,25,FALSE)))),"") -> 
A109: 64 | C109: =IF(所有檢核,IF(A109>BPP,IF(A109=BPP+1,"***以下空白***",""),IF(L109="---",0,IF(L109="*****","*****",VLOOKUP(A109,AV_year_H!$A$5:$Y$103,3,FALSE)))),"") ->  | D109: =IF(所有檢核,IF(A109>BPP,"",IF(L109="---",0,IF(L109="*****","*****",VLOOKUP(A109,AV_year_H!$A$5:$Y$103,5,FALSE)+VLOOKUP(A109,AV_year_H!$A$5:$Y$103,7,FALSE)-VLOOKUP(A109,AV_year_H!$A$5:$Y$103,10,FALSE)))),"") ->  | E109: =IF(所有檢核,IF(A109>BPP,"",IF(L109="---","---",IF(L109="*****","*****",VLOOKUP(A109,AV_year_H!$A$5:$Y$103,4,FALSE)+VLOOKUP(A109,AV_year_H!$A$5:$Y$103,6,FALSE)))),"") ->  | F109: =IF(所有檢核,IF(A109>BPP,"",IF(L109="---",0,IF(L109="*****","*****",VLOOKUP(A109,AV_year_H!$A$5:$Y$103,11,FALSE)))),"") ->  | H109: =IF(所有檢核,IF(A109>BPP,"",IF(L109="---",0,IF(L109="*****","*****",VLOOKUP(A109,AV_year_H!$A$5:$Y$103,19,FALSE)))),"") ->  | I109: =IF(所有檢核,IF(A109>BPP,"",IF(L109="---","---",IF(L109="*****","*****",VLOOKUP(A109,AV_year_H!$A$5:$Y$103,20,FALSE)))),"") ->  | J109: =IF(所有檢核,IF(A109>BPP,"",IF(L109="---","---",IF(L109="*****","*****",VLOOKUP(A109,AV_year_H!$A$5:$Y$103,17,FALSE)))),"") ->  | K109: =IF(所有檢核,IF(A109>BPP,"",IF(L109="---",0,IF(L109="*****","*****",VLOOKUP(A109,AV_year_H!$A$5:$Y$103,14,FALSE)))),"") ->  | L109: =IF(所有檢核,IF(A109>BPP,"",IF(IFERROR(VLOOKUP(A109,AV_year_H!$A$5:$Y$103,22,FALSE),0)=" ","---",IFERROR(VLOOKUP(A109,AV_year_H!$A$5:$Y$103,23,FALSE),"*****"))),"") ->  | N109: =IF(所有檢核,IF(A109>BPP,"",IF(L109="---","---",IF(L109="*****","*****",VLOOKUP(A109,AV_year_H!$A$5:$Y$103,25,FALSE)))),"") -> 
